{"text_format":"1","workbook":"xlsx","n_sheets":11,"sheets":["Lotto3_R7425-1","Lotto3_R7425-2","Lotto3_R7425-3","Lotto3_R7425(NVMe)","Lotto3_R7425(GPU DW)","Lotto3_R7425(GPU SW)","Rack e Accessori","Riepilogo","Foglio1","Regole di configurazione","Codici&PrezzixRiepilogo"],"not_rendered":{"charts":0,"images":34,"macros":1,"external_links":2,"defined_names":34,"comments":0,"pivot_tables":0},"unopened":[],"bounds":{"document_bytes":16777216,"sheet_cells":100000,"rows_first":2000,"rows_last":500,"rows_between":2000,"halvings":0,"cell_chars":16384,"cell_head_chars":4096},"cells_cut":0,"cells_raw":0,"read":"whole","date_system":"1900"}

{"sheet":"Lotto3_R7425-1","index":0,"n_rows":184,"n_cols":9,"rows_kept":184,"cut":false,"hidden":false,"merged":[[88,1,88,2],[4,0,4,4],[0,5,1,5],[46,0,50,0],[65,0,71,0],[72,0,83,0]]}
[null,"TOTALE PRODOTTI CONVENZIONE",{"$f":"SUM(G13:G194)*$C$10","v":0},null,null,{"$f":"IF(I1+I2=0,(C1+C2),\"ERRORE VERIFICARE LA CONFIGURAZIONE\")","v":0},null,null,{"$f":"IF(A47=\"\",0,1)","v":0}]
[null,"TOTALE ARTICOLI 20%",{"$f":"SUM(H13:H194)*$C$10","v":0},null,null,null,null,null,{"$f":"IF(A89=\"\",0,1)","v":0}]
[null,"Quantità Server",0,null,null,{"$f":"Riepilogo!T6","v":"ver. 3.3"}]
[]
["          POWEREDGE R7425"]
[]
[]
[]
[]
[null,"Quantità:",{"$f":"C3","v":0}]
[]
[null,"Modello Server"]
[null,"PowerEdge R7425 Server",1,"[210-APFK]",null,"TS2L3-SRV",2087]
[]
[null,"Configurazione dello chassis"]
[null,"Chassis with up to 24 x 2.5\" SAS/SATA Hard Drives for 1&2CPU Configuration, Risers 1, 3, 5, 7",1,"[321-BDGE]"]
[]
[null,"Trusted Platform Module"]
[null,"No Trusted Platform Module",1,"[461-AADZ]"]
[]
[null,"Processore"]
[null,"AMD EPYC™ 7301 2.2GHz/2.7GHz, 16C/32T, 64M Cache (155W/170W) DDR4-2400/2666",1,"[338-BNBZ]"]
[]
[null,"Processore aggiuntivo"]
[null,"No Additional Processor",{"$f":"VLOOKUP($B$25,TS2L3CPU,2,FALSE)","v":0},{"$f":"VLOOKUP($B$25,TS2L3CPU,3,FALSE)","v":"[374-BBBX]"},{"$f":"VLOOKUP($B$25,TS2L3CPU,4,FALSE)","v":""},{"$f":"VLOOKUP($B$25,TS2L3CPU,5,FALSE)","v":""},{"$f":"VLOOKUP($B$25,TS2L3CPU,6,FALSE)","v":0},{"$f":"VLOOKUP($B$25,TS2L3CPU,7,FALSE)","v":""}]
[]
[null,"Configurazione Termica del Processore"]
[null,{"$f":"VLOOKUP($B$25,TS2L3CPU,8,FALSE)","v":"Standard Heatsinks, below 180W CPU"},{"$f":"VLOOKUP($B$25,TS2L3CPU,9,FALSE)","v":1},{"$f":"VLOOKUP($B$25,TS2L3CPU,10,FALSE)","v":"[412-AALN]"},{"$f":"VLOOKUP($B$25,TS2L3CPU,11,FALSE)","v":"412-AALJ"}]
[null,{"$f":"VLOOKUP($B$25,TS2L3CPU,12,FALSE)","v":"Blank for 1 CPU Configuration"},{"$f":"VLOOKUP($B$25,TS2L3CPU,13,FALSE)","v":1},{"$f":"VLOOKUP($B$25,TS2L3CPU,14,FALSE)","v":"[379-BCWU]"}]
[]
[]
[null,"Memoria Totale in GB","64     (DIMM 32GB)"]
[]
[null,"Tipo di configurazione memoria"]
[null,"Performance Optimized",1,"[370-AAIP]"]
[]
[null,"Tipo e velocità della memoria DIMM"]
[null,{"$f":"IF($C$25=0,VLOOKUP($C$32,TS2L3MEM1CPU,9,FALSE),VLOOKUP($C$32,TS2L3MEM2CPU,9,FALSE))","v":"2666MT/s RDIMMs"},{"$f":"IF($C$25=0,VLOOKUP($C$32,TS2L3MEM1CPU,10,FALSE),VLOOKUP($C$32,TS2L3MEM2CPU,10,FALSE))","v":1},{"$f":"IF($C$25=0,VLOOKUP($C$32,TS2L3MEM1CPU,11,FALSE),VLOOKUP($C$32,TS2L3MEM2CPU,11,FALSE))","v":"[370-ADNU]"}]
[]
[null,"Capacità di memoria"]
[null,{"$f":"IF($C$25=0,VLOOKUP($C$32,TS2L3MEM1CPU,2,FALSE),VLOOKUP($C$32,TS2L3MEM2CPU,2,FALSE))","v":"32GB RDIMM, 2666MT/s, Dual Rank"},{"$f":"IF($C$25=0,VLOOKUP($C$32,TS2L3MEM1CPU,3,FALSE),VLOOKUP($C$32,TS2L3MEM2CPU,3,FALSE))","v":2},{"$f":"IF($C$25=0,VLOOKUP($C$32,TS2L3MEM1CPU,4,FALSE),VLOOKUP($C$32,TS2L3MEM2CPU,4,FALSE))","v":"[370-ADNF]"},{"$f":"IF($C$25=0,VLOOKUP($C$32,TS2L3MEM1CPU,5,FALSE),VLOOKUP($C$32,TS2L3MEM2CPU,5,FALSE))","v":"A9781929"},{"$f":"IF($C$25=0,VLOOKUP($C$32,TS2L3MEM1CPU,6,FALSE),VLOOKUP($C$32,TS2L3MEM2CPU,6,FALSE))","v":""},{"$f":"IF($C$25=0,VLOOKUP($C$32,TS2L3MEM1CPU,7,FALSE),VLOOKUP($C$32,TS2L3MEM2CPU,7,FALSE))","v":0}]
[]
[null,"Sistema operativo preinstallato"]
[null,"None",{"$f":"VLOOKUP($B$44,TS2L3OS,2,FALSE)","v":""},{"$f":"VLOOKUP($B$44,TS2L3OS,3,FALSE)","v":"[619-ABVR]"},{"$f":"VLOOKUP($B$44,TS2L3OS,4,FALSE)","v":""},{"$f":"VLOOKUP($B$44,TS2L3OS,5,FALSE)","v":""},{"$f":"VLOOKUP($B$44,TS2L3OS,6,FALSE)","v":0},{"$f":"VLOOKUP($B$44,TS2L3OS,7,FALSE)","v":0},{"$f":"IF(E44=\"\",1,0)","v":1}]
[null,{"$f":"IF($C$25=1,(VLOOKUP($B$44,TS2L3OS,8,FALSE)),\"\")","v":""},{"$f":"IF($C$25=1,(VLOOKUP($B$44,TS2L3OS,9,FALSE)),\"\")","v":""},{"$f":"IF($C$25=1,(VLOOKUP($B$44,TS2L3OS,10,FALSE)),\"\")","v":""},{"$f":"IF($C$25=1,(VLOOKUP($B$44,TS2L3OS,11,FALSE)),\"\")","v":""},{"$f":"IF($C$25=1,(VLOOKUP($B$44,TS2L3OS,12,FALSE)),\"\")","v":""},{"$f":"IF($C$25=1,(VLOOKUP($B$44,TS2L3OS,13,FALSE)),\"\")","v":""},{"$f":"IF($C$25=1,(VLOOKUP($B$44,TS2L3OS,14,FALSE)),0)","v":0}]
[]
[{"$f":"IF((I44*I48)=0,\"\",\"ERRORE: \nLa selezione di licenze CAL senza il Sistema Operativo Microsoft Windows non è consentita.\")","v":""},"Client Access Licenses"]
[null,{"$f":"IF($E$44>0,'Regole di configurazione'!A95,\"\")","v":"1 Windows Server 2019 Device CALs (Standard or Datacenter),CUS"},0,{"$f":"IF($E$44>0,'Regole di configurazione'!C95,\"\")","v":0},{"$f":"IF($E$44>0,'Regole di configurazione'!D95,\"\")","v":"623-BBBX"},{"$f":"IF($E$44>0,'Regole di configurazione'!E95,\"\")","v":"TS2L3-CALDEV"},{"$f":"IF($E$44>0,'Regole di configurazione'!F95,0)*C48","v":0},{"$f":"IF($E$44>0,'Regole di configurazione'!G95,\"\")","v":0},{"$f":"C48+C50","v":0}]
[]
[null,{"$f":"IF($E$44>0,'Regole di configurazione'!A96,\"\")","v":"1 Windows Server 2019 User CALs (Standard or Datacenter),CUS"},0,{"$f":"IF($E$44>0,'Regole di configurazione'!C96,\"\")","v":0},{"$f":"IF($E$44>0,'Regole di configurazione'!D96,\"\")","v":"623-BBCC"},{"$f":"IF($E$44>0,'Regole di configurazione'!E96,\"\")","v":"TS2L3-CALUSER"},{"$f":"IF($E$44>0,'Regole di configurazione'!F96,0)*C50","v":0},{"$f":"IF($E$44>0,'Regole di configurazione'!G96,\"\")","v":0}]
[]
[null,"Sistema operativo VMware"]
[null,"Vmware vSphere Essentials Plus Kit"]
[null,"None",{"$f":"VLOOKUP($B$54,TS2L3VMWARE1,2,FALSE)","v":1},{"$f":"VLOOKUP($B$54,TS2L3VMWARE1,3,FALSE)","v":""},{"$f":"VLOOKUP($B$54,TS2L3VMWARE1,4,FALSE)","v":""},{"$f":"VLOOKUP($B$54,TS2L3VMWARE1,5,FALSE)","v":""},{"$f":"VLOOKUP($B$54,TS2L3VMWARE1,6,FALSE)","v":0},{"$f":"VLOOKUP($B$54,TS2L3VMWARE1,7,FALSE)*C54","v":0}]
[null,"VMware vCenter Server Standard"]
[null,"None",{"$f":"VLOOKUP($B$56,TS2L3VMWARE2,2,FALSE)","v":1},{"$f":"VLOOKUP($B$56,TS2L3VMWARE2,3,FALSE)","v":""},{"$f":"VLOOKUP($B$56,TS2L3VMWARE2,4,FALSE)","v":""},{"$f":"VLOOKUP($B$56,TS2L3VMWARE2,5,FALSE)","v":""},{"$f":"VLOOKUP($B$56,TS2L3VMWARE2,6,FALSE)","v":0},{"$f":"VLOOKUP($B$56,TS2L3VMWARE2,7,FALSE)*C56","v":0}]
[null,"Vmware vSphere Standard/Enterprise"]
[null,"None",{"$f":"(VLOOKUP($B$58,TS2L3VMWARE3,2,FALSE))+C25","v":0},{"$f":"VLOOKUP($B$58,TS2L3VMWARE3,3,FALSE)","v":""},{"$f":"VLOOKUP($B$58,TS2L3VMWARE3,4,FALSE)","v":""},{"$f":"VLOOKUP($B$58,TS2L3VMWARE3,5,FALSE)","v":""},{"$f":"VLOOKUP($B$58,TS2L3VMWARE3,6,FALSE)","v":0},{"$f":"VLOOKUP($B$58,TS2L3VMWARE3,7,FALSE)*C58","v":0}]
[null,"VMware vSAN"]
[null,"None",{"$f":"(VLOOKUP($B$60,TS2L3VMWARE4,2,FALSE))+C25","v":0},{"$f":"VLOOKUP($B$60,TS2L3VMWARE4,3,FALSE)","v":""},{"$f":"VLOOKUP($B$60,TS2L3VMWARE4,4,FALSE)","v":""},{"$f":"VLOOKUP($B$60,TS2L3VMWARE4,5,FALSE)","v":""},{"$f":"VLOOKUP($B$60,TS2L3VMWARE4,6,FALSE)","v":0},{"$f":"VLOOKUP($B$60,TS2L3VMWARE4,7,FALSE)*C60","v":0}]
[]
[null,"Controller Dischi"]
[null,{"$f":"B122","v":"PERC H730P RAID Controller, 2Gb NV Cache, Adapter, Full Height"},{"$f":"C122","v":1},{"$f":"D122","v":"[405-AAMR]"},{"$f":"E122","v":"405-AAMY"}]
[]
[null,"Dischi rigidi (numero massimo totale 24)"]
["\n\nSAS 10K","600GB 10K RPM SAS 12Gbps 512n 2.5in Hot-plug Hard Drive",2,"[400-ASGS]","400-AUNQ",{"$f":"IF(C66<=2,\"\",\"TS2L3-10K600\")","v":""},{"$f":"IF(C66<=2,0,(C66-2)*'Regole di configurazione'!F13)","v":0}]
[]
[null,"1.2TB 10K RPM SAS 12Gbps 512n 2.5in Hot-plug Hard Drive",0,"[400-ASHI]","400-ATJL",{"$f":"IF(C68=0,\"\",\"TS2L3-10K1200\")","v":""},{"$f":"C68*'Regole di configurazione'!F14","v":0}]
[]
[null,"1.8TB 10K RPM SAS 12Gbps 512e 2.5in Hot-plug Hard Drive ",0,"[400-ARXC]","400-ATJR",{"$f":"IF(C70=0,\"\",\"TS2L3-10K1800\")","v":""},{"$f":"C70*'Regole di configurazione'!F15","v":0}]
[]
[null,"2.4TB 10K RPM SAS 12Gbps 512e 2.5in Hot-plug Hard Drive NO VMWARE A20",0,null,"400-AVBX",{"$f":"IF(C72=0,\"\",\"TS2L3-10K2400\")","v":""},null,{"$f":"C72*'Regole di configurazione'!G43","v":0}]
["\n\nSSD"]
[null,"SSD 480GB SAS MU 12Gbps 2.5in Hot-Plug A20",0,null,"400-BCOD",{"$f":"IF(C74=0,\"\",\"TS2L3-SSDM480\")","v":""},null,{"$f":"C74*'Regole di configurazione'!G44","v":0}]
[]
[null,"SSD 400GB SAS WI 12Gbps 2.5in Hot-plug Drive, 10 DWPD A20",0,null,"400-ATGH",{"$f":"IF(C76=0,\"\",\"TS2L3-SSDW400\")","v":""},null,{"$f":"C76*'Regole di configurazione'!G45","v":0}]
[]
[null,"SSD 1600GB SAS WI 12Gb 2.5in Hot-plug Drive, 10 DWPD A20",0,null,null,{"$f":"IF(C78=0,\"\",\"TS2L3-SSDW1600\")","v":""},null,{"$f":"C78*'Regole di configurazione'!G46","v":0}]
[]
[null,"960GB SSD SAS Read Intensive 12Gbps 512e 2.5in Hot-plug Drive, PM5-R, 1 DWPD, 1752 TBW",0,"[400-BBPL]","400-ATLL",{"$f":"IF(C80=0,\"\",\"TS2L3-SSDR960\")","v":""},{"$f":"C80*'Regole di configurazione'!F16","v":0}]
[null,null,null,null,null,{"$f":"IF(C81=0,\"\",\"TS2L3-SSDR960\")","v":""}]
[null,"SSD 960GB SAS Mixed Use 12Gbps 2.5in Hot-plug Drive A20",0,null,"400-BCNN",null,null,{"$f":"C82*'Regole di configurazione'!G47","v":0}]
[]
[null,"1.92TB SSD SAS Read Intensive 12Gbps 512e 2.5in Hot-plug Drive, PM1633a",0,"[400-ASFX]","400-ATND",{"$f":"IF(C84=0,\"\",\"TS2L3-SSDR1920\")","v":""},{"$f":"C84*'Regole di configurazione'!F17","v":0}]
[]
[null,"DISCHI TOTALI",{"$f":"SUM(C66:C85)","v":2}]
[]
[null,"NOTE sulla configurazione (CAMPO OBBLIGATORIO)"]
[{"$f":"IF(C86<=24,\"\",\"ERRORE:   Totale n° di dischi superiore al consentito\")","v":""},"Specificare la configurazione RAID per l'installazione del Sistema Operativo, se richiesto.\ne/o\ninserire eventuali note.",null,null,"Specificare la configurazione RAID per l'installazione del Sistema Operativo, se richiesto.\ne/o\ninserire eventuali note.",{"$f":"IF(B89=E89,\"ERRORE:   Compilare il campo NOTE\",\"\")","v":"ERRORE:   Compilare il campo NOTE"}]
[]
[null,"Ventole"]
[null,"6 Standard Fans",1,"[384-BBSU]"]
[]
[null,"Alimentatore"]
[null,"Dual, Hot-plug, Redundant Power Supply (1+1), 1100W",1,"[450-ADWM]"]
[]
[null,"Cavi di alimentazione"]
[null,"Rack Power Cord 2M (C13/C14 10A)",2,"[450-AADY]"]
[]
[null,"PCIe Riser"]
[null,{"$f":"VLOOKUP($B$25,TS2L3CPU,15,FALSE)","v":"Riser Config 1, 2 x8, 1 x16 slots"},{"$f":"VLOOKUP($B$25,TS2L3CPU,16,FALSE)","v":1},{"$f":"VLOOKUP($B$25,TS2L3CPU,17,FALSE)","v":"[330-BBIY]"},{"$f":"VLOOKUP($B$25,TS2L3CPU,18,FALSE)","v":""}]
[]
[null,"Modulo Doppia SD - Internal Dual SD Module (IDSDM)"]
[null,"None",{"$f":"VLOOKUP(B104,TS2L3IDSDM,2,FALSE)","v":0},{"$f":"VLOOKUP(B104,TS2L3IDSDM,3,FALSE)","v":0},{"$f":"VLOOKUP(B104,TS2L3IDSDM,4,FALSE)","v":0},{"$f":"VLOOKUP(B104,TS2L3IDSDM,5,FALSE)","v":""},{"$f":"VLOOKUP(B104,TS2L3IDSDM,6,FALSE)","v":0},{"$f":"VLOOKUP(B104,TS2L3IDSDM,7,FALSE)","v":0}]
[]
[null,"Embedded Systems Management"]
[null,"iDRAC9,Enterprise",1,"[385-BBKT]"]
[]
[]
[null,"None"]
[]
[null,"Network Daughter Card"]
[null,"Broadcom 5720 QP 1Gb Network Daughter Card",1,"[540-BBBW]"]
[]
[null,"Additional Card for PCIe Slot 1 (Full height) (CPU 1)"]
[null,"None",{"$f":"VLOOKUP(B116,TS2L3PCI1,2,FALSE)","v":""},{"$f":"VLOOKUP(B116,TS2L3PCI1,3,FALSE)","v":""},{"$f":"VLOOKUP(B116,TS2L3PCI1,4,FALSE)","v":""},{"$f":"VLOOKUP(B116,TS2L3PCI1,5,FALSE)","v":""},{"$f":"VLOOKUP(B116,TS2L3PCI1,6,FALSE)","v":0},{"$f":"VLOOKUP(B116,TS2L3PCI1,7,FALSE)","v":0}]
[]
[null,"Additional Card for PCIe Slot 2 (Full height) (CPU 1)"]
[null,"None",{"$f":"VLOOKUP(B119,TS2L3PCI2,2,FALSE)","v":""},{"$f":"VLOOKUP(B119,TS2L3PCI2,3,FALSE)","v":""},{"$f":"VLOOKUP(B119,TS2L3PCI2,4,FALSE)","v":""},{"$f":"VLOOKUP(B119,TS2L3PCI2,5,FALSE)","v":""},{"$f":"VLOOKUP(B119,TS2L3PCI2,6,FALSE)","v":0},{"$f":"VLOOKUP(B119,TS2L3PCI2,7,FALSE)","v":0}]
[]
[null,"Additional Card for PCIe Slot 3 (Full height) (CPU 1)"]
[null,"PERC H730P RAID Controller, 2Gb NV Cache, Adapter, Full Height",{"$f":"VLOOKUP(B122,TS2L3PCI3,2,FALSE)","v":1},{"$f":"VLOOKUP(B122,TS2L3PCI3,3,FALSE)","v":"[405-AAMR]"},{"$f":"VLOOKUP(B122,TS2L3PCI3,4,FALSE)","v":"405-AAMY"},{"$f":"VLOOKUP(B122,TS2L3PCI3,5,FALSE)","v":""},{"$f":"VLOOKUP(B122,TS2L3PCI3,6,FALSE)","v":0},{"$f":"VLOOKUP(B122,TS2L3PCI3,7,FALSE)","v":0}]
[]
[null,"Additional Card for PCIe Slot 4 (Full height) (CPU 2)"]
[null,"None",{"$f":"IF(B125=TS2L3ASP,\"\",VLOOKUP(B125,TS2L3PCI4,2,FALSE))","v":""},{"$f":"IF(B125=TS2L3ASP,\"\",VLOOKUP(B125,TS2L3PCI4,3,FALSE))","v":""},{"$f":"IF(B125=TS2L3ASP,\"\",VLOOKUP(B125,TS2L3PCI4,4,FALSE))","v":""},{"$f":"IF(B125=TS2L3ASP,\"\",VLOOKUP(B125,TS2L3PCI4,5,FALSE))","v":""},{"$f":"IF(B125=TS2L3ASP,0,VLOOKUP(B125,TS2L3PCI4,6,FALSE))","v":0},{"$f":"IF(B125=TS2L3ASP,0,VLOOKUP(B125,TS2L3PCI4,7,FALSE))","v":0}]
[]
[null,"Additional Card for PCIe Slot 5 (Full height) (CPU 2)"]
[null,"None"]
[]
[null,"Additional Card for PCIe Slot 6 (Low height) (CPU 2)"]
[null,"None",{"$f":"IF(B131=TS2L3ASP,\"\",VLOOKUP(B131,TS2L3PCI6,2,FALSE))","v":""},{"$f":"IF(B131=TS2L3ASP,\"\",VLOOKUP(B131,TS2L3PCI6,3,FALSE))","v":""},{"$f":"IF(B131=TS2L3ASP,\"\",VLOOKUP(B131,TS2L3PCI6,4,FALSE))","v":""},{"$f":"IF(B131=TS2L3ASP,\"\",VLOOKUP(B131,TS2L3PCI6,5,FALSE))","v":""},{"$f":"IF(B131=TS2L3ASP,0,VLOOKUP(B131,TS2L3PCI6,6,FALSE))","v":0},{"$f":"IF(B131=TS2L3ASP,0,VLOOKUP(B131,TS2L3PCI6,7,FALSE))","v":0}]
[]
[null,"Additional Card for PCIe Slot 7 (Full height) (CPU 2) (BOSS controller card Slot)"]
[null,"None",{"$f":"IF(B134=TS2L3ASP,\"\",VLOOKUP(B134,TS2L3PCI7,2,FALSE))","v":""},{"$f":"IF(B134=TS2L3ASP,\"\",VLOOKUP(B134,TS2L3PCI7,3,FALSE))","v":""},{"$f":"IF(B134=TS2L3ASP,\"\",VLOOKUP(B134,TS2L3PCI7,4,FALSE))","v":""},{"$f":"IF(B134=TS2L3ASP,\"\",VLOOKUP(B134,TS2L3PCI7,5,FALSE))","v":""},{"$f":"IF(B134=TS2L3ASP,0,VLOOKUP(B134,TS2L3PCI7,6,FALSE))","v":0},{"$f":"IF(B134=TS2L3ASP,0,VLOOKUP(B134,TS2L3PCI7,7,FALSE))","v":0}]
[]
[null,"Additional Card for PCIe Slot 8 (Full height) (CPU 2)"]
[null,"None",{"$f":"IF(B137=TS2L3ASP,\"\",VLOOKUP(B137,TS2L3PCI8,2,FALSE))","v":""},{"$f":"IF(B137=TS2L3ASP,\"\",VLOOKUP(B137,TS2L3PCI8,3,FALSE))","v":""},{"$f":"IF(B137=TS2L3ASP,\"\",VLOOKUP(B137,TS2L3PCI8,4,FALSE))","v":""},{"$f":"IF(B137=TS2L3ASP,\"\",VLOOKUP(B137,TS2L3PCI8,5,FALSE))","v":""},{"$f":"IF(B137=TS2L3ASP,0,VLOOKUP(B137,TS2L3PCI8,6,FALSE))","v":0},{"$f":"IF(B137=TS2L3ASP,0,VLOOKUP(B137,TS2L3PCI8,7,FALSE))","v":0}]
[]
[null,"Bezel"]
[null,"No Bezel",{"$f":"VLOOKUP($B$140,TS2L3BEZEL,2,FALSE)","v":0},{"$f":"VLOOKUP($B$140,TS2L3BEZEL,3,FALSE)","v":"[350-BBBW]"},{"$f":"VLOOKUP($B$140,TS2L3BEZEL,4,FALSE)","v":0},{"$f":"VLOOKUP($B$140,TS2L3BEZEL,5,FALSE)","v":""},{"$f":"VLOOKUP($B$140,TS2L3BEZEL,6,FALSE)","v":0},{"$f":"VLOOKUP($B$140,TS2L3BEZEL,7,FALSE)","v":0}]
[null,"MOD,TRAY,LGG,R7425",1,"[350-BBMF]"]
[]
[null,"Quick Sync"]
[null,"No Quick Sync",1,"[350-BBJV]"]
[]
[null,"Rack Rails"]
[null,{"$f":"VLOOKUP($B$140,TS2L3BEZEL,8,FALSE)","v":"ReadyRails™ Sliding Rails Without Cable Management Arm"},{"$f":"VLOOKUP($B$140,TS2L3BEZEL,9,FALSE)","v":1},{"$f":"VLOOKUP($B$140,TS2L3BEZEL,10,FALSE)","v":"[770-BBBQ]"},{"$f":"VLOOKUP($B$140,TS2L3BEZEL,11,FALSE)","v":0}]
[]
[null,"Password"]
[null,"iDRAC,Factory Generated Password",1,"[379-BCSF]"]
[]
[null,"Group Manager"]
[null,"iDRAC Group Manager, Enabled",1,"[379-BCQV]"]
[]
[null,"Internal Optical Drive"]
[null,"No Internal Optical Drive for 12/24 HD Chassis",1,"[429-AAIQ]"]
[]
[null,"Dell Services: Deployment Services"]
[null,"No Installation Service Selected (Contact Sales rep for more details)",1,"[683-11870]"]
[]
[null,"Channel only - Support Extension"]
[null,"Channel 39M Basic Warranty - Next Business Day",1,"[723-41450]"]
[]
[null,"System Documentation"]
[null,"No Systems Documentation, No OpenManage DVD Kit",1,"[631-AACK]"]
[]
[null,"Shipping Material"]
[null,"PowerEdge R7425 Shipping Material",1,"[343-BBHK]"]
[]
[null,"Direct Attach Cable"]
[null,"5 x Dell Networking, Cable, SFP+ to SFP+, 10GbE, Copper Twinax DAC, 3 Meter A20",0,null,"470-AAVJ",{"$f":"IF(C171=0,\"\",\"TS2L3-5XDAC10M3\")","v":""},null,{"$f":"'Regole di configurazione'!G49*C171","v":0}]
[]
[null,"5 x Dell Networking Cable, 100GbE QSFP28 to QSFP28,Passive Copper DAC, 2 Meter A20",0,null,"470-ABQG",{"$f":"IF(C173=0,\"\",\"TS2L3-5XDAC100M2\")","v":""},null,{"$f":"'Regole di configurazione'!G50*C173","v":0}]
[]
[null,"5 x Dell Networking Cable,100GbE QSFP28 to QSFP28, Passive Copper DAC, 3 Meter A20",0,null,"470-ABQE",{"$f":"IF(C175=0,\"\",\"TS2L3-5XDAC100M3\")","v":""},null,{"$f":"'Regole di configurazione'!G51*C175","v":0}]
[]
[null,"Cavi rj45"]
[null,"Cavo Rete UTP cat. 5e 3 metri",5,null,"ROS1403/G",{"$f":"IF(C178=0,\"\",\"TS2L3-3MRJ45\")","v":"TS2L3-3MRJ45"},null,{"$f":"2*C178","v":10}]
[]
[null,"Estenzione di Garanzia"]
[null,"None",{"$f":"VLOOKUP(B181,TS2L3WARRANTY,2,FALSE)","v":""},{"$f":"VLOOKUP(B181,TS2L3WARRANTY,3,FALSE)","v":""},{"$f":"VLOOKUP(B181,TS2L3WARRANTY,4,FALSE)","v":""},{"$f":"VLOOKUP(B181,TS2L3WARRANTY,5,FALSE)","v":""},{"$f":"VLOOKUP(B181,TS2L3WARRANTY,6,FALSE)","v":0}]
[]
[null,"Warranty Upgrades - Non-Std/Local POS"]
[null,"CSTM CONSIP - 39M Onsite Labor Support for CRU for Servers with Basic Warranty",1,"[681-24467]"]

{"sheet":"Lotto3_R7425-2","index":1,"n_rows":184,"n_cols":9,"rows_kept":184,"cut":false,"hidden":false,"merged":[[88,1,88,2],[46,0,50,0],[0,5,1,5],[4,0,4,4],[65,0,71,0],[72,0,83,0]]}
[null,"TOTALE PRODOTTI CONVENZIONE",{"$f":"SUM(G13:G194)*$C$10","v":0},null,null,{"$f":"IF(I1+I2=0,(C1+C2),\"ERRORE VERIFICARE LA CONFIGURAZIONE\")","v":0},null,null,{"$f":"IF(A47=\"\",0,1)","v":0}]
[null,"TOTALE ARTICOLI 20%",{"$f":"SUM(H13:H194)*$C$10","v":0},null,null,null,null,null,{"$f":"IF(A89=\"\",0,1)","v":0}]
[null,"Quantità Server",null,null,null,{"$f":"Riepilogo!T6","v":"ver. 3.3"}]
[]
["          POWEREDGE R7425"]
[]
[]
[]
[]
[null,"Quantità:",{"$f":"C3","v":0}]
[]
[null,"Modello Server"]
[null,"PowerEdge R7425 Server",1,"[210-APFK]",null,"TS2L3-SRV",2087]
[]
[null,"Configurazione dello chassis"]
[null,"Chassis with up to 24 x 2.5\" SAS/SATA Hard Drives for 1&2CPU Configuration, Risers 1, 3, 5, 7",1,"[321-BDGE]"]
[]
[null,"Trusted Platform Module"]
[null,"No Trusted Platform Module",1,"[461-AADZ]"]
[]
[null,"Processore"]
[null,"AMD EPYC™ 7301 2.2GHz/2.7GHz, 16C/32T, 64M Cache (155W/170W) DDR4-2400/2666",1,"[338-BNBZ]"]
[]
[null,"Processore aggiuntivo"]
[null,"No Additional Processor",{"$f":"VLOOKUP($B$25,TS2L3CPU,2,FALSE)","v":0},{"$f":"VLOOKUP($B$25,TS2L3CPU,3,FALSE)","v":"[374-BBBX]"},{"$f":"VLOOKUP($B$25,TS2L3CPU,4,FALSE)","v":""},{"$f":"VLOOKUP($B$25,TS2L3CPU,5,FALSE)","v":""},{"$f":"VLOOKUP($B$25,TS2L3CPU,6,FALSE)","v":0},{"$f":"VLOOKUP($B$25,TS2L3CPU,7,FALSE)","v":""}]
[]
[null,"Configurazione Termica del Processore"]
[null,{"$f":"VLOOKUP($B$25,TS2L3CPU,8,FALSE)","v":"Standard Heatsinks, below 180W CPU"},{"$f":"VLOOKUP($B$25,TS2L3CPU,9,FALSE)","v":1},{"$f":"VLOOKUP($B$25,TS2L3CPU,10,FALSE)","v":"[412-AALN]"},{"$f":"VLOOKUP($B$25,TS2L3CPU,11,FALSE)","v":"412-AALJ"}]
[null,{"$f":"VLOOKUP($B$25,TS2L3CPU,12,FALSE)","v":"Blank for 1 CPU Configuration"},{"$f":"VLOOKUP($B$25,TS2L3CPU,13,FALSE)","v":1},{"$f":"VLOOKUP($B$25,TS2L3CPU,14,FALSE)","v":"[379-BCWU]"}]
[]
[]
[null,"Memoria Totale in GB","64     (DIMM 32GB)"]
[]
[null,"Tipo di configurazione memoria"]
[null,"Performance Optimized",1,"[370-AAIP]"]
[]
[null,"Tipo e velocità della memoria DIMM"]
[null,{"$f":"IF($C$25=0,VLOOKUP($C$32,TS2L3MEM1CPU,9,FALSE),VLOOKUP($C$32,TS2L3MEM2CPU,9,FALSE))","v":"2666MT/s RDIMMs"},{"$f":"IF($C$25=0,VLOOKUP($C$32,TS2L3MEM1CPU,10,FALSE),VLOOKUP($C$32,TS2L3MEM2CPU,10,FALSE))","v":1},{"$f":"IF($C$25=0,VLOOKUP($C$32,TS2L3MEM1CPU,11,FALSE),VLOOKUP($C$32,TS2L3MEM2CPU,11,FALSE))","v":"[370-ADNU]"}]
[]
[null,"Capacità di memoria"]
[null,{"$f":"IF($C$25=0,VLOOKUP($C$32,TS2L3MEM1CPU,2,FALSE),VLOOKUP($C$32,TS2L3MEM2CPU,2,FALSE))","v":"32GB RDIMM, 2666MT/s, Dual Rank"},{"$f":"IF($C$25=0,VLOOKUP($C$32,TS2L3MEM1CPU,3,FALSE),VLOOKUP($C$32,TS2L3MEM2CPU,3,FALSE))","v":2},{"$f":"IF($C$25=0,VLOOKUP($C$32,TS2L3MEM1CPU,4,FALSE),VLOOKUP($C$32,TS2L3MEM2CPU,4,FALSE))","v":"[370-ADNF]"},{"$f":"IF($C$25=0,VLOOKUP($C$32,TS2L3MEM1CPU,5,FALSE),VLOOKUP($C$32,TS2L3MEM2CPU,5,FALSE))","v":"A9781929"},{"$f":"IF($C$25=0,VLOOKUP($C$32,TS2L3MEM1CPU,6,FALSE),VLOOKUP($C$32,TS2L3MEM2CPU,6,FALSE))","v":""},{"$f":"IF($C$25=0,VLOOKUP($C$32,TS2L3MEM1CPU,7,FALSE),VLOOKUP($C$32,TS2L3MEM2CPU,7,FALSE))","v":0}]
[]
[null,"Sistema operativo preinstallato"]
[null,"None",{"$f":"VLOOKUP($B$44,TS2L3OS,2,FALSE)","v":""},{"$f":"VLOOKUP($B$44,TS2L3OS,3,FALSE)","v":"[619-ABVR]"},{"$f":"VLOOKUP($B$44,TS2L3OS,4,FALSE)","v":""},{"$f":"VLOOKUP($B$44,TS2L3OS,5,FALSE)","v":""},{"$f":"VLOOKUP($B$44,TS2L3OS,6,FALSE)","v":0},{"$f":"VLOOKUP($B$44,TS2L3OS,7,FALSE)","v":0},{"$f":"IF(E44=0,1,0)","v":0}]
[null,{"$f":"IF($C$25=1,(VLOOKUP($B$44,TS2L3OS,8,FALSE)),\"\")","v":""},{"$f":"IF($C$25=1,(VLOOKUP($B$44,TS2L3OS,9,FALSE)),\"\")","v":""},{"$f":"IF($C$25=1,(VLOOKUP($B$44,TS2L3OS,10,FALSE)),\"\")","v":""},{"$f":"IF($C$25=1,(VLOOKUP($B$44,TS2L3OS,11,FALSE)),\"\")","v":""},{"$f":"IF($C$25=1,(VLOOKUP($B$44,TS2L3OS,12,FALSE)),\"\")","v":""},{"$f":"IF($C$25=1,(VLOOKUP($B$44,TS2L3OS,13,FALSE)),\"\")","v":""},{"$f":"IF($C$25=1,(VLOOKUP($B$44,TS2L3OS,14,FALSE)),0)","v":0}]
[]
[{"$f":"IF((I44*I48)=0,\"\",\"ERRORE: \nLa selezione di licenze CAL senza il Sistema Operativo Microsoft Windows non è consentita.\")","v":""},"Client Access Licenses"]
[null,{"$f":"IF($E$44>0,'Regole di configurazione'!A95,\"\")","v":"1 Windows Server 2019 Device CALs (Standard or Datacenter),CUS"},0,{"$f":"IF($E$44>0,'Regole di configurazione'!C95,\"\")","v":0},{"$f":"IF($E$44>0,'Regole di configurazione'!D95,\"\")","v":"623-BBBX"},{"$f":"IF($E$44>0,'Regole di configurazione'!E95,\"\")","v":"TS2L3-CALDEV"},{"$f":"IF($E$44>0,'Regole di configurazione'!F95,0)*C48","v":0},{"$f":"IF($E$44>0,'Regole di configurazione'!G95,\"\")","v":0},{"$f":"C48+C50","v":0}]
[]
[null,{"$f":"IF($E$44>0,'Regole di configurazione'!A96,\"\")","v":"1 Windows Server 2019 User CALs (Standard or Datacenter),CUS"},0,{"$f":"IF($E$44>0,'Regole di configurazione'!C96,\"\")","v":0},{"$f":"IF($E$44>0,'Regole di configurazione'!D96,\"\")","v":"623-BBCC"},{"$f":"IF($E$44>0,'Regole di configurazione'!E96,\"\")","v":"TS2L3-CALUSER"},{"$f":"IF($E$44>0,'Regole di configurazione'!F96,0)*C50","v":0},{"$f":"IF($E$44>0,'Regole di configurazione'!G96,\"\")","v":0}]
[]
[null,"Sistema operativo VMware"]
[null,"Vmware vSphere Essentials Plus Kit"]
[null,"None",{"$f":"VLOOKUP($B$54,TS2L3VMWARE1,2,FALSE)","v":1},{"$f":"VLOOKUP($B$54,TS2L3VMWARE1,3,FALSE)","v":""},{"$f":"VLOOKUP($B$54,TS2L3VMWARE1,4,FALSE)","v":""},{"$f":"VLOOKUP($B$54,TS2L3VMWARE1,5,FALSE)","v":""},{"$f":"VLOOKUP($B$54,TS2L3VMWARE1,6,FALSE)","v":0},{"$f":"VLOOKUP($B$54,TS2L3VMWARE1,7,FALSE)*C54","v":0}]
[null,"VMware vCenter Server Standard"]
[null,"None",{"$f":"VLOOKUP($B$56,TS2L3VMWARE2,2,FALSE)","v":1},{"$f":"VLOOKUP($B$56,TS2L3VMWARE2,3,FALSE)","v":""},{"$f":"VLOOKUP($B$56,TS2L3VMWARE2,4,FALSE)","v":""},{"$f":"VLOOKUP($B$56,TS2L3VMWARE2,5,FALSE)","v":""},{"$f":"VLOOKUP($B$56,TS2L3VMWARE2,6,FALSE)","v":0},{"$f":"VLOOKUP($B$56,TS2L3VMWARE2,7,FALSE)*C56","v":0}]
[null,"Vmware vSphere Standard/Enterprise"]
[null,"None",{"$f":"(VLOOKUP($B$58,TS2L3VMWARE3,2,FALSE))+C25","v":0},{"$f":"VLOOKUP($B$58,TS2L3VMWARE3,3,FALSE)","v":""},{"$f":"VLOOKUP($B$58,TS2L3VMWARE3,4,FALSE)","v":""},{"$f":"VLOOKUP($B$58,TS2L3VMWARE3,5,FALSE)","v":""},{"$f":"VLOOKUP($B$58,TS2L3VMWARE3,6,FALSE)","v":0},{"$f":"VLOOKUP($B$58,TS2L3VMWARE3,7,FALSE)*C58","v":0}]
[null,"VMware vSAN"]
[null,"None",{"$f":"(VLOOKUP($B$60,TS2L3VMWARE4,2,FALSE))+C25","v":0},{"$f":"VLOOKUP($B$60,TS2L3VMWARE4,3,FALSE)","v":""},{"$f":"VLOOKUP($B$60,TS2L3VMWARE4,4,FALSE)","v":""},{"$f":"VLOOKUP($B$60,TS2L3VMWARE4,5,FALSE)","v":""},{"$f":"VLOOKUP($B$60,TS2L3VMWARE4,6,FALSE)","v":0},{"$f":"VLOOKUP($B$60,TS2L3VMWARE4,7,FALSE)*C60","v":0}]
[]
[null,"Controller Dischi"]
[null,{"$f":"B122","v":"PERC H730P RAID Controller, 2Gb NV Cache, Adapter, Full Height"},{"$f":"C122","v":1},{"$f":"D122","v":"[405-AAMR]"},{"$f":"E122","v":"405-AAMY"}]
[]
[null,"Dischi rigidi (numero massimo totale 24)"]
["\n\nSAS 10K","600GB 10K RPM SAS 12Gbps 512n 2.5in Hot-plug Hard Drive",2,"[400-ASGS]","400-AUNQ",{"$f":"IF(C66<=2,\"\",\"TS2L3-10K600\")","v":""},{"$f":"IF(C66<=2,0,(C66-2)*'Regole di configurazione'!F13)","v":0}]
[]
[null,"1.2TB 10K RPM SAS 12Gbps 512n 2.5in Hot-plug Hard Drive",0,"[400-ASHI]","400-ATJL",{"$f":"IF(C68=0,\"\",\"TS2L3-10K1200\")","v":""},{"$f":"C68*'Regole di configurazione'!F14","v":0}]
[]
[null,"1.8TB 10K RPM SAS 12Gbps 512e 2.5in Hot-plug Hard Drive ",0,"[400-ARXC]","400-ATJR",{"$f":"IF(C70=0,\"\",\"TS2L3-10K1800\")","v":""},{"$f":"C70*'Regole di configurazione'!F15","v":0}]
[]
[null,"2.4TB 10K RPM SAS 12Gbps 512e 2.5in Hot-plug Hard Drive NO VMWARE A20",0,null,"400-AVBX",{"$f":"IF(C72=0,\"\",\"TS2L3-10K2400\")","v":""},null,{"$f":"C72*'Regole di configurazione'!G43","v":0}]
["\n\nSSD"]
[null,"SSD 480GB SAS MU 12Gbps 2.5in Hot-Plug A20",0,null,"400-BCOD",{"$f":"IF(C74=0,\"\",\"TS2L3-SSDM480\")","v":""},null,{"$f":"C74*'Regole di configurazione'!G44","v":0}]
[]
[null,"SSD 400GB SAS WI 12Gbps 2.5in Hot-plug Drive, 10 DWPD A20",0,null,"400-ATGH",{"$f":"IF(C76=0,\"\",\"TS2L3-SSDW400\")","v":""},null,{"$f":"C76*'Regole di configurazione'!G45","v":0}]
[]
[null,"SSD 1600GB SAS WI 12Gb 2.5in Hot-plug Drive, 10 DWPD A20",0,null,null,{"$f":"IF(C78=0,\"\",\"TS2L3-SSDW1600\")","v":""},null,{"$f":"C78*'Regole di configurazione'!G46","v":0}]
[]
[null,"960GB SSD SAS Read Intensive 12Gbps 512e 2.5in Hot-plug Drive, PM5-R, 1 DWPD, 1752 TBW",0,"[400-BBPL]","400-ATLL",{"$f":"IF(C80=0,\"\",\"TS2L3-SSDR960\")","v":""},{"$f":"C80*'Regole di configurazione'!F16","v":0}]
[null,null,null,null,null,{"$f":"IF(C81=0,\"\",\"TS2L3-SSDR960\")","v":""}]
[null,"SSD 960GB SAS Mixed Use 12Gbps 2.5in Hot-plug Drive A20",0,null,"400-BCNN",null,null,{"$f":"C82*'Regole di configurazione'!G47","v":0}]
[]
[null,"1.92TB SSD SAS Read Intensive 12Gbps 512e 2.5in Hot-plug Drive, PM1633a",0,"[400-ASFX]","400-ATND",{"$f":"IF(C84=0,\"\",\"TS2L3-SSDR1920\")","v":""},{"$f":"C84*'Regole di configurazione'!F17","v":0}]
[]
[null,"DISCHI TOTALI",{"$f":"SUM(C66:C84)","v":2}]
[]
[null,"NOTE sulla configurazione (CAMPO OBBLIGATORIO)"]
[{"$f":"IF(C86<=24,\"\",\"ERRORE:   Totale n° di dischi superiore al consentito\")","v":""},"Specificare la configurazione RAID per l'installazione del Sistema Operativo, se richiesto.\ne/o\ninserire eventuali note.",null,null,"Specificare la configurazione RAID per l'installazione del Sistema Operativo, se richiesto.\ne/o\ninserire eventuali note.",{"$f":"IF(B89=E89,\"ERRORE:   Compilare il campo NOTE\",\"\")","v":"ERRORE:   Compilare il campo NOTE"}]
[]
[null,"Ventole"]
[null,"6 Standard Fans",1,"[384-BBSU]"]
[]
[null,"Alimentatore"]
[null,"Dual, Hot-plug, Redundant Power Supply (1+1), 1100W",1,"[450-ADWM]"]
[]
[null,"Cavi di alimentazione"]
[null,"Rack Power Cord 2M (C13/C14 10A)",2,"[450-AADY]"]
[]
[null,"PCIe Riser"]
[null,{"$f":"VLOOKUP($B$25,TS2L3CPU,15,FALSE)","v":"Riser Config 1, 2 x8, 1 x16 slots"},{"$f":"VLOOKUP($B$25,TS2L3CPU,16,FALSE)","v":1},{"$f":"VLOOKUP($B$25,TS2L3CPU,17,FALSE)","v":"[330-BBIY]"},{"$f":"VLOOKUP($B$25,TS2L3CPU,18,FALSE)","v":""}]
[]
[null,"Modulo Doppia SD - Internal Dual SD Module (IDSDM)"]
[null,"None",{"$f":"VLOOKUP(B104,TS2L3IDSDM,2,FALSE)","v":0},{"$f":"VLOOKUP(B104,TS2L3IDSDM,3,FALSE)","v":0},{"$f":"VLOOKUP(B104,TS2L3IDSDM,4,FALSE)","v":0},{"$f":"VLOOKUP(B104,TS2L3IDSDM,5,FALSE)","v":""},{"$f":"VLOOKUP(B104,TS2L3IDSDM,6,FALSE)","v":0},{"$f":"VLOOKUP(B104,TS2L3IDSDM,7,FALSE)","v":0}]
[]
[null,"Embedded Systems Management"]
[null,"iDRAC9,Enterprise",1,"[385-BBKT]"]
[]
[]
[]
[]
[null,"Network Daughter Card"]
[null,"Broadcom 5720 QP 1Gb Network Daughter Card",1,"[540-BBBW]"]
[]
[null,"Additional Card for PCIe Slot 1 (Full height) (CPU 1)"]
[null,"None",{"$f":"VLOOKUP(B116,TS2L3PCI1,2,FALSE)","v":""},{"$f":"VLOOKUP(B116,TS2L3PCI1,3,FALSE)","v":""},{"$f":"VLOOKUP(B116,TS2L3PCI1,4,FALSE)","v":""},{"$f":"VLOOKUP(B116,TS2L3PCI1,5,FALSE)","v":""},{"$f":"VLOOKUP(B116,TS2L3PCI1,6,FALSE)","v":0},{"$f":"VLOOKUP(B116,TS2L3PCI1,7,FALSE)","v":0}]
[]
[null,"Additional Card for PCIe Slot 2 (Full height) (CPU 1)"]
[null,"None",{"$f":"VLOOKUP(B119,TS2L3PCI2,2,FALSE)","v":""},{"$f":"VLOOKUP(B119,TS2L3PCI2,3,FALSE)","v":""},{"$f":"VLOOKUP(B119,TS2L3PCI2,4,FALSE)","v":""},{"$f":"VLOOKUP(B119,TS2L3PCI2,5,FALSE)","v":""},{"$f":"VLOOKUP(B119,TS2L3PCI2,6,FALSE)","v":0},{"$f":"VLOOKUP(B119,TS2L3PCI2,7,FALSE)","v":0}]
[]
[null,"Additional Card for PCIe Slot 3 (Full height) (CPU 1)"]
[null,"PERC H730P RAID Controller, 2Gb NV Cache, Adapter, Full Height",{"$f":"VLOOKUP(B122,TS2L3PCI3,2,FALSE)","v":1},{"$f":"VLOOKUP(B122,TS2L3PCI3,3,FALSE)","v":"[405-AAMR]"},{"$f":"VLOOKUP(B122,TS2L3PCI3,4,FALSE)","v":"405-AAMY"},{"$f":"VLOOKUP(B122,TS2L3PCI3,5,FALSE)","v":""},{"$f":"VLOOKUP(B122,TS2L3PCI3,6,FALSE)","v":0},{"$f":"VLOOKUP(B122,TS2L3PCI3,7,FALSE)","v":0}]
[]
[null,"Additional Card for PCIe Slot 4 (Full height) (CPU 2)"]
[null,"None",{"$f":"IF(B125=TS2L3ASP,\"\",VLOOKUP(B125,TS2L3PCI4,2,FALSE))","v":""},{"$f":"IF(B125=TS2L3ASP,\"\",VLOOKUP(B125,TS2L3PCI4,3,FALSE))","v":""},{"$f":"IF(B125=TS2L3ASP,\"\",VLOOKUP(B125,TS2L3PCI4,4,FALSE))","v":""},{"$f":"IF(B125=TS2L3ASP,\"\",VLOOKUP(B125,TS2L3PCI4,5,FALSE))","v":""},{"$f":"IF(B125=TS2L3ASP,0,VLOOKUP(B125,TS2L3PCI4,6,FALSE))","v":0},{"$f":"IF(B125=TS2L3ASP,0,VLOOKUP(B125,TS2L3PCI4,7,FALSE))","v":0}]
[]
[null,"Additional Card for PCIe Slot 5 (Full height) (CPU 2)"]
[null,"None"]
[]
[null,"Additional Card for PCIe Slot 6 (Low height) (CPU 2)"]
[null,"None",{"$f":"IF(B131=TS2L3ASP,\"\",VLOOKUP(B131,TS2L3PCI6,2,FALSE))","v":""},{"$f":"IF(B131=TS2L3ASP,\"\",VLOOKUP(B131,TS2L3PCI6,3,FALSE))","v":""},{"$f":"IF(B131=TS2L3ASP,\"\",VLOOKUP(B131,TS2L3PCI6,4,FALSE))","v":""},{"$f":"IF(B131=TS2L3ASP,\"\",VLOOKUP(B131,TS2L3PCI6,5,FALSE))","v":""},{"$f":"IF(B131=TS2L3ASP,0,VLOOKUP(B131,TS2L3PCI6,6,FALSE))","v":0},{"$f":"IF(B131=TS2L3ASP,0,VLOOKUP(B131,TS2L3PCI6,7,FALSE))","v":0}]
[]
[null,"Additional Card for PCIe Slot 7 (Full height) (CPU 2) (BOSS controller card Slot)"]
[null,"None",{"$f":"IF(B134=TS2L3ASP,\"\",VLOOKUP(B134,TS2L3PCI7,2,FALSE))","v":""},{"$f":"IF(B134=TS2L3ASP,\"\",VLOOKUP(B134,TS2L3PCI7,3,FALSE))","v":""},{"$f":"IF(B134=TS2L3ASP,\"\",VLOOKUP(B134,TS2L3PCI7,4,FALSE))","v":""},{"$f":"IF(B134=TS2L3ASP,\"\",VLOOKUP(B134,TS2L3PCI7,5,FALSE))","v":""},{"$f":"IF(B134=TS2L3ASP,0,VLOOKUP(B134,TS2L3PCI7,6,FALSE))","v":0},{"$f":"IF(B134=TS2L3ASP,0,VLOOKUP(B134,TS2L3PCI7,7,FALSE))","v":0}]
[]
[null,"Additional Card for PCIe Slot 8 (Full height) (CPU 2)"]
[null,"None",{"$f":"IF(B137=TS2L3ASP,\"\",VLOOKUP(B137,TS2L3PCI8,2,FALSE))","v":""},{"$f":"IF(B137=TS2L3ASP,\"\",VLOOKUP(B137,TS2L3PCI8,3,FALSE))","v":""},{"$f":"IF(B137=TS2L3ASP,\"\",VLOOKUP(B137,TS2L3PCI8,4,FALSE))","v":""},{"$f":"IF(B137=TS2L3ASP,\"\",VLOOKUP(B137,TS2L3PCI8,5,FALSE))","v":""},{"$f":"IF(B137=TS2L3ASP,0,VLOOKUP(B137,TS2L3PCI8,6,FALSE))","v":0},{"$f":"IF(B137=TS2L3ASP,0,VLOOKUP(B137,TS2L3PCI8,7,FALSE))","v":0}]
[]
[null,"Bezel"]
[null,"No Bezel",{"$f":"VLOOKUP($B$140,TS2L3BEZEL,2,FALSE)","v":0},{"$f":"VLOOKUP($B$140,TS2L3BEZEL,3,FALSE)","v":"[350-BBBW]"},{"$f":"VLOOKUP($B$140,TS2L3BEZEL,4,FALSE)","v":0},{"$f":"VLOOKUP($B$140,TS2L3BEZEL,5,FALSE)","v":""},{"$f":"VLOOKUP($B$140,TS2L3BEZEL,6,FALSE)","v":0},{"$f":"VLOOKUP($B$140,TS2L3BEZEL,7,FALSE)","v":0}]
[null,"MOD,TRAY,LGG,R7425",1,"[350-BBMF]"]
[]
[null,"Quick Sync"]
[null,"No Quick Sync",1,"[350-BBJV]"]
[]
[null,"Rack Rails"]
[null,{"$f":"VLOOKUP($B$140,TS2L3BEZEL,8,FALSE)","v":"ReadyRails™ Sliding Rails Without Cable Management Arm"},{"$f":"VLOOKUP($B$140,TS2L3BEZEL,9,FALSE)","v":1},{"$f":"VLOOKUP($B$140,TS2L3BEZEL,10,FALSE)","v":"[770-BBBQ]"},{"$f":"VLOOKUP($B$140,TS2L3BEZEL,11,FALSE)","v":0}]
[]
[null,"Password"]
[null,"iDRAC,Factory Generated Password",1,"[379-BCSF]"]
[]
[null,"Group Manager"]
[null,"iDRAC Group Manager, Enabled",1,"[379-BCQV]"]
[]
[null,"Internal Optical Drive"]
[null,"No Internal Optical Drive for 12/24 HD Chassis",1,"[429-AAIQ]"]
[]
[null,"Dell Services: Deployment Services"]
[null,"No Installation Service Selected (Contact Sales rep for more details)",1,"[683-11870]"]
[]
[null,"Channel only - Support Extension"]
[null,"Channel 39M Basic Warranty - Next Business Day",1,"[723-41450]"]
[]
[null,"System Documentation"]
[null,"No Systems Documentation, No OpenManage DVD Kit",1,"[631-AACK]"]
[]
[null,"Shipping Material"]
[null,"PowerEdge R7425 Shipping Material",1,"[343-BBHK]"]
[]
[null,"Direct Attach Cable"]
[null,"5 x Dell Networking, Cable, SFP+ to SFP+, 10GbE, Copper Twinax DAC, 3 Meter A20",0,null,"470-AAVJ",{"$f":"IF(C171=0,\"\",\"TS2L3-5XDAC10M3\")","v":""},null,{"$f":"'Regole di configurazione'!G49*C171","v":0}]
[]
[null,"5 x Dell Networking Cable, 100GbE QSFP28 to QSFP28,Passive Copper DAC, 2 Meter A20",0,null,"470-ABQG",{"$f":"IF(C173=0,\"\",\"TS2L3-5XDAC100M2\")","v":""},null,{"$f":"'Regole di configurazione'!G50*C173","v":0}]
[]
[null,"5 x Dell Networking Cable,100GbE QSFP28 to QSFP28, Passive Copper DAC, 3 Meter A20",0,null,"470-ABQE",{"$f":"IF(C175=0,\"\",\"TS2L3-5XDAC100M3\")","v":""},null,{"$f":"'Regole di configurazione'!G51*C175","v":0}]
[]
[null,"Cavi rj45"]
[null,"Cavo Rete UTP cat. 5e 3 metri",5,null,"ROS1403/G",{"$f":"IF(C178=0,\"\",\"TS2L3-3MRJ45\")","v":"TS2L3-3MRJ45"},null,{"$f":"2*C178","v":10}]
[]
[null,"Estenzione di Garanzia"]
[null,"None",{"$f":"VLOOKUP(B181,TS2L3WARRANTY,2,FALSE)","v":""},{"$f":"VLOOKUP(B181,TS2L3WARRANTY,3,FALSE)","v":""},{"$f":"VLOOKUP(B181,TS2L3WARRANTY,4,FALSE)","v":""},{"$f":"VLOOKUP(B181,TS2L3WARRANTY,5,FALSE)","v":""},{"$f":"VLOOKUP(B181,TS2L3WARRANTY,6,FALSE)","v":0}]
[]
[null,"Warranty Upgrades - Non-Std/Local POS"]
[null,"None",1,"[681-24467]"]

{"sheet":"Lotto3_R7425-3","index":2,"n_rows":184,"n_cols":9,"rows_kept":184,"cut":false,"hidden":false,"merged":[[88,1,88,2],[46,0,50,0],[0,5,1,5],[4,0,4,4],[65,0,71,0],[72,0,83,0]]}
[null,"TOTALE PRODOTTI CONVENZIONE",{"$f":"SUM(G13:G194)*$C$10","v":0},null,null,{"$f":"IF(I1+I2=0,(C1+C2),\"ERRORE VERIFICARE LA CONFIGURAZIONE\")","v":0},null,null,{"$f":"IF(A47=\"\",0,1)","v":0}]
[null,"TOTALE ARTICOLI 20%",{"$f":"SUM(H13:H194)*$C$10","v":0},null,null,null,null,null,{"$f":"IF(A89=\"\",0,1)","v":0}]
[null,"Quantità Server",null,null,null,{"$f":"Riepilogo!T6","v":"ver. 3.3"}]
[]
["          POWEREDGE R7425"]
[]
[]
[]
[]
[null,"Quantità:",{"$f":"C3","v":0}]
[]
[null,"Modello Server"]
[null,"PowerEdge R7425 Server",1,"[210-APFK]",null,"TS2L3-SRV",2087]
[]
[null,"Configurazione dello chassis"]
[null,"Chassis with up to 24 x 2.5\" SAS/SATA Hard Drives for 1&2CPU Configuration, Risers 1, 3, 5, 7",1,"[321-BDGE]"]
[]
[null,"Trusted Platform Module"]
[null,"No Trusted Platform Module",1,"[461-AADZ]"]
[]
[null,"Processore"]
[null,"AMD EPYC™ 7301 2.2GHz/2.7GHz, 16C/32T, 64M Cache (155W/170W) DDR4-2400/2666",1,"[338-BNBZ]"]
[]
[null,"Processore aggiuntivo"]
[null,"No Additional Processor",{"$f":"VLOOKUP($B$25,TS2L3CPU,2,FALSE)","v":0},{"$f":"VLOOKUP($B$25,TS2L3CPU,3,FALSE)","v":"[374-BBBX]"},{"$f":"VLOOKUP($B$25,TS2L3CPU,4,FALSE)","v":""},{"$f":"VLOOKUP($B$25,TS2L3CPU,5,FALSE)","v":""},{"$f":"VLOOKUP($B$25,TS2L3CPU,6,FALSE)","v":0},{"$f":"VLOOKUP($B$25,TS2L3CPU,7,FALSE)","v":""}]
[]
[null,"Configurazione Termica del Processore"]
[null,{"$f":"VLOOKUP($B$25,TS2L3CPU,8,FALSE)","v":"Standard Heatsinks, below 180W CPU"},{"$f":"VLOOKUP($B$25,TS2L3CPU,9,FALSE)","v":1},{"$f":"VLOOKUP($B$25,TS2L3CPU,10,FALSE)","v":"[412-AALN]"},{"$f":"VLOOKUP($B$25,TS2L3CPU,11,FALSE)","v":"412-AALJ"}]
[null,{"$f":"VLOOKUP($B$25,TS2L3CPU,12,FALSE)","v":"Blank for 1 CPU Configuration"},{"$f":"VLOOKUP($B$25,TS2L3CPU,13,FALSE)","v":1},{"$f":"VLOOKUP($B$25,TS2L3CPU,14,FALSE)","v":"[379-BCWU]"}]
[]
[]
[null,"Memoria Totale in GB","64     (DIMM 32GB)"]
[]
[null,"Tipo di configurazione memoria"]
[null,"Performance Optimized",1,"[370-AAIP]"]
[]
[null,"Tipo e velocità della memoria DIMM"]
[null,{"$f":"IF($C$25=0,VLOOKUP($C$32,TS2L3MEM1CPU,9,FALSE),VLOOKUP($C$32,TS2L3MEM2CPU,9,FALSE))","v":"2666MT/s RDIMMs"},{"$f":"IF($C$25=0,VLOOKUP($C$32,TS2L3MEM1CPU,10,FALSE),VLOOKUP($C$32,TS2L3MEM2CPU,10,FALSE))","v":1},{"$f":"IF($C$25=0,VLOOKUP($C$32,TS2L3MEM1CPU,11,FALSE),VLOOKUP($C$32,TS2L3MEM2CPU,11,FALSE))","v":"[370-ADNU]"}]
[]
[null,"Capacità di memoria"]
[null,{"$f":"IF($C$25=0,VLOOKUP($C$32,TS2L3MEM1CPU,2,FALSE),VLOOKUP($C$32,TS2L3MEM2CPU,2,FALSE))","v":"32GB RDIMM, 2666MT/s, Dual Rank"},{"$f":"IF($C$25=0,VLOOKUP($C$32,TS2L3MEM1CPU,3,FALSE),VLOOKUP($C$32,TS2L3MEM2CPU,3,FALSE))","v":2},{"$f":"IF($C$25=0,VLOOKUP($C$32,TS2L3MEM1CPU,4,FALSE),VLOOKUP($C$32,TS2L3MEM2CPU,4,FALSE))","v":"[370-ADNF]"},{"$f":"IF($C$25=0,VLOOKUP($C$32,TS2L3MEM1CPU,5,FALSE),VLOOKUP($C$32,TS2L3MEM2CPU,5,FALSE))","v":"A9781929"},{"$f":"IF($C$25=0,VLOOKUP($C$32,TS2L3MEM1CPU,6,FALSE),VLOOKUP($C$32,TS2L3MEM2CPU,6,FALSE))","v":""},{"$f":"IF($C$25=0,VLOOKUP($C$32,TS2L3MEM1CPU,7,FALSE),VLOOKUP($C$32,TS2L3MEM2CPU,7,FALSE))","v":0}]
[]
[null,"Sistema operativo preinstallato"]
[null,"None",{"$f":"VLOOKUP($B$44,TS2L3OS,2,FALSE)","v":""},{"$f":"VLOOKUP($B$44,TS2L3OS,3,FALSE)","v":"[619-ABVR]"},{"$f":"VLOOKUP($B$44,TS2L3OS,4,FALSE)","v":""},{"$f":"VLOOKUP($B$44,TS2L3OS,5,FALSE)","v":""},{"$f":"VLOOKUP($B$44,TS2L3OS,6,FALSE)","v":0},{"$f":"VLOOKUP($B$44,TS2L3OS,7,FALSE)","v":0},{"$f":"IF(E44=0,1,0)","v":0}]
[null,{"$f":"IF($C$25=1,(VLOOKUP($B$44,TS2L3OS,8,FALSE)),\"\")","v":""},{"$f":"IF($C$25=1,(VLOOKUP($B$44,TS2L3OS,9,FALSE)),\"\")","v":""},{"$f":"IF($C$25=1,(VLOOKUP($B$44,TS2L3OS,10,FALSE)),\"\")","v":""},{"$f":"IF($C$25=1,(VLOOKUP($B$44,TS2L3OS,11,FALSE)),\"\")","v":""},{"$f":"IF($C$25=1,(VLOOKUP($B$44,TS2L3OS,12,FALSE)),\"\")","v":""},{"$f":"IF($C$25=1,(VLOOKUP($B$44,TS2L3OS,13,FALSE)),\"\")","v":""},{"$f":"IF($C$25=1,(VLOOKUP($B$44,TS2L3OS,14,FALSE)),0)","v":0}]
[]
[{"$f":"IF((I44*I48)=0,\"\",\"ERRORE: \nLa selezione di licenze CAL senza il Sistema Operativo Microsoft Windows non è consentita.\")","v":""},"Client Access Licenses"]
[null,{"$f":"IF($E$44>0,'Regole di configurazione'!A95,\"\")","v":"1 Windows Server 2019 Device CALs (Standard or Datacenter),CUS"},0,{"$f":"IF($E$44>0,'Regole di configurazione'!C95,\"\")","v":0},{"$f":"IF($E$44>0,'Regole di configurazione'!D95,\"\")","v":"623-BBBX"},{"$f":"IF($E$44>0,'Regole di configurazione'!E95,\"\")","v":"TS2L3-CALDEV"},{"$f":"IF($E$44>0,'Regole di configurazione'!F95,0)*C48","v":0},{"$f":"IF($E$44>0,'Regole di configurazione'!G95,\"\")","v":0},{"$f":"C48+C50","v":0}]
[]
[null,{"$f":"IF($E$44>0,'Regole di configurazione'!A96,\"\")","v":"1 Windows Server 2019 User CALs (Standard or Datacenter),CUS"},0,{"$f":"IF($E$44>0,'Regole di configurazione'!C96,\"\")","v":0},{"$f":"IF($E$44>0,'Regole di configurazione'!D96,\"\")","v":"623-BBCC"},{"$f":"IF($E$44>0,'Regole di configurazione'!E96,\"\")","v":"TS2L3-CALUSER"},{"$f":"IF($E$44>0,'Regole di configurazione'!F96,0)*C50","v":0},{"$f":"IF($E$44>0,'Regole di configurazione'!G96,\"\")","v":0}]
[]
[null,"Sistema operativo VMware"]
[null,"Vmware vSphere Essentials Plus Kit"]
[null,"None",{"$f":"VLOOKUP($B$54,TS2L3VMWARE1,2,FALSE)","v":1},{"$f":"VLOOKUP($B$54,TS2L3VMWARE1,3,FALSE)","v":""},{"$f":"VLOOKUP($B$54,TS2L3VMWARE1,4,FALSE)","v":""},{"$f":"VLOOKUP($B$54,TS2L3VMWARE1,5,FALSE)","v":""},{"$f":"VLOOKUP($B$54,TS2L3VMWARE1,6,FALSE)","v":0},{"$f":"VLOOKUP($B$54,TS2L3VMWARE1,7,FALSE)*C54","v":0}]
[null,"VMware vCenter Server Standard"]
[null,"None",{"$f":"VLOOKUP($B$56,TS2L3VMWARE2,2,FALSE)","v":1},{"$f":"VLOOKUP($B$56,TS2L3VMWARE2,3,FALSE)","v":""},{"$f":"VLOOKUP($B$56,TS2L3VMWARE2,4,FALSE)","v":""},{"$f":"VLOOKUP($B$56,TS2L3VMWARE2,5,FALSE)","v":""},{"$f":"VLOOKUP($B$56,TS2L3VMWARE2,6,FALSE)","v":0},{"$f":"VLOOKUP($B$56,TS2L3VMWARE2,7,FALSE)*C56","v":0}]
[null,"Vmware vSphere Standard/Enterprise"]
[null,"None",{"$f":"(VLOOKUP($B$58,TS2L3VMWARE3,2,FALSE))+C25","v":0},{"$f":"VLOOKUP($B$58,TS2L3VMWARE3,3,FALSE)","v":""},{"$f":"VLOOKUP($B$58,TS2L3VMWARE3,4,FALSE)","v":""},{"$f":"VLOOKUP($B$58,TS2L3VMWARE3,5,FALSE)","v":""},{"$f":"VLOOKUP($B$58,TS2L3VMWARE3,6,FALSE)","v":0},{"$f":"VLOOKUP($B$58,TS2L3VMWARE3,7,FALSE)*C58","v":0}]
[null,"VMware vSAN"]
[null,"None",{"$f":"(VLOOKUP($B$60,TS2L3VMWARE4,2,FALSE))+C25","v":0},{"$f":"VLOOKUP($B$60,TS2L3VMWARE4,3,FALSE)","v":""},{"$f":"VLOOKUP($B$60,TS2L3VMWARE4,4,FALSE)","v":""},{"$f":"VLOOKUP($B$60,TS2L3VMWARE4,5,FALSE)","v":""},{"$f":"VLOOKUP($B$60,TS2L3VMWARE4,6,FALSE)","v":0},{"$f":"VLOOKUP($B$60,TS2L3VMWARE4,7,FALSE)*C60","v":0}]
[]
[null,"Controller Dischi"]
[null,{"$f":"B122","v":"PERC H730P RAID Controller, 2Gb NV Cache, Adapter, Full Height"},{"$f":"C122","v":1},{"$f":"D122","v":"[405-AAMR]"},{"$f":"E122","v":"405-AAMY"}]
[]
[null,"Dischi rigidi (numero massimo totale 24)"]
["\n\nSAS 10K","600GB 10K RPM SAS 12Gbps 512n 2.5in Hot-plug Hard Drive",2,"[400-ASGS]","400-AUNQ",{"$f":"IF(C66<=2,\"\",\"TS2L3-10K600\")","v":""},{"$f":"IF(C66<=2,0,(C66-2)*'Regole di configurazione'!F13)","v":0}]
[]
[null,"1.2TB 10K RPM SAS 12Gbps 512n 2.5in Hot-plug Hard Drive",0,"[400-ASHI]","400-ATJL",{"$f":"IF(C68=0,\"\",\"TS2L3-10K1200\")","v":""},{"$f":"C68*'Regole di configurazione'!F14","v":0}]
[]
[null,"1.8TB 10K RPM SAS 12Gbps 512e 2.5in Hot-plug Hard Drive ",0,"[400-ARXC]","400-ATJR",{"$f":"IF(C70=0,\"\",\"TS2L3-10K1800\")","v":""},{"$f":"C70*'Regole di configurazione'!F15","v":0}]
[]
[null,"2.4TB 10K RPM SAS 12Gbps 512e 2.5in Hot-plug Hard Drive NO VMWARE A20",0,null,"400-AVBX",{"$f":"IF(C72=0,\"\",\"TS2L3-10K2400\")","v":""},null,{"$f":"C72*'Regole di configurazione'!G43","v":0}]
["\n\nSSD"]
[null,"SSD 480GB SAS MU 12Gbps 2.5in Hot-Plug A20",0,null,"400-BCOD",{"$f":"IF(C74=0,\"\",\"TS2L3-SSDM480\")","v":""},null,{"$f":"C74*'Regole di configurazione'!G44","v":0}]
[]
[null,"SSD 400GB SAS WI 12Gbps 2.5in Hot-plug Drive, 10 DWPD A20",0,null,"400-ATGH",{"$f":"IF(C76=0,\"\",\"TS2L3-SSDW400\")","v":""},null,{"$f":"C76*'Regole di configurazione'!G45","v":0}]
[]
[null,"SSD 1600GB SAS WI 12Gb 2.5in Hot-plug Drive, 10 DWPD A20",0,null,null,{"$f":"IF(C78=0,\"\",\"TS2L3-SSDW1600\")","v":""},null,{"$f":"C78*'Regole di configurazione'!G46","v":0}]
[]
[null,"960GB SSD SAS Read Intensive 12Gbps 512e 2.5in Hot-plug Drive, PM5-R, 1 DWPD, 1752 TBW",0,"[400-BBPL]","400-ATLL",{"$f":"IF(C80=0,\"\",\"TS2L3-SSDR960\")","v":""},{"$f":"C80*'Regole di configurazione'!F16","v":0}]
[null,null,null,null,null,{"$f":"IF(C81=0,\"\",\"TS2L3-SSDR960\")","v":""}]
[null,"SSD 960GB SAS Mixed Use 12Gbps 2.5in Hot-plug Drive A20",0,null,"400-BCNN",null,null,{"$f":"C82*'Regole di configurazione'!G47","v":0}]
[]
[null,"1.92TB SSD SAS Read Intensive 12Gbps 512e 2.5in Hot-plug Drive, PM1633a",0,"[400-ASFX]","400-ATND",{"$f":"IF(C84=0,\"\",\"TS2L3-SSDR1920\")","v":""},{"$f":"C84*'Regole di configurazione'!F17","v":0}]
[]
[null,"DISCHI TOTALI",{"$f":"SUM(C66:C77)","v":2}]
[]
[null,"NOTE sulla configurazione (CAMPO OBBLIGATORIO)"]
[{"$f":"IF(C86<=24,\"\",\"ERRORE:   Totale n° di dischi superiore al consentito\")","v":""},"Specificare la configurazione RAID per l'installazione del Sistema Operativo, se richiesto.\ne/o\ninserire eventuali note.",null,null,"Specificare la configurazione RAID per l'installazione del Sistema Operativo, se richiesto.\ne/o\ninserire eventuali note.",{"$f":"IF(B89=E89,\"ERRORE:   Compilare il campo NOTE\",\"\")","v":"ERRORE:   Compilare il campo NOTE"}]
[]
[null,"Ventole"]
[null,"6 Standard Fans",1,"[384-BBSU]"]
[]
[null,"Alimentatore"]
[null,"Dual, Hot-plug, Redundant Power Supply (1+1), 1100W",1,"[450-ADWM]"]
[]
[null,"Cavi di alimentazione"]
[null,"Rack Power Cord 2M (C13/C14 10A)",2,"[450-AADY]"]
[]
[null,"PCIe Riser"]
[null,{"$f":"VLOOKUP($B$25,TS2L3CPU,15,FALSE)","v":"Riser Config 1, 2 x8, 1 x16 slots"},{"$f":"VLOOKUP($B$25,TS2L3CPU,16,FALSE)","v":1},{"$f":"VLOOKUP($B$25,TS2L3CPU,17,FALSE)","v":"[330-BBIY]"},{"$f":"VLOOKUP($B$25,TS2L3CPU,18,FALSE)","v":""}]
[]
[null,"Modulo Doppia SD - Internal Dual SD Module (IDSDM)"]
[null,"None",{"$f":"VLOOKUP(B104,TS2L3IDSDM,2,FALSE)","v":0},{"$f":"VLOOKUP(B104,TS2L3IDSDM,3,FALSE)","v":0},{"$f":"VLOOKUP(B104,TS2L3IDSDM,4,FALSE)","v":0},{"$f":"VLOOKUP(B104,TS2L3IDSDM,5,FALSE)","v":""},{"$f":"VLOOKUP(B104,TS2L3IDSDM,6,FALSE)","v":0},{"$f":"VLOOKUP(B104,TS2L3IDSDM,7,FALSE)","v":0}]
[]
[null,"Embedded Systems Management"]
[null,"iDRAC9,Enterprise",1,"[385-BBKT]"]
[]
[]
[null,"None"]
[]
[null,"Network Daughter Card"]
[null,"Broadcom 5720 QP 1Gb Network Daughter Card",1,"[540-BBBW]"]
[]
[null,"Additional Card for PCIe Slot 1 (Full height) (CPU 1)"]
[null,"None",{"$f":"VLOOKUP(B116,TS2L3PCI1,2,FALSE)","v":""},{"$f":"VLOOKUP(B116,TS2L3PCI1,3,FALSE)","v":""},{"$f":"VLOOKUP(B116,TS2L3PCI1,4,FALSE)","v":""},{"$f":"VLOOKUP(B116,TS2L3PCI1,5,FALSE)","v":""},{"$f":"VLOOKUP(B116,TS2L3PCI1,6,FALSE)","v":0},{"$f":"VLOOKUP(B116,TS2L3PCI1,7,FALSE)","v":0}]
[]
[null,"Additional Card for PCIe Slot 2 (Full height) (CPU 1)"]
[null,"None",{"$f":"VLOOKUP(B119,TS2L3PCI2,2,FALSE)","v":""},{"$f":"VLOOKUP(B119,TS2L3PCI2,3,FALSE)","v":""},{"$f":"VLOOKUP(B119,TS2L3PCI2,4,FALSE)","v":""},{"$f":"VLOOKUP(B119,TS2L3PCI2,5,FALSE)","v":""},{"$f":"VLOOKUP(B119,TS2L3PCI2,6,FALSE)","v":0},{"$f":"VLOOKUP(B119,TS2L3PCI2,7,FALSE)","v":0}]
[]
[null,"Additional Card for PCIe Slot 3 (Full height) (CPU 1)"]
[null,"PERC H730P RAID Controller, 2Gb NV Cache, Adapter, Full Height",{"$f":"VLOOKUP(B122,TS2L3PCI3,2,FALSE)","v":1},{"$f":"VLOOKUP(B122,TS2L3PCI3,3,FALSE)","v":"[405-AAMR]"},{"$f":"VLOOKUP(B122,TS2L3PCI3,4,FALSE)","v":"405-AAMY"},{"$f":"VLOOKUP(B122,TS2L3PCI3,5,FALSE)","v":""},{"$f":"VLOOKUP(B122,TS2L3PCI3,6,FALSE)","v":0},{"$f":"VLOOKUP(B122,TS2L3PCI3,7,FALSE)","v":0}]
[]
[null,"Additional Card for PCIe Slot 4 (Full height) (CPU 2)"]
[null,"None",{"$f":"IF(B125=TS2L3ASP,\"\",VLOOKUP(B125,TS2L3PCI4,2,FALSE))","v":""},{"$f":"IF(B125=TS2L3ASP,\"\",VLOOKUP(B125,TS2L3PCI4,3,FALSE))","v":""},{"$f":"IF(B125=TS2L3ASP,\"\",VLOOKUP(B125,TS2L3PCI4,4,FALSE))","v":""},{"$f":"IF(B125=TS2L3ASP,\"\",VLOOKUP(B125,TS2L3PCI4,5,FALSE))","v":""},{"$f":"IF(B125=TS2L3ASP,0,VLOOKUP(B125,TS2L3PCI4,6,FALSE))","v":0},{"$f":"IF(B125=TS2L3ASP,0,VLOOKUP(B125,TS2L3PCI4,7,FALSE))","v":0}]
[]
[null,"Additional Card for PCIe Slot 5 (Full height) (CPU 2)"]
[null,"None"]
[]
[null,"Additional Card for PCIe Slot 6 (Low height) (CPU 2)"]
[null,"None",{"$f":"IF(B131=TS2L3ASP,\"\",VLOOKUP(B131,TS2L3PCI6,2,FALSE))","v":""},{"$f":"IF(B131=TS2L3ASP,\"\",VLOOKUP(B131,TS2L3PCI6,3,FALSE))","v":""},{"$f":"IF(B131=TS2L3ASP,\"\",VLOOKUP(B131,TS2L3PCI6,4,FALSE))","v":""},{"$f":"IF(B131=TS2L3ASP,\"\",VLOOKUP(B131,TS2L3PCI6,5,FALSE))","v":""},{"$f":"IF(B131=TS2L3ASP,0,VLOOKUP(B131,TS2L3PCI6,6,FALSE))","v":0},{"$f":"IF(B131=TS2L3ASP,0,VLOOKUP(B131,TS2L3PCI6,7,FALSE))","v":0}]
[]
[null,"Additional Card for PCIe Slot 7 (Full height) (CPU 2) (BOSS controller card Slot)"]
[null,"None",{"$f":"IF(B134=TS2L3ASP,\"\",VLOOKUP(B134,TS2L3PCI7,2,FALSE))","v":""},{"$f":"IF(B134=TS2L3ASP,\"\",VLOOKUP(B134,TS2L3PCI7,3,FALSE))","v":""},{"$f":"IF(B134=TS2L3ASP,\"\",VLOOKUP(B134,TS2L3PCI7,4,FALSE))","v":""},{"$f":"IF(B134=TS2L3ASP,\"\",VLOOKUP(B134,TS2L3PCI7,5,FALSE))","v":""},{"$f":"IF(B134=TS2L3ASP,0,VLOOKUP(B134,TS2L3PCI7,6,FALSE))","v":0},{"$f":"IF(B134=TS2L3ASP,0,VLOOKUP(B134,TS2L3PCI7,7,FALSE))","v":0}]
[]
[null,"Additional Card for PCIe Slot 8 (Full height) (CPU 2)"]
[null,"None",{"$f":"IF(B137=TS2L3ASP,\"\",VLOOKUP(B137,TS2L3PCI8,2,FALSE))","v":""},{"$f":"IF(B137=TS2L3ASP,\"\",VLOOKUP(B137,TS2L3PCI8,3,FALSE))","v":""},{"$f":"IF(B137=TS2L3ASP,\"\",VLOOKUP(B137,TS2L3PCI8,4,FALSE))","v":""},{"$f":"IF(B137=TS2L3ASP,\"\",VLOOKUP(B137,TS2L3PCI8,5,FALSE))","v":""},{"$f":"IF(B137=TS2L3ASP,0,VLOOKUP(B137,TS2L3PCI8,6,FALSE))","v":0},{"$f":"IF(B137=TS2L3ASP,0,VLOOKUP(B137,TS2L3PCI8,7,FALSE))","v":0}]
[]
[null,"Bezel"]
[null,"No Bezel",{"$f":"VLOOKUP($B$140,TS2L3BEZEL,2,FALSE)","v":0},{"$f":"VLOOKUP($B$140,TS2L3BEZEL,3,FALSE)","v":"[350-BBBW]"},{"$f":"VLOOKUP($B$140,TS2L3BEZEL,4,FALSE)","v":0},{"$f":"VLOOKUP($B$140,TS2L3BEZEL,5,FALSE)","v":""},{"$f":"VLOOKUP($B$140,TS2L3BEZEL,6,FALSE)","v":0},{"$f":"VLOOKUP($B$140,TS2L3BEZEL,7,FALSE)","v":0}]
[null,"MOD,TRAY,LGG,R7425",1,"[350-BBMF]"]
[]
[null,"Quick Sync"]
[null,"No Quick Sync",1,"[350-BBJV]"]
[]
[null,"Rack Rails"]
[null,{"$f":"VLOOKUP($B$140,TS2L3BEZEL,8,FALSE)","v":"ReadyRails™ Sliding Rails Without Cable Management Arm"},{"$f":"VLOOKUP($B$140,TS2L3BEZEL,9,FALSE)","v":1},{"$f":"VLOOKUP($B$140,TS2L3BEZEL,10,FALSE)","v":"[770-BBBQ]"},{"$f":"VLOOKUP($B$140,TS2L3BEZEL,11,FALSE)","v":0}]
[]
[null,"Password"]
[null,"iDRAC,Factory Generated Password",1,"[379-BCSF]"]
[]
[null,"Group Manager"]
[null,"iDRAC Group Manager, Enabled",1,"[379-BCQV]"]
[]
[null,"Internal Optical Drive"]
[null,"No Internal Optical Drive for 12/24 HD Chassis",1,"[429-AAIQ]"]
[]
[null,"Dell Services: Deployment Services"]
[null,"No Installation Service Selected (Contact Sales rep for more details)",1,"[683-11870]"]
[]
[null,"Channel only - Support Extension"]
[null,"Channel 39M Basic Warranty - Next Business Day",1,"[723-41450]"]
[]
[null,"System Documentation"]
[null,"No Systems Documentation, No OpenManage DVD Kit",1,"[631-AACK]"]
[]
[null,"Shipping Material"]
[null,"PowerEdge R7425 Shipping Material",1,"[343-BBHK]"]
[]
[null,"Direct Attach Cable"]
[null,"5 x Dell Networking, Cable, SFP+ to SFP+, 10GbE, Copper Twinax DAC, 3 Meter A20",0,null,"470-AAVJ",{"$f":"IF(C171=0,\"\",\"TS2L3-5XDAC10M3\")","v":""},null,{"$f":"'Regole di configurazione'!G49*C171","v":0}]
[]
[null,"5 x Dell Networking Cable, 100GbE QSFP28 to QSFP28,Passive Copper DAC, 2 Meter A20",0,null,"470-ABQG",{"$f":"IF(C173=0,\"\",\"TS2L3-5XDAC100M2\")","v":""},null,{"$f":"'Regole di configurazione'!G50*C173","v":0}]
[]
[null,"5 x Dell Networking Cable,100GbE QSFP28 to QSFP28, Passive Copper DAC, 3 Meter A20",0,null,"470-ABQE",{"$f":"IF(C175=0,\"\",\"TS2L3-5XDAC100M3\")","v":""},null,{"$f":"'Regole di configurazione'!G51*C175","v":0}]
[]
[null,"Cavi rj45"]
[null,"Cavo Rete UTP cat. 5e 3 metri",5,null,"ROS1403/G",{"$f":"IF(C178=0,\"\",\"TS2L3-3MRJ45\")","v":"TS2L3-3MRJ45"},null,{"$f":"2*C178","v":10}]
[]
[null,"Estenzione di Garanzia"]
[null,"None",{"$f":"VLOOKUP(B181,TS2L3WARRANTY,2,FALSE)","v":""},{"$f":"VLOOKUP(B181,TS2L3WARRANTY,3,FALSE)","v":""},{"$f":"VLOOKUP(B181,TS2L3WARRANTY,4,FALSE)","v":""},{"$f":"VLOOKUP(B181,TS2L3WARRANTY,5,FALSE)","v":""},{"$f":"VLOOKUP(B181,TS2L3WARRANTY,6,FALSE)","v":0}]
[]
[null,"Warranty Upgrades - Non-Std/Local POS"]
[null,"CSTM CONSIP - 39M Onsite Labor Support for CRU for Servers with Basic Warranty",1,"[681-24467]"]

{"sheet":"Lotto3_R7425(NVMe)","index":3,"n_rows":201,"n_cols":9,"rows_kept":201,"cut":false,"hidden":false,"merged":[[46,0,50,0],[65,0,71,0],[72,0,83,0],[108,1,108,2],[0,5,1,5],[4,0,4,4]]}
[null,"TOTALE PRODOTTI CONVENZIONE",{"$f":"SUM(G13:G1048576)*$C$10","v":0},null,null,{"$f":"IF(I1+I2=0,(C1+C2),\"ERRORE VERIFICARE LA CONFIGURAZIONE\")","v":0},null,null,{"$f":"IF(A47=\"\",0,1)","v":0}]
[null,"TOTALE ARTICOLI 20%",{"$f":"SUM(H13:H1048576)*$C$10","v":0},null,null,null,null,null,{"$f":"IF(A109=\"\",0,1)","v":0}]
[null,"Quantità Server",null,null,null,{"$f":"Riepilogo!T6","v":"ver. 3.3"}]
[]
["          POWEREDGE R7425"]
[]
[]
[]
[]
[null,"Quantità:",{"$f":"C3","v":0}]
[]
[null,"Modello Server"]
[null,"PowerEdge R7425 Server",1,"[210-APFK]",null,"TS2L3-SRV",2087]
[]
[null,"Configurazione dello chassis"]
[null,"Chassis with up to 24 x 2.5\" Hard Drives including Maximum of 8 NVME Drives, 2CPU Config",1,null,null,"TS2L3-NVMEKIT",null,433]
[]
[null,"Trusted Platform Module"]
[null,"No Trusted Platform Module",1,"[461-AADZ]"]
[]
[null,"Processore"]
[null,"AMD EPYC™ 7301 2.2GHz/2.7GHz, 16C/32T, 64M Cache (155W/170W) DDR4-2400/2666",1,"[338-BNBZ]"]
[]
[null,"Processore aggiuntivo"]
[null,"AMD EPYC™ 7301 2.2GHz/2.7GHz, 16C/32T, 64M Cache (155W/170W) DDR4-2400/2666",1,"[374-BBTR]","338-BNCI","TS2L3-CPU",700,""]
[]
[null,"Configurazione Termica del Processore"]
[null,"Standard Heatsinks, below 180W CPU",1,"[412-AALN]","412-AALJ"]
[null,"Blank for 1 CPU Configuration",1,"[379-BCWU]"]
[]
[]
[null,"Memoria Totale in GB","64     (DIMM 32GB)"]
[]
[null,"Tipo di configurazione memoria"]
[null,"Performance Optimized",1,"[370-AAIP]"]
[]
[null,"Tipo e velocità della memoria DIMM"]
[null,{"$f":"IF($C$25=0,VLOOKUP($C$32,TS2L3MEM1CPU,9,FALSE),VLOOKUP($C$32,TS2L3MEM2CPU,9,FALSE))","v":"2666MT/s RDIMMs"},{"$f":"IF($C$25=0,VLOOKUP($C$32,TS2L3MEM1CPU,10,FALSE),VLOOKUP($C$32,TS2L3MEM2CPU,10,FALSE))","v":1},{"$f":"IF($C$25=0,VLOOKUP($C$32,TS2L3MEM1CPU,11,FALSE),VLOOKUP($C$32,TS2L3MEM2CPU,11,FALSE))","v":"[370-ADNU]"}]
[]
[null,"Capacità di memoria"]
[null,{"$f":"IF($C$25=0,VLOOKUP($C$32,TS2L3MEM1CPU,2,FALSE),VLOOKUP($C$32,TS2L3MEM2CPU,2,FALSE))","v":"32GB RDIMM, 2666MT/s, Dual Rank"},{"$f":"IF($C$25=0,VLOOKUP($C$32,TS2L3MEM1CPU,3,FALSE),VLOOKUP($C$32,TS2L3MEM2CPU,3,FALSE))","v":2},{"$f":"IF($C$25=0,VLOOKUP($C$32,TS2L3MEM1CPU,4,FALSE),VLOOKUP($C$32,TS2L3MEM2CPU,4,FALSE))","v":"[370-ADNF]"},{"$f":"IF($C$25=0,VLOOKUP($C$32,TS2L3MEM1CPU,5,FALSE),VLOOKUP($C$32,TS2L3MEM2CPU,5,FALSE))","v":"A9781929"},{"$f":"IF($C$25=0,VLOOKUP($C$32,TS2L3MEM1CPU,6,FALSE),VLOOKUP($C$32,TS2L3MEM2CPU,6,FALSE))","v":""},{"$f":"IF($C$25=0,VLOOKUP($C$32,TS2L3MEM1CPU,7,FALSE),VLOOKUP($C$32,TS2L3MEM2CPU,7,FALSE))","v":0}]
[]
[null,"Sistema operativo preinstallato"]
[null,"None",{"$f":"VLOOKUP($B$44,TS2L3OS,2,FALSE)","v":""},{"$f":"VLOOKUP($B$44,TS2L3OS,3,FALSE)","v":"[619-ABVR]"},{"$f":"VLOOKUP($B$44,TS2L3OS,4,FALSE)","v":""},{"$f":"VLOOKUP($B$44,TS2L3OS,5,FALSE)","v":""},{"$f":"VLOOKUP($B$44,TS2L3OS,6,FALSE)","v":0},{"$f":"VLOOKUP($B$44,TS2L3OS,7,FALSE)","v":0},{"$f":"IF(E44=\"\",1,0)","v":1}]
[null,{"$f":"IF($C$25=1,(VLOOKUP($B$44,TS2L3OS,8,FALSE)),\"\")","v":""},{"$f":"IF($C$25=1,(VLOOKUP($B$44,TS2L3OS,9,FALSE)),\"\")","v":""},{"$f":"IF($C$25=1,(VLOOKUP($B$44,TS2L3OS,10,FALSE)),\"\")","v":""},{"$f":"IF($C$25=1,(VLOOKUP($B$44,TS2L3OS,11,FALSE)),\"\")","v":""},{"$f":"IF($C$25=1,(VLOOKUP($B$44,TS2L3OS,12,FALSE)),\"\")","v":""},{"$f":"IF($C$25=1,(VLOOKUP($B$44,TS2L3OS,13,FALSE)),\"\")","v":""},{"$f":"IF($C$25=1,(VLOOKUP($B$44,TS2L3OS,14,FALSE)),0)","v":0}]
[]
[{"$f":"IF((I44*I48)=0,\"\",\"ERRORE: \nLa selezione di licenze CAL senza il Sistema Operativo Microsoft Windows non è consentita.\")","v":""},"Client Access Licenses"]
[null,{"$f":"IF($E$44>0,'Regole di configurazione'!A95,\"\")","v":"1 Windows Server 2019 Device CALs (Standard or Datacenter),CUS"},0,{"$f":"IF($E$44>0,'Regole di configurazione'!C95,\"\")","v":0},{"$f":"IF($E$44>0,'Regole di configurazione'!D95,\"\")","v":"623-BBBX"},{"$f":"IF($E$44>0,'Regole di configurazione'!E95,\"\")","v":"TS2L3-CALDEV"},{"$f":"IF($E$44>0,'Regole di configurazione'!F95,0)*C48","v":0},{"$f":"IF($E$44>0,'Regole di configurazione'!G95,\"\")","v":0},{"$f":"C48+C50","v":0}]
[]
[null,{"$f":"IF($E$44>0,'Regole di configurazione'!A96,\"\")","v":"1 Windows Server 2019 User CALs (Standard or Datacenter),CUS"},0,{"$f":"IF($E$44>0,'Regole di configurazione'!C96,\"\")","v":0},{"$f":"IF($E$44>0,'Regole di configurazione'!D96,\"\")","v":"623-BBCC"},{"$f":"IF($E$44>0,'Regole di configurazione'!E96,\"\")","v":"TS2L3-CALUSER"},{"$f":"IF($E$44>0,'Regole di configurazione'!F96,0)*C50","v":0},{"$f":"IF($E$44>0,'Regole di configurazione'!G96,\"\")","v":0}]
[]
[null,"Sistema operativo VMware"]
[null,"Vmware vSphere Essentials Plus Kit"]
[null,"None",{"$f":"VLOOKUP($B$54,TS2L3VMWARE1,2,FALSE)","v":1},{"$f":"VLOOKUP($B$54,TS2L3VMWARE1,3,FALSE)","v":""},{"$f":"VLOOKUP($B$54,TS2L3VMWARE1,4,FALSE)","v":""},{"$f":"VLOOKUP($B$54,TS2L3VMWARE1,5,FALSE)","v":""},{"$f":"VLOOKUP($B$54,TS2L3VMWARE1,6,FALSE)","v":0},{"$f":"VLOOKUP($B$54,TS2L3VMWARE1,7,FALSE)*C54","v":0}]
[null,"VMware vCenter Server Standard"]
[null,"None",{"$f":"VLOOKUP($B$56,TS2L3VMWARE2,2,FALSE)","v":1},{"$f":"VLOOKUP($B$56,TS2L3VMWARE2,3,FALSE)","v":""},{"$f":"VLOOKUP($B$56,TS2L3VMWARE2,4,FALSE)","v":""},{"$f":"VLOOKUP($B$56,TS2L3VMWARE2,5,FALSE)","v":""},{"$f":"VLOOKUP($B$56,TS2L3VMWARE2,6,FALSE)","v":0},{"$f":"VLOOKUP($B$56,TS2L3VMWARE2,7,FALSE)*C56","v":0}]
[null,"Vmware vSphere Standard/Enterprise"]
[null,"None",{"$f":"(VLOOKUP($B$58,TS2L3VMWARE3,2,FALSE))+C25","v":1},{"$f":"VLOOKUP($B$58,TS2L3VMWARE3,3,FALSE)","v":""},{"$f":"VLOOKUP($B$58,TS2L3VMWARE3,4,FALSE)","v":""},{"$f":"VLOOKUP($B$58,TS2L3VMWARE3,5,FALSE)","v":""},{"$f":"VLOOKUP($B$58,TS2L3VMWARE3,6,FALSE)","v":0},{"$f":"VLOOKUP($B$58,TS2L3VMWARE3,7,FALSE)*C58","v":0}]
[null,"VMware vSAN"]
[null,"None",{"$f":"(VLOOKUP($B$60,TS2L3VMWARE4,2,FALSE))+C25","v":1},{"$f":"VLOOKUP($B$60,TS2L3VMWARE4,3,FALSE)","v":""},{"$f":"VLOOKUP($B$60,TS2L3VMWARE4,4,FALSE)","v":""},{"$f":"VLOOKUP($B$60,TS2L3VMWARE4,5,FALSE)","v":""},{"$f":"VLOOKUP($B$60,TS2L3VMWARE4,6,FALSE)","v":0},{"$f":"VLOOKUP($B$60,TS2L3VMWARE4,7,FALSE)*C60","v":0}]
[]
[null,"Controller Dischi"]
[null,{"$f":"B142","v":"PERC H730P RAID Controller, 2Gb NV Cache, Adapter, Full Height"},{"$f":"C142","v":1},{"$f":"D142","v":"[405-AAMR]"},{"$f":"E142","v":"405-AAMY"}]
[]
[null,"Dischi rigidi (numero massimo totale 24)"]
["\n\nSAS 10K","600GB 10K RPM SAS 12Gbps 512n 2.5in Hot-plug Hard Drive",2,"[400-ASGS]","400-AUNQ",{"$f":"IF(C66<=2,\"\",\"TS2L3-10K600\")","v":""},{"$f":"IF(C66<=2,0,(C66-2)*'Regole di configurazione'!F13)","v":0}]
[]
[null,"1.2TB 10K RPM SAS 12Gbps 512n 2.5in Hot-plug Hard Drive",0,"[400-ASHI]","400-ATJL",{"$f":"IF(C68=0,\"\",\"TS2L3-10K1200\")","v":""},{"$f":"C68*'Regole di configurazione'!F14","v":0}]
[]
[null,"1.8TB 10K RPM SAS 12Gbps 512e 2.5in Hot-plug Hard Drive ",0,"[400-ARXC]","400-ATJR",{"$f":"IF(C70=0,\"\",\"TS2L3-10K1800\")","v":""},{"$f":"C70*'Regole di configurazione'!F15","v":0}]
[]
[null,"2.4TB 10K RPM SAS 12Gbps 512e 2.5in Hot-plug Hard Drive NO VMWARE A20",0,null,"400-AVBX",{"$f":"IF(C72=0,\"\",\"TS2L3-10K2400\")","v":""},null,{"$f":"C72*'Regole di configurazione'!G43","v":0}]
["\n\nSSD"]
[null,"SSD 480GB SAS MU 12Gbps 2.5in Hot-Plug A20",0,null,"400-BCOD",{"$f":"IF(C74=0,\"\",\"TS2L3-SSDM480\")","v":""},null,{"$f":"C74*'Regole di configurazione'!G44","v":0}]
[]
[null,"SSD 400GB SAS WI 12Gbps 2.5in Hot-plug Drive, 10 DWPD A20",0,null,"400-ATGH",{"$f":"IF(C76=0,\"\",\"TS2L3-SSDW400\")","v":""},null,{"$f":"C76*'Regole di configurazione'!G45","v":0}]
[]
[null,"SSD 1600GB SAS WI 12Gb 2.5in Hot-plug Drive, 10 DWPD A20",0,null,null,{"$f":"IF(C78=0,\"\",\"TS2L3-SSDW1600\")","v":""},null,{"$f":"C78*'Regole di configurazione'!G46","v":0}]
[]
[null,"960GB SSD SAS Read Intensive 12Gbps 512e 2.5in Hot-plug Drive, PM5-R, 1 DWPD, 1752 TBW",0,"[400-BBPL]","400-ATLL",{"$f":"IF(C80=0,\"\",\"TS2L3-SSDR960\")","v":""},{"$f":"C80*'Regole di configurazione'!F16","v":0}]
[null,null,null,null,null,{"$f":"IF(C81=0,\"\",\"TS2L3-SSDR960\")","v":""}]
[null,"SSD 960GB SAS Mixed Use 12Gbps 2.5in Hot-plug Drive A20",0,null,"400-BCNN",null,null,{"$f":"C82*'Regole di configurazione'!G47","v":0}]
[]
[null,"1.92TB SSD SAS Read Intensive 12Gbps 512e 2.5in Hot-plug Drive, PM1633a",0,"[400-ASFX]","400-ATND",{"$f":"IF(C84=0,\"\",\"TS2L3-SSDR1920\")","v":""},{"$f":"C84*'Regole di configurazione'!F17","v":0}]
[]
[null,"DISCHI TOTALI",{"$f":"SUM(C66:C85)","v":2},{"$f":"IF(C86>16,1,0)","v":0}]
[]
[]
[null,"Dell 1.6TB, NVMe, Mixed Use Express Flash, 2.5 SFF",0,null,null,{"$f":"IF(C89=0,\"\",\"TS2L3-NVME1600\")","v":""},null,{"$f":"C89*'Regole di configurazione'!G59","v":0}]
[]
[null,"Dell 3.2TB, NVMe, Mixed Use Express Flash, 2.5 SFF",0,null,null,{"$f":"IF(C91=0,\"\",\"TS2L3-NVME3200\")","v":""},null,{"$f":"C91*'Regole di configurazione'!G60","v":0}]
[]
[null,"Dell 6.4TB, NVMe, Mixed Use Express Flash, 2.5 SFF",0,null,null,{"$f":"IF(C93=0,\"\",\"TS2L3-NVME6400\")","v":""},null,{"$f":"C93*'Regole di configurazione'!G61","v":0}]
[]
[null,"Dell 960GB NVMe, Data Center, Read Intensive SFF",0,null,null,{"$f":"IF(C95=0,\"\",\"TS2L3-NVME960\")","v":""},null,{"$f":"C95*'Regole di configurazione'!G62","v":0}]
[]
["NVMe","Dell 1TB, NVMe, Read Intensive Express Flash, 2.5 SFF",0,null,null,{"$f":"IF(C97=0,\"\",\"TS2L3-NVME1000\")","v":""},null,{"$f":"C97*'Regole di configurazione'!G63","v":0}]
[]
[null,"Dell 4TB, NVMe, Read Intensive Express Flash, 2.5 SFF",0,null,null,{"$f":"IF(C99=0,\"\",\"TS2L3-NVME4000\")","v":""},null,{"$f":"C99*'Regole di configurazione'!G64","v":0}]
[]
[null,"Dell 3.84TB NVMe, Data Center, Read Intensive SFF",0,null,null,{"$f":"IF(C101=0,\"\",\"TS2L3-NVME3840\")","v":""},null,{"$f":"C101*'Regole di configurazione'!G65","v":0}]
[]
[null,"Dell 375GB, NVMe, Ultra Performance Express Flash, 2.5 SFF",0,null,null,{"$f":"IF(C103=0,\"\",\"TS2L3-NVME375\")","v":""},null,{"$f":"C103*'Regole di configurazione'!G66","v":0}]
[]
[null,"NVMe TOTALI",{"$f":"SUM(C89:C104)","v":0},{"$f":"IF(C105>8,1,0)","v":0}]
[]
[]
[null,"NOTE sulla configurazione (CAMPO OBBLIGATORIO)"]
[{"$f":"IF((D105+D86)=0,\"\",\"ERRORE:   Totale n° di dischi superiore al consentito\")","v":""},"Specificare la configurazione RAID per l'installazione del Sistema Operativo, se richiesto.\ne/o\ninserire eventuali note.",null,null,"Specificare la configurazione RAID per l'installazione del Sistema Operativo, se richiesto.\ne/o\ninserire eventuali note.",{"$f":"IF(B109=E109,\"ERRORE:   Compilare il campo NOTE\",\"\")","v":"ERRORE:   Compilare il campo NOTE"}]
[]
[null,"Ventole"]
[null,"6 Standard Fans",1,"[384-BBSU]"]
[]
[null,"Alimentatore"]
[null,"Dual, Hot-plug, Redundant Power Supply (1+1), 1100W",1,"[450-ADWM]"]
[]
[null,"Cavi di alimentazione"]
[null,"Rack Power Cord 2M (C13/C14 10A)",2,"[450-AADY]"]
[]
[null,"PCIe Riser"]
[null,{"$f":"VLOOKUP($B$25,TS2L3CPU,15,FALSE)","v":"Riser Config 5, 4 x8, 3 x16 slots"},{"$f":"VLOOKUP($B$25,TS2L3CPU,16,FALSE)","v":1},{"$f":"VLOOKUP($B$25,TS2L3CPU,17,FALSE)","v":"[330-BBJD]"},{"$f":"VLOOKUP($B$25,TS2L3CPU,18,FALSE)","v":"330-BBMK 330-BBLS"}]
[]
[null,"Modulo Doppia SD - Internal Dual SD Module (IDSDM)"]
[null,"None",{"$f":"VLOOKUP(B124,TS2L3IDSDM,2,FALSE)","v":0},{"$f":"VLOOKUP(B124,TS2L3IDSDM,3,FALSE)","v":0},{"$f":"VLOOKUP(B124,TS2L3IDSDM,4,FALSE)","v":0},{"$f":"VLOOKUP(B124,TS2L3IDSDM,5,FALSE)","v":""},{"$f":"VLOOKUP(B124,TS2L3IDSDM,6,FALSE)","v":0},{"$f":"VLOOKUP(B124,TS2L3IDSDM,7,FALSE)","v":0}]
[]
[null,"Embedded Systems Management"]
[null,"iDRAC9,Enterprise",1,"[385-BBKT]"]
[]
[]
[null,"None"]
[]
[null,"Network Daughter Card"]
[null,"Broadcom 5720 QP 1Gb Network Daughter Card",1,"[540-BBBW]"]
[]
[null,"Additional Card for PCIe Slot 1 (Full height) (CPU 1)"]
[null,"None",{"$f":"VLOOKUP(B136,TS2L3PCI1,2,FALSE)","v":""},{"$f":"VLOOKUP(B136,TS2L3PCI1,3,FALSE)","v":""},{"$f":"VLOOKUP(B136,TS2L3PCI1,4,FALSE)","v":""},{"$f":"VLOOKUP(B136,TS2L3PCI1,5,FALSE)","v":""},{"$f":"VLOOKUP(B136,TS2L3PCI1,6,FALSE)","v":0},{"$f":"VLOOKUP(B136,TS2L3PCI1,7,FALSE)","v":0}]
[]
[null,"Additional Card for PCIe Slot 2 (Full height) (CPU 1)"]
[null,"None",{"$f":"VLOOKUP(B139,TS2L3PCI2,2,FALSE)","v":""},{"$f":"VLOOKUP(B139,TS2L3PCI2,3,FALSE)","v":""},{"$f":"VLOOKUP(B139,TS2L3PCI2,4,FALSE)","v":""},{"$f":"VLOOKUP(B139,TS2L3PCI2,5,FALSE)","v":""},{"$f":"VLOOKUP(B139,TS2L3PCI2,6,FALSE)","v":0},{"$f":"VLOOKUP(B139,TS2L3PCI2,7,FALSE)","v":0}]
[]
[null,"Additional Card for PCIe Slot 3 (Full height) (CPU 1)"]
[null,"PERC H730P RAID Controller, 2Gb NV Cache, Adapter, Full Height",{"$f":"VLOOKUP(B142,TS2L3PCI3,2,FALSE)","v":1},{"$f":"VLOOKUP(B142,TS2L3PCI3,3,FALSE)","v":"[405-AAMR]"},{"$f":"VLOOKUP(B142,TS2L3PCI3,4,FALSE)","v":"405-AAMY"},{"$f":"VLOOKUP(B142,TS2L3PCI3,5,FALSE)","v":""},{"$f":"VLOOKUP(B142,TS2L3PCI3,6,FALSE)","v":0},{"$f":"VLOOKUP(B142,TS2L3PCI3,7,FALSE)","v":0}]
[]
[null,"Additional Card for PCIe Slot 4 (Full height) (CPU 2)"]
[null,"None",{"$f":"IF(B145=TS2L3ASP,\"\",VLOOKUP(B145,TS2L3PCI4,2,FALSE))","v":""},{"$f":"IF(B145=TS2L3ASP,\"\",VLOOKUP(B145,TS2L3PCI4,3,FALSE))","v":""},{"$f":"IF(B145=TS2L3ASP,\"\",VLOOKUP(B145,TS2L3PCI4,4,FALSE))","v":""},{"$f":"IF(B145=TS2L3ASP,\"\",VLOOKUP(B145,TS2L3PCI4,5,FALSE))","v":""},{"$f":"IF(B145=TS2L3ASP,0,VLOOKUP(B145,TS2L3PCI4,6,FALSE))","v":0},{"$f":"IF(B145=TS2L3ASP,0,VLOOKUP(B145,TS2L3PCI4,7,FALSE))","v":0}]
[]
[null,"Additional Card for PCIe Slot 5 (Full height) (CPU 2)"]
[null,"None"]
[]
[null,"Additional Card for PCIe Slot 6 (Low height) (CPU 2)"]
[null,"None",{"$f":"IF(B151=TS2L3ASP,\"\",VLOOKUP(B151,TS2L3PCI6,2,FALSE))","v":""},{"$f":"IF(B151=TS2L3ASP,\"\",VLOOKUP(B151,TS2L3PCI6,3,FALSE))","v":""},{"$f":"IF(B151=TS2L3ASP,\"\",VLOOKUP(B151,TS2L3PCI6,4,FALSE))","v":""},{"$f":"IF(B151=TS2L3ASP,\"\",VLOOKUP(B151,TS2L3PCI6,5,FALSE))","v":""},{"$f":"IF(B151=TS2L3ASP,0,VLOOKUP(B151,TS2L3PCI6,6,FALSE))","v":0},{"$f":"IF(B151=TS2L3ASP,0,VLOOKUP(B151,TS2L3PCI6,7,FALSE))","v":0}]
[]
[null,"Additional Card for PCIe Slot 7 (Full height) (CPU 2) (BOSS controller card Slot)"]
[null,"None",{"$f":"IF(B154=TS2L3ASP,\"\",VLOOKUP(B154,TS2L3PCI7,2,FALSE))","v":""},{"$f":"IF(B154=TS2L3ASP,\"\",VLOOKUP(B154,TS2L3PCI7,3,FALSE))","v":""},{"$f":"IF(B154=TS2L3ASP,\"\",VLOOKUP(B154,TS2L3PCI7,4,FALSE))","v":""},{"$f":"IF(B154=TS2L3ASP,\"\",VLOOKUP(B154,TS2L3PCI7,5,FALSE))","v":""},{"$f":"IF(B154=TS2L3ASP,0,VLOOKUP(B154,TS2L3PCI7,6,FALSE))","v":0},{"$f":"IF(B154=TS2L3ASP,0,VLOOKUP(B154,TS2L3PCI7,7,FALSE))","v":0}]
[]
[null,"Additional Card for PCIe Slot 8 (Full height) (CPU 2)"]
[null,"None",{"$f":"IF(B157=TS2L3ASP,\"\",VLOOKUP(B157,TS2L3PCI8,2,FALSE))","v":""},{"$f":"IF(B157=TS2L3ASP,\"\",VLOOKUP(B157,TS2L3PCI8,3,FALSE))","v":""},{"$f":"IF(B157=TS2L3ASP,\"\",VLOOKUP(B157,TS2L3PCI8,4,FALSE))","v":""},{"$f":"IF(B157=TS2L3ASP,\"\",VLOOKUP(B157,TS2L3PCI8,5,FALSE))","v":""},{"$f":"IF(B157=TS2L3ASP,0,VLOOKUP(B157,TS2L3PCI8,6,FALSE))","v":0},{"$f":"IF(B157=TS2L3ASP,0,VLOOKUP(B157,TS2L3PCI8,7,FALSE))","v":0}]
[]
[null,"Bezel"]
[null,"No Bezel",{"$f":"VLOOKUP($B$160,TS2L3BEZEL,2,FALSE)","v":0},{"$f":"VLOOKUP($B$160,TS2L3BEZEL,3,FALSE)","v":"[350-BBBW]"},{"$f":"VLOOKUP($B$160,TS2L3BEZEL,4,FALSE)","v":0},{"$f":"VLOOKUP($B$160,TS2L3BEZEL,5,FALSE)","v":""},{"$f":"VLOOKUP($B$160,TS2L3BEZEL,6,FALSE)","v":0},{"$f":"VLOOKUP($B$160,TS2L3BEZEL,7,FALSE)","v":0}]
[null,"MOD,TRAY,LGG,R7425",1,"[350-BBMF]"]
[]
[null,"Quick Sync"]
[null,"No Quick Sync",1,"[350-BBJV]"]
[]
[null,"Rack Rails"]
[null,{"$f":"VLOOKUP($B$160,TS2L3BEZEL,8,FALSE)","v":"ReadyRails™ Sliding Rails Without Cable Management Arm"},{"$f":"VLOOKUP($B$160,TS2L3BEZEL,9,FALSE)","v":1},{"$f":"VLOOKUP($B$160,TS2L3BEZEL,10,FALSE)","v":"[770-BBBQ]"},{"$f":"VLOOKUP($B$160,TS2L3BEZEL,11,FALSE)","v":0}]
[]
[null,"Password"]
[null,"iDRAC,Factory Generated Password",1,"[379-BCSF]"]
[]
[null,"Group Manager"]
[null,"iDRAC Group Manager, Enabled",1,"[379-BCQV]"]
[]
[null,"Internal Optical Drive"]
[null,"No Internal Optical Drive for 12/24 HD Chassis",1,"[429-AAIQ]"]
[]
[null,"Dell Services: Deployment Services"]
[null,"No Installation Service Selected (Contact Sales rep for more details)",1,"[683-11870]"]
[]
[null,"Channel only - Support Extension"]
[null,"Channel 39M Basic Warranty - Next Business Day",1,"[723-41450]"]
[]
[null,"System Documentation"]
[null,"No Systems Documentation, No OpenManage DVD Kit",1,"[631-AACK]"]
[]
[null,"Shipping Material"]
[null,"PowerEdge R7425 Shipping Material",1,"[343-BBHK]"]
[]
[null,"Direct Attach Cable"]
[null,"5 x Dell Networking, Cable, SFP+ to SFP+, 10GbE, Copper Twinax DAC, 3 Meter A20",0,null,"470-AAVJ",{"$f":"IF(C191=0,\"\",\"TS2L3-5XDAC10M3\")","v":""},null,{"$f":"'Regole di configurazione'!G49*C191","v":0}]
[]
[null,"5 x Dell Networking Cable, 100GbE QSFP28 to QSFP28,Passive Copper DAC, 2 Meter A20",0,null,"470-ABQG",{"$f":"IF(C193=0,\"\",\"TS2L3-5XDAC100M2\")","v":""},null,{"$f":"'Regole di configurazione'!G50*C193","v":0}]
[]
[null,"5 x Dell Networking Cable,100GbE QSFP28 to QSFP28, Passive Copper DAC, 3 Meter A20",0,null,"470-ABQE",{"$f":"IF(C195=0,\"\",\"TS2L3-5XDAC100M3\")","v":""},null,{"$f":"'Regole di configurazione'!G51*C195","v":0}]
[]
[null,"Cavi rj45"]
[null,"Cavo Rete UTP cat. 5e 3 metri",5,null,"ROS1403/G",{"$f":"IF(C198=0,\"\",\"TS2L3-3MRJ45\")","v":"TS2L3-3MRJ45"},null,{"$f":"2*C198","v":10}]
[]
[null,"Estenzione di Garanzia"]
[null,"None",{"$f":"VLOOKUP(B201,TS2L3WARRANTY,2,FALSE)","v":""},{"$f":"VLOOKUP(B201,TS2L3WARRANTY,3,FALSE)","v":""},{"$f":"VLOOKUP(B201,TS2L3WARRANTY,4,FALSE)","v":""},{"$f":"VLOOKUP(B201,TS2L3WARRANTY,5,FALSE)","v":""},{"$f":"VLOOKUP(B201,TS2L3WARRANTY,6,FALSE)","v":0}]

{"sheet":"Lotto3_R7425(GPU DW)","index":4,"n_rows":184,"n_cols":9,"rows_kept":184,"cut":false,"hidden":false,"merged":[[88,1,88,2],[0,5,1,5],[4,0,4,4],[46,0,50,0],[65,0,71,0],[72,0,83,0]]}
[null,"TOTALE PRODOTTI CONVENZIONE",{"$f":"SUM(G13:G194)*$C$10","v":0},null,null,{"$f":"IF(I1+I2=0,(C1+C2),\"ERRORE VERIFICARE LA CONFIGURAZIONE\")","v":0},null,null,{"$f":"IF(A47=\"\",0,1)","v":0}]
[null,"TOTALE ARTICOLI 20%",{"$f":"SUM(H13:H194)*$C$10","v":0},null,null,null,null,null,{"$f":"IF(A89=\"\",0,1)","v":0}]
[null,"Quantità Server",null,null,null,{"$f":"Riepilogo!T6","v":"ver. 3.3"}]
[]
["POWEREDGE R7425 GPU Ready (3GPU max)"]
[]
[]
[]
[]
[null,"Quantità:",{"$f":"C3","v":0}]
[]
[null,"Modello Server"]
[null,"PowerEdge R7425 Server",1,"[210-APFK]",null,"TS2L3-SRV",2087]
[]
[null,"Configurazione dello chassis"]
[null,"Chassis w/ up to 24 x 2.5\" SAS/SATA Hard Drives for 2CPU Configuration with GPU capable, Risers 4",1,"[321-BDWP]",null,"TS2L3-GPUKITDW",null,{"$f":"'Codici&PrezzixRiepilogo'!D93","v":254}]
[]
[null,"Trusted Platform Module"]
[null,"No Trusted Platform Module",1,"[461-AADZ]"]
[]
[null,"Processore"]
[null,"AMD EPYC™ 7301 2.2GHz/2.7GHz, 16C/32T, 64M Cache (155W/170W) DDR4-2400/2666",1,"[338-BNBZ]"]
[]
[null,"Processore aggiuntivo"]
[null,"AMD EPYC™ 7301 2.2GHz/2.7GHz, 16C/32T, 64M Cache (155W/170W) DDR4-2400/2666",{"$f":"VLOOKUP($B$25,TS2L3CPU,2,FALSE)","v":1},{"$f":"VLOOKUP($B$25,TS2L3CPU,3,FALSE)","v":"[374-BBTR]"},{"$f":"VLOOKUP($B$25,TS2L3CPU,4,FALSE)","v":"338-BNCI"},{"$f":"VLOOKUP($B$25,TS2L3CPU,5,FALSE)","v":"TS2L3-CPU"},{"$f":"VLOOKUP($B$25,TS2L3CPU,6,FALSE)","v":700},{"$f":"VLOOKUP($B$25,TS2L3CPU,7,FALSE)","v":""}]
[]
[null,"Configurazione Termica del Processore"]
[null,{"$f":"VLOOKUP($B$25,TS2L3CPU,8,FALSE)","v":"Standard Heatsinks, below 180W CPU"},{"$f":"VLOOKUP($B$25,TS2L3CPU,9,FALSE)","v":2},{"$f":"VLOOKUP($B$25,TS2L3CPU,10,FALSE)","v":"[412-AALN]"},{"$f":"VLOOKUP($B$25,TS2L3CPU,11,FALSE)","v":"412-AALJ"}]
[null,{"$f":"VLOOKUP($B$25,TS2L3CPU,12,FALSE)","v":""},{"$f":"VLOOKUP($B$25,TS2L3CPU,13,FALSE)","v":""},{"$f":"VLOOKUP($B$25,TS2L3CPU,14,FALSE)","v":""}]
[]
[]
[null,"Memoria Totale in GB","256   (DIMM 32GB)"]
[]
[null,"Tipo di configurazione memoria"]
[null,"Performance Optimized",1,"[370-AAIP]"]
[]
[null,"Tipo e velocità della memoria DIMM"]
[null,{"$f":"IF($C$25=0,VLOOKUP($C$32,TS2L3MEM1CPU,9,FALSE),VLOOKUP($C$32,TS2L3MEM2CPU,9,FALSE))","v":"2666MT/s RDIMMs"},{"$f":"IF($C$25=0,VLOOKUP($C$32,TS2L3MEM1CPU,10,FALSE),VLOOKUP($C$32,TS2L3MEM2CPU,10,FALSE))","v":1},{"$f":"IF($C$25=0,VLOOKUP($C$32,TS2L3MEM1CPU,11,FALSE),VLOOKUP($C$32,TS2L3MEM2CPU,11,FALSE))","v":"[370-ADNU]"}]
[]
[null,"Capacità di memoria"]
[null,{"$f":"IF($C$25=0,VLOOKUP($C$32,TS2L3MEM1CPU,2,FALSE),VLOOKUP($C$32,TS2L3MEM2CPU,2,FALSE))","v":"32GB RDIMM, 2666MT/s, Dual Rank"},{"$f":"IF($C$25=0,VLOOKUP($C$32,TS2L3MEM1CPU,3,FALSE),VLOOKUP($C$32,TS2L3MEM2CPU,3,FALSE))","v":8},{"$f":"IF($C$25=0,VLOOKUP($C$32,TS2L3MEM1CPU,4,FALSE),VLOOKUP($C$32,TS2L3MEM2CPU,4,FALSE))","v":"[370-ADNF]"},{"$f":"IF($C$25=0,VLOOKUP($C$32,TS2L3MEM1CPU,5,FALSE),VLOOKUP($C$32,TS2L3MEM2CPU,5,FALSE))","v":"A9781929"},{"$f":"IF($C$25=0,VLOOKUP($C$32,TS2L3MEM1CPU,6,FALSE),VLOOKUP($C$32,TS2L3MEM2CPU,6,FALSE))","v":"TS2L3-RAM32"},{"$f":"IF($C$25=0,VLOOKUP($C$32,TS2L3MEM1CPU,7,FALSE),VLOOKUP($C$32,TS2L3MEM2CPU,7,FALSE))","v":2082}]
[]
[null,"Sistema operativo preinstallato"]
[null,"None",{"$f":"VLOOKUP($B$44,TS2L3OS,2,FALSE)","v":""},{"$f":"VLOOKUP($B$44,TS2L3OS,3,FALSE)","v":"[619-ABVR]"},{"$f":"VLOOKUP($B$44,TS2L3OS,4,FALSE)","v":""},{"$f":"VLOOKUP($B$44,TS2L3OS,5,FALSE)","v":""},{"$f":"VLOOKUP($B$44,TS2L3OS,6,FALSE)","v":0},{"$f":"VLOOKUP($B$44,TS2L3OS,7,FALSE)","v":0},{"$f":"IF(E44=0,1,0)","v":0}]
[null,{"$f":"IF($C$25=1,(VLOOKUP($B$44,TS2L3OS,8,FALSE)),\"\")","v":""},{"$f":"IF($C$25=1,(VLOOKUP($B$44,TS2L3OS,9,FALSE)),\"\")","v":""},{"$f":"IF($C$25=1,(VLOOKUP($B$44,TS2L3OS,10,FALSE)),\"\")","v":""},{"$f":"IF($C$25=1,(VLOOKUP($B$44,TS2L3OS,11,FALSE)),\"\")","v":""},{"$f":"IF($C$25=1,(VLOOKUP($B$44,TS2L3OS,12,FALSE)),\"\")","v":""},{"$f":"IF($C$25=1,(VLOOKUP($B$44,TS2L3OS,13,FALSE)),\"\")","v":""},{"$f":"IF($C$25=1,(VLOOKUP($B$44,TS2L3OS,14,FALSE)),0)","v":0}]
[]
[{"$f":"IF((I44*I48)=0,\"\",\"ERRORE: \nLa selezione di licenze CAL senza il Sistema Operativo Microsoft Windows non è consentita.\")","v":""},"Client Access Licenses"]
[null,{"$f":"IF($E$44>0,'Regole di configurazione'!A95,\"\")","v":"1 Windows Server 2019 Device CALs (Standard or Datacenter),CUS"},0,{"$f":"IF($E$44>0,'Regole di configurazione'!C95,\"\")","v":0},{"$f":"IF($E$44>0,'Regole di configurazione'!D95,\"\")","v":"623-BBBX"},{"$f":"IF($E$44>0,'Regole di configurazione'!E95,\"\")","v":"TS2L3-CALDEV"},{"$f":"IF($E$44>0,'Regole di configurazione'!F95,0)*C48","v":0},{"$f":"IF($E$44>0,'Regole di configurazione'!G95,\"\")","v":0},{"$f":"C48+C50","v":0}]
[]
[null,{"$f":"IF($E$44>0,'Regole di configurazione'!A96,\"\")","v":"1 Windows Server 2019 User CALs (Standard or Datacenter),CUS"},0,{"$f":"IF($E$44>0,'Regole di configurazione'!C96,\"\")","v":0},{"$f":"IF($E$44>0,'Regole di configurazione'!D96,\"\")","v":"623-BBCC"},{"$f":"IF($E$44>0,'Regole di configurazione'!E96,\"\")","v":"TS2L3-CALUSER"},{"$f":"IF($E$44>0,'Regole di configurazione'!F96,0)*C50","v":0},{"$f":"IF($E$44>0,'Regole di configurazione'!G96,\"\")","v":0}]
[]
[null,"Sistema operativo VMware"]
[null,"Vmware vSphere Essentials Plus Kit"]
[null,"None",{"$f":"VLOOKUP($B$54,TS2L3VMWARE1,2,FALSE)","v":1},{"$f":"VLOOKUP($B$54,TS2L3VMWARE1,3,FALSE)","v":""},{"$f":"VLOOKUP($B$54,TS2L3VMWARE1,4,FALSE)","v":""},{"$f":"VLOOKUP($B$54,TS2L3VMWARE1,5,FALSE)","v":""},{"$f":"VLOOKUP($B$54,TS2L3VMWARE1,6,FALSE)","v":0},{"$f":"VLOOKUP($B$54,TS2L3VMWARE1,7,FALSE)*C54","v":0}]
[null,"VMware vCenter Server Standard"]
[null,"None",{"$f":"VLOOKUP($B$56,TS2L3VMWARE2,2,FALSE)","v":1},{"$f":"VLOOKUP($B$56,TS2L3VMWARE2,3,FALSE)","v":""},{"$f":"VLOOKUP($B$56,TS2L3VMWARE2,4,FALSE)","v":""},{"$f":"VLOOKUP($B$56,TS2L3VMWARE2,5,FALSE)","v":""},{"$f":"VLOOKUP($B$56,TS2L3VMWARE2,6,FALSE)","v":0},{"$f":"VLOOKUP($B$56,TS2L3VMWARE2,7,FALSE)*C56","v":0}]
[null,"Vmware vSphere Standard/Enterprise"]
[null,"None",{"$f":"(VLOOKUP($B$58,TS2L3VMWARE3,2,FALSE))+C25","v":1},{"$f":"VLOOKUP($B$58,TS2L3VMWARE3,3,FALSE)","v":""},{"$f":"VLOOKUP($B$58,TS2L3VMWARE3,4,FALSE)","v":""},{"$f":"VLOOKUP($B$58,TS2L3VMWARE3,5,FALSE)","v":""},{"$f":"VLOOKUP($B$58,TS2L3VMWARE3,6,FALSE)","v":0},{"$f":"VLOOKUP($B$58,TS2L3VMWARE3,7,FALSE)*C58","v":0}]
[null,"VMware vSAN"]
[null,"None",{"$f":"(VLOOKUP($B$60,TS2L3VMWARE4,2,FALSE))+C25","v":1},{"$f":"VLOOKUP($B$60,TS2L3VMWARE4,3,FALSE)","v":""},{"$f":"VLOOKUP($B$60,TS2L3VMWARE4,4,FALSE)","v":""},{"$f":"VLOOKUP($B$60,TS2L3VMWARE4,5,FALSE)","v":""},{"$f":"VLOOKUP($B$60,TS2L3VMWARE4,6,FALSE)","v":0},{"$f":"VLOOKUP($B$60,TS2L3VMWARE4,7,FALSE)*C60","v":0}]
[]
[null,"Controller Dischi"]
[null,{"$f":"B122","v":"PERC H730P RAID Controller, 2Gb NV Cache, Adapter, Full Height"},{"$f":"C122","v":1},{"$f":"D122","v":"[405-AAMR]"},{"$f":"E122","v":"405-AAMY"}]
[]
[null,"Dischi rigidi (numero massimo totale 24)"]
["\n\nSAS 10K","600GB 10K RPM SAS 12Gbps 512n 2.5in Hot-plug Hard Drive",2,"[400-ASGS]","400-AUNQ",{"$f":"IF(C66<=2,\"\",\"TS2L3-10K600\")","v":""},{"$f":"IF(C66<=2,0,(C66-2)*'Regole di configurazione'!F13)","v":0}]
[]
[null,"1.2TB 10K RPM SAS 12Gbps 512n 2.5in Hot-plug Hard Drive",0,"[400-ASHI]","400-ATJL",{"$f":"IF(C68=0,\"\",\"TS2L3-10K1200\")","v":""},{"$f":"C68*'Regole di configurazione'!F14","v":0}]
[]
[null,"1.8TB 10K RPM SAS 12Gbps 512e 2.5in Hot-plug Hard Drive ",0,"[400-ARXC]","400-ATJR",{"$f":"IF(C70=0,\"\",\"TS2L3-10K1800\")","v":""},{"$f":"C70*'Regole di configurazione'!F15","v":0}]
[]
[null,"2.4TB 10K RPM SAS 12Gbps 512e 2.5in Hot-plug Hard Drive NO VMWARE A20",0,null,"400-AVBX",{"$f":"IF(C72=0,\"\",\"TS2L3-10K2400\")","v":""},null,{"$f":"C72*'Regole di configurazione'!G43","v":0}]
["\n\nSSD"]
[null,"SSD 480GB SAS MU 12Gbps 2.5in Hot-Plug A20",0,null,"400-BCOD",{"$f":"IF(C74=0,\"\",\"TS2L3-SSDM480\")","v":""},null,{"$f":"C74*'Regole di configurazione'!G44","v":0}]
[]
[null,"SSD 400GB SAS WI 12Gbps 2.5in Hot-plug Drive, 10 DWPD A20",0,null,"400-ATGH",{"$f":"IF(C76=0,\"\",\"TS2L3-SSDW400\")","v":""},null,{"$f":"C76*'Regole di configurazione'!G45","v":0}]
[]
[null,"SSD 1600GB SAS WI 12Gb 2.5in Hot-plug Drive, 10 DWPD A20",0,null,null,{"$f":"IF(C78=0,\"\",\"TS2L3-SSDW1600\")","v":""},null,{"$f":"C78*'Regole di configurazione'!G46","v":0}]
[]
[null,"960GB SSD SAS Read Intensive 12Gbps 512e 2.5in Hot-plug Drive, PM5-R, 1 DWPD, 1752 TBW",0,"[400-BBPL]","400-ATLL",{"$f":"IF(C80=0,\"\",\"TS2L3-SSDR960\")","v":""},{"$f":"C80*'Regole di configurazione'!F16","v":0}]
[null,null,null,null,null,{"$f":"IF(C81=0,\"\",\"TS2L3-SSDR960\")","v":""}]
[null,"SSD 960GB SAS Mixed Use 12Gbps 2.5in Hot-plug Drive A20",0,null,"400-BCNN",null,null,{"$f":"C82*'Regole di configurazione'!G47","v":0}]
[]
[null,"1.92TB SSD SAS Read Intensive 12Gbps 512e 2.5in Hot-plug Drive, PM1633a",0,"[400-ASFX]","400-ATND",{"$f":"IF(C84=0,\"\",\"TS2L3-SSDR1920\")","v":""},{"$f":"C84*'Regole di configurazione'!F17","v":0}]
[]
[null,"DISCHI TOTALI",{"$f":"SUM(C66:C85)","v":2}]
[]
[null,"NOTE sulla configurazione (CAMPO OBBLIGATORIO)"]
[{"$f":"IF(C86<=24,\"\",\"ERRORE:   Totale n° di dischi superiore al consentito\")","v":""},"Specificare la configurazione RAID per l'installazione del Sistema Operativo, se richiesto.\ne/o\ninserire eventuali note.",null,null,"Specificare la configurazione RAID per l'installazione del Sistema Operativo, se richiesto.\ne/o\ninserire eventuali note.",{"$f":"IF(B89=E89,\"ERRORE:   Compilare il campo NOTE\",\"\")","v":"ERRORE:   Compilare il campo NOTE"}]
[]
[null,"Ventole"]
[null,"6 Performance Fans",1,"[384-BBST]"]
[]
[null,"Alimentatore"]
[null,"Dual, Hot-plug, Power Supply, 2000W, C19/C20 Power Cord Required ",1,"[450-AENU]",null,"TS2L3-2000W",null,595]
[]
[null,"Cavi di alimentazione"]
[null,"C19 to C20, PDU Style, 2.5M Power Cord",2,"[450-AEJI]"]
[]
[null,"PCIe Riser"]
[null,"Riser Config 4, 2 x8, 4 x16 slots ",{"$f":"VLOOKUP($B$25,TS2L3CPU,16,FALSE)","v":1},"[330-BBJC]","330-BBLX 330-BBMK 330-BBLS"]
[]
[null,"Modulo Doppia SD - Internal Dual SD Module (IDSDM)"]
[null,"None",{"$f":"VLOOKUP(B104,TS2L3IDSDM,2,FALSE)","v":0},{"$f":"VLOOKUP(B104,TS2L3IDSDM,3,FALSE)","v":0},{"$f":"VLOOKUP(B104,TS2L3IDSDM,4,FALSE)","v":0},{"$f":"VLOOKUP(B104,TS2L3IDSDM,5,FALSE)","v":""},{"$f":"VLOOKUP(B104,TS2L3IDSDM,6,FALSE)","v":0},{"$f":"VLOOKUP(B104,TS2L3IDSDM,7,FALSE)","v":0}]
[]
[null,"Embedded Systems Management"]
[null,"iDRAC9,Enterprise",1,"[385-BBKT]"]
[]
[]
[]
[]
[null,"Network Daughter Card"]
[null,"Broadcom 5720 QP 1Gb Network Daughter Card",1,"[540-BBBW]"]
[]
[null,"Additional Card for PCIe Slot 1 (Full height) (CPU 1) GPU"]
[null,"None",{"$f":"VLOOKUP(B116,TS2L3PCIGPU,2,FALSE)","v":""},{"$f":"VLOOKUP(B116,TS2L3PCIGPU,3,FALSE)","v":""},{"$f":"VLOOKUP(B116,TS2L3PCIGPU,4,FALSE)","v":""},{"$f":"VLOOKUP(B116,TS2L3PCIGPU,5,FALSE)","v":""},{"$f":"VLOOKUP(B116,TS2L3PCIGPU,6,FALSE)","v":0},{"$f":"VLOOKUP(B116,TS2L3PCIGPU,7,FALSE)","v":0}]
[]
[null,"Additional Card for PCIe Slot 2 (Full height) (CPU 1)"]
[null,"None",null,null,null,null,{"$f":"VLOOKUP(B119,TS2L3PCI2,6,FALSE)","v":0},{"$f":"VLOOKUP(B119,TS2L3PCI2,7,FALSE)","v":0}]
[]
[null,"Additional Card for PCIe Slot 3 (Full height) (CPU 1)"]
[null,"PERC H730P RAID Controller, 2Gb NV Cache, Adapter, Full Height",{"$f":"VLOOKUP(B122,TS2L3PCI3,2,FALSE)","v":1},{"$f":"VLOOKUP(B122,TS2L3PCI3,3,FALSE)","v":"[405-AAMR]"},{"$f":"VLOOKUP(B122,TS2L3PCI3,4,FALSE)","v":"405-AAMY"},{"$f":"VLOOKUP(B122,TS2L3PCI3,5,FALSE)","v":""},{"$f":"VLOOKUP(B122,TS2L3PCI3,6,FALSE)","v":0},{"$f":"VLOOKUP(B122,TS2L3PCI3,7,FALSE)","v":0}]
[]
[null,"Additional Card for PCIe Slot 4 (Full height) (CPU 2) GPU"]
[null,"None",{"$f":"IF(B125=TS2L3ASP,\"\",VLOOKUP(B125,TS2L3PCIGPU,2,FALSE))","v":""},{"$f":"IF(B125=TS2L3ASP,\"\",VLOOKUP(B125,TS2L3PCIGPU,3,FALSE))","v":""},{"$f":"IF(B125=TS2L3ASP,\"\",VLOOKUP(B125,TS2L3PCIGPU,4,FALSE))","v":""},{"$f":"IF(B125=TS2L3ASP,\"\",VLOOKUP(B125,TS2L3PCIGPU,5,FALSE))","v":""},{"$f":"IF(B125=TS2L3ASP,0,VLOOKUP(B125,TS2L3PCIGPU,6,FALSE))","v":0},{"$f":"IF(B125=TS2L3ASP,0,VLOOKUP(B125,TS2L3PCIGPU,7,FALSE))","v":0}]
[]
[null,"Additional Card for PCIe Slot 5 (Full height) (CPU 2)"]
[null,"None"]
[]
[null,"Additional Card for PCIe Slot 6 (Low height) (CPU 2)"]
[null,"None",{"$f":"IF(B131=TS2L3ASP,\"\",VLOOKUP(B131,TS2L3PCI6,2,FALSE))","v":""},{"$f":"IF(B131=TS2L3ASP,\"\",VLOOKUP(B131,TS2L3PCI6,3,FALSE))","v":""},{"$f":"IF(B131=TS2L3ASP,\"\",VLOOKUP(B131,TS2L3PCI6,4,FALSE))","v":""},{"$f":"IF(B131=TS2L3ASP,\"\",VLOOKUP(B131,TS2L3PCI6,5,FALSE))","v":""},{"$f":"IF(B131=TS2L3ASP,0,VLOOKUP(B131,TS2L3PCI6,6,FALSE))","v":0},{"$f":"IF(B131=TS2L3ASP,0,VLOOKUP(B131,TS2L3PCI6,7,FALSE))","v":0}]
[]
[null,"Additional Card for PCIe Slot 7 (Full height) (CPU 2) (BOSS controller card Slot)"]
[null,"None",{"$f":"IF(B134=TS2L3ASP,\"\",VLOOKUP(B134,TS2L3PCI7,2,FALSE))","v":""},{"$f":"IF(B134=TS2L3ASP,\"\",VLOOKUP(B134,TS2L3PCI7,3,FALSE))","v":""},{"$f":"IF(B134=TS2L3ASP,\"\",VLOOKUP(B134,TS2L3PCI7,4,FALSE))","v":""},{"$f":"IF(B134=TS2L3ASP,\"\",VLOOKUP(B134,TS2L3PCI7,5,FALSE))","v":""},{"$f":"IF(B134=TS2L3ASP,0,VLOOKUP(B134,TS2L3PCI7,6,FALSE))","v":0},{"$f":"IF(B134=TS2L3ASP,0,VLOOKUP(B134,TS2L3PCI7,7,FALSE))","v":0}]
[]
[null,"Additional Card for PCIe Slot 8 (Full height) (CPU 2) GPU"]
[null,"None",{"$f":"IF(B137=TS2L3ASP,\"\",VLOOKUP(B137,TS2L3PCIGPU,2,FALSE))","v":""},{"$f":"IF(B137=TS2L3ASP,\"\",VLOOKUP(B137,TS2L3PCIGPU,3,FALSE))","v":""},{"$f":"IF(B137=TS2L3ASP,\"\",VLOOKUP(B137,TS2L3PCIGPU,4,FALSE))","v":""},{"$f":"IF(B137=TS2L3ASP,\"\",VLOOKUP(B137,TS2L3PCIGPU,5,FALSE))","v":""},{"$f":"IF(B137=TS2L3ASP,0,VLOOKUP(B137,TS2L3PCIGPU,6,FALSE))","v":0},{"$f":"IF(B137=TS2L3ASP,0,VLOOKUP(B137,TS2L3PCIGPU,7,FALSE))","v":0}]
[]
[null,"Bezel"]
[null,"No Bezel",{"$f":"VLOOKUP($B$140,TS2L3BEZEL,2,FALSE)","v":0},{"$f":"VLOOKUP($B$140,TS2L3BEZEL,3,FALSE)","v":"[350-BBBW]"},{"$f":"VLOOKUP($B$140,TS2L3BEZEL,4,FALSE)","v":0},{"$f":"VLOOKUP($B$140,TS2L3BEZEL,5,FALSE)","v":""},{"$f":"VLOOKUP($B$140,TS2L3BEZEL,6,FALSE)","v":0},{"$f":"VLOOKUP($B$140,TS2L3BEZEL,7,FALSE)","v":0}]
[null,"MOD,TRAY,LGG,R7425",1,"[350-BBMF]"]
[]
[null,"Quick Sync"]
[null,"No Quick Sync",1,"[350-BBJV]"]
[]
[null,"Rack Rails"]
[null,{"$f":"VLOOKUP($B$140,TS2L3BEZEL,8,FALSE)","v":"ReadyRails™ Sliding Rails Without Cable Management Arm"},{"$f":"VLOOKUP($B$140,TS2L3BEZEL,9,FALSE)","v":1},{"$f":"VLOOKUP($B$140,TS2L3BEZEL,10,FALSE)","v":"[770-BBBQ]"},{"$f":"VLOOKUP($B$140,TS2L3BEZEL,11,FALSE)","v":0}]
[]
[null,"Password"]
[null,"iDRAC,Factory Generated Password",1,"[379-BCSF]"]
[]
[null,"Group Manager"]
[null,"iDRAC Group Manager, Enabled",1,"[379-BCQV]"]
[]
[null,"Internal Optical Drive"]
[null,"No Internal Optical Drive for 12/24 HD Chassis",1,"[429-AAIQ]"]
[]
[null,"Dell Services: Deployment Services"]
[null,"No Installation Service Selected (Contact Sales rep for more details)",1,"[683-11870]"]
[]
[null,"Channel only - Support Extension"]
[null,"Channel 39M Basic Warranty - Next Business Day",1,"[723-41450]"]
[]
[null,"System Documentation"]
[null,"No Systems Documentation, No OpenManage DVD Kit",1,"[631-AACK]"]
[]
[null,"Shipping Material"]
[null,"PowerEdge R7425 Shipping Material",1,"[343-BBHK]"]
[]
[null,"Direct Attach Cable"]
[null,"5 x Dell Networking, Cable, SFP+ to SFP+, 10GbE, Copper Twinax DAC, 3 Meter A20",0,null,"470-AAVJ",{"$f":"IF(C171=0,\"\",\"TS2L3-5XDAC10M3\")","v":""},null,{"$f":"'Regole di configurazione'!G49*C171","v":0}]
[]
[null,"5 x Dell Networking Cable, 100GbE QSFP28 to QSFP28,Passive Copper DAC, 2 Meter A20",0,null,"470-ABQG",{"$f":"IF(C173=0,\"\",\"TS2L3-5XDAC100M2\")","v":""},null,{"$f":"'Regole di configurazione'!G50*C173","v":0}]
[]
[null,"5 x Dell Networking Cable,100GbE QSFP28 to QSFP28, Passive Copper DAC, 3 Meter A20",0,null,"470-ABQE",{"$f":"IF(C175=0,\"\",\"TS2L3-5XDAC100M3\")","v":""},null,{"$f":"'Regole di configurazione'!G51*C175","v":0}]
[]
[null,"Cavi rj45"]
[null,"Cavo Rete UTP cat. 5e 3 metri",5,null,"ROS1403/G",{"$f":"IF(C178=0,\"\",\"TS2L3-3MRJ45\")","v":"TS2L3-3MRJ45"},null,{"$f":"2*C178","v":10}]
[]
[null,"Estenzione di Garanzia"]
[null,"None",{"$f":"VLOOKUP(B181,TS2L3WARRANTY,2,FALSE)","v":""},{"$f":"VLOOKUP(B181,TS2L3WARRANTY,3,FALSE)","v":""},{"$f":"VLOOKUP(B181,TS2L3WARRANTY,4,FALSE)","v":""},{"$f":"VLOOKUP(B181,TS2L3WARRANTY,5,FALSE)","v":""},{"$f":"VLOOKUP(B181,TS2L3WARRANTY,6,FALSE)","v":0}]
[]
[null,"Warranty Upgrades - Non-Std/Local POS"]
[null,"CSTM CONSIP - 39M Onsite Labor Support for CRU for Servers with Basic Warranty",1,"[681-24467]"]

{"sheet":"Lotto3_R7425(GPU SW)","index":5,"n_rows":181,"n_cols":9,"rows_kept":181,"cut":false,"hidden":false,"merged":[[88,1,88,2],[0,5,1,5],[4,0,4,4],[46,0,50,0],[65,0,71,0],[72,0,83,0]]}
[null,"TOTALE PRODOTTI CONVENZIONE",{"$f":"SUM(G13:G191)*$C$10","v":0},null,null,{"$f":"IF(I1+I2=0,(C1+C2),\"ERRORE VERIFICARE LA CONFIGURAZIONE\")","v":0},null,null,{"$f":"IF(A47=\"\",0,1)","v":0}]
[null,"TOTALE ARTICOLI 20%",{"$f":"SUM(H13:H191)*$C$10","v":0},null,null,null,null,null,{"$f":"IF(A89=\"\",0,1)","v":0}]
[null,"Quantità Server",null,null,null,{"$f":"Riepilogo!T6","v":"ver. 3.3"}]
[]
["POWEREDGE R7425 GPU Ready (5GPU max)"]
[]
[]
[]
[]
[null,"Quantità:",{"$f":"C3","v":0}]
[]
[null,"Modello Server"]
[null,"PowerEdge R7425 Server",1,"[210-APFK]",null,"TS2L3-SRV",2087]
[]
[null,"Configurazione dello chassis"]
[null,"Chassis w/ up to 24 x 2.5\" SAS/SATA Hard Drives for 2CPU Configuration with GPU capable, Risers 6",1,"[321-BDWP]",null,"TS2L3-GPUKITSW",null,{"$f":"'Codici&PrezzixRiepilogo'!D92","v":287}]
[]
[null,"Trusted Platform Module"]
[null,"No Trusted Platform Module",1,"[461-AADZ]"]
[]
[null,"Processore"]
[null,"AMD EPYC™ 7301 2.2GHz/2.7GHz, 16C/32T, 64M Cache (155W/170W) DDR4-2400/2666",1,"[338-BNBZ]"]
[]
[null,"Processore aggiuntivo"]
[null,"AMD EPYC™ 7301 2.2GHz/2.7GHz, 16C/32T, 64M Cache (155W/170W) DDR4-2400/2666",{"$f":"VLOOKUP($B$25,TS2L3CPU,2,FALSE)","v":1},{"$f":"VLOOKUP($B$25,TS2L3CPU,3,FALSE)","v":"[374-BBTR]"},{"$f":"VLOOKUP($B$25,TS2L3CPU,4,FALSE)","v":"338-BNCI"},{"$f":"VLOOKUP($B$25,TS2L3CPU,5,FALSE)","v":"TS2L3-CPU"},{"$f":"VLOOKUP($B$25,TS2L3CPU,6,FALSE)","v":700},{"$f":"VLOOKUP($B$25,TS2L3CPU,7,FALSE)","v":""}]
[]
[null,"Configurazione Termica del Processore"]
[null,{"$f":"VLOOKUP($B$25,TS2L3CPU,8,FALSE)","v":"Standard Heatsinks, below 180W CPU"},{"$f":"VLOOKUP($B$25,TS2L3CPU,9,FALSE)","v":2},{"$f":"VLOOKUP($B$25,TS2L3CPU,10,FALSE)","v":"[412-AALN]"},{"$f":"VLOOKUP($B$25,TS2L3CPU,11,FALSE)","v":"412-AALJ"}]
[null,{"$f":"VLOOKUP($B$25,TS2L3CPU,12,FALSE)","v":""},{"$f":"VLOOKUP($B$25,TS2L3CPU,13,FALSE)","v":""},{"$f":"VLOOKUP($B$25,TS2L3CPU,14,FALSE)","v":""}]
[]
[]
[null,"Memoria Totale in GB","256   (DIMM 32GB)"]
[]
[null,"Tipo di configurazione memoria"]
[null,"Performance Optimized",1,"[370-AAIP]"]
[]
[null,"Tipo e velocità della memoria DIMM"]
[null,{"$f":"IF($C$25=0,VLOOKUP($C$32,TS2L3MEM1CPU,9,FALSE),VLOOKUP($C$32,TS2L3MEM2CPU,9,FALSE))","v":"2666MT/s RDIMMs"},{"$f":"IF($C$25=0,VLOOKUP($C$32,TS2L3MEM1CPU,10,FALSE),VLOOKUP($C$32,TS2L3MEM2CPU,10,FALSE))","v":1},{"$f":"IF($C$25=0,VLOOKUP($C$32,TS2L3MEM1CPU,11,FALSE),VLOOKUP($C$32,TS2L3MEM2CPU,11,FALSE))","v":"[370-ADNU]"}]
[]
[null,"Capacità di memoria"]
[null,{"$f":"IF($C$25=0,VLOOKUP($C$32,TS2L3MEM1CPU,2,FALSE),VLOOKUP($C$32,TS2L3MEM2CPU,2,FALSE))","v":"32GB RDIMM, 2666MT/s, Dual Rank"},{"$f":"IF($C$25=0,VLOOKUP($C$32,TS2L3MEM1CPU,3,FALSE),VLOOKUP($C$32,TS2L3MEM2CPU,3,FALSE))","v":8},{"$f":"IF($C$25=0,VLOOKUP($C$32,TS2L3MEM1CPU,4,FALSE),VLOOKUP($C$32,TS2L3MEM2CPU,4,FALSE))","v":"[370-ADNF]"},{"$f":"IF($C$25=0,VLOOKUP($C$32,TS2L3MEM1CPU,5,FALSE),VLOOKUP($C$32,TS2L3MEM2CPU,5,FALSE))","v":"A9781929"},{"$f":"IF($C$25=0,VLOOKUP($C$32,TS2L3MEM1CPU,6,FALSE),VLOOKUP($C$32,TS2L3MEM2CPU,6,FALSE))","v":"TS2L3-RAM32"},{"$f":"IF($C$25=0,VLOOKUP($C$32,TS2L3MEM1CPU,7,FALSE),VLOOKUP($C$32,TS2L3MEM2CPU,7,FALSE))","v":2082}]
[]
[null,"Sistema operativo preinstallato"]
[null,"None",{"$f":"VLOOKUP($B$44,TS2L3OS,2,FALSE)","v":""},{"$f":"VLOOKUP($B$44,TS2L3OS,3,FALSE)","v":"[619-ABVR]"},{"$f":"VLOOKUP($B$44,TS2L3OS,4,FALSE)","v":""},{"$f":"VLOOKUP($B$44,TS2L3OS,5,FALSE)","v":""},{"$f":"VLOOKUP($B$44,TS2L3OS,6,FALSE)","v":0},{"$f":"VLOOKUP($B$44,TS2L3OS,7,FALSE)","v":0},{"$f":"IF(E44=0,1,0)","v":0}]
[null,{"$f":"IF($C$25=1,(VLOOKUP($B$44,TS2L3OS,8,FALSE)),\"\")","v":""},{"$f":"IF($C$25=1,(VLOOKUP($B$44,TS2L3OS,9,FALSE)),\"\")","v":""},{"$f":"IF($C$25=1,(VLOOKUP($B$44,TS2L3OS,10,FALSE)),\"\")","v":""},{"$f":"IF($C$25=1,(VLOOKUP($B$44,TS2L3OS,11,FALSE)),\"\")","v":""},{"$f":"IF($C$25=1,(VLOOKUP($B$44,TS2L3OS,12,FALSE)),\"\")","v":""},{"$f":"IF($C$25=1,(VLOOKUP($B$44,TS2L3OS,13,FALSE)),\"\")","v":""},{"$f":"IF($C$25=1,(VLOOKUP($B$44,TS2L3OS,14,FALSE)),0)","v":0}]
[]
[{"$f":"IF((I44*I48)=0,\"\",\"ERRORE: \nLa selezione di licenze CAL senza il Sistema Operativo Microsoft Windows non è consentita.\")","v":""},"Client Access Licenses"]
[null,{"$f":"IF($E$44>0,'Regole di configurazione'!A95,\"\")","v":"1 Windows Server 2019 Device CALs (Standard or Datacenter),CUS"},0,{"$f":"IF($E$44>0,'Regole di configurazione'!C95,\"\")","v":0},{"$f":"IF($E$44>0,'Regole di configurazione'!D95,\"\")","v":"623-BBBX"},{"$f":"IF($E$44>0,'Regole di configurazione'!E95,\"\")","v":"TS2L3-CALDEV"},{"$f":"IF($E$44>0,'Regole di configurazione'!F95,0)*C48","v":0},{"$f":"IF($E$44>0,'Regole di configurazione'!G95,\"\")","v":0},{"$f":"C48+C50","v":0}]
[]
[null,{"$f":"IF($E$44>0,'Regole di configurazione'!A96,\"\")","v":"1 Windows Server 2019 User CALs (Standard or Datacenter),CUS"},0,{"$f":"IF($E$44>0,'Regole di configurazione'!C96,\"\")","v":0},{"$f":"IF($E$44>0,'Regole di configurazione'!D96,\"\")","v":"623-BBCC"},{"$f":"IF($E$44>0,'Regole di configurazione'!E96,\"\")","v":"TS2L3-CALUSER"},{"$f":"IF($E$44>0,'Regole di configurazione'!F96,0)*C50","v":0},{"$f":"IF($E$44>0,'Regole di configurazione'!G96,\"\")","v":0}]
[]
[null,"Sistema operativo VMware"]
[null,"Vmware vSphere Essentials Plus Kit"]
[null,"None",{"$f":"VLOOKUP($B$54,TS2L3VMWARE1,2,FALSE)","v":1},{"$f":"VLOOKUP($B$54,TS2L3VMWARE1,3,FALSE)","v":""},{"$f":"VLOOKUP($B$54,TS2L3VMWARE1,4,FALSE)","v":""},{"$f":"VLOOKUP($B$54,TS2L3VMWARE1,5,FALSE)","v":""},{"$f":"VLOOKUP($B$54,TS2L3VMWARE1,6,FALSE)","v":0},{"$f":"VLOOKUP($B$54,TS2L3VMWARE1,7,FALSE)*C54","v":0}]
[null,"VMware vCenter Server Standard"]
[null,"None",{"$f":"VLOOKUP($B$56,TS2L3VMWARE2,2,FALSE)","v":1},{"$f":"VLOOKUP($B$56,TS2L3VMWARE2,3,FALSE)","v":""},{"$f":"VLOOKUP($B$56,TS2L3VMWARE2,4,FALSE)","v":""},{"$f":"VLOOKUP($B$56,TS2L3VMWARE2,5,FALSE)","v":""},{"$f":"VLOOKUP($B$56,TS2L3VMWARE2,6,FALSE)","v":0},{"$f":"VLOOKUP($B$56,TS2L3VMWARE2,7,FALSE)*C56","v":0}]
[null,"Vmware vSphere Standard/Enterprise"]
[null,"None",{"$f":"(VLOOKUP($B$58,TS2L3VMWARE3,2,FALSE))+C25","v":1},{"$f":"VLOOKUP($B$58,TS2L3VMWARE3,3,FALSE)","v":""},{"$f":"VLOOKUP($B$58,TS2L3VMWARE3,4,FALSE)","v":""},{"$f":"VLOOKUP($B$58,TS2L3VMWARE3,5,FALSE)","v":""},{"$f":"VLOOKUP($B$58,TS2L3VMWARE3,6,FALSE)","v":0},{"$f":"VLOOKUP($B$58,TS2L3VMWARE3,7,FALSE)*C58","v":0}]
[null,"VMware vSAN"]
[null,"None",{"$f":"(VLOOKUP($B$60,TS2L3VMWARE4,2,FALSE))+C25","v":1},{"$f":"VLOOKUP($B$60,TS2L3VMWARE4,3,FALSE)","v":""},{"$f":"VLOOKUP($B$60,TS2L3VMWARE4,4,FALSE)","v":""},{"$f":"VLOOKUP($B$60,TS2L3VMWARE4,5,FALSE)","v":""},{"$f":"VLOOKUP($B$60,TS2L3VMWARE4,6,FALSE)","v":0},{"$f":"VLOOKUP($B$60,TS2L3VMWARE4,7,FALSE)*C60","v":0}]
[]
[null,"Controller Dischi"]
[null,{"$f":"B119","v":"PERC H730P RAID Controller, 2Gb NV Cache, Adapter, Full Height"},{"$f":"C122","v":0},{"$f":"D122","v":0},{"$f":"E122","v":0}]
[]
[null,"Dischi rigidi (numero massimo totale 24)"]
["\n\nSAS 10K","600GB 10K RPM SAS 12Gbps 512n 2.5in Hot-plug Hard Drive",2,"[400-ASGS]","400-AUNQ",{"$f":"IF(C66<=2,\"\",\"TS2L3-10K600\")","v":""},{"$f":"IF(C66<=2,0,(C66-2)*'Regole di configurazione'!F13)","v":0}]
[]
[null,"1.2TB 10K RPM SAS 12Gbps 512n 2.5in Hot-plug Hard Drive",0,"[400-ASHI]","400-ATJL",{"$f":"IF(C68=0,\"\",\"TS2L3-10K1200\")","v":""},{"$f":"C68*'Regole di configurazione'!F14","v":0}]
[]
[null,"1.8TB 10K RPM SAS 12Gbps 512e 2.5in Hot-plug Hard Drive ",0,"[400-ARXC]","400-ATJR",{"$f":"IF(C70=0,\"\",\"TS2L3-10K1800\")","v":""},{"$f":"C70*'Regole di configurazione'!F15","v":0}]
[]
[null,"2.4TB 10K RPM SAS 12Gbps 512e 2.5in Hot-plug Hard Drive NO VMWARE A20",0,null,"400-AVBX",{"$f":"IF(C72=0,\"\",\"TS2L3-10K2400\")","v":""},null,{"$f":"C72*'Regole di configurazione'!G43","v":0}]
["\n\nSSD"]
[null,"SSD 480GB SAS MU 12Gbps 2.5in Hot-Plug A20",0,null,"400-BCOD",{"$f":"IF(C74=0,\"\",\"TS2L3-SSDM480\")","v":""},null,{"$f":"C74*'Regole di configurazione'!G44","v":0}]
[]
[null,"SSD 400GB SAS WI 12Gbps 2.5in Hot-plug Drive, 10 DWPD A20",0,null,"400-ATGH",{"$f":"IF(C76=0,\"\",\"TS2L3-SSDW400\")","v":""},null,{"$f":"C76*'Regole di configurazione'!G45","v":0}]
[]
[null,"SSD 1600GB SAS WI 12Gb 2.5in Hot-plug Drive, 10 DWPD A20",0,null,null,{"$f":"IF(C78=0,\"\",\"TS2L3-SSDW1600\")","v":""},null,{"$f":"C78*'Regole di configurazione'!G46","v":0}]
[]
[null,"960GB SSD SAS Read Intensive 12Gbps 512e 2.5in Hot-plug Drive, PM5-R, 1 DWPD, 1752 TBW",0,"[400-BBPL]","400-ATLL",{"$f":"IF(C80=0,\"\",\"TS2L3-SSDR960\")","v":""},{"$f":"C80*'Regole di configurazione'!F16","v":0}]
[null,null,null,null,null,{"$f":"IF(C81=0,\"\",\"TS2L3-SSDR960\")","v":""}]
[null,"SSD 960GB SAS Mixed Use 12Gbps 2.5in Hot-plug Drive A20",0,null,"400-BCNN",null,null,{"$f":"C82*'Regole di configurazione'!G47","v":0}]
[]
[null,"1.92TB SSD SAS Read Intensive 12Gbps 512e 2.5in Hot-plug Drive, PM1633a",0,"[400-ASFX]","400-ATND",{"$f":"IF(C84=0,\"\",\"TS2L3-SSDR1920\")","v":""},{"$f":"C84*'Regole di configurazione'!F17","v":0}]
[]
[null,"DISCHI TOTALI",{"$f":"SUM(C66:C85)","v":2}]
[]
[null,"NOTE sulla configurazione (CAMPO OBBLIGATORIO)"]
[{"$f":"IF(C86<=24,\"\",\"ERRORE:   Totale n° di dischi superiore al consentito\")","v":""},"Specificare la configurazione RAID per l'installazione del Sistema Operativo, se richiesto.\ne/o\ninserire eventuali note.",null,null,"Specificare la configurazione RAID per l'installazione del Sistema Operativo, se richiesto.\ne/o\ninserire eventuali note.",{"$f":"IF(B89=E89,\"ERRORE:   Compilare il campo NOTE\",\"\")","v":"ERRORE:   Compilare il campo NOTE"}]
[]
[null,"Ventole"]
[null,"6 Performance Fans",1,"[384-BBST]"]
[]
[null,"Alimentatore"]
[null,"Dual, Hot-plug, Power Supply, 2000W, C19/C20 Power Cord Required ",1,"[450-AENU]",null,"TS2L3-2000W",null,595]
[]
[null,"Cavi di alimentazione"]
[null,"C19 to C20, PDU Style, 2.5M Power Cord",2,"[450-AEJI]"]
[]
[null,"PCIe Riser"]
[null,"Riser Config 6, 1 x8, 6 x16 slots",{"$f":"VLOOKUP($B$25,TS2L3CPU,16,FALSE)","v":1},"[330-BBJE]"]
[]
[null,"Modulo Doppia SD - Internal Dual SD Module (IDSDM)"]
[null,"None",{"$f":"VLOOKUP(B104,TS2L3IDSDM,2,FALSE)","v":0},{"$f":"VLOOKUP(B104,TS2L3IDSDM,3,FALSE)","v":0},{"$f":"VLOOKUP(B104,TS2L3IDSDM,4,FALSE)","v":0},{"$f":"VLOOKUP(B104,TS2L3IDSDM,5,FALSE)","v":""},{"$f":"VLOOKUP(B104,TS2L3IDSDM,6,FALSE)","v":0},{"$f":"VLOOKUP(B104,TS2L3IDSDM,7,FALSE)","v":0}]
[]
[null,"Embedded Systems Management"]
[null,"iDRAC9,Enterprise",1,"[385-BBKT]"]
[]
[]
[]
[]
[null,"Network Daughter Card"]
[null,"Broadcom 5720 QP 1Gb Network Daughter Card",1,"[540-BBBW]"]
[]
[null,"Additional Card for PCIe Slot 1 (Full height) (CPU 1) GPU"]
[null,"None",{"$f":"VLOOKUP(B116,TS2L3GPUSW,2,FALSE)","v":""},{"$f":"VLOOKUP(B116,TS2L3GPUSW,3,FALSE)","v":""},{"$f":"VLOOKUP(B116,TS2L3GPUSW,4,FALSE)","v":""},{"$f":"VLOOKUP(B116,TS2L3GPUSW,5,FALSE)","v":""},{"$f":"VLOOKUP(B116,TS2L3GPUSW,6,FALSE)","v":0},{"$f":"VLOOKUP(B116,TS2L3GPUSW,7,FALSE)","v":0}]
[]
[null,"Additional Card for PCIe Slot 2 (Full height) (CPU 1)"]
[null,"PERC H730P RAID Controller, 2Gb NV Cache, Adapter, Full Height",{"$f":"VLOOKUP(B119,TS2L3PCI3,2,FALSE)","v":1},{"$f":"VLOOKUP(B119,TS2L3PCI3,3,FALSE)","v":"[405-AAMR]"},{"$f":"VLOOKUP(B119,TS2L3PCI3,4,FALSE)","v":"405-AAMY"},{"$f":"VLOOKUP(B119,TS2L3PCI3,5,FALSE)","v":""},{"$f":"VLOOKUP(B119,TS2L3PCI3,6,FALSE)","v":0},{"$f":"VLOOKUP(B119,TS2L3PCI3,7,FALSE)","v":0}]
[]
[null,"Additional Card for PCIe Slot 3 (Full height) (CPU 1)"]
[null,"None"]
[]
[null,"Additional Card for PCIe Slot 4 (Full height) (CPU 1) GPU"]
[null,"None",{"$f":"VLOOKUP(B125,TS2L3GPUSW,2,FALSE)","v":""},{"$f":"VLOOKUP(B125,TS2L3GPUSW,3,FALSE)","v":""},{"$f":"VLOOKUP(B125,TS2L3GPUSW,4,FALSE)","v":""},{"$f":"VLOOKUP(B125,TS2L3GPUSW,5,FALSE)","v":""},{"$f":"VLOOKUP(B125,TS2L3GPUSW,6,FALSE)","v":0},{"$f":"VLOOKUP(B125,TS2L3GPUSW,7,FALSE)","v":0}]
[]
[null,"Additional Card for PCIe Slot 5 (Full height) (CPU 2) GPU"]
[null,"None",{"$f":"VLOOKUP(B128,TS2L3GPUSW,2,FALSE)","v":""},{"$f":"VLOOKUP(B128,TS2L3GPUSW,3,FALSE)","v":""},{"$f":"VLOOKUP(B128,TS2L3GPUSW,4,FALSE)","v":""},{"$f":"VLOOKUP(B128,TS2L3GPUSW,5,FALSE)","v":""},{"$f":"VLOOKUP(B128,TS2L3GPUSW,6,FALSE)","v":0},{"$f":"VLOOKUP(B128,TS2L3GPUSW,7,FALSE)","v":0}]
[]
[null,"Additional Card for PCIe Slot 6 (Low height) (CPU 2)"]
[null,"None",{"$f":"IF(B131=TS2L3ASP,\"\",VLOOKUP(B131,TS2L3PCI6,2,FALSE))","v":""},{"$f":"IF(B131=TS2L3ASP,\"\",VLOOKUP(B131,TS2L3PCI6,3,FALSE))","v":""},{"$f":"IF(B131=TS2L3ASP,\"\",VLOOKUP(B131,TS2L3PCI6,4,FALSE))","v":""},{"$f":"IF(B131=TS2L3ASP,\"\",VLOOKUP(B131,TS2L3PCI6,5,FALSE))","v":""},{"$f":"IF(B131=TS2L3ASP,0,VLOOKUP(B131,TS2L3PCI6,6,FALSE))","v":0},{"$f":"IF(B131=TS2L3ASP,0,VLOOKUP(B131,TS2L3PCI6,7,FALSE))","v":0}]
[]
[null,"Additional Card for PCIe Slot 7 (Full height) (CPU 2) (BOSS controller card Slot) GPU"]
[null,"None",{"$f":"VLOOKUP(B134,TS2L3PCIGPUBOSS,2,FALSE)","v":""},{"$f":"VLOOKUP(B134,TS2L3PCIGPUBOSS,3,FALSE)","v":""},{"$f":"VLOOKUP(B134,TS2L3PCIGPUBOSS,4,FALSE)","v":""},{"$f":"VLOOKUP(B134,TS2L3PCIGPUBOSS,5,FALSE)","v":""},{"$f":"VLOOKUP(B134,TS2L3PCIGPUBOSS,6,FALSE)","v":0},{"$f":"VLOOKUP(B134,TS2L3PCIGPUBOSS,7,FALSE)","v":0}]
[]
[null,"Additional Card for PCIe Slot 8 (Full height) (CPU 2) GPU"]
[null,"None",{"$f":"VLOOKUP(B137,TS2L3GPUSW,2,FALSE)","v":""},{"$f":"VLOOKUP(B137,TS2L3GPUSW,3,FALSE)","v":""},{"$f":"VLOOKUP(B137,TS2L3GPUSW,4,FALSE)","v":""},{"$f":"VLOOKUP(B137,TS2L3GPUSW,5,FALSE)","v":""},{"$f":"VLOOKUP(B137,TS2L3GPUSW,6,FALSE)","v":0},{"$f":"VLOOKUP(B137,TS2L3GPUSW,7,FALSE)","v":0}]
[]
[null,"Bezel"]
[null,"No Bezel",{"$f":"VLOOKUP($B$140,TS2L3BEZEL,2,FALSE)","v":0},{"$f":"VLOOKUP($B$140,TS2L3BEZEL,3,FALSE)","v":"[350-BBBW]"},{"$f":"VLOOKUP($B$140,TS2L3BEZEL,4,FALSE)","v":0},{"$f":"VLOOKUP($B$140,TS2L3BEZEL,5,FALSE)","v":""},{"$f":"VLOOKUP($B$140,TS2L3BEZEL,6,FALSE)","v":0},{"$f":"VLOOKUP($B$140,TS2L3BEZEL,7,FALSE)","v":0}]
[null,"MOD,TRAY,LGG,R7425",1,"[350-BBMF]"]
[]
[null,"Quick Sync"]
[null,"No Quick Sync",1,"[350-BBJV]"]
[]
[null,"Rack Rails"]
[null,{"$f":"VLOOKUP($B$140,TS2L3BEZEL,8,FALSE)","v":"ReadyRails™ Sliding Rails Without Cable Management Arm"},{"$f":"VLOOKUP($B$140,TS2L3BEZEL,9,FALSE)","v":1},{"$f":"VLOOKUP($B$140,TS2L3BEZEL,10,FALSE)","v":"[770-BBBQ]"},{"$f":"VLOOKUP($B$140,TS2L3BEZEL,11,FALSE)","v":0}]
[]
[null,"Password"]
[null,"iDRAC,Factory Generated Password",1,"[379-BCSF]"]
[]
[null,"Group Manager"]
[null,"iDRAC Group Manager, Enabled",1,"[379-BCQV]"]
[]
[null,"Internal Optical Drive"]
[null,"No Internal Optical Drive for 12/24 HD Chassis",1,"[429-AAIQ]"]
[]
[null,"Dell Services: Deployment Services"]
[null,"No Installation Service Selected (Contact Sales rep for more details)",1,"[683-11870]"]
[]
[null,"Channel only - Support Extension"]
[null,"Channel 39M Basic Warranty - Next Business Day",1,"[723-41450]"]
[]
[null,"System Documentation"]
[null,"No Systems Documentation, No OpenManage DVD Kit",1,"[631-AACK]"]
[]
[null,"Shipping Material"]
[null,"PowerEdge R7425 Shipping Material",1,"[343-BBHK]"]
[]
[null,"Direct Attach Cable"]
[null,"5 x Dell Networking, Cable, SFP+ to SFP+, 10GbE, Copper Twinax DAC, 3 Meter A20",0,null,"470-AAVJ",{"$f":"IF(C171=0,\"\",\"TS2L3-5XDAC10M3\")","v":""},null,{"$f":"'Regole di configurazione'!G49*C171","v":0}]
[]
[null,"5 x Dell Networking Cable, 100GbE QSFP28 to QSFP28,Passive Copper DAC, 2 Meter A20",0,null,"470-ABQG",{"$f":"IF(C173=0,\"\",\"TS2L3-5XDAC100M2\")","v":""},null,{"$f":"'Regole di configurazione'!G50*C173","v":0}]
[]
[null,"5 x Dell Networking Cable,100GbE QSFP28 to QSFP28, Passive Copper DAC, 3 Meter A20",0,null,"470-ABQE",{"$f":"IF(C175=0,\"\",\"TS2L3-5XDAC100M3\")","v":""},null,{"$f":"'Regole di configurazione'!G51*C175","v":0}]
[]
[null,"Cavi rj45"]
[null,"Cavo Rete UTP cat. 5e 3 metri",5,null,"ROS1403/G",{"$f":"IF(C178=0,\"\",\"TS2L3-3MRJ45\")","v":"TS2L3-3MRJ45"},null,{"$f":"2*C178","v":10}]
[]
[null,"Estenzione di Garanzia"]
[null,"None",{"$f":"VLOOKUP(B181,TS2L3WARRANTY,2,FALSE)","v":""},{"$f":"VLOOKUP(B181,TS2L3WARRANTY,3,FALSE)","v":""},{"$f":"VLOOKUP(B181,TS2L3WARRANTY,4,FALSE)","v":""},{"$f":"VLOOKUP(B181,TS2L3WARRANTY,5,FALSE)","v":""},{"$f":"VLOOKUP(B181,TS2L3WARRANTY,6,FALSE)","v":0}]

{"sheet":"Rack e Accessori","index":6,"n_rows":54,"n_cols":11,"rows_kept":54,"cut":false,"hidden":false,"merged":[[0,9,1,10],[44,2,44,7],[14,2,14,7],[5,2,5,7],[8,2,8,7],[11,2,11,7],[38,2,38,7],[41,2,41,7],[17,2,17,7],[20,2,20,7],[23,2,23,7],[26,2,26,7],[32,2,32,7],[35,2,35,7],[47,2,47,7],[50,2,50,7],[53,2,53,7],[29,2,29,7],[0,7,0,8],[1,7,1,8]]}
[null,null,null,null,null,null,"TOTALE PRODOTTI CONVENZIONE",{"$f":"SUM(Riepilogo!T41:U44)","v":0},null,{"$f":"IF(H2=\"\",0,H1+H2)","v":0}]
[null,null,null,null,null,null,"TOTALE ARTICOLI 20%",{"$f":"IF(Riepilogo!$T$114=\"\",\"\",Riepilogo!$T$114)","v":""}]
[]
[]
[null,null,{"$f":"IF(Riepilogo!G6=\"\",\"\",\"Rack (OpzRack)\")","v":""}]
[null,null,{"$f":"IF(Riepilogo!G6=\"\",\"\",\"Tecnosteel: armadio Rack 19'' 42U\")","v":""},null,null,null,null,null,null,null,{"$f":"IF(J6>=1,\"TS2L3-RACK\",\"\")","v":""}]
[]
[null,null,{"$f":"IF(Riepilogo!$G$6=\"\",\"\",\"PDU (OpzPDU32A)\")","v":""}]
[null,null,{"$f":"IF(Riepilogo!$G$6=\"\",\"\",\"Coppia di PDU Vertical  1Ph-32A-18xC13-6xC19 - 0U Base + Kit di montaggio\")","v":""},null,null,null,null,null,null,null,{"$f":"IF(J9>=1,\"TS2L3-PDU32A\",\"\")","v":""}]
[]
[null,null,{"$f":"IF(Riepilogo!$G$6=\"\",\"\",\"PDU (OpzPDU16AMetered)\")","v":""}]
[null,null,{"$f":"IF(Riepilogo!$G$6=\"\",\"\",\"Coppia di PDU Vertical  1Ph-16A-36xC13+6xC19 -0U Metered + Kit di montaggio\")","v":""},null,null,null,null,null,null,null,{"$f":"IF(J12>=1,\"TS2L3-TM1613606\",\"\")","v":""}]
[]
[null,null,{"$f":"IF(Riepilogo!$G$6=\"\",\"\",\"PDU (OpzPDU32AMetered)\")","v":""}]
[null,null,{"$f":"IF(Riepilogo!$G$6=\"\",\"\",\"Coppia di PDU Vertical  1Ph-32A-36xC13+6xC19 -0U Metered + Kit di montaggio\")","v":""},null,null,null,null,null,null,null,{"$f":"IF(J15>=1,\"TS2L3-TM3213606\",\"\")","v":""}]
[]
[null,null,{"$f":"IF(Riepilogo!$G$6=\"\",\"\",\"PDU (OpzPDU32A3PHMetered)\")","v":""}]
[null,null,{"$f":"IF(Riepilogo!$G$6=\"\",\"\",\"Coppia di PDU Vertical  3Ph-32A-36xC13+6xC19 -0U Metered + Kit di montaggio\")","v":""},null,null,null,null,null,null,null,{"$f":"IF(J18>=1,\"TS2L3-TM3233606\",\"\")","v":""}]
[]
[null,null,{"$f":"IF(Riepilogo!$G$6=\"\",\"\",\"PDU (OpzPDU16AControlled)\")","v":""}]
[null,null,{"$f":"IF(Riepilogo!$G$6=\"\",\"\",\"Coppia di PDU Vertical  1Ph-16A-24xC13+6xC19 -0U Controlled + Kit di montaggio\")","v":""},null,null,null,null,null,null,null,{"$f":"IF(J21>=1,\"TS2L3-TK1612406\",\"\")","v":""}]
[]
[null,null,{"$f":"IF(Riepilogo!$G$6=\"\",\"\",\"PDU (OpzPDU32AControlled)\")","v":""}]
[null,null,{"$f":"IF(Riepilogo!$G$6=\"\",\"\",\"Coppia di PDU Vertical  1Ph-32A-24xC13+6xC19 -0U Controlled + Kit di montaggio\")","v":""},null,null,null,null,null,null,null,{"$f":"IF(J24>=1,\"TS2L3-TK3212406\",\"\")","v":""}]
[]
[null,null,{"$f":"IF(Riepilogo!$G$6=\"\",\"\",\"PDU (OpzPDU32A3PHControlled)\")","v":""}]
[null,null,{"$f":"IF(Riepilogo!$G$6=\"\",\"\",\"Coppia di PDU Vertical  3Ph-32A-24xC13+6xC19 -0U Controlled + Kit di montaggio\")","v":""},null,null,null,null,null,null,null,{"$f":"IF(J27>=1,\"TS2L3-TK3232406\",\"\")","v":""}]
[]
[null,null,{"$f":"IF(Riepilogo!$G$6=\"\",\"\",\"PDU (OpzPDU16AFull)\")","v":""}]
[null,null,{"$f":"IF(Riepilogo!$G$6=\"\",\"\",\"Coppia di PDU Vertical  1Ph-16A-24xC13+6xC19 -0U Full + Kit di montaggio\")","v":""},null,null,null,null,null,null,null,{"$f":"IF(J30>=1,\"TS2L3-TF1612406\",\"\")","v":""}]
[]
[null,null,{"$f":"IF(Riepilogo!$G$6=\"\",\"\",\"PDU (OpzPDU32AFull)\")","v":""}]
[null,null,{"$f":"IF(Riepilogo!$G$6=\"\",\"\",\"Coppia di PDU Vertical  1Ph-32A-24xC13+6xC19 -0U Full + Kit di montaggio\")","v":""},null,null,null,null,null,null,null,{"$f":"IF(J33>=1,\"TS2L3-TF3212406\",\"\")","v":""}]
[]
[null,null,{"$f":"IF(Riepilogo!$G$6=\"\",\"\",\"PDU (OpzPDU32A3PHFull)\")","v":""}]
[null,null,{"$f":"IF(Riepilogo!$G$6=\"\",\"\",\"Coppia di PDU Vertical  3Ph-32A-24xC13+6xC19 -0U Full + Kit di montaggio\")","v":""},null,null,null,null,null,null,null,{"$f":"IF(J36>=1,\"TS2L3-TF3232406\",\"\")","v":""}]
[]
[null,null,{"$f":"IF(Riepilogo!G6=\"\",\"\",\"KVM (OpzGUIRack)\")","v":""}]
[null,null,{"$f":"IF(Riepilogo!G6=\"\",\"\",\"Tecnosteel: 1U Rackmount Console 17'' with Italian Keyboard\")","v":""},null,null,null,null,null,null,null,{"$f":"IF(J39>=1,\"TS2L3-GUI\",\"\")","v":""}]
[]
[null,null,{"$f":"IF(Riepilogo!G6=\"\",\"\",\"KVM Option (OpzSWGUIRack)\")","v":""}]
[null,null,{"$f":"IF(Riepilogo!G6=\"\",\"\",\"Tecnosteel: 16-port remote KVM switch with one remote user\")","v":""},null,null,null,null,null,null,null,{"$f":"IF(J42>=1,\"TS2L3-KVMIP\",\"\")","v":""}]
[]
[null,null,{"$f":"IF(Riepilogo!G6=\"\",\"\",\"Uninterrupted Power Supply (OpzUPS 3000VA)\")","v":""}]
[null,null,{"$f":"IF(Riepilogo!G6=\"\",\"\",\"Riello - UPS MSR3000EVO 3000VA 2U Rackmount (SNMP+USB+RS232)\")","v":""},null,null,null,null,null,null,null,{"$f":"IF(J45>=1,\"TS2L3-UPS\",\"\")","v":""}]
[]
[null,null,{"$f":"IF(Riepilogo!G6=\"\",\"\",\"PDU da Rack\")","v":""}]
[null,null,{"$f":"IF(Riepilogo!G6=\"\",\"\",\"Coppia di PDU Vertical  1Ph-32A - 0U\")","v":""},null,null,null,null,null,null,null,{"$f":"IF(J48>=1,\"TS2L3-PDU32A\",\"\")","v":""}]
[]
[null,null,{"$f":"IF(Riepilogo!G6=\"\",\"\",\"Armadio Rack 42U PDU Trifase\")","v":""}]
[null,null,{"$f":"IF(Riepilogo!G6=\"\",\"\",\"Armadio Rack 42U profonità 120cm con coppia di PDU 32A trifase\")","v":""},null,null,null,null,null,null,null,{"$f":"IF(J51>=1,\"TS2L3-PDU32A\",\"\")","v":""}]
[]
[null,null,{"$f":"IF(Riepilogo!G6=\"\",\"\",\"Armadio Rack 42U PDU Monofase\")","v":""}]
[null,null,{"$f":"IF(Riepilogo!G6=\"\",\"\",\"Armadio Rack 42U profonità 120cm con coppia di PDU 32A monofase\")","v":""},null,null,null,null,null,null,null,{"$f":"IF(J54>=1,\"TS2L3-RACKPDU32\",\"\")","v":""}]

{"sheet":"Riepilogo","index":7,"n_rows":358,"n_cols":40,"rows_kept":358,"cut":false,"hidden":false,"merged":[[254,16,254,19],[255,16,255,19],[256,16,256,19],[257,16,257,19],[97,19,97,20],[98,2,98,5],[98,6,98,8],[98,9,98,16],[98,17,98,18],[98,19,98,20],[99,2,99,5],[99,6,99,8],[99,9,99,16],[99,17,99,18],[99,19,99,20],[100,2,100,5],[100,6,100,8],[100,9,100,16],[100,17,100,18],[100,19,100,20],[205,2,205,5],[205,9,205,12],[205,16,205,19],[204,2,204,5],[204,9,204,12],[204,16,204,19],[309,9,309,12],[309,16,309,19],[268,16,268,19],[269,16,269,19],[270,16,270,19],[271,16,271,19],[272,16,272,19],[273,16,273,19],[274,16,274,19],[275,16,275,19],[276,16,276,19],[276,9,276,12],[297,9,297,12],[300,16,300,19],[258,16,258,19],[259,16,259,19],[307,16,307,19],[308,16,308,19],[278,9,278,12],[258,9,258,12],[253,9,253,12],[254,9,254,12],[255,9,255,12],[250,9,250,12],[251,9,251,12],[252,9,252,12],[264,16,264,19],[293,9,293,12],[249,16,249,19],[250,16,250,19],[251,16,251,19],[206,16,206,19],[207,2,207,5],[207,9,207,12],[207,16,207,19],[208,2,208,5],[208,9,208,12],[208,16,208,19],[260,16,260,19],[261,16,261,19],[262,16,262,19],[263,16,263,19],[328,15,344,19],[307,9,307,12],[308,9,308,12],[313,9,313,12],[298,9,298,12],[299,9,299,12],[300,9,300,12],[301,9,301,12],[302,9,302,12],[303,9,303,12],[304,9,304,12],[305,9,305,12],[306,9,306,12],[301,16,301,19],[302,16,302,19],[303,16,303,19],[304,16,304,19],[305,16,305,19],[306,16,306,19],[252,16,252,19],[253,16,253,19],[298,16,298,19],[299,16,299,19],[310,9,310,12],[310,16,310,19],[311,9,311,12],[311,16,311,19],[312,9,312,12],[312,16,312,19],[328,8,344,12],[282,9,282,12],[265,16,265,19],[266,16,266,19],[267,16,267,19],[282,16,282,19],[283,16,283,19],[284,16,284,19],[285,16,285,19],[286,16,286,19],[287,16,287,19],[277,16,277,19],[278,16,278,19],[279,16,279,19],[280,16,280,19],[281,16,281,19],[283,9,283,12],[284,9,284,12],[285,9,285,12],[286,9,286,12],[287,9,287,12],[288,9,288,12],[277,9,277,12],[326,15,326,17],[288,16,288,19],[289,16,289,19],[290,16,290,19],[291,16,291,19],[292,16,292,19],[293,16,293,19],[294,16,294,19],[248,16,248,19],[326,8,326,10],[279,9,279,12],[280,9,280,12],[281,9,281,12],[289,9,289,12],[290,9,290,12],[291,9,291,12],[292,9,292,12],[268,9,268,12],[269,9,269,12],[270,9,270,12],[271,9,271,12],[272,9,272,12],[273,9,273,12],[274,9,274,12],[275,9,275,12],[294,9,294,12],[295,9,295,12],[296,9,296,12],[314,9,314,12],[315,9,315,12],[316,9,316,12],[317,9,317,12],[295,16,295,19],[296,16,296,19],[297,16,297,19],[314,16,314,19],[315,16,315,19],[316,16,316,19],[317,16,317,19],[231,15,231,17],[233,16,233,19],[234,16,234,19],[235,16,235,19],[236,16,236,19],[237,16,237,19],[238,16,238,19],[239,16,239,19],[203,9,203,12],[240,16,240,19],[241,16,241,19],[242,16,242,19],[243,16,243,19],[244,16,244,19],[245,16,245,19],[246,16,246,19],[247,16,247,19],[203,16,203,19],[264,9,264,12],[265,9,265,12],[266,9,266,12],[267,9,267,12],[256,9,256,12],[257,9,257,12],[313,16,313,19],[181,16,181,19],[182,16,182,19],[183,16,183,19],[198,9,198,12],[199,9,199,12],[200,9,200,12],[201,9,201,12],[202,9,202,12],[199,16,199,19],[200,16,200,19],[201,16,201,19],[202,16,202,19],[202,2,202,5],[203,2,203,5],[181,9,181,12],[182,9,182,12],[183,9,183,12],[184,9,184,12],[185,9,185,12],[186,9,186,12],[187,9,187,12],[188,9,188,12],[189,9,189,12],[190,9,190,12],[191,9,191,12],[192,9,192,12],[193,9,193,12],[194,9,194,12],[195,9,195,12],[196,9,196,12],[197,9,197,12],[193,2,193,5],[94,2,94,5],[94,6,94,8],[94,9,94,16],[94,17,94,18],[94,19,94,20],[95,2,95,5],[95,6,95,8],[95,9,95,16],[95,17,95,18],[95,19,95,20],[186,2,186,5],[187,2,187,5],[188,2,188,5],[189,2,189,5],[190,2,190,5],[191,2,191,5],[192,2,192,5],[184,16,184,19],[185,16,185,19],[186,16,186,19],[187,16,187,19],[188,16,188,19],[189,16,189,19],[96,2,96,5],[96,6,96,8],[96,9,96,16],[96,17,96,18],[96,19,96,20],[97,2,97,5],[97,6,97,8],[97,9,97,16],[97,17,97,18],[90,2,90,5],[90,6,90,8],[90,9,90,16],[90,17,90,18],[90,19,90,20],[93,2,93,5],[93,6,93,8],[93,9,93,16],[93,17,93,18],[93,19,93,20],[91,2,91,5],[91,6,91,8],[91,9,91,16],[91,17,91,18],[91,19,91,20],[92,2,92,5],[92,6,92,8],[92,9,92,16],[92,17,92,18],[92,19,92,20],[86,2,86,5],[86,6,86,8],[86,9,86,16],[86,17,86,18],[86,19,86,20],[87,2,87,5],[87,6,87,8],[87,9,87,16],[87,17,87,18],[87,19,87,20],[88,2,88,5],[88,6,88,8],[88,9,88,16],[88,17,88,18],[88,19,88,20],[89,2,89,5],[89,6,89,8],[89,9,89,16],[89,17,89,18],[89,19,89,20],[82,2,82,5],[82,6,82,8],[82,9,82,16],[82,17,82,18],[82,19,82,20],[83,2,83,5],[83,6,83,8],[83,9,83,16],[83,17,83,18],[83,19,83,20],[84,2,84,5],[84,6,84,8],[84,9,84,16],[84,17,84,18],[84,19,84,20],[85,2,85,5],[85,6,85,8],[85,9,85,16],[85,17,85,18],[85,19,85,20],[78,2,78,5],[78,6,78,8],[78,9,78,16],[78,17,78,18],[78,19,78,20],[79,2,79,5],[79,6,79,8],[79,9,79,16],[79,17,79,18],[79,19,79,20],[80,2,80,5],[80,6,80,8],[80,9,80,16],[80,17,80,18],[80,19,80,20],[81,2,81,5],[81,6,81,8],[81,9,81,16],[81,17,81,18],[81,19,81,20],[74,9,74,16],[74,17,74,18],[74,19,74,20],[75,2,75,5],[75,6,75,8],[75,9,75,16],[75,17,75,18],[75,19,75,20],[76,2,76,5],[76,6,76,8],[76,9,76,16],[76,17,76,18],[76,19,76,20],[77,2,77,5],[77,6,77,8],[77,9,77,16],[77,17,77,18],[77,19,77,20],[51,2,51,5],[51,6,51,8],[51,9,51,16],[51,17,51,18],[51,19,51,20],[52,2,52,5],[52,6,52,8],[52,9,52,16],[52,17,52,18],[52,19,52,20],[55,2,55,5],[55,6,55,8],[55,9,55,16],[55,17,55,18],[55,19,55,20],[53,2,53,5],[53,6,53,8],[53,9,53,16],[153,2,153,5],[153,9,153,12],[153,16,153,19],[151,2,151,5],[151,9,151,12],[151,16,151,19],[152,2,152,5],[152,9,152,12],[152,16,152,19],[352,2,352,7],[352,14,352,19],[353,2,356,7],[353,14,356,19],[346,12,346,13],[346,14,346,15],[346,16,346,17],[346,18,346,19],[349,3,350,18],[346,2,346,3],[346,4,346,5],[346,6,346,7],[346,8,346,9],[346,10,346,11],[190,16,190,19],[191,16,191,19],[192,16,192,19],[193,16,193,19],[194,16,194,19],[195,16,195,19],[196,16,196,19],[197,16,197,19],[198,16,198,19],[145,2,145,5],[145,9,145,12],[145,16,145,19],[146,2,146,5],[146,9,146,12],[146,16,146,19],[143,2,143,5],[143,9,143,12],[143,16,143,19],[144,2,144,5],[144,9,144,12],[144,16,144,19],[149,2,149,5],[149,9,149,12],[149,16,149,19],[150,2,150,5],[150,9,150,12],[150,16,150,19],[147,2,147,5],[147,9,147,12],[147,16,147,19],[148,2,148,5],[148,9,148,12],[148,16,148,19],[132,16,132,19],[137,2,137,5],[137,9,137,12],[137,16,137,19],[138,2,138,5],[138,9,138,12],[138,16,138,19],[135,2,135,5],[135,9,135,12],[135,16,135,19],[136,2,136,5],[136,9,136,12],[136,16,136,19],[141,2,141,5],[141,9,141,12],[141,16,141,19],[142,2,142,5],[142,9,142,12],[142,16,142,19],[139,2,139,5],[139,9,139,12],[139,16,139,19],[140,2,140,5],[140,9,140,12],[140,16,140,19],[48,6,48,8],[48,9,48,16],[122,3,123,18],[115,1,115,16],[115,17,115,20],[116,1,116,16],[116,17,116,20],[117,1,117,16],[117,17,117,20],[129,2,129,5],[129,9,129,12],[129,16,129,19],[130,2,130,5],[130,9,130,12],[130,16,130,19],[128,2,128,5],[128,9,128,12],[128,16,128,19],[53,17,53,18],[53,19,53,20],[54,2,54,5],[54,6,54,8],[54,9,54,16],[54,17,54,18],[54,19,54,20],[73,2,73,5],[73,6,73,8],[73,9,73,16],[73,17,73,18],[73,19,73,20],[74,2,74,5],[74,6,74,8],[43,2,43,5],[43,6,43,8],[43,9,43,16],[43,17,43,18],[43,19,43,20],[42,2,42,5],[42,6,42,8],[42,9,42,16],[42,17,42,18],[42,19,42,20],[45,2,45,5],[45,6,45,8],[45,9,45,16],[45,17,45,18],[45,19,45,20],[44,1,44,20],[126,1,126,3],[126,8,126,10],[126,15,126,17],[48,17,48,18],[48,19,48,20],[49,2,49,5],[49,6,49,8],[49,9,49,16],[49,17,49,18],[49,19,49,20],[50,2,50,5],[50,6,50,8],[50,9,50,16],[50,17,50,18],[50,19,50,20],[48,2,48,5],[39,1,39,20],[38,2,38,5],[38,6,38,8],[38,9,38,16],[38,17,38,18],[38,19,38,20],[37,2,37,5],[37,6,37,8],[37,9,37,16],[37,17,37,18],[37,19,37,20],[41,2,41,5],[41,6,41,8],[41,9,41,16],[41,17,41,18],[41,19,41,20],[40,2,40,5],[40,6,40,8],[40,9,40,16],[40,17,40,18],[40,19,40,20],[34,2,34,5],[34,6,34,8],[34,9,34,16],[34,17,34,18],[34,19,34,20],[33,2,33,5],[33,6,33,8],[33,9,33,16],[33,17,33,18],[33,19,33,20],[36,2,36,5],[36,6,36,8],[36,9,36,16],[36,17,36,18],[36,19,36,20],[35,2,35,5],[35,6,35,8],[35,9,35,16],[35,17,35,18],[35,19,35,20],[30,2,30,5],[30,6,30,8],[30,9,30,16],[30,17,30,18],[30,19,30,20],[29,2,29,5],[29,6,29,8],[29,9,29,16],[29,17,29,18],[29,19,29,20],[32,2,32,5],[32,6,32,8],[32,9,32,16],[32,17,32,18],[32,19,32,20],[31,2,31,5],[31,6,31,8],[31,9,31,16],[31,17,31,18],[31,19,31,20],[26,2,26,5],[26,6,26,8],[26,9,26,16],[26,17,26,18],[26,19,26,20],[25,2,25,5],[25,6,25,8],[25,9,25,16],[25,17,25,18],[25,19,25,20],[28,2,28,5],[28,6,28,8],[28,9,28,16],[28,17,28,18],[28,19,28,20],[27,2,27,5],[27,6,27,8],[27,9,27,16],[27,17,27,18],[27,19,27,20],[22,2,22,5],[22,6,22,8],[22,9,22,16],[22,17,22,18],[22,19,22,20],[21,2,21,5],[21,6,21,8],[21,9,21,16],[21,17,21,18],[21,19,21,20],[24,2,24,5],[24,6,24,8],[24,9,24,16],[24,17,24,18],[24,19,24,20],[23,2,23,5],[23,6,23,8],[23,9,23,16],[23,17,23,18],[23,19,23,20],[20,2,20,5],[20,6,20,8],[20,9,20,16],[20,17,20,18],[20,19,20,20],[19,2,19,5],[19,6,19,8],[19,9,19,16],[19,17,19,18],[19,19,19,20],[14,2,14,5],[14,6,14,8],[14,9,14,16],[14,17,14,18],[14,19,14,20],[15,2,15,5],[15,6,15,8],[15,9,15,16],[15,17,15,18],[15,19,15,20],[18,2,18,5],[17,19,17,20],[17,6,17,8],[17,9,17,16],[17,17,17,18],[4,1,4,7],[5,1,5,5],[5,6,5,7],[1,8,3,16],[4,8,4,16],[7,1,7,3],[7,4,7,8],[7,11,7,14],[9,1,9,3],[9,4,9,8],[7,16,7,20],[9,16,9,20],[9,9,9,10],[9,11,9,14],[7,9,7,10],[0,1,0,5],[0,6,0,14],[0,17,1,20],[1,1,1,5],[1,6,1,7],[2,1,2,5],[2,6,2,7],[3,1,3,5],[3,6,3,7],[11,1,11,20],[12,2,12,5],[12,6,12,8],[16,2,16,5],[16,6,16,8],[16,9,16,16],[16,17,16,18],[238,9,238,12],[239,9,239,12],[240,9,240,12],[235,9,235,12],[236,9,236,12],[237,9,237,12],[231,8,231,10],[233,9,233,12],[234,9,234,12],[210,1,210,3],[210,8,210,10],[210,15,210,17],[212,1,228,5],[212,8,228,12],[212,15,228,19],[154,2,154,5],[155,2,155,5],[156,2,156,5],[163,2,163,5],[164,2,164,5],[18,6,18,8],[18,9,18,16],[18,17,18,18],[18,19,18,20],[17,2,17,5],[244,9,244,12],[245,9,245,12],[246,9,246,12],[241,9,241,12],[242,9,242,12],[243,9,243,12],[178,2,178,5],[179,2,179,5],[180,2,180,5],[175,9,175,12],[176,9,176,12],[177,9,177,12],[236,2,236,5],[237,2,237,5],[238,2,238,5],[239,2,239,5],[240,2,240,5],[241,2,241,5],[242,2,242,5],[243,2,243,5],[244,2,244,5],[194,2,194,5],[195,2,195,5],[196,2,196,5],[197,2,197,5],[198,2,198,5],[199,2,199,5],[200,2,200,5],[201,2,201,5],[206,2,206,5],[206,9,206,12],[58,19,58,20],[59,2,59,5],[59,6,59,8],[59,9,59,16],[59,17,59,18],[259,9,259,12],[260,9,260,12],[261,9,261,12],[262,9,262,12],[263,9,263,12],[181,2,181,5],[182,2,182,5],[183,2,183,5],[184,2,184,5],[185,2,185,5],[165,2,165,5],[166,2,166,5],[167,2,167,5],[168,2,168,5],[169,2,169,5],[170,2,170,5],[171,2,171,5],[172,2,172,5],[173,2,173,5],[133,2,133,5],[174,2,174,5],[175,2,175,5],[176,2,176,5],[177,2,177,5],[247,9,247,12],[248,9,248,12],[249,9,249,12],[56,2,56,5],[56,6,56,8],[56,9,56,16],[56,17,56,18],[56,19,56,20],[57,2,57,5],[57,6,57,8],[57,9,57,16],[57,17,57,18],[57,19,57,20],[62,2,62,5],[62,6,62,8],[62,9,62,16],[62,17,62,18],[62,19,62,20],[63,2,63,5],[63,6,63,8],[63,9,63,16],[60,2,60,5],[60,6,60,8],[60,9,60,16],[60,17,60,18],[60,19,60,20],[61,2,61,5],[61,6,61,8],[61,9,61,16],[61,17,61,18],[61,19,61,20],[58,2,58,5],[58,6,58,8],[58,9,58,16],[58,17,58,18],[157,9,157,12],[158,9,158,12],[159,9,159,12],[160,9,160,12],[161,9,161,12],[162,9,162,12],[157,16,157,19],[158,16,158,19],[159,16,159,19],[160,16,160,19],[161,16,161,19],[162,16,162,19],[72,17,72,18],[72,19,72,20],[114,1,114,16],[114,17,114,20],[157,2,157,5],[158,2,158,5],[159,2,159,5],[160,2,160,5],[133,9,133,12],[133,16,133,19],[134,2,134,5],[134,9,134,12],[118,1,118,16],[118,17,118,20],[134,16,134,19],[131,2,131,5],[131,9,131,12],[131,16,131,19],[132,2,132,5],[132,9,132,12],[64,2,64,5],[64,6,64,8],[59,19,59,20],[71,2,71,5],[71,6,71,8],[71,9,71,16],[71,17,71,18],[71,19,71,20],[63,17,63,18],[63,19,63,20],[64,9,64,16],[64,17,64,18],[70,2,70,5],[70,6,70,8],[70,9,70,16],[70,17,70,18],[70,19,70,20],[64,19,64,20],[65,2,65,5],[65,6,65,8],[65,9,65,16],[65,17,65,18],[65,19,65,20],[178,16,178,19],[163,9,163,12],[164,9,164,12],[165,9,165,12],[166,9,166,12],[167,9,167,12],[168,9,168,12],[169,9,169,12],[170,9,170,12],[171,9,171,12],[113,6,113,8],[113,9,113,16],[113,17,113,18],[113,19,113,20],[66,2,66,5],[66,6,66,8],[66,9,66,16],[66,17,66,18],[66,19,66,20],[67,2,67,5],[67,6,67,8],[67,9,67,16],[67,17,67,18],[67,19,67,20],[161,2,161,5],[162,2,162,5],[72,2,72,5],[72,6,72,8],[72,9,72,16],[154,9,154,12],[155,9,155,12],[156,9,156,12],[104,6,104,8],[104,9,104,16],[104,17,104,18],[16,19,16,20],[12,9,12,16],[12,17,12,18],[12,19,12,20],[13,1,13,20],[154,16,154,19],[155,16,155,19],[156,16,156,19],[68,2,68,5],[68,6,68,8],[68,9,68,16],[68,17,68,18],[68,19,68,20],[69,2,69,5],[69,6,69,8],[69,9,69,16],[69,17,69,18],[69,19,69,20],[46,2,46,5],[46,6,46,8],[46,9,46,16],[46,17,46,18],[46,19,46,20],[47,2,47,5],[47,6,47,8],[47,9,47,16],[47,17,47,18],[47,19,47,20],[113,2,113,5],[104,19,104,20],[105,2,105,5],[105,6,105,8],[105,9,105,16],[105,17,105,18],[105,19,105,20],[106,2,106,5],[106,6,106,8],[106,9,106,16],[106,17,106,18],[106,19,106,20],[112,2,112,5],[112,6,112,8],[112,9,112,16],[112,17,112,18],[112,19,112,20],[101,2,101,5],[101,6,101,8],[101,9,101,16],[101,17,101,18],[101,19,101,20],[102,2,102,5],[102,6,102,8],[102,9,102,16],[102,17,102,18],[102,19,102,20],[103,2,103,5],[103,6,103,8],[103,9,103,16],[103,17,103,18],[103,19,103,20],[104,2,104,5],[109,2,109,5],[109,6,109,8],[109,9,109,16],[109,17,109,18],[109,19,109,20],[110,2,110,5],[110,6,110,8],[110,9,110,16],[110,17,110,18],[110,19,110,20],[107,2,107,5],[107,6,107,8],[107,9,107,16],[107,17,107,18],[107,19,107,20],[108,2,108,5],[108,6,108,8],[108,9,108,16],[108,17,108,18],[108,19,108,20],[111,2,111,5],[111,6,111,8],[111,9,111,16],[111,17,111,18],[111,19,111,20],[231,1,231,3],[233,2,233,5],[234,2,234,5],[235,2,235,5],[172,9,172,12],[173,9,173,12],[174,9,174,12],[178,9,178,12],[179,9,179,12],[180,9,180,12],[179,16,179,19],[180,16,180,19],[163,16,163,19],[164,16,164,19],[165,16,165,19],[166,16,166,19],[167,16,167,19],[168,16,168,19],[169,16,169,19],[170,16,170,19],[171,16,171,19],[172,16,172,19],[173,16,173,19],[174,16,174,19],[175,16,175,19],[176,16,176,19],[177,16,177,19],[254,2,254,5],[255,2,255,5],[256,2,256,5],[257,2,257,5],[258,2,258,5],[259,2,259,5],[260,2,260,5],[261,2,261,5],[262,2,262,5],[245,2,245,5],[246,2,246,5]],"merged_total":1085,"flags":["merged_cut"]}
[null,"Amministrazione ",null,null,null,null,null,null,null,null,null,null,null,null,null,null,null,"CONFIGURATORE ELETTRONICO TECNOLOGIE SERVER 2 LOTTO 3",null,null,null,1,null,"Server1","Server2","Server3"]
[null,"N° Identificativo Ordine ",null,null,null,null,null,null,{"$f":"IF(AD2>0,\"ERRORE DI CONFIGURAZIONE\",IF(Y13>0,\"ERRORE DI MANCATA COMPILAZIONE DATI NECESSARI PER L'ORDINATIVO\",\"Configurazione OK\"))","v":"ERRORE DI MANCATA COMPILAZIONE DATI NECESSARI PER L'ORDINATIVO"},null,null,null,null,null,null,null,null,null,null,null,null,1,"Errore",{"$f":"IF('Lotto3_R7425-1'!$F$1=\"ERRORE VERIFICARE LA CONFIGURAZIONE\",1,0)","v":0},{"$f":"IF('Lotto3_R7425-2'!$F$1=\"ERRORE VERIFICARE LA CONFIGURAZIONE\",1,0)","v":0},{"$f":"IF('Lotto3_R7425-3'!$F$1=\"ERRORE VERIFICARE LA CONFIGURAZIONE\",1,0)","v":0},{"$f":"IF('Lotto3_R7425(NVMe)'!$F$1=\"ERRORE VERIFICARE LA CONFIGURAZIONE\",1,0)","v":0},{"$f":"IF('Lotto3_R7425(GPU DW)'!$F$1=\"ERRORE VERIFICARE LA CONFIGURAZIONE\",1,0)","v":0},{"$f":"IF('Lotto3_R7425(GPU SW)'!$F$1=\"ERRORE VERIFICARE LA CONFIGURAZIONE\",1,0)","v":0},{"$f":"SUM(X2:AC2)","v":0}]
[null,"Data Ordine",null,null,null,null,null,null,null,null,null,null,null,null,null,null,null,null,null,null,null,1,"Dati non compilati","Amministrazione ",{"$f":"IF(G1>0,0,1)","v":1}]
[null,"Tot Ordine Portale CONSIP IVA incl.",null,null,null,null,{"$f":"R119","v":0},null,null,null,null,null,null,null,null,null,null,null,null,null,"Nel \"Tot Ordine Portale CONSIP\" deve essere inserito l'importo totale risultante dall'ordinativo del portale CONSIP.\nQualora l'importo inserito corrisponde al valore ricalcolato dal configuratore viene attivato il pulsante \"Salva in formato PDF\" che permette di generare il file pdf da allegare all'ordinativo.",1,null,"N° Identificativo Ordine ",{"$f":"IF(G2>0,0,1)","v":1}]
[null,"LE CELLE IN GIALLO DEVO ESSERE COMPILATE OBBLIGATORIAMENTE",null,null,null,null,null,null,{"$f":"IF(AD2>0,\"\",IF(Y13>0,\"\",\"Cliccare il pulsante --------------> \nper generare il PDF da allegare\"))","v":""},null,null,null,null,null,null,null,null,null,null,null,null,1,null,"Data Ordine",{"$f":"IF(G3>0,0,1)","v":1}]
[null,"Quantità Server Ordinati",null,null,null,null,{"$f":"B15","v":""},null,null,null,null,null,null,null,null,null,null,null,null,"ver. 3.3",null,1,null,"Tot Ordine Portale CONSIP IVA incl.",{"$f":"IF(G4>0,0,1)","v":1}]
[null,null,null,null,null,null,null,null,null,null,null,null,null,null,null,null,null,null,null,null,null,1,null,"Referente per la Consegna",{"$f":"IF(E8>0,0,1)","v":1}]
[null,"Referente per la Consegna",null,null,null,null,null,null,null,"Telefono",null,null,null,null,null,"email",null,null,null,null,null,1,null,"Telefono",{"$f":"IF(L8>0,0,1)","v":1}]
[null,null,null,null,null,null,null,null,null,null,null,null,null,null,null,null,null,null,null,null,null,1,null,"email",{"$f":"IF(Q8>0,0,1)","v":1}]
[null,"Referente per l'installazione",null,null,null,null,null,null,null,"Telefono",null,null,null,null,null,"email",null,null,null,null,null,1,null,"Referente per l'installazione",{"$f":"IF(E10>0,0,1)","v":1}]
[null,null,null,null,null,null,null,null,null,null,null,null,null,null,null,null,null,null,null,null,null,1,null,"Telefono",{"$f":"IF(L10>0,0,1)","v":1}]
[null,"ATTENZIONE: I CODICI PRODOTTO DELL'ORDINE DEVONO ESSERE SPECULARI A QUELLI GENERATI DAL CONFIGURATORE.",null,null,null,null,null,null,null,null,null,null,null,null,null,null,null,null,null,null,null,1,null,"email",{"$f":"IF(Q10>0,0,1)","v":1}]
[null,"Qtà Ordinata","CODICE ARTICOLO PRODUTTORE",null,null,null,"CODICE ARTICOLO CONVENZIONE",null,null,"Descrizione Sintetica \n(si faccia riferimento alla guida alla convenzione per la descrizione estesa e \nper le regole di acquisto delle opzioni)",null,null,null,null,null,null,null,"Costo Unitario",null,"Costo Complessivo",null,1,null,null,{"$f":"SUM(Y3:Y12)","v":10},null,null,{"$f":"Y13+AD2","v":10},null,{"$f":"IF(AB13=0,\"_SavePDFon\",\"_SavePDFoff\")","v":"_SavePDFoff"}]
[null,"DELL EMC POWEREDGE R7425",null,null,null,null,null,null,null,null,null,null,null,null,null,null,null,null,null,null,null,{"$f":"IF(B15>=\"\",0,1)","v":0},null,"Server1","Server2","Server3","ServerNVME","ServerGPUDW","ServerGPUSW",null,null,null,null,null,null,null,null,null,null,"Somma Server"]
[null,{"$f":"IF(AN15>=1,AN15,\"\")","v":""},{"$f":"IF(AN15>0,VLOOKUP($G15,'Codici&PrezzixRiepilogo'!B:E,4,FALSE),\"\")","v":""},null,null,null,{"$f":"IF(AN15>=1,W15,\"\")","v":""},null,null,{"$f":"IF(AN15>0,VLOOKUP($G15,'Codici&PrezzixRiepilogo'!B:E,2,FALSE),\"\")","v":""},null,null,null,null,null,null,null,{"$f":"IF(AN15>0,VLOOKUP($G15,'Codici&PrezzixRiepilogo'!B:E,3,FALSE),\"\")","v":""},null,{"$f":"IF(B15=\"\",\"\",R15*B15)","v":""},null,{"$f":"IF(B15>=\"\",0,1)","v":0},"TS2L3-SRV",{"$f":"'Lotto3_R7425-1'!$C$10","v":0},{"$f":"'Lotto3_R7425-2'!$C$10","v":0},{"$f":"'Lotto3_R7425-3'!$C$10","v":0},{"$f":"'Lotto3_R7425(NVMe)'!$C$10","v":0},{"$f":"'Lotto3_R7425(GPU DW)'!$C$10","v":0},{"$f":"'Lotto3_R7425(GPU SW)'!$C$10","v":0},null,null,null,null,null,null,null,null,null,null,{"$f":"SUM(X15:AM15)","v":0}]
[null,{"$f":"IF(AN16>=1,AN16,\"\")","v":""},{"$f":"IF(AN16>0,VLOOKUP($G16,'Codici&PrezzixRiepilogo'!B:E,4,FALSE),\"\")","v":""},null,null,null,{"$f":"IF(AN16>=1,W16,\"\")","v":""},null,null,{"$f":"IF(AN16>0,VLOOKUP($G16,'Codici&PrezzixRiepilogo'!B:E,2,FALSE),\"\")","v":""},null,null,null,null,null,null,null,{"$f":"IF(AN16>0,VLOOKUP($G16,'Codici&PrezzixRiepilogo'!B:E,3,FALSE),\"\")","v":""},null,{"$f":"IF(B16=\"\",\"\",R16*B16)","v":""},null,{"$f":"IF(B16>=\"\",0,1)","v":0},"TS2L3-CPU",{"$f":"'Lotto3_R7425-1'!$C$25*$X$15","v":0},{"$f":"'Lotto3_R7425-2'!$C$25*$Y$15","v":0},{"$f":"'Lotto3_R7425-3'!$C$25*$Z$15","v":0},{"$f":"'Lotto3_R7425(NVMe)'!$C$25*$AA$15","v":0},{"$f":"'Lotto3_R7425(GPU DW)'!$C$25*$AB$15","v":0},{"$f":"'Lotto3_R7425(GPU SW)'!$C$25*$AC$15","v":0},null,null,null,null,null,null,null,null,null,null,{"$f":"SUM(X16:AM16)","v":0}]
[null,{"$f":"IF(AN17>=1,AN17,\"\")","v":""},{"$f":"IF(AN17>0,VLOOKUP($G17,'Codici&PrezzixRiepilogo'!B:E,4,FALSE),\"\")","v":""},null,null,null,{"$f":"IF(AN17>=1,W17,\"\")","v":""},null,null,{"$f":"IF(AN17>0,VLOOKUP($G17,'Codici&PrezzixRiepilogo'!B:E,2,FALSE),\"\")","v":""},null,null,null,null,null,null,null,{"$f":"IF(AN17>0,VLOOKUP($G17,'Codici&PrezzixRiepilogo'!B:E,3,FALSE),\"\")","v":""},null,{"$f":"IF(B17=\"\",\"\",R17*B17)","v":""},null,0,"TS2L3-RAM16",null,null,null,null,null,null,null,null,null,null,null,null,null,null,null,null,{"$f":"SUM(X17:AM17)","v":0}]
[null,"",{"$f":"IF(AN18>0,VLOOKUP($G18,'Codici&PrezzixRiepilogo'!B:E,4,FALSE),\"\")","v":""},null,null,null,"",null,null,{"$f":"IF(AN18>0,VLOOKUP($G18,'Codici&PrezzixRiepilogo'!B:E,2,FALSE),\"\")","v":""},null,null,null,null,null,null,null,{"$f":"IF(AN18>0,VLOOKUP($G18,'Codici&PrezzixRiepilogo'!B:E,3,FALSE),\"\")","v":""},null,"",null,0,"TS2L3-RAM32",{"$f":"IF('Lotto3_R7425-1'!$F$41=Riepilogo!$W18,('Lotto3_R7425-1'!$C$41-2)*Riepilogo!$X$15,0)","v":0},{"$f":"IF('Lotto3_R7425-2'!$F$41=Riepilogo!$W18,('Lotto3_R7425-2'!$C$41-2)*Riepilogo!$Y$15,0)","v":0},{"$f":"IF('Lotto3_R7425-3'!$F$41=Riepilogo!$W18,('Lotto3_R7425-3'!$C$41-2)*Riepilogo!$Z$15,0)","v":0},{"$f":"IF('Lotto3_R7425(NVMe)'!$F$41=Riepilogo!$W18,('Lotto3_R7425(NVMe)'!$C$41-2)*Riepilogo!$AA$15,0)","v":0},{"$f":"IF('Lotto3_R7425(GPU DW)'!$F$41=Riepilogo!$W18,('Lotto3_R7425(GPU DW)'!$C$41-2)*Riepilogo!$AB$15,0)","v":0},{"$f":"IF('Lotto3_R7425(GPU SW)'!$F$41=Riepilogo!$W18,('Lotto3_R7425(GPU SW)'!$C$41-2)*Riepilogo!$AC$15,0)","v":0},null,null,null,null,null,null,null,null,null,null,0]
[null,"",{"$f":"IF(AN19>0,VLOOKUP($G19,'Codici&PrezzixRiepilogo'!B:E,4,FALSE),\"\")","v":""},null,null,null,"",null,null,{"$f":"IF(AN19>0,VLOOKUP($G19,'Codici&PrezzixRiepilogo'!B:E,2,FALSE),\"\")","v":""},null,null,null,null,null,null,null,{"$f":"IF(AN19>0,VLOOKUP($G19,'Codici&PrezzixRiepilogo'!B:E,3,FALSE),\"\")","v":""},null,"",null,0,"TS2L3-RAM64",{"$f":"IF('Lotto3_R7425-1'!$F$41=Riepilogo!$W19,('Lotto3_R7425-1'!$C$41)*Riepilogo!$X$15,0)","v":0},{"$f":"IF('Lotto3_R7425-2'!$F$41=Riepilogo!$W19,('Lotto3_R7425-2'!$C$41)*Riepilogo!$Y$15,0)","v":0},{"$f":"IF('Lotto3_R7425-3'!$F$41=Riepilogo!$W19,('Lotto3_R7425-3'!$C$41)*Riepilogo!$Z$15,0)","v":0},{"$f":"IF('Lotto3_R7425(NVMe)'!$F$41=Riepilogo!$W19,('Lotto3_R7425(NVMe)'!$C$41)*Riepilogo!$AA$15,0)","v":0},{"$f":"IF('Lotto3_R7425(GPU DW)'!$F$41=Riepilogo!$W19,('Lotto3_R7425(GPU DW)'!$C$41)*Riepilogo!$AB$15,0)","v":0},{"$f":"IF('Lotto3_R7425(GPU SW)'!$F$41=Riepilogo!$W19,('Lotto3_R7425(GPU SW)'!$C$41)*Riepilogo!$AC$15,0)","v":0},null,null,null,null,null,null,null,null,null,null,0]
[null,"",{"$f":"IF(AN20>0,VLOOKUP($G20,'Codici&PrezzixRiepilogo'!B:E,4,FALSE),\"\")","v":""},null,null,null,"",null,null,{"$f":"IF(AN20>0,VLOOKUP($G20,'Codici&PrezzixRiepilogo'!B:E,2,FALSE),\"\")","v":""},null,null,null,null,null,null,null,{"$f":"IF(AN20>0,VLOOKUP($G20,'Codici&PrezzixRiepilogo'!B:E,3,FALSE),\"\")","v":""},null,"",null,0,"TS2L3-10K600",{"$f":"IF('Lotto3_R7425-1'!$F$66=Riepilogo!$W20,('Lotto3_R7425-1'!$C$66-2)*X15,0)","v":0},{"$f":"IF('Lotto3_R7425-2'!$F$66=Riepilogo!$W20,('Lotto3_R7425-2'!$C$66-2)*Y15,0)","v":0},{"$f":"IF('Lotto3_R7425-3'!$F$66=Riepilogo!$W20,('Lotto3_R7425-3'!$C$66-2)*Z15,0)","v":0},{"$f":"IF('Lotto3_R7425(NVMe)'!$F$66=Riepilogo!$W20,('Lotto3_R7425(NVMe)'!$C$66-2)*AA15,0)","v":0},{"$f":"IF('Lotto3_R7425(GPU DW)'!$F$66=Riepilogo!$W20,('Lotto3_R7425(GPU DW)'!$C$66-2)*AB15,0)","v":0},{"$f":"IF('Lotto3_R7425(GPU SW)'!$F$66=Riepilogo!$W20,('Lotto3_R7425(GPU SW)'!$C$66-2)*AC15,0)","v":0},null,null,null,null,null,null,null,null,null,null,0]
[null,"",{"$f":"IF(AN21>0,VLOOKUP($G21,'Codici&PrezzixRiepilogo'!B:E,4,FALSE),\"\")","v":""},null,null,null,"",null,null,{"$f":"IF(AN21>0,VLOOKUP($G21,'Codici&PrezzixRiepilogo'!B:E,2,FALSE),\"\")","v":""},null,null,null,null,null,null,null,{"$f":"IF(AN21>0,VLOOKUP($G21,'Codici&PrezzixRiepilogo'!B:E,3,FALSE),\"\")","v":""},null,"",null,0,"TS2L3-10K1200",{"$f":"('Lotto3_R7425-1'!$C$68)*$X$15","v":0},{"$f":"('Lotto3_R7425-2'!$C$68)*$Y$15","v":0},{"$f":"('Lotto3_R7425-3'!$C$68)*$Z$15","v":0},{"$f":"('Lotto3_R7425(NVMe)'!$C$68)*$AA$15","v":0},{"$f":"('Lotto3_R7425(GPU DW)'!$C$68)*$AB$15","v":0},{"$f":"('Lotto3_R7425(GPU SW)'!$C$68)*$AC$15","v":0},null,null,null,null,null,null,null,null,null,null,0]
[null,"",{"$f":"IF(AN22>0,VLOOKUP($G22,'Codici&PrezzixRiepilogo'!B:E,4,FALSE),\"\")","v":""},null,null,null,"",null,null,{"$f":"IF(AN22>0,VLOOKUP($G22,'Codici&PrezzixRiepilogo'!B:E,2,FALSE),\"\")","v":""},null,null,null,null,null,null,null,{"$f":"IF(AN22>0,VLOOKUP($G22,'Codici&PrezzixRiepilogo'!B:E,3,FALSE),\"\")","v":""},null,"",null,0,"TS2L3-10K1800",{"$f":"('Lotto3_R7425-1'!$C$70)*$X$15","v":0},{"$f":"('Lotto3_R7425-2'!$C$70)*$Y$15","v":0},{"$f":"('Lotto3_R7425-3'!$C$70)*$Z$15","v":0},{"$f":"('Lotto3_R7425(NVMe)'!$C$70)*$AA$15","v":0},{"$f":"('Lotto3_R7425(GPU DW)'!$C$70)*$AB$15","v":0},{"$f":"('Lotto3_R7425(GPU SW)'!$C$70)*$AC$15","v":0},null,null,null,null,null,null,null,null,null,null,{"$f":"SUM(X22:AM22)","v":0}]
[null,"",{"$f":"IF(AN23>0,VLOOKUP($G23,'Codici&PrezzixRiepilogo'!B:E,4,FALSE),\"\")","v":""},null,null,null,"",null,null,{"$f":"IF(AN23>0,VLOOKUP($G23,'Codici&PrezzixRiepilogo'!B:E,2,FALSE),\"\")","v":""},null,null,null,null,null,null,null,{"$f":"IF(AN23>0,VLOOKUP($G23,'Codici&PrezzixRiepilogo'!B:E,3,FALSE),\"\")","v":""},null,"",null,0,"TS2L3-SSDR960",{"$f":"('Lotto3_R7425-1'!$C$80)*$X$15","v":0},{"$f":"('Lotto3_R7425-2'!$C$80)*$Y$15","v":0},{"$f":"('Lotto3_R7425-3'!$C$80)*$Z$15","v":0},{"$f":"('Lotto3_R7425(NVMe)'!$C$80)*$AA$15","v":0},{"$f":"('Lotto3_R7425(GPU DW)'!$C$80)*$AB$15","v":0},{"$f":"('Lotto3_R7425(GPU SW)'!$C$80)*$AC$15","v":0},null,null,null,null,null,null,null,null,null,null,0]
[null,"",{"$f":"IF(AN24>0,VLOOKUP($G24,'Codici&PrezzixRiepilogo'!B:E,4,FALSE),\"\")","v":""},null,null,null,"",null,null,{"$f":"IF(AN24>0,VLOOKUP($G24,'Codici&PrezzixRiepilogo'!B:E,2,FALSE),\"\")","v":""},null,null,null,null,null,null,null,{"$f":"IF(AN24>0,VLOOKUP($G24,'Codici&PrezzixRiepilogo'!B:E,3,FALSE),\"\")","v":""},null,"",null,0,"TS2L3-SSDR1920",{"$f":"('Lotto3_R7425-1'!$C$84)*$X$15","v":0},{"$f":"('Lotto3_R7425-2'!$C$84)*$Y$15","v":0},{"$f":"('Lotto3_R7425-3'!$C$84)*$Z$15","v":0},{"$f":"('Lotto3_R7425(NVMe)'!$C$84)*$AA$15","v":0},{"$f":"('Lotto3_R7425(GPU DW)'!$C$84)*$AB$15","v":0},{"$f":"('Lotto3_R7425(GPU SW)'!$C$84)*$AC$15","v":0},null,null,null,null,null,null,null,null,null,null,0]
[null,"",{"$f":"IF(AN25>0,VLOOKUP($G25,'Codici&PrezzixRiepilogo'!B:E,4,FALSE),\"\")","v":""},null,null,null,"",null,null,{"$f":"IF(AN25>0,VLOOKUP($G25,'Codici&PrezzixRiepilogo'!B:E,2,FALSE),\"\")","v":""},null,null,null,null,null,null,null,{"$f":"IF(AN25>0,VLOOKUP($G25,'Codici&PrezzixRiepilogo'!B:E,3,FALSE),\"\")","v":""},null,"",null,0,"TS2L3-LAN1",{"$f":"COUNTIF($AD$25:$AD$32,W25)*$X$15","v":0},{"$f":"COUNTIF($AE$25:$AE$32,W25)*$Y$15","v":0},{"$f":"COUNTIF($AF$25:$AF$32,W25)*$Z$15","v":0},{"$f":"COUNTIF($AG$25:$AG$32,W25)*$AA$15","v":0},{"$f":"COUNTIF($AH$25:$AH$32,W25)*$AB$15","v":0},{"$f":"COUNTIF($AI$25:$AI$32,W25)*$AC$15","v":0},{"$f":"'Lotto3_R7425-1'!$F$116","v":""},{"$f":"'Lotto3_R7425-2'!$F$116","v":""},{"$f":"'Lotto3_R7425-3'!$F$116","v":""},{"$f":"'Lotto3_R7425(NVMe)'!$F$136","v":""},{"$f":"'Lotto3_R7425(GPU DW)'!$F$116","v":""},{"$f":"'Lotto3_R7425(GPU SW)'!$F$116","v":""},null,null,null,null,0]
[null,"",{"$f":"IF(AN26>0,VLOOKUP($G26,'Codici&PrezzixRiepilogo'!B:E,4,FALSE),\"\")","v":""},null,null,null,"",null,null,{"$f":"IF(AN26>0,VLOOKUP($G26,'Codici&PrezzixRiepilogo'!B:E,2,FALSE),\"\")","v":""},null,null,null,null,null,null,null,{"$f":"IF(AN26>0,VLOOKUP($G26,'Codici&PrezzixRiepilogo'!B:E,3,FALSE),\"\")","v":""},null,"",null,0,"TS2L3-LAN10",{"$f":"COUNTIF($AD$25:$AD$32,W26)*$X$15","v":0},{"$f":"COUNTIF($AE$25:$AE$32,W26)*$Y$15","v":0},{"$f":"COUNTIF($AF$25:$AF$32,W26)*$Z$15","v":0},{"$f":"COUNTIF($AG$25:$AG$32,W26)*$AA$15","v":0},0,0,{"$f":"'Lotto3_R7425-1'!$F$119","v":""},{"$f":"'Lotto3_R7425-2'!$F$119","v":""},{"$f":"'Lotto3_R7425-3'!$F$119","v":""},{"$f":"'Lotto3_R7425(NVMe)'!$F$139","v":""},{"$f":"'Lotto3_R7425(GPU DW)'!$F$119","v":0},{"$f":"'Lotto3_R7425(GPU SW)'!$F$119","v":""},null,null,null,null,0]
[null,"",{"$f":"IF(AN27>0,VLOOKUP($G27,'Codici&PrezzixRiepilogo'!B:E,4,FALSE),\"\")","v":""},null,null,null,"",null,null,{"$f":"IF(AN27>0,VLOOKUP($G27,'Codici&PrezzixRiepilogo'!B:E,2,FALSE),\"\")","v":""},null,null,null,null,null,null,null,{"$f":"IF(AN27>0,VLOOKUP($G27,'Codici&PrezzixRiepilogo'!B:E,3,FALSE),\"\")","v":""},null,"",null,0,"TS2L3-CNA10",0,0,0,{"$f":"COUNTIF($AG$25:$AG$32,W27)*$AA$15","v":0},0,0,{"$f":"'Lotto3_R7425-1'!$F$122","v":""},{"$f":"'Lotto3_R7425-2'!$F$122","v":""},{"$f":"'Lotto3_R7425-3'!$F$122","v":""},{"$f":"'Lotto3_R7425(NVMe)'!$F$142","v":""},{"$f":"'Lotto3_R7425(GPU DW)'!$F$122","v":""},{"$f":"'Lotto3_R7425(GPU SW)'!$F$122","v":0},null,null,null,null,0]
[null,"",{"$f":"IF(AN28>0,VLOOKUP($G28,'Codici&PrezzixRiepilogo'!B:E,4,FALSE),\"\")","v":""},null,null,null,"",null,null,{"$f":"IF(AN28>0,VLOOKUP($G28,'Codici&PrezzixRiepilogo'!B:E,2,FALSE),\"\")","v":""},null,null,null,null,null,null,null,{"$f":"IF(AN28>0,VLOOKUP($G28,'Codici&PrezzixRiepilogo'!B:E,3,FALSE),\"\")","v":""},null,"",null,0,"TS2L3-FC8",0,0,0,{"$f":"COUNTIF($AG$25:$AG$32,W28)*$AA$15","v":0},0,0,{"$f":"'Lotto3_R7425-1'!$F$125","v":""},{"$f":"'Lotto3_R7425-2'!$F$125","v":""},{"$f":"'Lotto3_R7425-3'!$F$125","v":""},{"$f":"'Lotto3_R7425(NVMe)'!$F$145","v":""},{"$f":"'Lotto3_R7425(GPU DW)'!$F$125","v":""},{"$f":"'Lotto3_R7425(GPU SW)'!$F$125","v":""},null,null,null,null,0]
[null,"",{"$f":"IF(AN29>0,VLOOKUP($G29,'Codici&PrezzixRiepilogo'!B:E,4,FALSE),\"\")","v":""},null,null,null,"",null,null,{"$f":"IF(AN29>0,VLOOKUP($G29,'Codici&PrezzixRiepilogo'!B:E,2,FALSE),\"\")","v":""},null,null,null,null,null,null,null,{"$f":"IF(AN29>0,VLOOKUP($G29,'Codici&PrezzixRiepilogo'!B:E,3,FALSE),\"\")","v":""},null,"",null,0,"TS2L3-LAN1-L",0,0,0,{"$f":"COUNTIF($AG$25:$AG$32,W29)*$AA$15","v":0},0,0,{"$f":"'Lotto3_R7425-1'!$F$128","v":0},{"$f":"'Lotto3_R7425-2'!$F$128","v":0},{"$f":"'Lotto3_R7425-3'!$F$128","v":0},{"$f":"'Lotto3_R7425(NVMe)'!$F$148","v":0},{"$f":"'Lotto3_R7425(GPU DW)'!$F$128","v":0},{"$f":"'Lotto3_R7425(GPU SW)'!$F$128","v":""},null,null,null,null,0]
[null,"",{"$f":"IF(AN30>0,VLOOKUP($G30,'Codici&PrezzixRiepilogo'!B:E,4,FALSE),\"\")","v":""},null,null,null,"",null,null,{"$f":"IF(AN30>0,VLOOKUP($G30,'Codici&PrezzixRiepilogo'!B:E,2,FALSE),\"\")","v":""},null,null,null,null,null,null,null,{"$f":"IF(AN30>0,VLOOKUP($G30,'Codici&PrezzixRiepilogo'!B:E,3,FALSE),\"\")","v":""},null,"",null,0,"TS2L3-LAN10-L",0,0,0,{"$f":"COUNTIF($AG$25:$AG$32,W30)*$AA$15","v":0},0,0,{"$f":"'Lotto3_R7425-1'!$F$131","v":""},{"$f":"'Lotto3_R7425-2'!$F$131","v":""},{"$f":"'Lotto3_R7425-3'!$F$131","v":""},{"$f":"'Lotto3_R7425(NVMe)'!$F$151","v":""},{"$f":"'Lotto3_R7425(GPU DW)'!$F$131","v":""},{"$f":"'Lotto3_R7425(GPU SW)'!$F$131","v":""},null,null,null,null,0]
[null,"",{"$f":"IF(AN31>0,VLOOKUP($G31,'Codici&PrezzixRiepilogo'!B:E,4,FALSE),\"\")","v":""},null,null,null,"",null,null,{"$f":"IF(AN31>0,VLOOKUP($G31,'Codici&PrezzixRiepilogo'!B:E,2,FALSE),\"\")","v":""},null,null,null,null,null,null,null,{"$f":"IF(AN31>0,VLOOKUP($G31,'Codici&PrezzixRiepilogo'!B:E,3,FALSE),\"\")","v":""},null,"",null,0,"TS2L3-CNA10-L",0,0,0,{"$f":"COUNTIF($AG$25:$AG$32,W31)*$AA$15","v":0},0,0,{"$f":"'Lotto3_R7425-1'!$F$134","v":""},{"$f":"'Lotto3_R7425-2'!$F$134","v":""},{"$f":"'Lotto3_R7425-3'!$F$134","v":""},{"$f":"'Lotto3_R7425(NVMe)'!$F$154","v":""},{"$f":"'Lotto3_R7425(GPU DW)'!$F$134","v":""},{"$f":"'Lotto3_R7425(GPU SW)'!$F$134","v":""},null,null,null,null,0]
[null,"",{"$f":"IF(AN32>0,VLOOKUP($G32,'Codici&PrezzixRiepilogo'!B:E,4,FALSE),\"\")","v":""},null,null,null,"",null,null,{"$f":"IF(AN32>0,VLOOKUP($G32,'Codici&PrezzixRiepilogo'!B:E,2,FALSE),\"\")","v":""},null,null,null,null,null,null,null,{"$f":"IF(AN32>0,VLOOKUP($G32,'Codici&PrezzixRiepilogo'!B:E,3,FALSE),\"\")","v":""},null,"",null,0,"TS2L3-FC8-L",0,0,0,{"$f":"COUNTIF($AG$25:$AG$32,W32)*$AA$15","v":0},0,0,{"$f":"'Lotto3_R7425-1'!$F$137","v":""},{"$f":"'Lotto3_R7425-2'!$F$137","v":""},{"$f":"'Lotto3_R7425-3'!$F$137","v":""},{"$f":"'Lotto3_R7425(NVMe)'!$F$157","v":""},{"$f":"'Lotto3_R7425(GPU DW)'!$F$137","v":""},{"$f":"'Lotto3_R7425(GPU SW)'!$F$137","v":""},null,null,null,null,0]
[null,"",{"$f":"IF(AN33>0,VLOOKUP($G33,'Codici&PrezzixRiepilogo'!B:E,4,FALSE),\"\")","v":""},null,null,null,"",null,null,{"$f":"IF(AN33>0,VLOOKUP($G33,'Codici&PrezzixRiepilogo'!B:E,2,FALSE),\"\")","v":""},null,null,null,null,null,null,null,{"$f":"IF(AN33>0,VLOOKUP($G33,'Codici&PrezzixRiepilogo'!B:E,3,FALSE),\"\")","v":""},null,"",null,0,"TS2L3-4Y",{"$f":"IF('Lotto3_R7425-1'!$F$181=Riepilogo!$W33,('Lotto3_R7425-1'!$C$181)*$X$15,0)","v":0},{"$f":"IF('Lotto3_R7425-2'!$F$181=Riepilogo!$W33,('Lotto3_R7425-2'!$C$181)*$Y$15,0)","v":0},{"$f":"IF('Lotto3_R7425-3'!$F$181=Riepilogo!$W33,('Lotto3_R7425-3'!$C$181)*$Z$15,0)","v":0},{"$f":"IF('Lotto3_R7425(NVMe)'!$F$201=Riepilogo!$W33,('Lotto3_R7425(NVMe)'!$C$201)*$AA$15,0)","v":0},{"$f":"IF('Lotto3_R7425(GPU DW)'!$F$181=Riepilogo!$W33,('Lotto3_R7425(GPU DW)'!$C$181)*$AB$15,0)","v":0},{"$f":"IF('Lotto3_R7425(GPU SW)'!$F$181=Riepilogo!$W33,('Lotto3_R7425(GPU SW)'!$C$181)*$AC$15,0)","v":0},null,null,null,null,null,null,null,null,null,null,0]
[null,"",{"$f":"IF(AN34>0,VLOOKUP($G34,'Codici&PrezzixRiepilogo'!B:E,4,FALSE),\"\")","v":""},null,null,null,"",null,null,{"$f":"IF(AN34>0,VLOOKUP($G34,'Codici&PrezzixRiepilogo'!B:E,2,FALSE),\"\")","v":""},null,null,null,null,null,null,null,{"$f":"IF(AN34>0,VLOOKUP($G34,'Codici&PrezzixRiepilogo'!B:E,3,FALSE),\"\")","v":""},null,"",null,0,"TS2L3-5Y",{"$f":"IF('Lotto3_R7425-1'!$F$181=Riepilogo!$W34,('Lotto3_R7425-1'!$C$181)*$X$15,0)","v":0},{"$f":"IF('Lotto3_R7425-2'!$F$181=Riepilogo!$W34,('Lotto3_R7425-2'!$C$181)*$Y$15,0)","v":0},{"$f":"IF('Lotto3_R7425-3'!$F$181=Riepilogo!$W34,('Lotto3_R7425-3'!$C$181)*$Z$15,0)","v":0},{"$f":"IF('Lotto3_R7425(NVMe)'!$F$201=Riepilogo!$W34,('Lotto3_R7425(NVMe)'!$C$201)*$AA$15,0)","v":0},{"$f":"IF('Lotto3_R7425(GPU DW)'!$F$181=Riepilogo!$W34,('Lotto3_R7425(GPU DW)'!$C$181)*$AB$15,0)","v":0},{"$f":"IF('Lotto3_R7425(GPU SW)'!$F$181=Riepilogo!$W34,('Lotto3_R7425(GPU SW)'!$C$181)*$AC$15,0)","v":0},null,null,null,null,null,null,null,null,null,null,0]
[null,"",{"$f":"IF(AN35>0,VLOOKUP($G35,'Codici&PrezzixRiepilogo'!B:E,4,FALSE),\"\")","v":""},null,null,null,"",null,null,{"$f":"IF(AN35>0,VLOOKUP($G35,'Codici&PrezzixRiepilogo'!B:E,2,FALSE),\"\")","v":""},null,null,null,null,null,null,null,{"$f":"IF(AN35>0,VLOOKUP($G35,'Codici&PrezzixRiepilogo'!B:E,3,FALSE),\"\")","v":""},null,"",null,0,"TS2L3-WIN1",{"$f":"IF('Lotto3_R7425-1'!$F$44=Riepilogo!$W35,('Lotto3_R7425-1'!$C$44)*$X$15,0)","v":0},{"$f":"IF('Lotto3_R7425-2'!$F$44=Riepilogo!$W35,('Lotto3_R7425-2'!$C$44)*$Y$15,0)","v":0},{"$f":"IF('Lotto3_R7425-3'!$F$44=Riepilogo!$W35,('Lotto3_R7425-3'!$C$44)*$Z$15,0)","v":0},{"$f":"IF('Lotto3_R7425(NVMe)'!$F$44=Riepilogo!$W35,('Lotto3_R7425(NVMe)'!$C$44)*$AA$15,0)","v":0},{"$f":"IF('Lotto3_R7425(GPU DW)'!$F$44=Riepilogo!$W35,('Lotto3_R7425(GPU DW)'!$C$44)*$AB$15,0)","v":0},{"$f":"IF('Lotto3_R7425(GPU SW)'!$F$44=Riepilogo!$W35,('Lotto3_R7425(GPU SW)'!$C$44)*$AC$15,0)","v":0},null,null,null,null,null,null,null,null,null,null,0]
[null,"",{"$f":"IF(AN36>0,VLOOKUP($G36,'Codici&PrezzixRiepilogo'!B:E,4,FALSE),\"\")","v":""},null,null,null,"",null,null,{"$f":"IF(AN36>0,VLOOKUP($G36,'Codici&PrezzixRiepilogo'!B:E,2,FALSE),\"\")","v":""},null,null,null,null,null,null,null,{"$f":"IF(AN36>0,VLOOKUP($G36,'Codici&PrezzixRiepilogo'!B:E,3,FALSE),\"\")","v":""},null,"",null,0,"TS2L3-WIN2CORE",{"$f":"IF('Lotto3_R7425-1'!$F$45=Riepilogo!$W36,('Lotto3_R7425-1'!$C$45)*$X$15,0)","v":0},{"$f":"IF('Lotto3_R7425-2'!$F$45=Riepilogo!$W36,('Lotto3_R7425-2'!$C$45)*$Y$15,0)","v":0},{"$f":"IF('Lotto3_R7425-3'!$F$45=Riepilogo!$W36,('Lotto3_R7425-3'!$C$45)*$Z$15,0)","v":0},{"$f":"IF('Lotto3_R7425(NVMe)'!$F$45=Riepilogo!$W36,('Lotto3_R7425(NVMe)'!$C$45)*$AA$15,0)","v":0},{"$f":"IF('Lotto3_R7425(GPU DW)'!$F$45=Riepilogo!$W36,('Lotto3_R7425(GPU DW)'!$C$45)*$AB$15,0)","v":0},{"$f":"IF('Lotto3_R7425(GPU SW)'!$F$45=Riepilogo!$W36,('Lotto3_R7425(GPU SW)'!$C$45)*$AC$15,0)","v":0},null,null,null,null,null,null,null,null,null,null,0]
[null,"",{"$f":"IF(AN37>0,VLOOKUP($G37,'Codici&PrezzixRiepilogo'!B:E,4,FALSE),\"\")","v":""},null,null,null,"",null,null,{"$f":"IF(AN37>0,VLOOKUP($G37,'Codici&PrezzixRiepilogo'!B:E,2,FALSE),\"\")","v":""},null,null,null,null,null,null,null,{"$f":"IF(AN37>0,VLOOKUP($G37,'Codici&PrezzixRiepilogo'!B:E,3,FALSE),\"\")","v":""},null,"",null,0,"TS2L3-LINUX",{"$f":"IF('Lotto3_R7425-1'!$F$44=Riepilogo!$W37,('Lotto3_R7425-1'!$C$44)*$X$15,0)","v":0},{"$f":"IF('Lotto3_R7425-2'!$F$44=Riepilogo!$W37,('Lotto3_R7425-2'!$C$44)*$Y$15,0)","v":0},{"$f":"IF('Lotto3_R7425-3'!$F$45=Riepilogo!$W37,('Lotto3_R7425-3'!$C$44)*$Z$15,0)","v":0},{"$f":"IF('Lotto3_R7425(NVMe)'!$F$45=Riepilogo!$W37,('Lotto3_R7425(NVMe)'!$C$44)*$AA$15,0)","v":0},{"$f":"IF('Lotto3_R7425(GPU DW)'!$F$44=Riepilogo!$W37,('Lotto3_R7425(GPU DW)'!$C$44)*$AB$15,0)","v":0},{"$f":"IF('Lotto3_R7425(GPU SW)'!$F$44=Riepilogo!$W37,('Lotto3_R7425(GPU SW)'!$C$44)*$AC$15,0)","v":0},null,null,null,null,null,null,null,null,null,null,0]
[null,"",{"$f":"IF(AN38>0,VLOOKUP($G38,'Codici&PrezzixRiepilogo'!B:E,4,FALSE),\"\")","v":""},null,null,null,"",null,null,{"$f":"IF(AN38>0,VLOOKUP($G38,'Codici&PrezzixRiepilogo'!B:E,2,FALSE),\"\")","v":""},null,null,null,null,null,null,null,{"$f":"IF(AN38>0,VLOOKUP($G38,'Codici&PrezzixRiepilogo'!B:E,3,FALSE),\"\")","v":""},null,"",null,0,"TS2L3-CALDEV",{"$f":"'Lotto3_R7425-1'!$C$48*X15","v":0},{"$f":"'Lotto3_R7425-2'!$C$48*Y15","v":0},{"$f":"'Lotto3_R7425-3'!$C$48*Z15","v":0},{"$f":"'Lotto3_R7425(NVMe)'!$C$48*AA15","v":0},{"$f":"'Lotto3_R7425(GPU DW)'!$C$48*AB15","v":0},{"$f":"'Lotto3_R7425(GPU SW)'!$C$48*AC15","v":0},null,null,null,null,null,null,null,null,null,null,0]
[null,"",{"$f":"IF(AN39>0,VLOOKUP($G39,'Codici&PrezzixRiepilogo'!B:E,4,FALSE),\"\")","v":""},null,null,null,"",null,null,{"$f":"IF(AN39>0,VLOOKUP($G39,'Codici&PrezzixRiepilogo'!B:E,2,FALSE),\"\")","v":""},null,null,null,null,null,null,null,{"$f":"IF(AN39>0,VLOOKUP($G39,'Codici&PrezzixRiepilogo'!B:E,3,FALSE),\"\")","v":""},null,"",null,0,"TS2L3-CALUSER",{"$f":"'Lotto3_R7425-1'!$C$50*X15","v":0},{"$f":"'Lotto3_R7425-2'!$C$50*Y15","v":0},{"$f":"'Lotto3_R7425-3'!$C$50*Z15","v":0},{"$f":"'Lotto3_R7425(NVMe)'!$C$50*AA15","v":0},{"$f":"'Lotto3_R7425(GPU DW)'!$C$50*AB15","v":0},{"$f":"'Lotto3_R7425(GPU SW)'!$C$50*AC15","v":0},null,null,null,null,null,null,null,null,null,null,0]
[null,"OPZIONI COMUNI",null,null,null,null,null,null,null,null,null,null,null,null,null,null,null,null,null,null,null,{"$f":"IF(SUM(V41:V44)=0,0,1)","v":0}]
[null,{"$f":"IF(AN41>=1,AN41,\"\")","v":""},{"$f":"IF(AN41>0,VLOOKUP($G41,'Codici&PrezzixRiepilogo'!B:E,4,FALSE),\"\")","v":""},null,null,null,{"$f":"IF(AN41>=1,W41,\"\")","v":""},null,null,{"$f":"IF(AN41>0,VLOOKUP($G41,'Codici&PrezzixRiepilogo'!B:E,2,FALSE),\"\")","v":""},null,null,null,null,null,null,null,{"$f":"IF(AN41>0,VLOOKUP($G41,'Codici&PrezzixRiepilogo'!B:E,3,FALSE),\"\")","v":""},null,{"$f":"IF(B41=\"\",\"\",R41*B41)","v":""},null,0,"TS2L3-RACK",{"$f":"'Rack e Accessori'!J6","v":0},null,null,null,null,null,null,null,null,null,null,null,null,null,null,null,0]
[null,"",{"$f":"IF(AN42>0,VLOOKUP($G42,'Codici&PrezzixRiepilogo'!B:E,4,FALSE),\"\")","v":""},null,null,null,{"$f":"IF(AN42>=1,W42,\"\")","v":""},null,null,{"$f":"IF(AN42>0,VLOOKUP($G42,'Codici&PrezzixRiepilogo'!B:E,2,FALSE),\"\")","v":""},null,null,null,null,null,null,null,{"$f":"IF(AN42>0,VLOOKUP($G42,'Codici&PrezzixRiepilogo'!B:E,3,FALSE),\"\")","v":""},null,{"$f":"IF(B42=\"\",\"\",R42*B42)","v":""},null,0,"TS2L3-GUI",{"$f":"'Rack e Accessori'!J39","v":0},null,null,null,null,null,null,null,null,null,null,null,null,null,null,null,0]
[null,"",{"$f":"IF(AN43>0,VLOOKUP($G43,'Codici&PrezzixRiepilogo'!B:E,4,FALSE),\"\")","v":""},null,null,null,"",null,null,{"$f":"IF(AN43>0,VLOOKUP($G43,'Codici&PrezzixRiepilogo'!B:E,2,FALSE),\"\")","v":""},null,null,null,null,null,null,null,{"$f":"IF(AN43>0,VLOOKUP($G43,'Codici&PrezzixRiepilogo'!B:E,3,FALSE),\"\")","v":""},null,"",null,0,"TS2L3-KVMIP",{"$f":"'Rack e Accessori'!J42","v":0},null,null,null,null,null,null,null,null,null,null,null,null,null,null,null,0]
[null,"",{"$f":"IF(AN44>0,VLOOKUP($G44,'Codici&PrezzixRiepilogo'!B:E,4,FALSE),\"\")","v":""},null,null,null,"",null,null,{"$f":"IF(AN44>0,VLOOKUP($G44,'Codici&PrezzixRiepilogo'!B:E,2,FALSE),\"\")","v":""},null,null,null,null,null,null,null,{"$f":"IF(AN44>0,VLOOKUP($G44,'Codici&PrezzixRiepilogo'!B:E,3,FALSE),\"\")","v":""},null,"",null,0,"TS2L3-UPS",{"$f":"'Rack e Accessori'!J45","v":0},null,null,null,null,null,null,null,null,null,null,null,null,null,null,null,0]
[null,"ULTERIORI OPZIONI 20%",null,null,null,null,null,null,null,null,null,null,null,null,null,null,null,null,null,null,null,{"$f":"IF(SUM(R116>0)=0,0,1)","v":0}]
[null,{"$f":"IF(AN46>=1,AN46,\"\")","v":""},{"$f":"IF(AN46>0,VLOOKUP($G46,'Codici&PrezzixRiepilogo'!B:E,4,FALSE),\"\")","v":""},null,null,null,{"$f":"IF(AN46>=1,W46,\"\")","v":""},null,null,{"$f":"IF(AN46>0,VLOOKUP($G46,'Codici&PrezzixRiepilogo'!B:E,2,FALSE),\"\")","v":""},null,null,null,null,null,null,null,{"$f":"IF(AN46>0,VLOOKUP($G46,'Codici&PrezzixRiepilogo'!B:E,3,FALSE),\"\")","v":""},null,{"$f":"IF(B46=\"\",\"\",R46*B46)","v":""},null,0,"TS2L3-3MRJ45",{"$f":"'Lotto3_R7425-1'!$C$178*$X$15","v":0},{"$f":"'Lotto3_R7425-2'!$C$178*$Y$15","v":0},{"$f":"'Lotto3_R7425-3'!$C$178*Z$15","v":0},{"$f":"'Lotto3_R7425(NVMe)'!$C$198*AA$15","v":0},{"$f":"'Lotto3_R7425(GPU DW)'!$C$178*$AB$15","v":0},{"$f":"'Lotto3_R7425(GPU SW)'!$C$178*$AC$15","v":0},null,null,null,null,null,null,null,null,null,null,0]
[null,"",{"$f":"IF(AN47>0,VLOOKUP($G47,'Codici&PrezzixRiepilogo'!B:E,4,FALSE),\"\")","v":""},null,null,null,{"$f":"IF(AN47>=1,W47,\"\")","v":""},null,null,{"$f":"IF(AN47>0,VLOOKUP($G47,'Codici&PrezzixRiepilogo'!B:E,2,FALSE),\"\")","v":""},null,null,null,null,null,null,null,{"$f":"IF(AN47>0,VLOOKUP($G47,'Codici&PrezzixRiepilogo'!B:E,3,FALSE),\"\")","v":""},null,{"$f":"IF(B47=\"\",\"\",R47*B47)","v":""},null,0,"TS2L3-BOSS240",{"$f":"COUNTIF($AD$25:$AD$32,W47)*$X$15","v":0},{"$f":"COUNTIF($AE$25:$AE$32,W47)*$Y$15","v":0},{"$f":"COUNTIF($AF$25:$AF$32,$W$47)*Z$15","v":0},{"$f":"COUNTIF($AF$25:$AF$32,$W$47)*AA$15","v":0},{"$f":"COUNTIF($AH$25:$AH$32,W47)*$AB$15","v":0},{"$f":"COUNTIF($AI$25:$AI$32,W47)*$AC$15","v":0},null,null,null,null,null,null,null,null,null,null,0]
[null,"",{"$f":"IF(AN48>0,VLOOKUP($G48,'Codici&PrezzixRiepilogo'!B:E,4,FALSE),\"\")","v":""},null,null,null,"",null,null,{"$f":"IF(AN48>0,VLOOKUP($G48,'Codici&PrezzixRiepilogo'!B:E,2,FALSE),\"\")","v":""},null,null,null,null,null,null,null,{"$f":"IF(AN48>0,VLOOKUP($G48,'Codici&PrezzixRiepilogo'!B:E,3,FALSE),\"\")","v":""},null,"",null,0,"TS2L3-ISDM32",{"$f":"'Lotto3_R7425-1'!$C$104*$X$15","v":0},{"$f":"'Lotto3_R7425-2'!$C$104*$Y$15","v":0},{"$f":"'Lotto3_R7425-3'!$C$104*Z$15","v":0},{"$f":"'Lotto3_R7425(NVMe)'!$C$124*AA$15","v":0},{"$f":"'Lotto3_R7425(GPU DW)'!$C$104*$AB$15","v":0},{"$f":"'Lotto3_R7425(GPU SW)'!$C$104*$AC$15","v":0},null,null,null,null,null,null,null,null,null,null,0]
[null,"",{"$f":"IF(AN49>0,VLOOKUP($G49,'Codici&PrezzixRiepilogo'!B:E,4,FALSE),\"\")","v":""},null,null,null,"",null,null,{"$f":"IF(AN49>0,VLOOKUP($G49,'Codici&PrezzixRiepilogo'!B:E,2,FALSE),\"\")","v":""},null,null,null,null,null,null,null,{"$f":"IF(AN49>0,VLOOKUP($G49,'Codici&PrezzixRiepilogo'!B:E,3,FALSE),\"\")","v":""},null,"",null,0,"TS2L3-LCDBEZEL",{"$f":"IF('Lotto3_R7425-1'!$F$140=Riepilogo!$W49,('Lotto3_R7425-1'!$C$140)*$X$15,0)","v":0},{"$f":"IF('Lotto3_R7425-2'!$F$140=Riepilogo!$W49,('Lotto3_R7425-2'!$C$140)*$Y$15,0)","v":0},{"$f":"IF('Lotto3_R7425-3'!$F$140=Riepilogo!$W49,('Lotto3_R7425-3'!$C$140)*Z$15,0)","v":0},{"$f":"IF('Lotto3_R7425(NVMe)'!$F$160=Riepilogo!$W49,('Lotto3_R7425(NVMe)'!$C$160)*AA$15,0)","v":0},{"$f":"IF('Lotto3_R7425(GPU DW)'!$F$140=Riepilogo!$W49,('Lotto3_R7425(GPU DW)'!$C$140)*$AB$15,0)","v":0},{"$f":"IF('Lotto3_R7425(GPU SW)'!$F$140=Riepilogo!$W49,('Lotto3_R7425(GPU SW)'!$C$140)*$AC$15,0)","v":0},null,null,null,null,null,null,null,null,null,null,0]
[null,"",{"$f":"IF(AN50>0,VLOOKUP($G50,'Codici&PrezzixRiepilogo'!B:E,4,FALSE),\"\")","v":""},null,null,null,"",null,null,{"$f":"IF(AN50>0,VLOOKUP($G50,'Codici&PrezzixRiepilogo'!B:E,2,FALSE),\"\")","v":""},null,null,null,null,null,null,null,{"$f":"IF(AN50>0,VLOOKUP($G50,'Codici&PrezzixRiepilogo'!B:E,3,FALSE),\"\")","v":""},null,"",null,0,"TS2L3-STDBEZEL",{"$f":"IF('Lotto3_R7425-1'!$F$140=Riepilogo!$W50,('Lotto3_R7425-1'!$C$140)*$X$15,0)","v":0},{"$f":"IF('Lotto3_R7425-2'!$F$140=Riepilogo!$W50,('Lotto3_R7425-2'!$C$140)*$Y$15,0)","v":0},{"$f":"IF('Lotto3_R7425-3'!$F$140=Riepilogo!$W$50,('Lotto3_R7425-3'!$C$140)*Z$15,0)","v":0},{"$f":"IF('Lotto3_R7425(NVMe)'!$F$160=Riepilogo!$W$50,('Lotto3_R7425(NVMe)'!$C$160)*AA$15,0)","v":0},{"$f":"IF('Lotto3_R7425(GPU DW)'!$F$140=Riepilogo!$W50,('Lotto3_R7425(GPU DW)'!$C$140)*$AB$15,0)","v":0},{"$f":"IF('Lotto3_R7425(GPU SW)'!$F$140=Riepilogo!$W50,('Lotto3_R7425(GPU SW)'!$C$140)*$AC$15,0)","v":0},null,null,null,null,null,null,null,null,null,null,0]
[null,"",{"$f":"IF(AN51>0,VLOOKUP($G51,'Codici&PrezzixRiepilogo'!B:E,4,FALSE),\"\")","v":""},null,null,null,"",null,null,{"$f":"IF(AN51>0,VLOOKUP($G51,'Codici&PrezzixRiepilogo'!B:E,2,FALSE),\"\")","v":""},null,null,null,null,null,null,null,{"$f":"IF(AN51>0,VLOOKUP($G51,'Codici&PrezzixRiepilogo'!B:E,3,FALSE),\"\")","v":""},null,"",null,0,"TS2L3-MCX416AM3",{"$f":"COUNTIF($AD$25:$AD$32,W51)*$X$15","v":0},{"$f":"COUNTIF($AE$25:$AE$32,W51)*$Y$15","v":0},{"$f":"COUNTIF($AF$25:$AF$32,$W$51)*Z$15","v":0},{"$f":"COUNTIF($AG$25:$AG$32,$W$51)*AA$15","v":0},{"$f":"COUNTIF($AH$25:$AH$32,W51)*$AB$15","v":0},{"$f":"COUNTIF($AI$25:$AI$32,W51)*$AC$15","v":0},null,null,null,null,null,null,null,null,null,null,0]
[null,"",{"$f":"IF(AN52>0,VLOOKUP($G52,'Codici&PrezzixRiepilogo'!B:E,4,FALSE),\"\")","v":""},null,null,null,"",null,null,{"$f":"IF(AN52>0,VLOOKUP($G52,'Codici&PrezzixRiepilogo'!B:E,2,FALSE),\"\")","v":""},null,null,null,null,null,null,null,{"$f":"IF(AN52>0,VLOOKUP($G52,'Codici&PrezzixRiepilogo'!B:E,3,FALSE),\"\")","v":""},null,"",null,0,"TS2L3-MCX516AM3",0,0,{"$f":"COUNTIF($AF$25:$AF$32,$W$52)*Z$15","v":0},{"$f":"COUNTIF($AG$25:$AG$32,$W$52)*AA$15","v":0},0,{"$f":"COUNTIF($AI$25:$AI$32,W52)*$AC$15","v":0},null,null,null,null,null,null,null,null,null,null,0]
[null,"",{"$f":"IF(AN53>0,VLOOKUP($G53,'Codici&PrezzixRiepilogo'!B:E,4,FALSE),\"\")","v":""},null,null,null,"",null,null,{"$f":"IF(AN53>0,VLOOKUP($G53,'Codici&PrezzixRiepilogo'!B:E,2,FALSE),\"\")","v":""},null,null,null,null,null,null,null,{"$f":"IF(AN53>0,VLOOKUP($G53,'Codici&PrezzixRiepilogo'!B:E,3,FALSE),\"\")","v":""},null,"",null,0,"TS2L3-MCX4121AM3",0,0,{"$f":"COUNTIF($AF$25:$AF$32,$W$53)*Z$15","v":0},{"$f":"COUNTIF($AG$25:$AG$32,$W$53)*AA$15","v":0},0,0,null,null,null,null,null,null,null,null,null,null,0]
[null,"",{"$f":"IF(AN54>0,VLOOKUP($G54,'Codici&PrezzixRiepilogo'!B:E,4,FALSE),\"\")","v":""},null,null,null,"",null,null,{"$f":"IF(AN54>0,VLOOKUP($G54,'Codici&PrezzixRiepilogo'!B:E,2,FALSE),\"\")","v":""},null,null,null,null,null,null,null,{"$f":"IF(AN54>0,VLOOKUP($G54,'Codici&PrezzixRiepilogo'!B:E,3,FALSE),\"\")","v":""},null,"",null,0,"TS2L3-HBA330",0,0,{"$f":"COUNTIF($AF$25:$AF$32,$W$54)*Z$15","v":0},{"$f":"COUNTIF($AF$25:$AF$32,$W$54)*AA$15","v":0},0,0,null,null,null,null,null,null,null,null,null,null,0]
[null,"",{"$f":"IF(AN55>0,VLOOKUP($G55,'Codici&PrezzixRiepilogo'!B:E,4,FALSE),\"\")","v":""},null,null,null,"",null,null,{"$f":"IF(AN55>0,VLOOKUP($G55,'Codici&PrezzixRiepilogo'!B:E,2,FALSE),\"\")","v":""},null,null,null,null,null,null,null,{"$f":"IF(AN55>0,VLOOKUP($G55,'Codici&PrezzixRiepilogo'!B:E,3,FALSE),\"\")","v":""},null,"",null,0,"TS2L3-HBASAS12",0,0,{"$f":"COUNTIF($AF$25:$AF$32,$W$55)*Z$15","v":0},{"$f":"COUNTIF($AG$25:$AG$32,$W$55)*AA$15","v":0},0,0,null,null,null,null,null,null,null,null,null,null,0]
[null,"",{"$f":"IF(AN56>0,VLOOKUP($G56,'Codici&PrezzixRiepilogo'!B:E,4,FALSE),\"\")","v":""},null,null,null,"",null,null,{"$f":"IF(AN56>0,VLOOKUP($G56,'Codici&PrezzixRiepilogo'!B:E,2,FALSE),\"\")","v":""},null,null,null,null,null,null,null,{"$f":"IF(AN56>0,VLOOKUP($G56,'Codici&PrezzixRiepilogo'!B:E,3,FALSE),\"\")","v":""},null,"",null,0,"TS2L3-H740P",0,0,{"$f":"COUNTIF($AF$25:$AF$32,$W$56)*Z$15","v":0},{"$f":"COUNTIF($AG$25:$AG$32,$W$56)*AA$15","v":0},0,0,null,null,null,null,null,null,null,null,null,null,0]
[null,"",{"$f":"IF(AN57>0,VLOOKUP($G57,'Codici&PrezzixRiepilogo'!B:E,4,FALSE),\"\")","v":""},null,null,null,"",null,null,{"$f":"IF(AN57>0,VLOOKUP($G57,'Codici&PrezzixRiepilogo'!B:E,2,FALSE),\"\")","v":""},null,null,null,null,null,null,null,{"$f":"IF(AN57>0,VLOOKUP($G57,'Codici&PrezzixRiepilogo'!B:E,3,FALSE),\"\")","v":""},null,"",null,0,"TS2L3-Q41162T",0,0,{"$f":"COUNTIF($AF$25:$AF$32,$W$57)*Z$15","v":0},{"$f":"COUNTIF($AF$25:$AF$32,$W$57)*AA$15","v":0},0,0,null,null,null,null,null,null,null,null,null,null,0]
[null,"",{"$f":"IF(AN58>0,VLOOKUP($G58,'Codici&PrezzixRiepilogo'!B:E,4,FALSE),\"\")","v":""},null,null,null,"",null,null,{"$f":"IF(AN58>0,VLOOKUP($G58,'Codici&PrezzixRiepilogo'!B:E,2,FALSE),\"\")","v":""},null,null,null,null,null,null,null,{"$f":"IF(AN58>0,VLOOKUP($G58,'Codici&PrezzixRiepilogo'!B:E,3,FALSE),\"\")","v":""},null,"",null,0,"TS2L3-Q41162T-L",0,0,{"$f":"COUNTIF($AF$25:$AF$32,$W$58)*Z$15","v":0},{"$f":"COUNTIF($AG$25:$AG$32,$W$58)*AA$15","v":0},0,0,null,null,null,null,null,null,null,null,null,null,0]
[null,"",{"$f":"IF(AN59>0,VLOOKUP($G59,'Codici&PrezzixRiepilogo'!B:E,4,FALSE),\"\")","v":""},null,null,null,"",null,null,{"$f":"IF(AN59>0,VLOOKUP($G59,'Codici&PrezzixRiepilogo'!B:E,2,FALSE),\"\")","v":""},null,null,null,null,null,null,null,{"$f":"IF(AN59>0,VLOOKUP($G59,'Codici&PrezzixRiepilogo'!B:E,3,FALSE),\"\")","v":""},null,"",null,0,"TS2L3-Q41164T-L",0,0,{"$f":"COUNTIF($AF$25:$AF$32,$W$59)*Z$15","v":0},{"$f":"COUNTIF($AG$25:$AG$32,$W$59)*AA$15","v":0},0,0,null,null,null,null,null,null,null,null,null,null,0]
[null,"",{"$f":"IF(AN60>0,VLOOKUP($G60,'Codici&PrezzixRiepilogo'!B:E,4,FALSE),\"\")","v":""},null,null,null,"",null,null,{"$f":"IF(AN60>0,VLOOKUP($G60,'Codici&PrezzixRiepilogo'!B:E,2,FALSE),\"\")","v":""},null,null,null,null,null,null,null,{"$f":"IF(AN60>0,VLOOKUP($G60,'Codici&PrezzixRiepilogo'!B:E,3,FALSE),\"\")","v":""},null,"",null,0,"TS2L3-Q2692",0,0,{"$f":"COUNTIF($AF$25:$AF$32,$W$60)*Z$15","v":0},{"$f":"COUNTIF($AG$25:$AG$32,$W$60)*AA$15","v":0},0,0,null,null,null,null,null,null,null,null,null,null,0]
[null,"",{"$f":"IF(AN61>0,VLOOKUP($G61,'Codici&PrezzixRiepilogo'!B:E,4,FALSE),\"\")","v":""},null,null,null,"",null,null,{"$f":"IF(AN61>0,VLOOKUP($G61,'Codici&PrezzixRiepilogo'!B:E,2,FALSE),\"\")","v":""},null,null,null,null,null,null,null,{"$f":"IF(AN61>0,VLOOKUP($G61,'Codici&PrezzixRiepilogo'!B:E,3,FALSE),\"\")","v":""},null,"",null,0,"TS2L3-Q2692-L",0,0,{"$f":"COUNTIF($AF$25:$AF$32,$W$61)*Z$15","v":0},{"$f":"COUNTIF($AG$25:$AG$32,$W$61)*AA$15","v":0},0,0,null,null,null,null,null,null,null,null,null,null,0]
[null,"",{"$f":"IF(AN62>0,VLOOKUP($G62,'Codici&PrezzixRiepilogo'!B:E,4,FALSE),\"\")","v":""},null,null,null,"",null,null,{"$f":"IF(AN62>0,VLOOKUP($G62,'Codici&PrezzixRiepilogo'!B:E,2,FALSE),\"\")","v":""},null,null,null,null,null,null,null,{"$f":"IF(AN62>0,VLOOKUP($G62,'Codici&PrezzixRiepilogo'!B:E,3,FALSE),\"\")","v":""},null,"",null,0,"TS2L3-B57416T",0,0,{"$f":"COUNTIF($AF$25:$AF$32,$W$62)*Z$15","v":0},{"$f":"COUNTIF($AG$25:$AG$32,$W$62)*AA$15","v":0},0,0,null,null,null,null,null,null,null,null,null,null,0]
[null,"",{"$f":"IF(AN63>0,VLOOKUP($G63,'Codici&PrezzixRiepilogo'!B:E,4,FALSE),\"\")","v":""},null,null,null,"",null,null,{"$f":"IF(AN63>0,VLOOKUP($G63,'Codici&PrezzixRiepilogo'!B:E,2,FALSE),\"\")","v":""},null,null,null,null,null,null,null,{"$f":"IF(AN63>0,VLOOKUP($G63,'Codici&PrezzixRiepilogo'!B:E,3,FALSE),\"\")","v":""},null,"",null,0,"TS2L3-B57416T-L",0,0,{"$f":"COUNTIF($AF$25:$AF$32,$W$63)*Z$15","v":0},{"$f":"COUNTIF($AG$25:$AG$32,$W$63)*AA$15","v":0},0,0,null,null,null,null,null,null,null,null,null,null,0]
[null,"",{"$f":"IF(AN64>0,VLOOKUP($G64,'Codici&PrezzixRiepilogo'!B:E,4,FALSE),\"\")","v":""},null,null,null,"",null,null,{"$f":"IF(AN64>0,VLOOKUP($G64,'Codici&PrezzixRiepilogo'!B:E,2,FALSE),\"\")","v":""},null,null,null,null,null,null,null,{"$f":"IF(AN64>0,VLOOKUP($G64,'Codici&PrezzixRiepilogo'!B:E,3,FALSE),\"\")","v":""},null,"",null,0,"TS2L3-5XDAC100M2",{"$f":"'Lotto3_R7425-1'!$C$173*$X$15","v":0},{"$f":"'Lotto3_R7425-2'!$C$173*$Y$15","v":0},{"$f":"'Lotto3_R7425-3'!$C$173*Z$15","v":0},{"$f":"'Lotto3_R7425(NVMe)'!$C$193*AA$15","v":0},{"$f":"'Lotto3_R7425(GPU DW)'!$C$173*$AB$15","v":0},{"$f":"'Lotto3_R7425(GPU SW)'!$C$173*$AC$15","v":0},null,null,null,null,null,null,null,null,null,null,0]
[null,"",{"$f":"IF(AN65>0,VLOOKUP($G65,'Codici&PrezzixRiepilogo'!B:E,4,FALSE),\"\")","v":""},null,null,null,"",null,null,{"$f":"IF(AN65>0,VLOOKUP($G65,'Codici&PrezzixRiepilogo'!B:E,2,FALSE),\"\")","v":""},null,null,null,null,null,null,null,{"$f":"IF(AN65>0,VLOOKUP($G65,'Codici&PrezzixRiepilogo'!B:E,3,FALSE),\"\")","v":""},null,"",null,0,"TS2L3-5XDAC100M3",{"$f":"'Lotto3_R7425-1'!$C$175*$X$15","v":0},{"$f":"'Lotto3_R7425-2'!$C$175*$Y$15","v":0},{"$f":"'Lotto3_R7425-3'!$C$175*Z$15","v":0},{"$f":"'Lotto3_R7425(NVMe)'!$C$195*AA$15","v":0},{"$f":"'Lotto3_R7425(GPU DW)'!$C$175*$AB$15","v":0},{"$f":"'Lotto3_R7425(GPU SW)'!$C$175*$AC$15","v":0},null,null,null,null,null,null,null,null,null,null,0]
[null,"",{"$f":"IF(AN66>0,VLOOKUP($G66,'Codici&PrezzixRiepilogo'!B:E,4,FALSE),\"\")","v":""},null,null,null,"",null,null,{"$f":"IF(AN66>0,VLOOKUP($G66,'Codici&PrezzixRiepilogo'!B:E,2,FALSE),\"\")","v":""},null,null,null,null,null,null,null,{"$f":"IF(AN66>0,VLOOKUP($G66,'Codici&PrezzixRiepilogo'!B:E,3,FALSE),\"\")","v":""},null,"",null,0,"TS2L3-5XDAC10M3",{"$f":"'Lotto3_R7425-1'!$C$171*$X$15","v":0},{"$f":"'Lotto3_R7425-2'!$C$171*$Y$15","v":0},{"$f":"'Lotto3_R7425-3'!$C$171*Z$15","v":0},{"$f":"'Lotto3_R7425(NVMe)'!$C$191*AA$15","v":0},{"$f":"'Lotto3_R7425(GPU DW)'!$C$171*$AB$15","v":0},{"$f":"'Lotto3_R7425(GPU SW)'!$C$171*$AC$15","v":0},null,null,null,null,null,null,null,null,null,null,0]
[null,"",{"$f":"IF(AN67>0,VLOOKUP($G67,'Codici&PrezzixRiepilogo'!B:E,4,FALSE),\"\")","v":""},null,null,null,"",null,null,{"$f":"IF(AN67>0,VLOOKUP($G67,'Codici&PrezzixRiepilogo'!B:E,2,FALSE),\"\")","v":""},null,null,null,null,null,null,null,{"$f":"IF(AN67>0,VLOOKUP($G67,'Codici&PrezzixRiepilogo'!B:E,3,FALSE),\"\")","v":""},null,"",null,0,"TS2L3-SSDW1600",{"$f":"'Lotto3_R7425-1'!$C$78*$X$15","v":0},{"$f":"'Lotto3_R7425-2'!$C$78*$Y$15","v":0},{"$f":"'Lotto3_R7425-3'!$C$78*Z$15","v":0},{"$f":"'Lotto3_R7425(NVMe)'!$C$78*AA$15","v":0},{"$f":"'Lotto3_R7425(GPU DW)'!$C$78*$AB$15","v":0},{"$f":"'Lotto3_R7425(GPU SW)'!$C$78*$AC$15","v":0},null,null,null,null,null,null,null,null,null,null,0]
[null,"",{"$f":"IF(AN68>0,VLOOKUP($G68,'Codici&PrezzixRiepilogo'!B:E,4,FALSE),\"\")","v":""},null,null,null,"",null,null,{"$f":"IF(AN68>0,VLOOKUP($G68,'Codici&PrezzixRiepilogo'!B:E,2,FALSE),\"\")","v":""},null,null,null,null,null,null,null,{"$f":"IF(AN68>0,VLOOKUP($G68,'Codici&PrezzixRiepilogo'!B:E,3,FALSE),\"\")","v":""},null,"",null,0,"TS2L3-SSDW400",{"$f":"'Lotto3_R7425-1'!$C$76*$X$15","v":0},{"$f":"'Lotto3_R7425-2'!$C$76*$Y$15","v":0},{"$f":"'Lotto3_R7425-3'!$C$76*$Z$15","v":0},{"$f":"'Lotto3_R7425(NVMe)'!$C$76*AA$15","v":0},{"$f":"'Lotto3_R7425(GPU DW)'!$C$76*$AB$15","v":0},{"$f":"'Lotto3_R7425(GPU SW)'!$C$76*$AC$15","v":0},null,null,null,null,null,null,null,null,null,null,0]
[null,"",{"$f":"IF(AN69>0,VLOOKUP($G69,'Codici&PrezzixRiepilogo'!B:E,4,FALSE),\"\")","v":""},null,null,null,"",null,null,{"$f":"IF(AN69>0,VLOOKUP($G69,'Codici&PrezzixRiepilogo'!B:E,2,FALSE),\"\")","v":""},null,null,null,null,null,null,null,{"$f":"IF(AN69>0,VLOOKUP($G69,'Codici&PrezzixRiepilogo'!B:E,3,FALSE),\"\")","v":""},null,"",null,0,"TS2L3-10K2400",{"$f":"'Lotto3_R7425-1'!$C$72*$X$15","v":0},{"$f":"'Lotto3_R7425-2'!$C$72*$Y$15","v":0},{"$f":"'Lotto3_R7425-3'!$C$72*$Z$15","v":0},{"$f":"'Lotto3_R7425(NVMe)'!$C$72*AA$15","v":0},{"$f":"'Lotto3_R7425(GPU DW)'!$C$72*$AB$15","v":0},{"$f":"'Lotto3_R7425(GPU SW)'!$C$72*$AC$15","v":0},null,null,null,null,null,null,null,null,null,null,0]
[null,"",{"$f":"IF(AN70>0,VLOOKUP($G70,'Codici&PrezzixRiepilogo'!B:E,4,FALSE),\"\")","v":""},null,null,null,"",null,null,{"$f":"IF(AN70>0,VLOOKUP($G70,'Codici&PrezzixRiepilogo'!B:E,2,FALSE),\"\")","v":""},null,null,null,null,null,null,null,{"$f":"IF(AN70>0,VLOOKUP($G70,'Codici&PrezzixRiepilogo'!B:E,3,FALSE),\"\")","v":""},null,"",null,0,"TS2L3-WINDC",{"$f":"IF('Lotto3_R7425-1'!$F$44=Riepilogo!$W70,('Lotto3_R7425-1'!$C$44)*$X$15,0)","v":0},{"$f":"IF('Lotto3_R7425-2'!$F$44=Riepilogo!$W70,('Lotto3_R7425-2'!$C$44)*$Y$15,0)","v":0},{"$f":"IF('Lotto3_R7425-3'!$F$44=Riepilogo!$W70,('Lotto3_R7425-3'!$C$44)*$Z$15,0)","v":0},{"$f":"IF('Lotto3_R7425(NVMe)'!$F$44=Riepilogo!$W70,('Lotto3_R7425(NVMe)'!$C$44)*AA$15,0)","v":0},{"$f":"IF('Lotto3_R7425(GPU DW)'!$F$44=Riepilogo!$W70,('Lotto3_R7425(GPU DW)'!$C$44)*$AB$15,0)","v":0},{"$f":"IF('Lotto3_R7425(GPU SW)'!$F$44=Riepilogo!$W70,('Lotto3_R7425(GPU SW)'!$C$44)*$AC$15,0)","v":0},null,null,null,null,null,null,null,null,null,null,0]
[null,"",{"$f":"IF(AN71>0,VLOOKUP($G71,'Codici&PrezzixRiepilogo'!B:E,4,FALSE),\"\")","v":""},null,null,null,"",null,null,{"$f":"IF(AN71>0,VLOOKUP($G71,'Codici&PrezzixRiepilogo'!B:E,2,FALSE),\"\")","v":""},null,null,null,null,null,null,null,{"$f":"IF(AN71>0,VLOOKUP($G71,'Codici&PrezzixRiepilogo'!B:E,3,FALSE),\"\")","v":""},null,"",null,0,"TS2L3-WINDC2",{"$f":"IF('Lotto3_R7425-1'!$F$45=Riepilogo!$W71,('Lotto3_R7425-1'!$C$45)*$X$15,0)","v":0},{"$f":"IF('Lotto3_R7425-2'!$F$45=Riepilogo!$W71,('Lotto3_R7425-2'!$C$45)*$Y$15,0)","v":0},{"$f":"IF('Lotto3_R7425-3'!$F$45=Riepilogo!$W71,('Lotto3_R7425-3'!$C$45)*$Z$15,0)","v":0},{"$f":"IF('Lotto3_R7425(NVMe)'!$F$45=Riepilogo!$W71,('Lotto3_R7425(NVMe)'!$C$45)*AA$15,0)","v":0},{"$f":"IF('Lotto3_R7425(GPU DW)'!$F$45=Riepilogo!$W71,('Lotto3_R7425(GPU DW)'!$C$45)*$AB$15,0)","v":0},{"$f":"IF('Lotto3_R7425(GPU SW)'!$F$45=Riepilogo!$W71,('Lotto3_R7425(GPU SW)'!$C$45)*$AC$15,0)","v":0},null,null,null,null,null,null,null,null,null,null,0]
[null,"",{"$f":"IF(AN72>0,VLOOKUP($G72,'Codici&PrezzixRiepilogo'!B:E,4,FALSE),\"\")","v":""},null,null,null,"",null,null,{"$f":"IF(AN72>0,VLOOKUP($G72,'Codici&PrezzixRiepilogo'!B:E,2,FALSE),\"\")","v":""},null,null,null,null,null,null,null,{"$f":"IF(AN72>0,VLOOKUP($G72,'Codici&PrezzixRiepilogo'!B:E,3,FALSE),\"\")","v":""},null,"",null,0,"TS2L3-IXXV710M3",{"$f":"COUNTIF($AD$25:$AD$32,W72)*$X$15","v":0},{"$f":"COUNTIF($AE$25:$AE$32,W72)*$Y$15","v":0},{"$f":"COUNTIF($AF$25:$AF$32,W72)*$Z$15","v":0},{"$f":"COUNTIF($AG$25:$AG$32,W72)*AA$15","v":0},{"$f":"COUNTIF($AH$25:$AH$32,W72)*$AB$15","v":0},{"$f":"COUNTIF($AI$25:$AI$32,W72)*$AC$15","v":0},null,null,null,null,null,null,null,null,null,null,0]
[null,"",{"$f":"IF(AN73>0,VLOOKUP($G73,'Codici&PrezzixRiepilogo'!B:E,4,FALSE),\"\")","v":""},null,null,null,"",null,null,{"$f":"IF(AN73>0,VLOOKUP($G73,'Codici&PrezzixRiepilogo'!B:E,2,FALSE),\"\")","v":""},null,null,null,null,null,null,null,{"$f":"IF(AN73>0,VLOOKUP($G73,'Codici&PrezzixRiepilogo'!B:E,3,FALSE),\"\")","v":""},null,"",null,0,"TS2L3-IXXV710TRV",0,0,0,{"$f":"COUNTIF($AF$25:$AF$32,W73)*AA$15","v":0},{"$f":"COUNTIF($AH$25:$AH$32,W73)*$AB$15","v":0},{"$f":"COUNTIF($AI$25:$AI$32,W73)*$AC$15","v":0},null,null,null,null,null,null,null,null,null,null,0]
[null,"",{"$f":"IF(AN74>0,VLOOKUP($G74,'Codici&PrezzixRiepilogo'!B:E,4,FALSE),\"\")","v":""},null,null,null,{"$f":"IF(AN74>=1,W74,\"\")","v":""},null,null,{"$f":"IF(AN74>0,VLOOKUP($G74,'Codici&PrezzixRiepilogo'!B:E,2,FALSE),\"\")","v":""},null,null,null,null,null,null,null,{"$f":"IF(AN74>0,VLOOKUP($G74,'Codici&PrezzixRiepilogo'!B:E,3,FALSE),\"\")","v":""},null,{"$f":"IF(B74=\"\",\"\",R74*B74)","v":""},null,0,"TS2L3-VMWKIT6P3Y",{"$f":"IF('Lotto3_R7425-1'!F54=Riepilogo!W74,'Lotto3_R7425-1'!C54,0)*X15","v":0},null,null,null,null,null,null,null,null,null,null,null,null,null,null,null,0]
[null,"",{"$f":"IF(AN75>0,VLOOKUP($G75,'Codici&PrezzixRiepilogo'!B:E,4,FALSE),\"\")","v":""},null,null,null,"",null,null,{"$f":"IF(AN75>0,VLOOKUP($G75,'Codici&PrezzixRiepilogo'!B:E,2,FALSE),\"\")","v":""},null,null,null,null,null,null,null,{"$f":"IF(AN75>0,VLOOKUP($G75,'Codici&PrezzixRiepilogo'!B:E,3,FALSE),\"\")","v":""},null,"",null,0,"TS2L3-VMWVCSTD3Y",{"$f":"IF('Lotto3_R7425-1'!F56=Riepilogo!W75,'Lotto3_R7425-1'!C56,0)*$X$15","v":0},null,null,null,null,null,null,null,null,null,null,null,null,null,null,null,0]
[null,"",{"$f":"IF(AN76>0,VLOOKUP($G76,'Codici&PrezzixRiepilogo'!B:E,4,FALSE),\"\")","v":""},null,null,null,"",null,null,{"$f":"IF(AN76>0,VLOOKUP($G76,'Codici&PrezzixRiepilogo'!B:E,2,FALSE),\"\")","v":""},null,null,null,null,null,null,null,{"$f":"IF(AN76>0,VLOOKUP($G76,'Codici&PrezzixRiepilogo'!B:E,3,FALSE),\"\")","v":""},null,"",null,0,"TS2L3-VMWVCSTD5Y",{"$f":"IF('Lotto3_R7425-1'!F56=Riepilogo!W76,'Lotto3_R7425-1'!C56,0)*$X$15","v":0},null,null,null,null,null,null,null,null,null,null,null,null,null,null,null,0]
[null,"",{"$f":"IF(AN77>0,VLOOKUP($G77,'Codici&PrezzixRiepilogo'!B:E,4,FALSE),\"\")","v":""},null,null,null,"",null,null,{"$f":"IF(AN77>0,VLOOKUP($G77,'Codici&PrezzixRiepilogo'!B:E,2,FALSE),\"\")","v":""},null,null,null,null,null,null,null,{"$f":"IF(AN77>0,VLOOKUP($G77,'Codici&PrezzixRiepilogo'!B:E,3,FALSE),\"\")","v":""},null,"",null,0,"TS2L3-VMWSTD1P3Y",{"$f":"IF('Lotto3_R7425-1'!$F$58=Riepilogo!$W$77,'Lotto3_R7425-1'!$C$58,0)*$X$15","v":0},{"$f":"IF('Lotto3_R7425-2'!$F$58=Riepilogo!$W$77,'Lotto3_R7425-2'!$C$58,0)*$Y$15","v":0},{"$f":"IF('Lotto3_R7425-3'!$F$58=Riepilogo!$W$77,'Lotto3_R7425-3'!$C$58,0)*$Z$15","v":0},{"$f":"IF('Lotto3_R7425(NVMe)'!$F$58=Riepilogo!$W$77,'Lotto3_R7425(NVMe)'!$C$58,0)*AA$15","v":0},{"$f":"IF('Lotto3_R7425(GPU DW)'!$F$58=Riepilogo!$W$77,'Lotto3_R7425(GPU DW)'!$C$58,0)*$AB$15","v":0},{"$f":"IF('Lotto3_R7425(GPU SW)'!$F$58=Riepilogo!$W$77,'Lotto3_R7425(GPU SW)'!$C$58,0)*$AC$15","v":0},null,null,null,null,null,null,null,null,null,null,0]
[null,"",{"$f":"IF(AN78>0,VLOOKUP($G78,'Codici&PrezzixRiepilogo'!B:E,4,FALSE),\"\")","v":""},null,null,null,"",null,null,{"$f":"IF(AN78>0,VLOOKUP($G78,'Codici&PrezzixRiepilogo'!B:E,2,FALSE),\"\")","v":""},null,null,null,null,null,null,null,{"$f":"IF(AN78>0,VLOOKUP($G78,'Codici&PrezzixRiepilogo'!B:E,3,FALSE),\"\")","v":""},null,"",null,0,"TS2L3-VMWEP1P3Y",{"$f":"IF('Lotto3_R7425-1'!$F$58=Riepilogo!$W$78,'Lotto3_R7425-1'!$C$58,0)*$X$15","v":0},{"$f":"IF('Lotto3_R7425-2'!$F$58=Riepilogo!$W$78,'Lotto3_R7425-2'!$C$58,0)*$Y$15","v":0},{"$f":"IF('Lotto3_R7425-3'!$F$58=Riepilogo!$W$78,'Lotto3_R7425-3'!$C$58,0)*$Z$15","v":0},{"$f":"IF('Lotto3_R7425(NVMe)'!$F$58=Riepilogo!$W$78,'Lotto3_R7425(NVMe)'!$C$58,0)*AA$15","v":0},{"$f":"IF('Lotto3_R7425(GPU DW)'!$F$58=Riepilogo!$W$78,'Lotto3_R7425(GPU DW)'!$C$58,0)*$AB$15","v":0},{"$f":"IF('Lotto3_R7425(GPU SW)'!$F$58=Riepilogo!$W$78,'Lotto3_R7425(GPU SW)'!$C$58,0)*$AC$15","v":0},null,null,null,null,null,null,null,null,null,null,0]
[null,"",{"$f":"IF(AN79>0,VLOOKUP($G79,'Codici&PrezzixRiepilogo'!B:E,4,FALSE),\"\")","v":""},null,null,null,"",null,null,{"$f":"IF(AN79>0,VLOOKUP($G79,'Codici&PrezzixRiepilogo'!B:E,2,FALSE),\"\")","v":""},null,null,null,null,null,null,null,{"$f":"IF(AN79>0,VLOOKUP($G79,'Codici&PrezzixRiepilogo'!B:E,3,FALSE),\"\")","v":""},null,"",null,0,"TS2L3-VMWEP1P5Y",{"$f":"IF('Lotto3_R7425-1'!$F$58=Riepilogo!$W$79,'Lotto3_R7425-1'!$C$58,0)*$X$15","v":0},{"$f":"IF('Lotto3_R7425-2'!$F$58=Riepilogo!$W$79,'Lotto3_R7425-2'!$C$58,0)*$Y$15","v":0},{"$f":"IF('Lotto3_R7425-3'!$F$58=Riepilogo!$W$79,'Lotto3_R7425-3'!$C$58,0)*$Z$15","v":0},{"$f":"IF('Lotto3_R7425(NVMe)'!$F$58=Riepilogo!$W$79,'Lotto3_R7425(NVMe)'!$C$58,0)*AA$15","v":0},{"$f":"IF('Lotto3_R7425(GPU DW)'!$F$58=Riepilogo!$W$79,'Lotto3_R7425(GPU DW)'!$C$58,0)*$AB$15","v":0},{"$f":"IF('Lotto3_R7425(GPU SW)'!$F$58=Riepilogo!$W$79,'Lotto3_R7425(GPU SW)'!$C$58,0)*$AC$15","v":0},null,null,null,null,null,null,null,null,null,null,0]
[null,"",{"$f":"IF(AN80>0,VLOOKUP($G80,'Codici&PrezzixRiepilogo'!B:E,4,FALSE),\"\")","v":""},null,null,null,"",null,null,{"$f":"IF(AN80>0,VLOOKUP($G80,'Codici&PrezzixRiepilogo'!B:E,2,FALSE),\"\")","v":""},null,null,null,null,null,null,null,{"$f":"IF(AN80>0,VLOOKUP($G80,'Codici&PrezzixRiepilogo'!B:E,3,FALSE),\"\")","v":""},null,"",null,0,"TS2L3-VSANSTD3Y",{"$f":"IF('Lotto3_R7425-1'!$F$60=Riepilogo!$W$80,'Lotto3_R7425-1'!$C$60,0)*$X$15","v":0},{"$f":"IF('Lotto3_R7425-2'!$F$60=Riepilogo!$W$80,'Lotto3_R7425-2'!$C$60,0)*$Y$15","v":0},{"$f":"IF('Lotto3_R7425-3'!$F$60=Riepilogo!$W$80,'Lotto3_R7425-3'!$C$60,0)*$Z$15","v":0},{"$f":"IF('Lotto3_R7425(NVMe)'!$F$60=Riepilogo!$W$80,'Lotto3_R7425(NVMe)'!$C$60,0)*AA$15","v":0},{"$f":"IF('Lotto3_R7425(GPU DW)'!$F$60=Riepilogo!$W$80,'Lotto3_R7425(GPU DW)'!$C$60,0)*$AB$15","v":0},{"$f":"IF('Lotto3_R7425(GPU SW)'!$F$60=Riepilogo!$W$80,'Lotto3_R7425(GPU SW)'!$C$60,0)*$AC$15","v":0},null,null,null,null,null,null,null,null,null,null,0]
[null,"",{"$f":"IF(AN81>0,VLOOKUP($G81,'Codici&PrezzixRiepilogo'!B:E,4,FALSE),\"\")","v":""},null,null,null,"",null,null,{"$f":"IF(AN81>0,VLOOKUP($G81,'Codici&PrezzixRiepilogo'!B:E,2,FALSE),\"\")","v":""},null,null,null,null,null,null,null,{"$f":"IF(AN81>0,VLOOKUP($G81,'Codici&PrezzixRiepilogo'!B:E,3,FALSE),\"\")","v":""},null,"",null,0,"TS2L3-VSANSTD5Y",{"$f":"IF('Lotto3_R7425-1'!$F$60=Riepilogo!$W$81,'Lotto3_R7425-1'!$C$60,0)*$X$15","v":0},{"$f":"IF('Lotto3_R7425-2'!$F$60=Riepilogo!$W$81,'Lotto3_R7425-2'!$C$60,0)*$Y$15","v":0},{"$f":"IF('Lotto3_R7425-3'!$F$60=Riepilogo!$W$81,'Lotto3_R7425-3'!$C$60,0)*$Z$15","v":0},{"$f":"IF('Lotto3_R7425(NVMe)'!$F$60=Riepilogo!$W$81,'Lotto3_R7425(NVMe)'!$C$60,0)*AA$15","v":0},{"$f":"IF('Lotto3_R7425(GPU DW)'!$F$60=Riepilogo!$W$81,'Lotto3_R7425(GPU DW)'!$C$60,0)*$AB$15","v":0},{"$f":"IF('Lotto3_R7425(GPU SW)'!$F$60=Riepilogo!$W$81,'Lotto3_R7425(GPU SW)'!$C$60,0)*$AC$15","v":0},null,null,null,null,null,null,null,null,null,null,0]
[null,"",{"$f":"IF(AN82>0,VLOOKUP($G82,'Codici&PrezzixRiepilogo'!B:E,4,FALSE),\"\")","v":""},null,null,null,"",null,null,{"$f":"IF(AN82>0,VLOOKUP($G82,'Codici&PrezzixRiepilogo'!B:E,2,FALSE),\"\")","v":""},null,null,null,null,null,null,null,{"$f":"IF(AN82>0,VLOOKUP($G82,'Codici&PrezzixRiepilogo'!B:E,3,FALSE),\"\")","v":""},null,"",null,0,"TS2L3-VSANADV3Y",{"$f":"IF('Lotto3_R7425-1'!$F$60=Riepilogo!$W$82,'Lotto3_R7425-1'!$C$60,0)*$X$15","v":0},{"$f":"IF('Lotto3_R7425-2'!$F$60=Riepilogo!$W$82,'Lotto3_R7425-2'!$C$60,0)*$Y$15","v":0},{"$f":"IF('Lotto3_R7425-3'!$F$60=Riepilogo!$W$82,'Lotto3_R7425-3'!$C$60,0)*$Z$15","v":0},{"$f":"IF('Lotto3_R7425(NVMe)'!$F$60=Riepilogo!$W$82,'Lotto3_R7425(NVMe)'!$C$60,0)*AA$15","v":0},{"$f":"IF('Lotto3_R7425(GPU DW)'!$F$60=Riepilogo!$W$82,'Lotto3_R7425(GPU DW)'!$C$60,0)*$AB$15","v":0},{"$f":"IF('Lotto3_R7425(GPU SW)'!$F$60=Riepilogo!$W$82,'Lotto3_R7425(GPU SW)'!$C$60,0)*$AC$15","v":0},null,null,null,null,null,null,null,null,null,null,0]
[null,"",{"$f":"IF(AN83>0,VLOOKUP($G83,'Codici&PrezzixRiepilogo'!B:E,4,FALSE),\"\")","v":""},null,null,null,"",null,null,{"$f":"IF(AN83>0,VLOOKUP($G83,'Codici&PrezzixRiepilogo'!B:E,2,FALSE),\"\")","v":""},null,null,null,null,null,null,null,{"$f":"IF(AN83>0,VLOOKUP($G83,'Codici&PrezzixRiepilogo'!B:E,3,FALSE),\"\")","v":""},null,"",null,0,"TS2L3-VSANADV5Y",{"$f":"IF('Lotto3_R7425-1'!$F$60=Riepilogo!$W$83,'Lotto3_R7425-1'!$C$60,0)*$X$15","v":0},{"$f":"IF('Lotto3_R7425-2'!$F$60=Riepilogo!$W$83,'Lotto3_R7425-2'!$C$60,0)*$Y$15","v":0},{"$f":"IF('Lotto3_R7425-3'!$F$60=Riepilogo!$W$83,'Lotto3_R7425-3'!$C$60,0)*$Z$15","v":0},{"$f":"IF('Lotto3_R7425(NVMe)'!$F$60=Riepilogo!$W$83,'Lotto3_R7425(NVMe)'!$C$60,0)*AA$15","v":0},{"$f":"IF('Lotto3_R7425(GPU DW)'!$F$60=Riepilogo!$W$83,'Lotto3_R7425(GPU DW)'!$C$60,0)*$AB$15","v":0},{"$f":"IF('Lotto3_R7425(GPU SW)'!$F$60=Riepilogo!$W$83,'Lotto3_R7425(GPU SW)'!$C$60,0)*$AC$15","v":0},null,null,null,null,null,null,null,null,null,null,0]
[null,"",{"$f":"IF(AN84>0,VLOOKUP($G84,'Codici&PrezzixRiepilogo'!B:E,4,FALSE),\"\")","v":""},null,null,null,"",null,null,{"$f":"IF(AN84>0,VLOOKUP($G84,'Codici&PrezzixRiepilogo'!B:E,2,FALSE),\"\")","v":""},null,null,null,null,null,null,null,{"$f":"IF(AN84>0,VLOOKUP($G84,'Codici&PrezzixRiepilogo'!B:E,3,FALSE),\"\")","v":""},null,"",null,0,"TS2L3-GPUM10",null,null,null,null,{"$f":"COUNTIF($AH$25:$AH$32,W84)*$AB$15","v":0},null,null,null,null,null,null,null,null,null,null,null,0]
[null,"",{"$f":"IF(AN85>0,VLOOKUP($G85,'Codici&PrezzixRiepilogo'!B:E,4,FALSE),\"\")","v":""},null,null,null,"",null,null,{"$f":"IF(AN85>0,VLOOKUP($G85,'Codici&PrezzixRiepilogo'!B:E,2,FALSE),\"\")","v":""},null,null,null,null,null,null,null,{"$f":"IF(AN85>0,VLOOKUP($G85,'Codici&PrezzixRiepilogo'!B:E,3,FALSE),\"\")","v":""},null,"",null,0,"TS2L3-2000W",null,null,null,null,{"$f":"'Lotto3_R7425(GPU DW)'!$C$95*$AB$15","v":0},{"$f":"'Lotto3_R7425(GPU SW)'!$C$95*$AC$15","v":0},null,null,null,null,null,null,null,null,null,null,0]
[null,"",{"$f":"IF(AN86>0,VLOOKUP($G86,'Codici&PrezzixRiepilogo'!B:E,4,FALSE),\"\")","v":""},null,null,null,"",null,null,{"$f":"IF(AN86>0,VLOOKUP($G86,'Codici&PrezzixRiepilogo'!B:E,2,FALSE),\"\")","v":""},null,null,null,null,null,null,null,{"$f":"IF(AN86>0,VLOOKUP($G86,'Codici&PrezzixRiepilogo'!B:E,3,FALSE),\"\")","v":""},null,"",null,0,"TS2L3-GPUV10016",null,null,null,null,{"$f":"COUNTIF($AH$25:$AH$32,W86)*$AB$15","v":0},null,null,null,null,null,null,null,null,null,null,null,0]
[null,"",{"$f":"IF(AN87>0,VLOOKUP($G87,'Codici&PrezzixRiepilogo'!B:E,4,FALSE),\"\")","v":""},null,null,null,"",null,null,{"$f":"IF(AN87>0,VLOOKUP($G87,'Codici&PrezzixRiepilogo'!B:E,2,FALSE),\"\")","v":""},null,null,null,null,null,null,null,{"$f":"IF(AN87>0,VLOOKUP($G87,'Codici&PrezzixRiepilogo'!B:E,3,FALSE),\"\")","v":""},null,"",null,0,"TS2L3-GPUV10032",null,null,null,null,{"$f":"COUNTIF($AH$25:$AH$32,W87)*$AB$15","v":0},null,null,null,null,null,null,null,null,null,null,null,0]
[null,"",{"$f":"IF(AN88>0,VLOOKUP($G88,'Codici&PrezzixRiepilogo'!B:E,4,FALSE),\"\")","v":""},null,null,null,"",null,null,{"$f":"IF(AN88>0,VLOOKUP($G88,'Codici&PrezzixRiepilogo'!B:E,2,FALSE),\"\")","v":""},null,null,null,null,null,null,null,{"$f":"IF(AN88>0,VLOOKUP($G88,'Codici&PrezzixRiepilogo'!B:E,3,FALSE),\"\")","v":""},null,"",null,0,"TS2L3-GPUKITSW",null,null,null,null,null,{"$f":"'Lotto3_R7425(GPU SW)'!$C$16*Riepilogo!AC15","v":0},null,null,null,null,null,null,null,null,null,null,0]
[null,"",{"$f":"IF(AN89>0,VLOOKUP($G89,'Codici&PrezzixRiepilogo'!B:E,4,FALSE),\"\")","v":""},null,null,null,"",null,null,{"$f":"IF(AN89>0,VLOOKUP($G89,'Codici&PrezzixRiepilogo'!B:E,2,FALSE),\"\")","v":""},null,null,null,null,null,null,null,{"$f":"IF(AN89>0,VLOOKUP($G89,'Codici&PrezzixRiepilogo'!B:E,3,FALSE),\"\")","v":""},null,"",null,0,"TS2L3-GPUKITDW",null,null,null,null,{"$f":"'Lotto3_R7425(GPU DW)'!$C$16*Riepilogo!AB15","v":0},null,null,null,null,null,null,null,null,null,null,null,0]
[null,"",{"$f":"IF(AN90>0,VLOOKUP($G90,'Codici&PrezzixRiepilogo'!B:E,4,FALSE),\"\")","v":""},null,null,null,"",null,null,{"$f":"IF(AN90>0,VLOOKUP($G90,'Codici&PrezzixRiepilogo'!B:E,2,FALSE),\"\")","v":""},null,null,null,null,null,null,null,{"$f":"IF(AN90>0,VLOOKUP($G90,'Codici&PrezzixRiepilogo'!B:E,3,FALSE),\"\")","v":""},null,"",null,0,"TS2L3-GPUT4",null,null,null,null,null,{"$f":"COUNTIF($AI$25:$AI$32,W90)*$AC$15","v":0},null,null,null,null,null,null,null,null,null,null,0]
[null,"",{"$f":"IF(AN91>0,VLOOKUP($G91,'Codici&PrezzixRiepilogo'!B:E,4,FALSE),\"\")","v":""},null,null,null,"",null,null,{"$f":"IF(AN91>0,VLOOKUP($G91,'Codici&PrezzixRiepilogo'!B:E,2,FALSE),\"\")","v":""},null,null,null,null,null,null,null,{"$f":"IF(AN91>0,VLOOKUP($G91,'Codici&PrezzixRiepilogo'!B:E,3,FALSE),\"\")","v":""},null,"",null,0,"TS2L3-Q41164T",{"$f":"COUNTIF($AD$25:$AD$32,W91)*$X$15","v":0},{"$f":"COUNTIF($AE$25:$AE$32,W91)*$Y$15","v":0},{"$f":"COUNTIF($AF$25:$AF$32,$W$91)*Z$15","v":0},{"$f":"COUNTIF($AG$25:$AG$32,$W$91)*AA$15","v":0},{"$f":"COUNTIF($AH$25:$AH$32,W91)*$AB$15","v":0},{"$f":"COUNTIF($AI$25:$AI$32,W91)*$AC$15","v":0},null,null,null,null,null,null,null,null,null,null,0]
[null,"",{"$f":"IF(AN92>0,VLOOKUP($G92,'Codici&PrezzixRiepilogo'!B:E,4,FALSE),\"\")","v":""},null,null,null,"",null,null,{"$f":"IF(AN92>0,VLOOKUP($G92,'Codici&PrezzixRiepilogo'!B:E,2,FALSE),\"\")","v":""},null,null,null,null,null,null,null,{"$f":"IF(AN92>0,VLOOKUP($G92,'Codici&PrezzixRiepilogo'!B:E,3,FALSE),\"\")","v":""},null,"",null,0,"TS2L3-Q41262",{"$f":"COUNTIF($AD$25:$AD$32,W92)*$X$15","v":0},{"$f":"COUNTIF($AE$25:$AE$32,W92)*$Y$15","v":0},{"$f":"COUNTIF($AF$25:$AF$32,$W$92)*Z$15","v":0},{"$f":"COUNTIF($AG$25:$AG$32,$W$92)*AA$15","v":0},0,{"$f":"COUNTIF($AI$25:$AI$32,W92)*$AC$15","v":0},null,null,null,null,null,null,null,null,null,null,0]
[null,"",{"$f":"IF(AN93>0,VLOOKUP($G93,'Codici&PrezzixRiepilogo'!B:E,4,FALSE),\"\")","v":""},null,null,null,"",null,null,{"$f":"IF(AN93>0,VLOOKUP($G93,'Codici&PrezzixRiepilogo'!B:E,2,FALSE),\"\")","v":""},null,null,null,null,null,null,null,{"$f":"IF(AN93>0,VLOOKUP($G93,'Codici&PrezzixRiepilogo'!B:E,3,FALSE),\"\")","v":""},null,"",null,0,"TS2L3-Q41262-L",0,0,{"$f":"COUNTIF($AF$25:$AF$32,$W$93)*Z$15","v":0},{"$f":"COUNTIF($AF$25:$AF$32,$W$93)*AA$15","v":0},0,0,null,null,null,null,null,null,null,null,null,null,0]
[null,"",{"$f":"IF(AN94>0,VLOOKUP($G94,'Codici&PrezzixRiepilogo'!B:E,4,FALSE),\"\")","v":""},null,null,null,"",null,null,{"$f":"IF(AN94>0,VLOOKUP($G94,'Codici&PrezzixRiepilogo'!B:E,2,FALSE),\"\")","v":""},null,null,null,null,null,null,null,{"$f":"IF(AN94>0,VLOOKUP($G94,'Codici&PrezzixRiepilogo'!B:E,3,FALSE),\"\")","v":""},null,"",null,0,"TS2L3-Q41262OT-L",{"$f":"COUNTIF($AD$25:$AD$32,W94)*$X$15","v":0},{"$f":"COUNTIF($AE$25:$AE$32,W94)*$Y$15","v":0},{"$f":"COUNTIF($AF$25:$AF$32,$W$94)*Z$15","v":0},{"$f":"COUNTIF($AG$25:$AG$32,$W$94)*AA$15","v":0},0,0,null,null,null,null,null,null,null,null,null,null,0]
[null,"",{"$f":"IF(AN95>0,VLOOKUP($G95,'Codici&PrezzixRiepilogo'!B:E,4,FALSE),\"\")","v":""},null,null,null,"",null,null,{"$f":"IF(AN95>0,VLOOKUP($G95,'Codici&PrezzixRiepilogo'!B:E,2,FALSE),\"\")","v":""},null,null,null,null,null,null,null,{"$f":"IF(AN95>0,VLOOKUP($G95,'Codici&PrezzixRiepilogo'!B:E,3,FALSE),\"\")","v":""},null,"",null,0,"TS2L3-Q41262OT",0,0,{"$f":"COUNTIF($AF$25:$AF$32,$W$95)*Z$15","v":0},{"$f":"COUNTIF($AG$25:$AG$32,$W$95)*AA$15","v":0},0,0,null,null,null,null,null,null,null,null,null,null,0]
[null,"",{"$f":"IF(AN96>0,VLOOKUP($G96,'Codici&PrezzixRiepilogo'!B:E,4,FALSE),\"\")","v":""},null,null,null,"",null,null,{"$f":"IF(AN96>0,VLOOKUP($G96,'Codici&PrezzixRiepilogo'!B:E,2,FALSE),\"\")","v":""},null,null,null,null,null,null,null,{"$f":"IF(AN96>0,VLOOKUP($G96,'Codici&PrezzixRiepilogo'!B:E,3,FALSE),\"\")","v":""},null,"",null,0,"TS2L3-MCX516AM3-L",0,0,{"$f":"COUNTIF($AF$25:$AF$32,$W$96)*Z$15","v":0},{"$f":"COUNTIF($AG$25:$AG$32,$W$96)*AA$15","v":0},0,0,null,null,null,null,null,null,null,null,null,null,0]
[null,"",{"$f":"IF(AN97>0,VLOOKUP($G97,'Codici&PrezzixRiepilogo'!B:E,4,FALSE),\"\")","v":""},null,null,null,{"$f":"IF(AN97>=1,W97,\"\")","v":""},null,null,{"$f":"IF(AN97>0,VLOOKUP($G97,'Codici&PrezzixRiepilogo'!B:E,2,FALSE),\"\")","v":""},null,null,null,null,null,null,null,{"$f":"IF(AN97>0,VLOOKUP($G97,'Codici&PrezzixRiepilogo'!B:E,3,FALSE),\"\")","v":""},null,{"$f":"IF(B97=\"\",\"\",R97*B97)","v":""},null,0,"TS2L3-MCX4121A3-L",0,0,{"$f":"COUNTIF($AF$25:$AF$32,$W$97)*Z$15","v":0},{"$f":"COUNTIF($AG$25:$AG$32,$W$97)*AA$15","v":0},0,0,null,null,null,null,null,null,null,null,null,null,0]
[null,{"$f":"IF(AN98>=1,AN98,\"\")","v":""},{"$f":"IF(AN98>0,VLOOKUP($G98,'Codici&PrezzixRiepilogo'!B:E,4,FALSE),\"\")","v":""},null,null,null,{"$f":"IF(AN98>=1,W98,\"\")","v":""},null,null,{"$f":"IF(AN98>0,VLOOKUP($G98,'Codici&PrezzixRiepilogo'!B:E,2,FALSE),\"\")","v":""},null,null,null,null,null,null,null,{"$f":"IF(AN98>0,VLOOKUP($G98,'Codici&PrezzixRiepilogo'!B:E,3,FALSE),\"\")","v":""},null,{"$f":"IF(B98=\"\",\"\",R98*B98)","v":""},null,0,"TS2L3-SSDM480",{"$f":"'Lotto3_R7425-1'!$C$74*Riepilogo!$X$15","v":0},{"$f":"'Lotto3_R7425-2'!$C$74*Riepilogo!$Y$15","v":0},{"$f":"'Lotto3_R7425-3'!$C$74*Riepilogo!Z$15","v":0},{"$f":"'Lotto3_R7425(NVMe)'!$C$74*Riepilogo!AA$15","v":0},{"$f":"'Lotto3_R7425(GPU DW)'!$C$74*Riepilogo!$AB$15","v":0},{"$f":"'Lotto3_R7425(GPU SW)'!$C$74*Riepilogo!$AC$15","v":0},null,null,null,null,null,null,null,null,null,null,{"$f":"SUM(X98:AM98)","v":0}]
[null,{"$f":"IF(AN99>=1,AN99,\"\")","v":""},{"$f":"IF(AN99>0,VLOOKUP($G99,'Codici&PrezzixRiepilogo'!B:E,4,FALSE),\"\")","v":""},null,null,null,"",null,null,{"$f":"IF(AN99>0,VLOOKUP($G99,'Codici&PrezzixRiepilogo'!B:E,2,FALSE),\"\")","v":""},null,null,null,null,null,null,null,{"$f":"IF(AN99>0,VLOOKUP($G99,'Codici&PrezzixRiepilogo'!B:E,3,FALSE),\"\")","v":""},null,"",null,{"$f":"IF(B99>=\"\",0,1)","v":0},"TS2L3-SSDM960",{"$f":"'Lotto3_R7425-1'!$C$82*$X$15","v":0},{"$f":"'Lotto3_R7425-2'!$C$82*$Y$15","v":0},{"$f":"'Lotto3_R7425-3'!$C$82*Z$15","v":0},{"$f":"'Lotto3_R7425(NVMe)'!$C$82*AA$15","v":0},{"$f":"'Lotto3_R7425(GPU DW)'!$C$82*$AB$15","v":0},{"$f":"'Lotto3_R7425(GPU SW)'!$C$82*$AC$15","v":0},null,null,null,null,null,null,null,null,null,null,{"$f":"SUM(X99:AM99)","v":0}]
[null,"",{"$f":"IF(AN100>0,VLOOKUP($G100,'Codici&PrezzixRiepilogo'!B:E,4,FALSE),\"\")","v":""},null,null,null,"",null,null,{"$f":"IF(AN100>0,VLOOKUP($G100,'Codici&PrezzixRiepilogo'!B:E,2,FALSE),\"\")","v":""},null,null,null,null,null,null,null,{"$f":"IF(AN100>0,VLOOKUP($G100,'Codici&PrezzixRiepilogo'!B:E,3,FALSE),\"\")","v":""},null,"",null,0,"TS2L3-MCX5SP-L",{"$f":"COUNTIF($AD$25:$AD$32,W100)*$X$15","v":0},{"$f":"COUNTIF($AE$25:$AE$32,W100)*$Y$15","v":0},{"$f":"COUNTIF($AF$25:$AF$32,$W$100)*Z$15","v":0},{"$f":"COUNTIF($AG$25:$AG$32,$W$100)*AA$15","v":0},{"$f":"COUNTIF($AH$25:$AH$32,W100)*$AB$15","v":0},{"$f":"COUNTIF($AI$25:$AI$32,W100)*$AC$15","v":0},null,null,null,null,null,null,null,null,null,null,0]
[null,"",{"$f":"IF(AN101>0,VLOOKUP($G101,'Codici&PrezzixRiepilogo'!B:E,4,FALSE),\"\")","v":""},null,null,null,"",null,null,{"$f":"IF(AN101>0,VLOOKUP($G101,'Codici&PrezzixRiepilogo'!B:E,2,FALSE),\"\")","v":""},null,null,null,null,null,null,null,{"$f":"IF(AN101>0,VLOOKUP($G101,'Codici&PrezzixRiepilogo'!B:E,3,FALSE),\"\")","v":""},null,"",null,0,"TS2L3-MCX5SP",0,0,{"$f":"COUNTIF($AF$25:$AF$32,$W$101)*Z$15","v":0},{"$f":"COUNTIF($AG$25:$AG$32,$W$101)*AA$15","v":0},0,0,null,null,null,null,null,null,null,null,null,null,0]
[null,"",{"$f":"IF(AN102>0,VLOOKUP($G102,'Codici&PrezzixRiepilogo'!B:E,4,FALSE),\"\")","v":""},null,null,null,{"$f":"IF(AN102>=1,W102,\"\")","v":""},null,null,{"$f":"IF(AN102>0,VLOOKUP($G102,'Codici&PrezzixRiepilogo'!B:E,2,FALSE),\"\")","v":""},null,null,null,null,null,null,null,{"$f":"IF(AN102>0,VLOOKUP($G102,'Codici&PrezzixRiepilogo'!B:E,3,FALSE),\"\")","v":""},null,{"$f":"IF(B102=\"\",\"\",R102*B102)","v":""},null,0,"TS2L3-UPGNTWEAV",null,null,null,null,null,null,null,null,null,null,null,null,null,null,null,null,0]
[null,"",{"$f":"IF(AN103>0,VLOOKUP($G103,'Codici&PrezzixRiepilogo'!B:E,4,FALSE),\"\")","v":""},null,null,null,"",null,null,{"$f":"IF(AN103>0,VLOOKUP($G103,'Codici&PrezzixRiepilogo'!B:E,2,FALSE),\"\")","v":""},null,null,null,null,null,null,null,{"$f":"IF(AN103>0,VLOOKUP($G103,'Codici&PrezzixRiepilogo'!B:E,3,FALSE),\"\")","v":""},null,"",null,0,"TS2L3-10GBESR850",null,null,null,null,null,null,null,null,null,null,null,null,null,null,null,null,0]
[null,"",{"$f":"IF(AN104>0,VLOOKUP($G104,'Codici&PrezzixRiepilogo'!B:E,4,FALSE),\"\")","v":""},null,null,null,{"$f":"IF(AN104>=1,W104,\"\")","v":""},null,null,{"$f":"IF(AN104>0,VLOOKUP($G104,'Codici&PrezzixRiepilogo'!B:E,2,FALSE),\"\")","v":""},null,null,null,null,null,null,null,{"$f":"IF(AN104>0,VLOOKUP($G104,'Codici&PrezzixRiepilogo'!B:E,3,FALSE),\"\")","v":""},null,{"$f":"IF(B104=\"\",\"\",R104*B104)","v":""},null,0,"TS2L3-NVMEKIT",null,null,null,{"$f":"'Lotto3_R7425(NVMe)'!$C$16*Riepilogo!AA15","v":0},null,null,null,null,null,null,null,null,null,null,null,null,0]
[null,"",{"$f":"IF(AN105>0,VLOOKUP($G105,'Codici&PrezzixRiepilogo'!B:E,4,FALSE),\"\")","v":""},null,null,null,"",null,null,{"$f":"IF(AN105>0,VLOOKUP($G105,'Codici&PrezzixRiepilogo'!B:E,2,FALSE),\"\")","v":""},null,null,null,null,null,null,null,{"$f":"IF(AN105>0,VLOOKUP($G105,'Codici&PrezzixRiepilogo'!B:E,3,FALSE),\"\")","v":""},null,"",null,0,"TS2L3-NVME1600",null,null,null,{"$f":"'Lotto3_R7425(NVMe)'!C89","v":0},null,null,null,null,null,null,null,null,null,null,null,null,0]
[null,"",{"$f":"IF(AN106>0,VLOOKUP($G106,'Codici&PrezzixRiepilogo'!B:E,4,FALSE),\"\")","v":""},null,null,null,{"$f":"IF(AN106>=1,W106,\"\")","v":""},null,null,{"$f":"IF(AN106>0,VLOOKUP($G106,'Codici&PrezzixRiepilogo'!B:E,2,FALSE),\"\")","v":""},null,null,null,null,null,null,null,{"$f":"IF(AN106>0,VLOOKUP($G106,'Codici&PrezzixRiepilogo'!B:E,3,FALSE),\"\")","v":""},null,{"$f":"IF(B106=\"\",\"\",R106*B106)","v":""},null,0,"TS2L3-NVME3200",null,null,null,{"$f":"'Lotto3_R7425(NVMe)'!C91","v":0},null,null,null,null,null,null,null,null,null,null,null,null,0]
[null,"",{"$f":"IF(AN107>0,VLOOKUP($G107,'Codici&PrezzixRiepilogo'!B:E,4,FALSE),\"\")","v":""},null,null,null,"",null,null,{"$f":"IF(AN107>0,VLOOKUP($G107,'Codici&PrezzixRiepilogo'!B:E,2,FALSE),\"\")","v":""},null,null,null,null,null,null,null,{"$f":"IF(AN107>0,VLOOKUP($G107,'Codici&PrezzixRiepilogo'!B:E,3,FALSE),\"\")","v":""},null,"",null,0,"TS2L3-NVME6400",null,null,null,{"$f":"'Lotto3_R7425(NVMe)'!C93","v":0},null,null,null,null,null,null,null,null,null,null,null,null,0]
[null,"",{"$f":"IF(AN108>0,VLOOKUP($G108,'Codici&PrezzixRiepilogo'!B:E,4,FALSE),\"\")","v":""},null,null,null,"",null,null,{"$f":"IF(AN108>0,VLOOKUP($G108,'Codici&PrezzixRiepilogo'!B:E,2,FALSE),\"\")","v":""},null,null,null,null,null,null,null,{"$f":"IF(AN108>0,VLOOKUP($G108,'Codici&PrezzixRiepilogo'!B:E,3,FALSE),\"\")","v":""},null,"",null,0,"TS2L3-NVME960",null,null,null,{"$f":"'Lotto3_R7425(NVMe)'!C95","v":0},null,null,null,null,null,null,null,null,null,null,null,null,0]
[null,"",{"$f":"IF(AN109>0,VLOOKUP($G109,'Codici&PrezzixRiepilogo'!B:E,4,FALSE),\"\")","v":""},null,null,null,"",null,null,{"$f":"IF(AN109>0,VLOOKUP($G109,'Codici&PrezzixRiepilogo'!B:E,2,FALSE),\"\")","v":""},null,null,null,null,null,null,null,{"$f":"IF(AN109>0,VLOOKUP($G109,'Codici&PrezzixRiepilogo'!B:E,3,FALSE),\"\")","v":""},null,"",null,0,"TS2L3-NVME1000",null,null,null,{"$f":"'Lotto3_R7425(NVMe)'!C97","v":0},null,null,null,null,null,null,null,null,null,null,null,null,0]
[null,"",{"$f":"IF(AN110>0,VLOOKUP($G110,'Codici&PrezzixRiepilogo'!B:E,4,FALSE),\"\")","v":""},null,null,null,"",null,null,{"$f":"IF(AN110>0,VLOOKUP($G110,'Codici&PrezzixRiepilogo'!B:E,2,FALSE),\"\")","v":""},null,null,null,null,null,null,null,{"$f":"IF(AN110>0,VLOOKUP($G110,'Codici&PrezzixRiepilogo'!B:E,3,FALSE),\"\")","v":""},null,"",null,0,"TS2L3-NVME4000",null,null,null,{"$f":"'Lotto3_R7425(NVMe)'!C99","v":0},null,null,null,null,null,null,null,null,null,null,null,null,0]
[null,"",{"$f":"IF(AN111>0,VLOOKUP($G111,'Codici&PrezzixRiepilogo'!B:E,4,FALSE),\"\")","v":""},null,null,null,"",null,null,{"$f":"IF(AN111>0,VLOOKUP($G111,'Codici&PrezzixRiepilogo'!B:E,2,FALSE),\"\")","v":""},null,null,null,null,null,null,null,{"$f":"IF(AN111>0,VLOOKUP($G111,'Codici&PrezzixRiepilogo'!B:E,3,FALSE),\"\")","v":""},null,"",null,0,"TS2L3-NVME3840",null,null,null,{"$f":"'Lotto3_R7425(NVMe)'!C101","v":0},null,null,null,null,null,null,null,null,null,null,null,null,0]
[null,"",{"$f":"IF(AN112>0,VLOOKUP($G112,'Codici&PrezzixRiepilogo'!B:E,4,FALSE),\"\")","v":""},null,null,null,"",null,null,{"$f":"IF(AN112>0,VLOOKUP($G112,'Codici&PrezzixRiepilogo'!B:E,2,FALSE),\"\")","v":""},null,null,null,null,null,null,null,{"$f":"IF(AN112>0,VLOOKUP($G112,'Codici&PrezzixRiepilogo'!B:E,3,FALSE),\"\")","v":""},null,"",null,0,"TS2L3-NVME375",null,null,null,{"$f":"'Lotto3_R7425(NVMe)'!C103","v":0},null,null,null,null,null,null,null,null,null,null,null,null,0]
[null,"",{"$f":"IF(AN113>0,VLOOKUP($G113,'Codici&PrezzixRiepilogo'!B:E,4,FALSE),\"\")","v":""},null,null,null,{"$f":"IF(AN113>=1,W113,\"\")","v":""},null,null,{"$f":"IF(AN113>0,VLOOKUP($G113,'Codici&PrezzixRiepilogo'!B:E,2,FALSE),\"\")","v":""},null,null,null,null,null,null,null,{"$f":"IF(AN113>0,VLOOKUP($G113,'Codici&PrezzixRiepilogo'!B:E,3,FALSE),\"\")","v":""},null,{"$f":"IF(B113=\"\",\"\",R113*B113)","v":""},null,0,"TS2L3-PDU32A",{"$f":"'Rack e Accessori'!J48","v":0},null,null,null,null,null,null,null,null,null,null,null,null,null,null,null,0]
[null,{"$f":"IF(AN114>=1,AN114,\"\")","v":""},{"$f":"IF(AN114>0,VLOOKUP($G114,'Codici&PrezzixRiepilogo'!B:E,4,FALSE),\"\")","v":""},null,null,null,"",null,null,{"$f":"IF(AN114>0,VLOOKUP($G114,'Codici&PrezzixRiepilogo'!B:E,2,FALSE),\"\")","v":""},null,null,null,null,null,null,null,{"$f":"IF(AN114>0,VLOOKUP($G114,'Codici&PrezzixRiepilogo'!B:E,3,FALSE),\"\")","v":""},null,"",null,0,"TS2L3-RACKPDU32",{"$f":"'Rack e Accessori'!J54","v":0},null,null,null,null,null,null,null,null,null,null,null,null,null,null,null,0]
[null,"TOTALE PRODOTTI CONVENZIONE (I.V.A. Esclusa)",null,null,null,null,null,null,null,null,null,null,null,null,null,null,null,{"$f":"SUM(T15:U44)","v":0},null,null,null,1]
[null,"TOTALE ULTERIORI OPZIONI (I.V.A. Esclusa)",null,null,null,null,null,null,null,null,null,null,null,null,null,null,null,{"$f":"SUM(T46:U114)","v":0},null,null,null,{"$f":"IF(R116>0,1,0)","v":0}]
[null,"TOTALE (I.V.A. Esclusa)",null,null,null,null,null,null,null,null,null,null,null,null,null,null,null,{"$f":"R116+R115","v":0},null,null,null,1]
[null,"I.V.A.",null,null,null,null,null,null,null,null,null,null,null,null,null,null,null,{"$f":"R117*22%","v":0},null,null,null,1]
[null,"TOTALE ORDINE",null,null,null,null,null,null,null,null,null,null,null,null,null,null,null,{"$f":"SUM(R117:U118)","v":0},null,null,null,1]
[null,null,null,null,null,null,null,null,null,null,null,null,null,null,null,null,null,null,null,null,null,1]
[null,null,null,null,null,null,null,null,null,null,null,null,null,null,null,null,null,null,null,null,null,1]
[null,null,null,null,null,null,null,null,null,null,null,null,null,null,null,null,null,null,null,null,null,1]
[null,null,null,{"$f":"IF(G6>0,\"DETTAGLIO CONFIGURAZIONI SERVER LOTTO 3 \",\"\")","v":"DETTAGLIO CONFIGURAZIONI SERVER LOTTO 3 "},null,null,null,null,null,null,null,null,null,null,null,null,null,null,null,null,null,1]
[null,null,null,null,null,null,null,null,null,null,null,null,null,null,null,null,null,null,null,null,null,1]
[null,null,null,null,null,null,null,null,null,null,null,null,null,null,null,null,null,null,null,null,null,1]
[null,null,null,null,null,null,null,null,null,null,null,null,null,null,null,null,null,null,null,null,null,{"$f":"IF($B$15>=\"\",0,1)","v":0}]
[null,"PowerEdge R7425 Conf.1",null,null,{"$f":"X15","v":0},"Server",null,null,"PowerEdge R7425 Conf.2",null,null,{"$f":"Y15","v":0},"Server",null,null,"PowerEdge R7425 Conf.3",null,null,{"$f":"Z15","v":0},"Server",null,{"$f":"IF($B$15>=\"\",0,1)","v":0}]
[null,null,null,null,null,null,null,null,null,null,null,null,null,null,null,null,null,null,null,null,null,{"$f":"IF($B$15>=\"\",0,1)","v":0}]
[null,{"$f":"IF(X15>0,\"1\",\"-\")","v":"-"},{"$f":"IF(B129=\"-\",\"-\",CONCATENATE(MID($C$15,1,21),\" - \",$G$15))","v":"-"},null,null,null,null,null,{"$f":"IF(Y15>0,\"1\",\"-\")","v":"-"},{"$f":"IF(I129=\"-\",\"-\",CONCATENATE(MID($C$15,1,21),\" - \",$G$15))","v":"-"},null,null,null,null,null,{"$f":"IF(Z15>0,\"1\",\"-\")","v":"-"},{"$f":"IF(P129=\"-\",\"-\",CONCATENATE(MID($C$15,1,21),\" - \",$G$15))","v":"-"},null,null,null,null,{"$f":"IF((Y129+X129+W129)>0,1,0)","v":0},{"$f":"IF(B129=\"-\",0,B129)","v":0},{"$f":"IF(I129=\"-\",0,I129)","v":0},{"$f":"IF(P129=\"-\",0,P129)","v":0}]
[null,{"$f":"IF(X16=0,\"-\",X16/$E$127)","v":"-"},{"$f":"IF(B130=\"-\",\"-\",CONCATENATE(MID(C16,1,21),\" - \",G16))","v":"-"},null,null,null,null,null,{"$f":"IF(Y16=0,\"-\",Y16/$L$127)","v":"-"},{"$f":"IF(I130=\"-\",\"-\",CONCATENATE(MID(C16,1,21),\" - \",G16))","v":"-"},null,null,null,null,null,{"$f":"IF(Z16=0,\"-\",Z16/$S$127)","v":"-"},{"$f":"IF(P130=\"-\",\"-\",CONCATENATE(MID(C16,1,21),\" - \",G16))","v":"-"},null,null,null,null,{"$f":"IF((Y130+X130+W130)>0,1,0)","v":0},0,0,0]
[null,"-","-",null,null,null,null,null,"-","-",null,null,null,null,null,"-","-",null,null,null,null,{"$f":"IF((Y131+X131+W131)>0,1,0)","v":0},0,0,0]
[null,"-","-",null,null,null,null,null,"-","-",null,null,null,null,null,"-","-",null,null,null,null,0,0,0,0]
[null,"-","-",null,null,null,null,null,"-","-",null,null,null,null,null,"-","-",null,null,null,null,{"$f":"IF((Y133+X133+W133)>0,1,0)","v":0},0,0,0]
[null,"-","-",null,null,null,null,null,"-","-",null,null,null,null,null,"-","-",null,null,null,null,0,0,0,0]
[null,"-","-",null,null,null,null,null,"-","-",null,null,null,null,null,"-","-",null,null,null,null,0,0,0,0]
[null,"-","-",null,null,null,null,null,"-","-",null,null,null,null,null,"-","-",null,null,null,null,0,0,0,0]
[null,"-","-",null,null,null,null,null,"-","-",null,null,null,null,null,"-","-",null,null,null,null,0,0,0,0]
[null,"-","-",null,null,null,null,null,"-","-",null,null,null,null,null,"-","-",null,null,null,null,0,0,0,0]
[null,"-","-",null,null,null,null,null,"-","-",null,null,null,null,null,"-","-",null,null,null,null,0,0,0,0]
[null,"-","-",null,null,null,null,null,"-","-",null,null,null,null,null,"-","-",null,null,null,null,0,0,0,0]
[null,"-","-",null,null,null,null,null,"-","-",null,null,null,null,null,"-","-",null,null,null,null,0,0,0,0]
[null,"-","-",null,null,null,null,null,"-","-",null,null,null,null,null,"-","-",null,null,null,null,0,0,0,0]
[null,"-","-",null,null,null,null,null,"-","-",null,null,null,null,null,"-","-",null,null,null,null,0,0,0,0]
[null,"-","-",null,null,null,null,null,"-","-",null,null,null,null,null,"-","-",null,null,null,null,{"$f":"IF((Y144+X144+W144)>0,1,0)","v":0},{"$f":"IF(B144=\"-\",0,B144)","v":0},{"$f":"IF(I144=\"-\",0,I144)","v":0},{"$f":"IF(P144=\"-\",0,P144)","v":0}]
[null,"-","-",null,null,null,null,null,"-","-",null,null,null,null,null,"-","-",null,null,null,null,0,0,0,0]
[null,"-","-",null,null,null,null,null,"-","-",null,null,null,null,null,"-","-",null,null,null,null,0,0,0,0]
[null,"-","-",null,null,null,null,null,"-","-",null,null,null,null,null,"-","-",null,null,null,null,0,0,0,0]
[null,"-","-",null,null,null,null,null,"-","-",null,null,null,null,null,"-","-",null,null,null,null,0,0,0,0]
[null,"-","-",null,null,null,null,null,"-","-",null,null,null,null,null,"-","-",null,null,null,null,0,0,0,0]
[null,"-","-",null,null,null,null,null,"-","-",null,null,null,null,null,"-","-",null,null,null,null,0,0,0,0]
[null,"-","-",null,null,null,null,null,"-","-",null,null,null,null,null,"-","-",null,null,null,null,0,0,0,0]
[null,"-","-",null,null,null,null,null,"-","-",null,null,null,null,null,"-","-",null,null,null,null,0,0,0,0]
[null,"-","-",null,null,null,null,null,"-","-",null,null,null,null,null,"-","-",null,null,null,null,0,0,0,0]
[null,{"$f":"IF(X46=0,\"-\",X46/$E$127)","v":"-"},{"$f":"IF(B154=\"-\",\"-\",CONCATENATE(MID(C46,1,21),\" - \",G46))","v":"-"},null,null,null,null,null,{"$f":"IF(Y46=0,\"-\",Y46/$L$127)","v":"-"},{"$f":"IF(I154=\"-\",\"-\",CONCATENATE(MID(C46,1,21),\" - \",G46))","v":"-"},null,null,null,null,null,{"$f":"IF(Z46=0,\"-\",Z46/$S$127)","v":"-"},{"$f":"IF(P154=\"-\",\"-\",CONCATENATE(MID(C46,1,21),\" - \",G46))","v":"-"},null,null,null,null,{"$f":"IF((Y154+X154+W154)>0,1,0)","v":0},{"$f":"IF(B154=\"-\",0,B154)","v":0},{"$f":"IF(I154=\"-\",0,I154)","v":0},{"$f":"IF(P154=\"-\",0,P154)","v":0}]
[null,"-","-",null,null,null,null,null,"-","-",null,null,null,null,null,"-","-",null,null,null,null,{"$f":"IF((Y155+X155+W155)>0,1,0)","v":0},{"$f":"IF(B155=\"-\",0,B155)","v":0},{"$f":"IF(I155=\"-\",0,I155)","v":0},{"$f":"IF(P155=\"-\",0,P155)","v":0}]
[null,"-","-",null,null,null,null,null,"-","-",null,null,null,null,null,"-","-",null,null,null,null,0,0,0,0]
[null,"-","-",null,null,null,null,null,"-","-",null,null,null,null,null,"-","-",null,null,null,null,0,0,0,0]
[null,"-","-",null,null,null,null,null,"-","-",null,null,null,null,null,"-","-",null,null,null,null,0,0,0,0]
[null,"-","-",null,null,null,null,null,"-","-",null,null,null,null,null,"-","-",null,null,null,null,0,0,0,0]
[null,"-","-",null,null,null,null,null,"-","-",null,null,null,null,null,"-","-",null,null,null,null,0,0,0,0]
[null,"-","-",null,null,null,null,null,"-","-",null,null,null,null,null,"-","-",null,null,null,null,0,0,0,0]
[null,"-","-",null,null,null,null,null,"-","-",null,null,null,null,null,"-","-",null,null,null,null,0,0,0,0]
[null,"-","-",null,null,null,null,null,"-","-",null,null,null,null,null,"-","-",null,null,null,null,0,0,0,0]
[null,"-","-",null,null,null,null,null,"-","-",null,null,null,null,null,"-","-",null,null,null,null,0,0,0,0]
[null,"-","-",null,null,null,null,null,"-","-",null,null,null,null,null,"-","-",null,null,null,null,0,0,0,0]
[null,"-","-",null,null,null,null,null,"-","-",null,null,null,null,null,"-","-",null,null,null,null,0,0,0,0]
[null,"-","-",null,null,null,null,null,"-","-",null,null,null,null,null,"-","-",null,null,null,null,0,0,0,0]
[null,"-","-",null,null,null,null,null,"-","-",null,null,null,null,null,"-","-",null,null,null,null,0,0,0,0]
[null,"-","-",null,null,null,null,null,"-","-",null,null,null,null,null,"-","-",null,null,null,null,0,0,0,0]
[null,"-","-",null,null,null,null,null,"-","-",null,null,null,null,null,"-","-",null,null,null,null,0,0,0,0]
[null,"-","-",null,null,null,null,null,"-","-",null,null,null,null,null,"-","-",null,null,null,null,0,0,0,0]
[null,"-","-",null,null,null,null,null,"-","-",null,null,null,null,null,"-","-",null,null,null,null,0,0,0,0]
[null,"-","-",null,null,null,null,null,"-","-",null,null,null,null,null,"-","-",null,null,null,null,0,0,0,0]
[null,"-","-",null,null,null,null,null,"-","-",null,null,null,null,null,"-","-",null,null,null,null,0,0,0,0]
[null,"-","-",null,null,null,null,null,"-","-",null,null,null,null,null,"-","-",null,null,null,null,0,0,0,0]
[null,"-","-",null,null,null,null,null,"-","-",null,null,null,null,null,"-","-",null,null,null,null,0,0,0,0]
[null,"-","-",null,null,null,null,null,"-","-",null,null,null,null,null,"-","-",null,null,null,null,0,0,0,0]
[null,"-","-",null,null,null,null,null,"-","-",null,null,null,null,null,"-","-",null,null,null,null,0,0,0,0]
[null,"-","-",null,null,null,null,null,"-","-",null,null,null,null,null,"-","-",null,null,null,null,0,0,0,0]
[null,"-","-",null,null,null,null,null,"-","-",null,null,null,null,null,"-","-",null,null,null,null,0,0,0,0]
[null,"-","-",null,null,null,null,null,"-","-",null,null,null,null,null,"-","-",null,null,null,null,0,0,0,0]
[null,"-","-",null,null,null,null,null,"-","-",null,null,null,null,null,"-","-",null,null,null,null,{"$f":"IF((Y182+X182+W182)>0,1,0)","v":0},{"$f":"IF(B182=\"-\",0,B182)","v":0},{"$f":"IF(I182=\"-\",0,I182)","v":0},{"$f":"IF(P182=\"-\",0,P182)","v":0}]
[null,"-","-",null,null,null,null,null,"-","-",null,null,null,null,null,"-","-",null,null,null,null,0,0,0,0]
[null,"-","-",null,null,null,null,null,"-","-",null,null,null,null,null,"-","-",null,null,null,null,0,0,0,0]
[null,"-","-",null,null,null,null,null,"-","-",null,null,null,null,null,"-","-",null,null,null,null,0,0,0,0]
[null,{"$f":"IF(X78=0,\"-\",X78/$E$127)","v":"-"},{"$f":"IF(B186=\"-\",\"-\",CONCATENATE(MID(C78,1,21),\" - \",G78))","v":"-"},null,null,null,null,null,{"$f":"IF(Y78=0,\"-\",Y78/$L$127)","v":"-"},{"$f":"IF(I186=\"-\",\"-\",CONCATENATE(MID(C78,1,21),\" - \",G78))","v":"-"},null,null,null,null,null,{"$f":"IF(Z78=0,\"-\",Z78/$S$127)","v":"-"},{"$f":"IF(P186=\"-\",\"-\",CONCATENATE(MID(C78,1,21),\" - \",G78))","v":"-"},null,null,null,null,0,0,0,0]
[null,"-","-",null,null,null,null,null,"-","-",null,null,null,null,null,"-","-",null,null,null,null,0,0,0,0]
[null,"-","-",null,null,null,null,null,"-","-",null,null,null,null,null,"-","-",null,null,null,null,0,0,0,0]
[null,"-","-",null,null,null,null,null,"-","-",null,null,null,null,null,"-","-",null,null,null,null,0,0,0,0]
[null,"-","-",null,null,null,null,null,"-","-",null,null,null,null,null,"-","-",null,null,null,null,0,0,0,0]
[null,"-","-",null,null,null,null,null,"-","-",null,null,null,null,null,"-","-",null,null,null,null,0,0,0,0]
[null,"-","-",null,null,null,null,null,"-","-",null,null,null,null,null,"-","-",null,null,null,null,0,0,0,0]
[null,"-","-",null,null,null,null,null,"-","-",null,null,null,null,null,"-","-",null,null,null,null,0,0,0,0]
[null,"-","-",null,null,null,null,null,"-","-",null,null,null,null,null,"-","-",null,null,null,null,0,0,0,0]
[null,"-","-",null,null,null,null,null,"-","-",null,null,null,null,null,"-","-",null,null,null,null,0,0,0,0]
[null,"-","-",null,null,null,null,null,"-","-",null,null,null,null,null,"-","-",null,null,null,null,0,0,0,0]
[null,"-","-",null,null,null,null,null,"-","-",null,null,null,null,null,"-","-",null,null,null,null,0,0,0,0]
[null,"-","-",null,null,null,null,null,"-","-",null,null,null,null,null,"-","-",null,null,null,null,0,0,0,0]
[null,"-","-",null,null,null,null,null,"-","-",null,null,null,null,null,"-","-",null,null,null,null,0,0,0,0]
[null,"-","-",null,null,null,null,null,"-","-",null,null,null,null,null,"-","-",null,null,null,null,0,0,0,0]
[null,"-","-",null,null,null,null,null,"-","-",null,null,null,null,null,"-","-",null,null,null,null,0,0,0,0]
[null,"-","-",null,null,null,null,null,"-","-",null,null,null,null,null,"-","-",null,null,null,null,0,0,0,0]
[null,"-","-",null,null,null,null,null,"-","-",null,null,null,null,null,"-","-",null,null,null,null,0,0,0,0]
[null,"-","-",null,null,null,null,null,"-","-",null,null,null,null,null,"-","-",null,null,null,null,0,0,0,0]
[null,"-","-",null,null,null,null,null,"-","-",null,null,null,null,null,"-","-",null,null,null,null,{"$f":"IF((Y205+X205+W205)>0,1,0)","v":0},{"$f":"IF(B205=\"-\",0,B205)","v":0},{"$f":"IF(I205=\"-\",0,I205)","v":0},{"$f":"IF(P205=\"-\",0,P205)","v":0}]
[null,"-","-",null,null,null,null,null,"-","-",null,null,null,null,null,"-","-",null,null,null,null,0,{"$f":"IF(B206=\"-\",0,B206)","v":0},{"$f":"IF(I206=\"-\",0,I206)","v":0},{"$f":"IF(P206=\"-\",0,P206)","v":0}]
[null,"-","-",null,null,null,null,null,"-","-",null,null,null,null,null,"-","-",null,null,null,null,0,0,0,0]
[null,"-","-",null,null,null,null,null,"-","-",null,null,null,null,null,"-","-",null,null,null,null,0,0,0,0]
[null,"-","-",null,null,null,null,null,"-","-",null,null,null,null,null,"-","-",null,null,null,null,0,0,0,0]
[null,null,null,null,null,null,null,null,null,null,null,null,null,null,null,null,null,null,null,null,null,{"$f":"IF($B$15>=\"\",0,1)","v":0}]
[null,"NOTE",null,null,null,null,null,null,"NOTE",null,null,null,null,null,null,"NOTE",null,null,null,null,null,0]
[null,null,null,null,null,null,null,null,null,null,null,null,null,null,null,null,null,null,null,null,null,0]
[null,{"$f":"'Lotto3_R7425-1'!B89","v":"Specificare la configurazione RAID per l'installazione del Sistema Operativo, se richiesto.\ne/o\ninserire eventuali note."},null,null,null,null,null,null,{"$f":"'Lotto3_R7425-2'!B89","v":"Specificare la configurazione RAID per l'installazione del Sistema Operativo, se richiesto.\ne/o\ninserire eventuali note."},null,null,null,null,null,null,{"$f":"'Lotto3_R7425-3'!B89","v":"Specificare la configurazione RAID per l'installazione del Sistema Operativo, se richiesto.\ne/o\ninserire eventuali note."},null,null,null,null,null,0]
[null,null,null,null,null,null,null,null,null,null,null,null,null,null,null,null,null,null,null,null,null,0]
[null,null,null,null,null,null,null,null,null,null,null,null,null,null,null,null,null,null,null,null,null,0]
[null,null,null,null,null,null,null,null,null,null,null,null,null,null,null,null,null,null,null,null,null,0]
[null,null,null,null,null,null,null,null,null,null,null,null,null,null,null,null,null,null,null,null,null,0]
[null,null,null,null,null,null,null,null,null,null,null,null,null,null,null,null,null,null,null,null,null,0]
[null,null,null,null,null,null,null,null,null,null,null,null,null,null,null,null,null,null,null,null,null,0]
[null,null,null,null,null,null,null,null,null,null,null,null,null,null,null,null,null,null,null,null,null,0]
[null,null,null,null,null,null,null,null,null,null,null,null,null,null,null,null,null,null,null,null,null,0]
[null,null,null,null,null,null,null,null,null,null,null,null,null,null,null,null,null,null,null,null,null,0]
[null,null,null,null,null,null,null,null,null,null,null,null,null,null,null,null,null,null,null,null,null,0]
[null,null,null,null,null,null,null,null,null,null,null,null,null,null,null,null,null,null,null,null,null,0]
[null,null,null,null,null,null,null,null,null,null,null,null,null,null,null,null,null,null,null,null,null,0]
[null,null,null,null,null,null,null,null,null,null,null,null,null,null,null,null,null,null,null,null,null,0]
[null,null,null,null,null,null,null,null,null,null,null,null,null,null,null,null,null,null,null,null,null,0]
[null,null,null,null,null,null,null,null,null,null,null,null,null,null,null,null,null,null,null,null,null,0]
[null,null,null,null,null,null,null,null,null,null,null,null,null,null,null,null,null,null,null,null,null,0]
[null,null,null,null,null,null,null,null,null,null,null,null,null,null,null,null,null,null,null,null,null,0]
[null,null,null,null,null,null,null,null,null,null,null,null,null,null,null,null,null,null,null,null,null,{"$f":"IF($E$232+$L$232+$S$232=0,0,1)","v":0}]
[null,"PowerEdge R7425 NVMe",null,null,{"$f":"AA15","v":0},null,null,null,"PowerEdge R7425 GPU DW",null,null,{"$f":"AB15","v":0},"Server",null,null,"PowerEdge R7425 GPU SW",null,null,{"$f":"AC15","v":0},null,null,{"$f":"IF($E$232+$L$232+$S$232=0,0,1)","v":0}]
[null,null,null,null,null,null,null,null,null,null,null,null,null,null,null,null,null,null,null,null,null,0]
[null,{"$f":"IF(E232>0,\"1\",\"-\")","v":"-"},{"$f":"IF(B234=\"-\",\"-\",CONCATENATE(MID($C$15,1,21),\" - \",$G$15))","v":"-"},null,null,null,null,null,{"$f":"IF(L232>0,\"1\",\"-\")","v":"-"},{"$f":"IF(I234=\"-\",\"-\",CONCATENATE(MID($C$15,1,21),\" - \",$G$15))","v":"-"},null,null,null,null,null,{"$f":"IF(S232>0,\"1\",\"-\")","v":"-"},{"$f":"IF(P234=\"-\",\"-\",CONCATENATE(MID($C$15,1,21),\" - \",$G$15))","v":"-"},null,null,null,null,{"$f":"IF((Y234+X234+W234)>0,1,0)","v":0},{"$f":"IF(B234=\"-\",0,B234)","v":0},{"$f":"IF(I234=\"-\",0,I234)","v":0},{"$f":"IF(P234=\"-\",0,P234)","v":0}]
[null,{"$f":"IF(AA16=0,\"-\",AA16/$E$232)","v":"-"},{"$f":"IF(B235=\"-\",\"-\",CONCATENATE(MID($C$16,1,21),\" - \",$G$16))","v":"-"},null,null,null,null,null,{"$f":"IF(AB16=0,\"-\",AB16/$L$232)","v":"-"},{"$f":"IF(I235=\"-\",\"-\",CONCATENATE(MID($C$16,1,21),\" - \",$G$16))","v":"-"},null,null,null,null,null,{"$f":"IF(AC16=0,\"-\",AC16/$S$232)","v":"-"},{"$f":"IF(P235=\"-\",\"-\",CONCATENATE(MID($C$16,1,21),\" - \",$G$16))","v":"-"},null,null,null,null,{"$f":"IF((Y235+X235+W235)>0,1,0)","v":0},0,0,0]
[null,{"$f":"IF(AA17=0,\"-\",AA17/$E$232)","v":"-"},{"$f":"IF(B236=\"-\",\"-\",CONCATENATE(MID($C$17,1,21),\" - \",$G$17))","v":"-"},null,null,null,null,null,"-",{"$f":"IF(I236=\"-\",\"-\",CONCATENATE(MID($C$17,1,21),\" - \",$G$17))","v":"-"},null,null,null,null,null,"-",{"$f":"IF(P236=\"-\",\"-\",CONCATENATE(MID($C$17,1,21),\" - \",$G$17))","v":"-"},null,null,null,null,0,0,0,0]
[null,"-",{"$f":"IF(B237=\"-\",\"-\",CONCATENATE(MID($C$18,1,21),\" - \",$G$18))","v":"-"},null,null,null,null,null,"-",{"$f":"IF(I237=\"-\",\"-\",CONCATENATE(MID($C$18,1,21),\" - \",$G$18))","v":"-"},null,null,null,null,null,"-",{"$f":"IF(P237=\"-\",\"-\",CONCATENATE(MID($C$18,1,21),\" - \",$G$18))","v":"-"},null,null,null,null,0,0,0,0]
[null,"-",{"$f":"IF(B238=\"-\",\"-\",CONCATENATE(MID($C$19,1,21),\" - \",$G$19))","v":"-"},null,null,null,null,null,"-",{"$f":"IF(I238=\"-\",\"-\",CONCATENATE(MID($C$19,1,21),\" - \",$G$19))","v":"-"},null,null,null,null,null,"-",{"$f":"IF(P238=\"-\",\"-\",CONCATENATE(MID($C$19,1,21),\" - \",$G$19))","v":"-"},null,null,null,null,0,0,0,0]
[null,"-",{"$f":"IF(B239=\"-\",\"-\",CONCATENATE(MID($C$20,1,21),\" - \",$G$20))","v":"-"},null,null,null,null,null,"-",{"$f":"IF(I239=\"-\",\"-\",CONCATENATE(MID($C$20,1,21),\" - \",$G$20))","v":"-"},null,null,null,null,null,"-",{"$f":"IF(P239=\"-\",\"-\",CONCATENATE(MID($C$20,1,21),\" - \",$G$20))","v":"-"},null,null,null,null,0,0,0,0]
[null,"-",{"$f":"IF(B240=\"-\",\"-\",CONCATENATE(MID($C$21,1,21),\" - \",$G$21))","v":"-"},null,null,null,null,null,"-",{"$f":"IF(I240=\"-\",\"-\",CONCATENATE(MID($C$21,1,21),\" - \",$G$21))","v":"-"},null,null,null,null,null,"-",{"$f":"IF(P240=\"-\",\"-\",CONCATENATE(MID($C$21,1,21),\" - \",$G$21))","v":"-"},null,null,null,null,0,0,0,0]
[null,"-",{"$f":"IF(B241=\"-\",\"-\",CONCATENATE(MID($C$22,1,21),\" - \",$G$22))","v":"-"},null,null,null,null,null,"-",{"$f":"IF(I241=\"-\",\"-\",CONCATENATE(MID($C$22,1,21),\" - \",$G$22))","v":"-"},null,null,null,null,null,"-",{"$f":"IF(P241=\"-\",\"-\",CONCATENATE(MID($C$22,1,21),\" - \",$G$22))","v":"-"},null,null,null,null,0,0,0,0]
[null,"-",{"$f":"IF(B242=\"-\",\"-\",CONCATENATE(MID($C$23,1,21),\" - \",$G$23))","v":"-"},null,null,null,null,null,"-",{"$f":"IF(I242=\"-\",\"-\",CONCATENATE(MID($C$23,1,21),\" - \",$G$23))","v":"-"},null,null,null,null,null,"-",{"$f":"IF(P242=\"-\",\"-\",CONCATENATE(MID($C$23,1,21),\" - \",$G$23))","v":"-"},null,null,null,null,0,0,0,0]
[null,"-",{"$f":"IF(B243=\"-\",\"-\",CONCATENATE(MID($C$24,1,21),\" - \",$G$24))","v":"-"},null,null,null,null,null,"-",{"$f":"IF(I243=\"-\",\"-\",CONCATENATE(MID($C$24,1,21),\" - \",$G$24))","v":"-"},null,null,null,null,null,"-",{"$f":"IF(P243=\"-\",\"-\",CONCATENATE(MID($C$24,1,21),\" - \",$G$24))","v":"-"},null,null,null,null,0,0,0,0]
[null,"-",{"$f":"IF(B244=\"-\",\"-\",CONCATENATE(MID($C$25,1,21),\" - \",$G$25))","v":"-"},null,null,null,null,null,"-",{"$f":"IF(I244=\"-\",\"-\",CONCATENATE(MID($C$25,1,21),\" - \",$G$25))","v":"-"},null,null,null,null,null,"-",{"$f":"IF(P244=\"-\",\"-\",CONCATENATE(MID($C$25,1,21),\" - \",$G$25))","v":"-"},null,null,null,null,0,0,0,0]
[null,"-",{"$f":"IF(B245=\"-\",\"-\",CONCATENATE(MID($C$26,1,21),\" - \",$G$26))","v":"-"},null,null,null,null,null,"-",{"$f":"IF(I245=\"-\",\"-\",CONCATENATE(MID($C$26,1,21),\" - \",$G$26))","v":"-"},null,null,null,null,null,"-",{"$f":"IF(P245=\"-\",\"-\",CONCATENATE(MID($C$26,1,21),\" - \",$G$26))","v":"-"},null,null,null,null,0,0,0,0]
[null,"-",{"$f":"IF(B246=\"-\",\"-\",CONCATENATE(MID($C$27,1,21),\" - \",$G$27))","v":"-"},null,null,null,null,null,"-",{"$f":"IF(I246=\"-\",\"-\",CONCATENATE(MID($C$27,1,21),\" - \",$G$27))","v":"-"},null,null,null,null,null,"-",{"$f":"IF(P246=\"-\",\"-\",CONCATENATE(MID($C$27,1,21),\" - \",$G$27))","v":"-"},null,null,null,null,0,0,0,0]
[null,"-",{"$f":"IF(B247=\"-\",\"-\",CONCATENATE(MID($C$28,1,21),\" - \",$G$28))","v":"-"},null,null,null,null,null,"-",{"$f":"IF(I247=\"-\",\"-\",CONCATENATE(MID($C$28,1,21),\" - \",$G$28))","v":"-"},null,null,null,null,null,"-",{"$f":"IF(P247=\"-\",\"-\",CONCATENATE(MID($C$28,1,21),\" - \",$G$28))","v":"-"},null,null,null,null,0,0,0,0]
[null,"-",{"$f":"IF(B248=\"-\",\"-\",CONCATENATE(MID($C$29,1,21),\" - \",$G$29))","v":"-"},null,null,null,null,null,"-",{"$f":"IF(I248=\"-\",\"-\",CONCATENATE(MID($C$29,1,21),\" - \",$G$29))","v":"-"},null,null,null,null,null,"-",{"$f":"IF(P248=\"-\",\"-\",CONCATENATE(MID($C$29,1,21),\" - \",$G$29))","v":"-"},null,null,null,null,0,0,0,0]
[null,"-",{"$f":"IF(B249=\"-\",\"-\",CONCATENATE(MID($C$30,1,21),\" - \",$G$30))","v":"-"},null,null,null,null,null,"-",{"$f":"IF(I249=\"-\",\"-\",CONCATENATE(MID($C$30,1,21),\" - \",$G$30))","v":"-"},null,null,null,null,null,"-",{"$f":"IF(P249=\"-\",\"-\",CONCATENATE(MID($C$30,1,21),\" - \",$G$30))","v":"-"},null,null,null,null,0,0,0,0]
[null,"-",{"$f":"IF(B250=\"-\",\"-\",CONCATENATE(MID($C$31,1,21),\" - \",$G$31))","v":"-"},null,null,null,null,null,"-",{"$f":"IF(I250=\"-\",\"-\",CONCATENATE(MID($C$31,1,21),\" - \",$G$31))","v":"-"},null,null,null,null,null,"-",{"$f":"IF(P250=\"-\",\"-\",CONCATENATE(MID($C$31,1,21),\" - \",$G$31))","v":"-"},null,null,null,null,0,0,0,0]
[null,"-",{"$f":"IF(B251=\"-\",\"-\",CONCATENATE(MID($C$32,1,21),\" - \",$G$32))","v":"-"},null,null,null,null,null,"-",{"$f":"IF(I251=\"-\",\"-\",CONCATENATE(MID($C$32,1,21),\" - \",$G$32))","v":"-"},null,null,null,null,null,"-",{"$f":"IF(P251=\"-\",\"-\",CONCATENATE(MID($C$32,1,21),\" - \",$G$32))","v":"-"},null,null,null,null,0,0,0,0]
[null,"-",{"$f":"IF(B252=\"-\",\"-\",CONCATENATE(MID($C$33,1,21),\" - \",$G$33))","v":"-"},null,null,null,null,null,"-",{"$f":"IF(I252=\"-\",\"-\",CONCATENATE(MID($C$33,1,21),\" - \",$G$33))","v":"-"},null,null,null,null,null,"-",{"$f":"IF(P252=\"-\",\"-\",CONCATENATE(MID($C$33,1,21),\" - \",$G$33))","v":"-"},null,null,null,null,0,0,0,0]
[null,"-",{"$f":"IF(B253=\"-\",\"-\",CONCATENATE(MID($C$34,1,21),\" - \",$G$34))","v":"-"},null,null,null,null,null,"-",{"$f":"IF(I253=\"-\",\"-\",CONCATENATE(MID($C$34,1,21),\" - \",$G$34))","v":"-"},null,null,null,null,null,"-",{"$f":"IF(P253=\"-\",\"-\",CONCATENATE(MID($C$34,1,21),\" - \",$G$34))","v":"-"},null,null,null,null,0,0,0,0]
[null,"-",{"$f":"IF(B254=\"-\",\"-\",CONCATENATE(MID($C$35,1,21),\" - \",$G$35))","v":"-"},null,null,null,null,null,"-",{"$f":"IF(I254=\"-\",\"-\",CONCATENATE(MID($C$35,1,21),\" - \",$G$35))","v":"-"},null,null,null,null,null,"-",{"$f":"IF(P254=\"-\",\"-\",CONCATENATE(MID($C$35,1,21),\" - \",$G$35))","v":"-"},null,null,null,null,0,0,0,0]
[null,"-",{"$f":"IF(B255=\"-\",\"-\",CONCATENATE(MID($C$36,1,21),\" - \",$G$36))","v":"-"},null,null,null,null,null,"-",{"$f":"IF(I255=\"-\",\"-\",CONCATENATE(MID($C$36,1,21),\" - \",$G$36))","v":"-"},null,null,null,null,null,"-",{"$f":"IF(P255=\"-\",\"-\",CONCATENATE(MID($C$36,1,21),\" - \",$G$36))","v":"-"},null,null,null,null,0,0,0,0]
[null,"-",{"$f":"IF(B256=\"-\",\"-\",CONCATENATE(MID($C$37,1,21),\" - \",$G$37))","v":"-"},null,null,null,null,null,"-",{"$f":"IF(I256=\"-\",\"-\",CONCATENATE(MID($C$37,1,21),\" - \",$G$37))","v":"-"},null,null,null,null,null,"-",{"$f":"IF(P256=\"-\",\"-\",CONCATENATE(MID($C$37,1,21),\" - \",$G$37))","v":"-"},null,null,null,null,0,0,0,0]
[null,"-",{"$f":"IF(B257=\"-\",\"-\",CONCATENATE(MID($C$38,1,21),\" - \",$G$38))","v":"-"},null,null,null,null,null,"-",{"$f":"IF(I257=\"-\",\"-\",CONCATENATE(MID($C$38,1,21),\" - \",$G$38))","v":"-"},null,null,null,null,null,"-",{"$f":"IF(P257=\"-\",\"-\",CONCATENATE(MID($C$38,1,21),\" - \",$G$38))","v":"-"},null,null,null,null,0,0,0,0]
[null,"-",{"$f":"IF(B258=\"-\",\"-\",CONCATENATE(MID($C$39,1,21),\" - \",$G$39))","v":"-"},null,null,null,null,null,"-",{"$f":"IF(I258=\"-\",\"-\",CONCATENATE(MID($C$39,1,21),\" - \",$G$39))","v":"-"},null,null,null,null,null,"-",{"$f":"IF(P258=\"-\",\"-\",CONCATENATE(MID($C$39,1,21),\" - \",$G$39))","v":"-"},null,null,null,null,0,0,0,0]
[null,{"$f":"IF(AA46=0,\"-\",AA46/$E$232)","v":"-"},{"$f":"IF(B259=\"-\",\"-\",CONCATENATE(MID($C46,1,21),\" - \",$G46))","v":"-"},null,null,null,null,null,{"$f":"IF(AB46=0,\"-\",AB46/$L$232)","v":"-"},{"$f":"IF(I259=\"-\",\"-\",CONCATENATE(MID(C46,1,21),\" - \",G46))","v":"-"},null,null,null,null,null,{"$f":"IF(AC46=0,\"-\",AC46/$S$232)","v":"-"},{"$f":"IF(P259=\"-\",\"-\",CONCATENATE(MID(C46,1,21),\" - \",G46))","v":"-"},null,null,null,null,0,0,0,0]
[null,{"$f":"IF(AA47=0,\"-\",AA47/$E$232)","v":"-"},{"$f":"IF(B260=\"-\",\"-\",CONCATENATE(MID($C47,1,21),\" - \",$G47))","v":"-"},null,null,null,null,null,"-","-",null,null,null,null,null,"-","-",null,null,null,null,0,{"$f":"IF(B260=\"-\",0,B260)","v":0},{"$f":"IF(I260=\"-\",0,I260)","v":0},{"$f":"IF(P260=\"-\",0,P260)","v":0}]
[null,"-","-",null,null,null,null,null,"-","-",null,null,null,null,null,"-","-",null,null,null,null,0,0,0,0]
[null,"-","-",null,null,null,null,null,"-","-",null,null,null,null,null,"-","-",null,null,null,null,0,0,0,0]
[null,"-","-",null,null,null,null,null,"-","-",null,null,null,null,null,"-","-",null,null,null,null,0,0,0,0]
[null,"-","-",null,null,null,null,null,"-","-",null,null,null,null,null,"-","-",null,null,null,null,0,0,0,0]
[null,"-","-",null,null,null,null,null,"-","-",null,null,null,null,null,"-","-",null,null,null,null,0,0,0,0]
[null,"-","-",null,null,null,null,null,"-","-",null,null,null,null,null,"-","-",null,null,null,null,0,0,0,0]
[null,"-","-",null,null,null,null,null,"-","-",null,null,null,null,null,"-","-",null,null,null,null,0,0,0,0]
[null,"-","-",null,null,null,null,null,"-","-",null,null,null,null,null,"-","-",null,null,null,null,0,0,0,0]
[null,"-","-",null,null,null,null,null,"-","-",null,null,null,null,null,"-","-",null,null,null,null,{"$f":"IF((Y269+X269+W269)>0,1,0)","v":0},{"$f":"IF(B269=\"-\",0,B269)","v":0},{"$f":"IF(I269=\"-\",0,I269)","v":0},{"$f":"IF(P269=\"-\",0,P269)","v":0}]
[null,"-","-",null,null,null,null,null,"-","-",null,null,null,null,null,"-","-",null,null,null,null,0,0,0,0]
[null,"-","-",null,null,null,null,null,"-","-",null,null,null,null,null,"-","-",null,null,null,null,0,0,0,0]
[null,"-","-",null,null,null,null,null,"-","-",null,null,null,null,null,"-","-",null,null,null,null,0,0,0,0]
[null,"-","-",null,null,null,null,null,"-","-",null,null,null,null,null,"-","-",null,null,null,null,0,0,0,0]
[null,"-","-",null,null,null,null,null,"-","-",null,null,null,null,null,"-","-",null,null,null,null,0,0,0,0]
[null,"-","-",null,null,null,null,null,"-","-",null,null,null,null,null,"-","-",null,null,null,null,0,0,0,0]
[null,"-","-",null,null,null,null,null,"-","-",null,null,null,null,null,"-","-",null,null,null,null,0,0,0,0]
[null,"-","-",null,null,null,null,null,"-","-",null,null,null,null,null,"-","-",null,null,null,null,0,0,0,0]
[null,"-","-",null,null,null,null,null,"-","-",null,null,null,null,null,"-","-",null,null,null,null,0,0,0,0]
[null,"-","-",null,null,null,null,null,"-","-",null,null,null,null,null,"-","-",null,null,null,null,0,0,0,0]
[null,"-","-",null,null,null,null,null,"-","-",null,null,null,null,null,"-","-",null,null,null,null,0,0,0,0]
[null,"-","-",null,null,null,null,null,"-","-",null,null,null,null,null,"-","-",null,null,null,null,0,0,0,0]
[null,"-","-",null,null,null,null,null,"-","-",null,null,null,null,null,"-","-",null,null,null,null,0,0,0,0]
[null,"-","-",null,null,null,null,null,"-","-",null,null,null,null,null,"-","-",null,null,null,null,0,0,0,0]
[null,"-","-",null,null,null,null,null,"-","-",null,null,null,null,null,"-","-",null,null,null,null,0,0,0,0]
[null,"-","-",null,null,null,null,null,"-","-",null,null,null,null,null,"-","-",null,null,null,null,0,0,0,0]
[null,"-","-",null,null,null,null,null,"-","-",null,null,null,null,null,"-","-",null,null,null,null,0,0,0,0]
[null,"-","-",null,null,null,null,null,"-","-",null,null,null,null,null,"-","-",null,null,null,null,0,0,0,0]
[null,"-","-",null,null,null,null,null,"-","-",null,null,null,null,null,"-","-",null,null,null,null,0,0,0,0]
[null,"-","-",null,null,null,null,null,"-","-",null,null,null,null,null,"-","-",null,null,null,null,0,0,0,0]
[null,"-","-",null,null,null,null,null,"-","-",null,null,null,null,null,"-","-",null,null,null,null,0,0,0,0]
[null,"-","-",null,null,null,null,null,{"$f":"IF(AB78=0,\"-\",AB78/$L$232)","v":"-"},{"$f":"IF(I291=\"-\",\"-\",CONCATENATE(MID(C78,1,21),\" - \",G78))","v":"-"},null,null,null,null,null,{"$f":"IF(AC78=0,\"-\",AC78/$S$232)","v":"-"},{"$f":"IF(P291=\"-\",\"-\",CONCATENATE(MID(C78,1,21),\" - \",G78))","v":"-"},null,null,null,null,0,0,0,0]
[null,"-","-",null,null,null,null,null,"-","-",null,null,null,null,null,"-","-",null,null,null,null,0,0,0,0]
[null,"-","-",null,null,null,null,null,"-","-",null,null,null,null,null,"-","-",null,null,null,null,0,0,0,0]
[null,"-","-",null,null,null,null,null,"-","-",null,null,null,null,null,"-","-",null,null,null,null,0,0,0,0]
[null,"-","-",null,null,null,null,null,"-","-",null,null,null,null,null,"-","-",null,null,null,null,0,0,0,0]
[null,"-","-",null,null,null,null,null,"-","-",null,null,null,null,null,"-","-",null,null,null,null,0,0,0,0]
[null,"-","-",null,null,null,null,null,"-","-",null,null,null,null,null,"-","-",null,null,null,null,0,0,0,0]
[null,"-","-",null,null,null,null,null,"-","-",null,null,null,null,null,"-","-",null,null,null,null,0,0,0,0]
[null,"-","-",null,null,null,null,null,"-","-",null,null,null,null,null,"-","-",null,null,null,null,0,0,0,0]
[null,"-","-",null,null,null,null,null,"-","-",null,null,null,null,null,"-","-",null,null,null,null,0,0,0,0]
[null,"-","-",null,null,null,null,null,"-","-",null,null,null,null,null,"-","-",null,null,null,null,0,0,0,0]
[null,"-","-",null,null,null,null,null,"-","-",null,null,null,null,null,"-","-",null,null,null,null,0,0,0,0]
[null,"-","-",null,null,null,null,null,"-","-",null,null,null,null,null,"-","-",null,null,null,null,0,0,0,0]
[null,"-","-",null,null,null,null,null,"-","-",null,null,null,null,null,"-","-",null,null,null,null,0,0,0,0]
[null,"-","-",null,null,null,null,null,"-","-",null,null,null,null,null,"-","-",null,null,null,null,0,0,0,0]
[null,"-","-",null,null,null,null,null,"-","-",null,null,null,null,null,"-","-",null,null,null,null,0,0,0,0]
[null,"-","-",null,null,null,null,null,"-","-",null,null,null,null,null,"-","-",null,null,null,null,0,0,0,0]
[null,"-","-",null,null,null,null,null,"-","-",null,null,null,null,null,"-","-",null,null,null,null,0,0,0,0]
[null,"-","-",null,null,null,null,null,"-","-",null,null,null,null,null,"-","-",null,null,null,null,0,0,0,0]
[null,"-","-",null,null,null,null,null,"-","-",null,null,null,null,null,"-","-",null,null,null,null,{"$f":"IF((Y310+X310+W310)>0,1,0)","v":0},{"$f":"IF(B310=\"-\",0,B310)","v":0},{"$f":"IF(I310=\"-\",0,I310)","v":0},{"$f":"IF(P310=\"-\",0,P310)","v":0}]
[null,"-","-",null,null,null,null,null,"-","-",null,null,null,null,null,"-","-",null,null,null,null,0,{"$f":"IF(B311=\"-\",0,B311)","v":0},{"$f":"IF(I311=\"-\",0,I311)","v":0},{"$f":"IF(P311=\"-\",0,P311)","v":0}]
[null,"-","-",null,null,null,null,null,"-","-",null,null,null,null,null,"-","-",null,null,null,null,0,0,0,0]
[null,"-","-",null,null,null,null,null,"-","-",null,null,null,null,null,"-","-",null,null,null,null,0,0,0,0]
[null,"-","-",null,null,null,null,null,"-","-",null,null,null,null,null,"-","-",null,null,null,null,0,0,0,0]
[null,"-","-",null,null,null,null,null,null,null,null,null,null,null,null,null,null,null,null,null,null,{"$f":"IF((Y315+X315+W315)>0,1,0)","v":0},{"$f":"IF(B315=\"-\",0,B315)","v":0},{"$f":"IF(I315=\"-\",0,I315)","v":0},{"$f":"IF(P315=\"-\",0,P315)","v":0}]
[null,"-","-",null,null,null,null,null,null,null,null,null,null,null,null,null,null,null,null,null,null,0,0,0,0]
[null,"-","-",null,null,null,null,null,null,null,null,null,null,null,null,null,null,null,null,null,null,0,0,0,0]
[null,"-","-",null,null,null,null,null,null,null,null,null,null,null,null,null,null,null,null,null,null,0,0,0,0]
[null,"-","-",null,null,null,null,null,null,null,null,null,null,null,null,null,null,null,null,null,null,0,0,0,0]
[null,"-","-",null,null,null,null,null,null,null,null,null,null,null,null,null,null,null,null,null,null,0,0,0,0]
[null,"-","-",null,null,null,null,null,null,null,null,null,null,null,null,null,null,null,null,null,null,0,0,0,0]
[null,"-","-",null,null,null,null,null,null,null,null,null,null,null,null,null,null,null,null,null,null,0,0,0,0]
[null,"-","-",null,null,null,null,null,null,null,null,null,null,null,null,null,null,null,null,null,null,0,0,0,0]
[null,"-","-",null,null,null,null,null,null,null,null,null,null,null,null,null,null,null,null,null,null,{"$f":"IF((Y324+X324+W324)>0,1,0)","v":0},{"$f":"IF(B324=\"-\",0,B324)","v":0},{"$f":"IF(I324=\"-\",0,I324)","v":0},{"$f":"IF(P324=\"-\",0,P324)","v":0}]
[null,{"$f":"IF(AA112=0,\"-\",AA112/$E$232)","v":"-"},{"$f":"IF(B325=\"-\",\"-\",CONCATENATE(MID($C112,1,21),\" - \",$G112))","v":"-"},null,null,null,null,null,null,null,null,null,null,null,null,null,null,null,null,null,null,0,0,0,0]
[null,null,null,null,null,null,null,null,null,null,null,null,null,null,null,null,null,null,null,null,null,{"$f":"IF($E$232+$L$232+$S$232=0,0,1)","v":0}]
[null,"NOTE",null,null,null,null,null,null,"NOTE",null,null,null,null,null,null,"NOTE",null,null,null,null,null,0]
[null,null,null,null,null,null,null,null,null,null,null,null,null,null,null,null,null,null,null,null,null,0]
[null,{"$f":"'Lotto3_R7425(NVMe)'!B109:C109","v":"Specificare la configurazione RAID per l'installazione del Sistema Operativo, se richiesto.\ne/o\ninserire eventuali note."},null,null,null,null,null,null,{"$f":"'Lotto3_R7425(GPU DW)'!B89","v":"Specificare la configurazione RAID per l'installazione del Sistema Operativo, se richiesto.\ne/o\ninserire eventuali note."},null,null,null,null,null,null,{"$f":"'Lotto3_R7425(GPU SW)'!B89","v":"Specificare la configurazione RAID per l'installazione del Sistema Operativo, se richiesto.\ne/o\ninserire eventuali note."},null,null,null,null,null,0]
[null,null,null,null,null,null,null,null,null,null,null,null,null,null,null,null,null,null,null,null,null,0]
[null,null,null,null,null,null,null,null,null,null,null,null,null,null,null,null,null,null,null,null,null,0]
[null,null,null,null,null,null,null,null,null,null,null,null,null,null,null,null,null,null,null,null,null,0]
[null,null,null,null,null,null,null,null,null,null,null,null,null,null,null,null,null,null,null,null,null,0]
[null,null,null,null,null,null,null,null,null,null,null,null,null,null,null,null,null,null,null,null,null,0]
[null,null,null,null,null,null,null,null,null,null,null,null,null,null,null,null,null,null,null,null,null,0]
[null,null,null,null,null,null,null,null,null,null,null,null,null,null,null,null,null,null,null,null,null,0]
[null,null,null,null,null,null,null,null,null,null,null,null,null,null,null,null,null,null,null,null,null,0]
[null,null,null,null,null,null,null,null,null,null,null,null,null,null,null,null,null,null,null,null,null,0]
[null,null,null,null,null,null,null,null,null,null,null,null,null,null,null,null,null,null,null,null,null,0]
[null,null,null,null,null,null,null,null,null,null,null,null,null,null,null,null,null,null,null,null,null,0]
[null,null,null,null,null,null,null,null,null,null,null,null,null,null,null,null,null,null,null,null,null,0]
[null,null,null,null,null,null,null,null,null,null,null,null,null,null,null,null,null,null,null,null,null,0]
[null,null,null,null,null,null,null,null,null,null,null,null,null,null,null,null,null,null,null,null,null,0]
[null,null,null,null,null,null,null,null,null,null,null,null,null,null,null,null,null,null,null,null,null,0]
[null,null,null,null,null,null,null,null,null,null,null,null,null,null,null,null,null,null,null,null,null,0]
[null,null,null,null,null,null,null,null,null,null,null,null,null,null,null,null,null,null,null,null,null,0]
[null,null,null,null,null,null,null,null,null,null,null,null,null,null,null,null,null,null,null,null,null,1]
[null,null,null,null,null,null,null,null,null,null,null,null,null,null,null,null,null,null,null,null,null,1]
[null,null,null,{"$f":"MID(C347,13,5)","v":""},null,{"$f":"MID(E347,13,5)","v":""},null,"",null,"",null,"",null,"",null,"",null,"",null,"",null,1]
[null,null,null,"AREA RISERVATA AL FORNITORE",null,null,null,null,null,null,null,null,null,null,null,null,null,null,null,null,null,1]
[null,null,null,null,null,null,null,null,null,null,null,null,null,null,null,null,null,null,null,null,null,1]
[null,null,null,null,null,null,null,null,null,null,null,null,null,null,null,null,null,null,null,null,null,1]
[null,null,"VERIFICA STAGING",null,null,null,null,null,null,null,null,null,null,null,"VERIFICA INSTALLATORE",null,null,null,null,null,null,1]
[null,null,null,null,null,null,null,null,null,null,null,null,null,null,null,null,null,null,null,null,null,1]
[null,null,null,null,null,null,null,null,null,null,null,null,null,null,null,null,null,null,null,null,null,1]
[null,null,null,null,null,null,null,null,null,null,null,null,null,null,null,null,null,null,null,null,null,1]
[null,null,null,null,null,null,null,null,null,null,null,null,null,null,null,null,null,null,null,null,null,1]
[null,null,null,null,null,null,null,null,null,null,null,null,null,null,null,null,null,null,null,null,null,1]

{"sheet":"Foglio1","index":8,"n_rows":87,"n_cols":4,"rows_kept":87,"cut":false,"hidden":true,"merged":[]}
[{"$f":"Riepilogo!E127","v":0}]
[{"$f":"Riepilogo!B129","v":"-"},{"$f":"Riepilogo!C129","v":"-"},null,{"$f":"IF(A2+A3=2,\"TS2L3-SRV2CPU\",B2)","v":{"$error":"#VALUE!"}}]
[{"$f":"Riepilogo!B130","v":"-"},{"$f":"Riepilogo!C130","v":"-"}]
[{"$f":"Riepilogo!B131","v":"-"},{"$f":"Riepilogo!C131","v":"-"}]
[{"$f":"Riepilogo!B132","v":"-"},{"$f":"Riepilogo!C132","v":"-"}]
[{"$f":"Riepilogo!B133","v":"-"},{"$f":"Riepilogo!C133","v":"-"}]
[{"$f":"Riepilogo!B134","v":"-"},{"$f":"Riepilogo!C134","v":"-"}]
[{"$f":"Riepilogo!B135","v":"-"},{"$f":"Riepilogo!C135","v":"-"}]
[{"$f":"Riepilogo!B136","v":"-"},{"$f":"Riepilogo!C136","v":"-"}]
[{"$f":"Riepilogo!B137","v":"-"},{"$f":"Riepilogo!C137","v":"-"}]
[{"$f":"Riepilogo!B138","v":"-"},{"$f":"Riepilogo!C138","v":"-"}]
[{"$f":"Riepilogo!B139","v":"-"},{"$f":"Riepilogo!C139","v":"-"}]
[{"$f":"Riepilogo!B140","v":"-"},{"$f":"Riepilogo!C140","v":"-"}]
[{"$f":"Riepilogo!B141","v":"-"},{"$f":"Riepilogo!C141","v":"-"}]
[{"$f":"Riepilogo!B142","v":"-"},{"$f":"Riepilogo!C142","v":"-"}]
[{"$f":"Riepilogo!B143","v":"-"},{"$f":"Riepilogo!C143","v":"-"}]
[{"$f":"Riepilogo!B144","v":"-"},{"$f":"Riepilogo!C144","v":"-"}]
[{"$f":"Riepilogo!B145","v":"-"},{"$f":"Riepilogo!C145","v":"-"}]
[{"$f":"Riepilogo!B146","v":"-"},{"$f":"Riepilogo!C146","v":"-"}]
[{"$f":"Riepilogo!B147","v":"-"},{"$f":"Riepilogo!C147","v":"-"}]
[{"$f":"Riepilogo!B148","v":"-"},{"$f":"Riepilogo!C148","v":"-"}]
[{"$f":"Riepilogo!B149","v":"-"},{"$f":"Riepilogo!C149","v":"-"}]
[{"$f":"Riepilogo!B150","v":"-"},{"$f":"Riepilogo!C150","v":"-"}]
[{"$f":"Riepilogo!B151","v":"-"},{"$f":"Riepilogo!C151","v":"-"}]
[{"$f":"Riepilogo!B152","v":"-"},{"$f":"Riepilogo!C152","v":"-"}]
[{"$f":"Riepilogo!B153","v":"-"},{"$f":"Riepilogo!C153","v":"-"}]
[{"$f":"Riepilogo!#REF!","v":{"$error":"#REF!"}},{"$f":"Riepilogo!#REF!","v":{"$error":"#REF!"}}]
[{"$f":"Riepilogo!B154","v":"-"},{"$f":"Riepilogo!C154","v":"-"}]
[]
[{"$f":"Riepilogo!L127","v":0}]
[{"$f":"Riepilogo!I129","v":"-"},{"$f":"Riepilogo!J129","v":"-"}]
[{"$f":"Riepilogo!I130","v":"-"},{"$f":"Riepilogo!J130","v":"-"}]
[{"$f":"Riepilogo!I131","v":"-"},{"$f":"Riepilogo!J131","v":"-"}]
[{"$f":"Riepilogo!I132","v":"-"},{"$f":"Riepilogo!J132","v":"-"}]
[{"$f":"Riepilogo!I133","v":"-"},{"$f":"Riepilogo!J133","v":"-"}]
[{"$f":"Riepilogo!I134","v":"-"},{"$f":"Riepilogo!J134","v":"-"}]
[{"$f":"Riepilogo!I135","v":"-"},{"$f":"Riepilogo!J135","v":"-"}]
[{"$f":"Riepilogo!I136","v":"-"},{"$f":"Riepilogo!J136","v":"-"}]
[{"$f":"Riepilogo!I137","v":"-"},{"$f":"Riepilogo!J137","v":"-"}]
[{"$f":"Riepilogo!I138","v":"-"},{"$f":"Riepilogo!J138","v":"-"}]
[{"$f":"Riepilogo!I139","v":"-"},{"$f":"Riepilogo!J139","v":"-"}]
[{"$f":"Riepilogo!I140","v":"-"},{"$f":"Riepilogo!J140","v":"-"}]
[{"$f":"Riepilogo!I141","v":"-"},{"$f":"Riepilogo!J141","v":"-"}]
[{"$f":"Riepilogo!I142","v":"-"},{"$f":"Riepilogo!J142","v":"-"}]
[{"$f":"Riepilogo!I143","v":"-"},{"$f":"Riepilogo!J143","v":"-"}]
[{"$f":"Riepilogo!I144","v":"-"},{"$f":"Riepilogo!J144","v":"-"}]
[{"$f":"Riepilogo!I145","v":"-"},{"$f":"Riepilogo!J145","v":"-"}]
[{"$f":"Riepilogo!I146","v":"-"},{"$f":"Riepilogo!J146","v":"-"}]
[{"$f":"Riepilogo!I147","v":"-"},{"$f":"Riepilogo!J147","v":"-"}]
[{"$f":"Riepilogo!I148","v":"-"},{"$f":"Riepilogo!J148","v":"-"}]
[{"$f":"Riepilogo!I149","v":"-"},{"$f":"Riepilogo!J149","v":"-"}]
[{"$f":"Riepilogo!I150","v":"-"},{"$f":"Riepilogo!J150","v":"-"}]
[{"$f":"Riepilogo!I151","v":"-"},{"$f":"Riepilogo!J151","v":"-"}]
[{"$f":"Riepilogo!I152","v":"-"},{"$f":"Riepilogo!J152","v":"-"}]
[{"$f":"Riepilogo!I153","v":"-"},{"$f":"Riepilogo!J153","v":"-"}]
[{"$f":"Riepilogo!#REF!","v":{"$error":"#REF!"}},{"$f":"Riepilogo!#REF!","v":{"$error":"#REF!"}}]
[{"$f":"Riepilogo!I154","v":"-"},{"$f":"Riepilogo!J154","v":"-"}]
[]
[]
[{"$f":"Riepilogo!S127","v":0}]
[{"$f":"Riepilogo!P129","v":"-"},{"$f":"Riepilogo!Q129","v":"-"}]
[{"$f":"Riepilogo!P130","v":"-"},{"$f":"Riepilogo!Q130","v":"-"}]
[{"$f":"Riepilogo!P131","v":"-"},{"$f":"Riepilogo!Q131","v":"-"}]
[{"$f":"Riepilogo!P132","v":"-"},{"$f":"Riepilogo!Q132","v":"-"}]
[{"$f":"Riepilogo!P133","v":"-"},{"$f":"Riepilogo!Q133","v":"-"}]
[{"$f":"Riepilogo!P134","v":"-"},{"$f":"Riepilogo!Q134","v":"-"}]
[{"$f":"Riepilogo!P135","v":"-"},{"$f":"Riepilogo!Q135","v":"-"}]
[{"$f":"Riepilogo!P136","v":"-"},{"$f":"Riepilogo!Q136","v":"-"}]
[{"$f":"Riepilogo!P137","v":"-"},{"$f":"Riepilogo!Q137","v":"-"}]
[{"$f":"Riepilogo!P138","v":"-"},{"$f":"Riepilogo!Q138","v":"-"}]
[{"$f":"Riepilogo!P139","v":"-"},{"$f":"Riepilogo!Q139","v":"-"}]
[{"$f":"Riepilogo!P140","v":"-"},{"$f":"Riepilogo!Q140","v":"-"}]
[{"$f":"Riepilogo!P141","v":"-"},{"$f":"Riepilogo!Q141","v":"-"}]
[{"$f":"Riepilogo!P142","v":"-"},{"$f":"Riepilogo!Q142","v":"-"}]
[{"$f":"Riepilogo!P143","v":"-"},{"$f":"Riepilogo!Q143","v":"-"}]
[{"$f":"Riepilogo!P144","v":"-"},{"$f":"Riepilogo!Q144","v":"-"}]
[{"$f":"Riepilogo!P145","v":"-"},{"$f":"Riepilogo!Q145","v":"-"}]
[{"$f":"Riepilogo!P146","v":"-"},{"$f":"Riepilogo!Q146","v":"-"}]
[{"$f":"Riepilogo!P147","v":"-"},{"$f":"Riepilogo!Q147","v":"-"}]
[{"$f":"Riepilogo!P148","v":"-"},{"$f":"Riepilogo!Q148","v":"-"}]
[{"$f":"Riepilogo!P149","v":"-"},{"$f":"Riepilogo!Q149","v":"-"}]
[{"$f":"Riepilogo!P150","v":"-"},{"$f":"Riepilogo!Q150","v":"-"}]
[{"$f":"Riepilogo!P151","v":"-"},{"$f":"Riepilogo!Q151","v":"-"}]
[{"$f":"Riepilogo!P152","v":"-"},{"$f":"Riepilogo!Q152","v":"-"}]
[{"$f":"Riepilogo!P153","v":"-"},{"$f":"Riepilogo!Q153","v":"-"}]
[{"$f":"Riepilogo!#REF!","v":{"$error":"#REF!"}},{"$f":"Riepilogo!#REF!","v":{"$error":"#REF!"}}]
[{"$f":"Riepilogo!P154","v":"-"},{"$f":"Riepilogo!Q154","v":"-"}]

{"sheet":"Regole di configurazione","index":9,"n_rows":557,"n_cols":20,"rows_kept":557,"cut":false,"hidden":true,"merged":[]}
["Descrizione","Quantità","SKU","Customer Kit","Codice Convenzione","Convenzione",0.2,null,"SKU","Customer Kit",null,null,null,null,null,"SKU","Customer Kit"]
["Server DELL EMC PowerEdge R7425, 2U, 1 x AMD EPYC 7301; RAM 64GB, 2 x HDD 600GB 10K 2.5\"",1,"[210-APFK]",null,"TS2L3-SRV",2087]
["Server DELL EMC PowerEdge R7425, 2U, 2 x AMD EPYC 7301; RAM 64GB, 2 x HDD 600GB 10K 2.5\"",1,"[210-ANKP]",null,"TS2L3-SRV2CPU",2787]
["AMD EPYC™ 7301 2.2GHz/2.7GHz, 16C/32T, 64M Cache (155W/170W) DDR4-2400/2666",1,"[374-BBTR]","338-BNCI","TS2L3-CPU",700,{"$f":"\"\"","v":""},"Standard Heatsinks, below 180W CPU",2,"[412-AALN]","412-AALJ",{"$f":"\"\"","v":""},{"$f":"\"\"","v":""},{"$f":"\"\"","v":""},"Riser Config 5, 4 x8, 3 x16 slots",1,"[330-BBJD]","330-BBMK 330-BBLS",null,{"$f":"\"\"","v":""}]
["Windows Server 2019 Standard Ed,ROK,16CORE (for Distributor sale only)",null,null,"634-BRMW","TS2L3-WIN1",553]
["Windows Server 2019 Standard Ed,Additional Lic,ROK,2CORE,NoMedia",null,null,"634-BJQW","TS2L3-WIN2CORE",74]
["CentOS 7.0",null,null,null,"TS2L3-LINUX",49]
["1 Windows Server 2016,2012 Device CALs (Standard or Datacenter),CUS",null,null,"623-BBBX","TS2L3-CALDEV",20]
["1 Windows Server 2016,2012 User CALs (Standard or Datacenter),CUS",null,null,"623-BBCC","TS2L3-CALUSER",24]
["16GB RDIMM, 2666MT/s, Dual Rank",null,"[370-ADND]","AA138422","TS2L3-RAM16",103]
["32GB RDIMM, 2666MT/s, Dual Rank",null,"[370-ADNF]","A9781929","TS2L3-RAM32",347]
["64GB LRDIMM, 2666MT/s, Quad Rank",null,"[370-AECZ]","A9781930","TS2L3-RAM64",697]
["600GB 10K RPM SAS 12Gbps 512n 2.5in Hot-plug Hard Drive",null,"[400-ASGS]","400-AUNQ","TS2L3-10K600",68]
["1.2TB 10K RPM SAS 12Gbps 512n 2.5in Hot-plug Hard Drive",null,"[400-ASHI]","400-ATJL","TS2L3-10K1200",136]
["1.8TB 10K RPM SAS 12Gbps 512e 2.5in Hot-plug Hard Drive ",null,"[400-ARXC]","400-ATJR","TS2L3-10K1800",169]
["960GB SSD SAS Read Intensive 12Gbps 512e 2.5in Hot-plug Drive, PM5-R, 1 DWPD, 1752 TBW",null,"[400-BBPL]","400-ATLL","TS2L3-SSDR960",664]
["1.92TB SSD SAS Read Intensive 12Gbps 512e 2.5in Hot-plug Drive, PM1633a",null,"[400-ASFX]","400-ATND","TS2L3-SSDR1920",1313]
["Broadcom 5720 DP 1Gb Network Interface Card,Full Height,CusKit",null,"[540-BBCX]","540-BBGY","TS2L3-LAN1",22]
["Broadcom 57412 Dual Port 10Gb, SFP+, PCIe Adapter, Full Height, Customer Install",null,"[540-BBUH]","540-BBUN","TS2L3-LAN10",114,null,"Kit - Dell EMC PowerEdge SFP+ SR Optic, 10GbE, 850nm",null,"407-BCBN",2]
["QLogic 41112 Dual Port 10Gb SFP+ Adapter, Full Height, Customer Install",null,"[540-BBYK]","540-BBYH","TS2L3-CNA10",110,null,"Kit - Dell EMC PowerEdge SFP+ SR Optic, 10GbE, 850nm",null,"407-BCBN",2]
["QLogic 2562, Dual Port 8Gb Optical Fibre Channel HBA,Full Height,CusKit",null,"[540-BBEC]","406-BBEK","TS2L3-FC8",245]
["Broadcom 5720 DP 1Gb Network Interface Card, Low Profile",null,"[540-BBDE]","540-BBGW","TS2L3-LAN1-L",22]
["Broadcom 57412 Dual Port 10Gb, SFP+, PCIe Adapter, Low Profile",null,"[540-BBVI]","540-BBVL","TS2L3-LAN10-L",114,null,"Kit - Dell EMC PowerEdge SFP+ SR Optic, 10GbE, 850nm",null,"407-BCBN",2]
["QLogic FastLinQ 41112 Dual Port 10Gb SFP+ Adapter, Low Profile",null,"[540-BBZI]","540-BBZM","TS2L3-CNA10-L",110,null,"Kit - Dell EMC PowerEdge SFP+ SR Optic, 10GbE, 850nm",null,"407-BCBN",2]
["QLogic 2562, Dual Port 8Gb Optical Fibre Channel HBA, Low Profile",null,"[540-BBEC]","406-BBEL","TS2L3-FC8-L",245]
["Estensione della manutenzione in garanzia per ulteriori 12 mesi",null,null,"701-11494 732-79421","TS2L3-4Y",40]
["Estensione della manutenzione in garanzia per ulteriori 24 mesi",null,null,"701-11494 701-11494 732-79422","TS2L3-5Y",81]
["Tecnosteel: armadio Rack 19'' 42U",null,null,null,"TS2L3-RACK",504]
["1U Rackmount Console 17'' with Italian Keyboard",null,null,null,"TS2L3-GUI",448]
["16-port remote KVM switch with one remote user",null,null,null,"TS2L3-KVMIP",495]
["Riello - UPS MSR3000EVO 3000VA 2U Rackmount (SNMP+USB+RS232)",null,null,null,"TS2L3-UPS",387]
[0.2]
["Coppia di PDU Vertical  1Ph-32A-18xC13-6xC19 - 0U Base + Kit di montaggio A20",null,null,null,"TS2L3-PDU32A",null,436]
["Coppia di PDU Vertical  1Ph-16A-36xC13+6xC19 -0U Metered + Kit di montaggio A20",null,null,null,"TS2L3-TM1613606",null,900]
["Coppia di PDU Vertical  1Ph-32A-36xC13+6xC19 -0U Metered + Kit di montaggio A20",null,null,null,"TS2L3-TM3213606",null,939]
["Coppia di PDU Vertical  3Ph-32A-36xC13+6xC19 -0U Metered + Kit di montaggio A20",null,null,null,"TS2L3-TM3233606",null,1106]
["Coppia di PDU Vertical  1Ph-16A-24xC13+6xC19 -0U Controlled + Kit di montaggio A20",null,null,null,"TS2L3-TK1612406",null,1723]
["Coppia di PDU Vertical  1Ph-32A-24xC13+6xC19 -0U Controlled + Kit di montaggio A20",null,null,null,"TS2L3-TK3212406",null,1817]
["Coppia di PDU Vertical  3Ph-32A-24xC13+6xC19 -0U Controlled + Kit di montaggio A20",null,null,null,"TS2L3-TK3232406",null,2154]
["Coppia di PDU Vertical  1Ph-16A-24xC13+6xC19 -0U Full + Kit di montaggio A20",null,null,null,"TS2L3-TF1612406",null,2173]
["Coppia di PDU Vertical  1Ph-32A-24xC13+6xC19 -0U Full + Kit di montaggio A20",null,null,null,"TS2L3-TF3212406",null,2277]
["Coppia di PDU Vertical  3Ph-32A-24xC13+6xC19 -0U Full + Kit di montaggio A20",null,null,null,"TS2L3-TF3232406",null,2518]
["2.4TB 10K RPM SAS 12Gbps 512e 2.5in Hot-plug Hard Drive NO VMWARE A20",null,null,null,"TS2L3-10K2400",null,389]
["SSD 480GB SAS MU 12Gbps 2.5in Hot-Plug A20",null,null,null,"TS2L3-SSDM480",null,399]
["SSD 400GB SAS WI 12Gbps 2.5in Hot-plug Drive, 10 DWPD A20",null,null,null,"TS2L3-SSDW400",null,1155]
["SSD 1600GB SAS WI 12Gb 2.5in Hot-plug Drive, 10 DWPD A20",null,null,null,"TS2L3-SSDW1600",null,1475]
["SSD 960GB SAS Mixed Use 12Gbps 2.5in Hot-plug Drive A20",null,null,null,"TS2L3-SSDM960",null,598]
["Cavo Rete UTP cat. 5e 3 metri A20",null,null,null,"TS2L3-3MRJ45",null,2]
["5 x Dell Networking, Cable, SFP+ to SFP+, 10GbE, Copper Twinax Direct Attach Cable, 3 Meter A20",null,null,null,"TS2L3-5XDAC10M3",null,125]
["5 x Dell Networking Cable, 100GbE QSFP28 to QSFP28,Passive Copper Direct Attach Cable,2 Meter A20",null,null,null,"TS2L3-5XDAC100M2",null,940]
["5 x Dell Networking Cable,100GbE QSFP28 to QSFP28, Passive Copper Direct Attach Cable,3 Meter A20",null,null,null,"TS2L3-5XDAC100M3",null,1125]
["Kit upgrade R7425 per GPU A20",null,null,null,"TS2L3-KITGPU",null,999]
["PERC HBA330 RAID Controller, 12Gb Adapter, Full Height A20",1,"[405-AAOO]","405-AAMV","TS2L3-HBA330",null,999]
["PERC H740P RAID Controller, 8Gb NV Cache, Adapter, Full Height A20",1,"[405-AANR]","405-AAMX","TS2L3-H740P",null,999]
["Broadcom 57416 Dual Port 10Gb, Base-T, PCIe Adapter, Full Height A20",1,"[540-BBUI]","540-BBUO","TS2L3-57416",null,999]
["QLogic FastLinQ 41162 Dual Port 10Gb Base-T Adapter, Full Height A20",1,"[540-BBYJ]","540-BBYG","TS2L3-41162",null,999]
["Mellanox ConnectX-5 Single Port EDR VPI QSFP28 PCIe Adapter, Full Height A20",1,"[540-BCDK]","540-BCIV","TS2L3-MCX416A",null,999]
["Mellanox ConnectX-4 Dual Port 100GbE QSFP28 PCIe Adapter, Full Height A20",1,"[540-BBUT]","540-BBUU","TS2L3-MCX516A",null,999]
["Dell 1.6TB, NVMe, Mixed Use Express Flash, 2.5 SFF",null,null,null,"TS2L3-NVME1600",null,644]
["Dell 3.2TB, NVMe, Mixed Use Express Flash, 2.5 SFF",null,null,null,"TS2L3-NVME3200",null,1218]
["Dell 6.4TB, NVMe, Mixed Use Express Flash, 2.5 SFF",null,null,null,"TS2L3-NVME6400",null,2469]
["Dell 960GB NVMe, Data Center, Read Intensive SFF",null,null,null,"TS2L3-NVME960",null,241]
["Dell 1TB, NVMe, Read Intensive Express Flash, 2.5 SFF",null,null,null,"TS2L3-NVME1000",null,326]
["Dell 4TB, NVMe, Read Intensive Express Flash, 2.5 SFF",null,null,null,"TS2L3-NVME4000",null,1152]
["Dell 3.84TB NVMe, Data Center, Read Intensive SFF",null,null,null,"TS2L3-NVME3840",null,826]
["Dell 375GB, NVMe, Ultra Performance Express Flash, 2.5 SFF",null,null,null,"TS2L3-NVME375",null,1379]
["QLogic 2692 Dual Port 16Gb Fibre Channel HBA A20",1,"[403-BBMQ]","403-BBMU","TS2L3-2692",null,999]
["Broadcom 57416 Dual Port 10Gb, Base-T, PCIe Adapter, Low Profile A20",1,"[540-BBVJ]","540-BBVM","TS2L3-57416-L",null,999]
["Mellanox ConnectX-4 Lx Dual Port 25GbE SFP28 Network Adapter, Low Profile A20",1,"[406-BBLD]","406-BBLC","TS2L3-MCX4121AL",null,999]
["Mellanox ConnectX-4 Dual Port 40/100GbE, QSFP28, PCIe Adapter, Low Profile A20",1,null,"540-BBVR","TS2L3-MCX416A-L",null,999]
["QLogic FastLinQ 41162 Dual Port 10Gb Base-T Adapter, Low Profile A20",1,"[540-BBZK]","540-BBZN","TS2L3-41162-L",null,999]
["QLogic 2692 Dual Port 16Gb Fibre Channel HBA, Low Profile A20",1,"[403-BBMS]","403-BBMT","TS2L3-2692-L",null,999]
["NVIDIA Tesla V100 32G Passive GPU A20",1,"[490-BENY]",null,"TS2L3-GPUV10032",null,999]
["NVIDIA Tesla™ V100 16G Passive GPU A20",1,"[490-BEDZ]",null,"TS2L3-GPUV10016",null,16366.99]
["NVIDIA Tesla P40 24GB GPU, Passive A20",1,"[489-BBCN]",null,"TS2L3-GPUP4024",null,999]
["NVIDIA Tesla M10 GPU, Requires GRID 2.0 SW for VDI Function A20",1,"[489-BBCG]",null,"TS2L3-GPUM10",null,4237.99]
["ISDM and Combo Card Reader, with 2 32Gb microSDHC/SDXC Card A20",1,null,"385-BBLF 385-BBKK 385-BBKK","TS2L3-IDSDM32",null,999]
["ISDM and Combo Card Reader, with 2 64Gb microSDHC/SDXC Card A20",1,null,"385-BBLF 385-BBKL 385-BBKL","TS2L3-IDSDM64",null,999]
["BOSS controller card + with 2 M.2 Sticks 240G (RAID 1),FH A20",1,"[403-BBPT]","403-BBVQ 400-ASDQ 400-ASDQ","TS2L3-BOSS240",null,999]
["BOSS controller card + with 2 M.2 Sticks 480GB (RAID 1),FH A20",1,"[403-BBSV]","403-BBVQ 400-AVSS 400-AVSS","TS2L3-BOSS480",null,999]
[]
["Trusted Platform Module"]
["No Trusted Platform Module",1,"[461-AADZ]"]
["Trusted Platform Module 2.0",1,"[461-AAEM]","461-AAEN","TS2L3-TPM2",null,0]
[]
["Processore aggiuntivo"]
["TS2L3CPU"]
["No Additional Processor",0,"[374-BBBX]",{"$f":"\"\"","v":""},{"$f":"\"\"","v":""},0,{"$f":"\"\"","v":""},"Standard Heatsinks, below 180W CPU",1,"[412-AALN]","412-AALJ","Blank for 1 CPU Configuration",1,"[379-BCWU]","Riser Config 1, 2 x8, 1 x16 slots",1,"[330-BBIY]",{"$f":"\"\"","v":""},{"$f":"\"\"","v":""},{"$f":"\"\"","v":""}]
["AMD EPYC™ 7301 2.2GHz/2.7GHz, 16C/32T, 64M Cache (155W/170W) DDR4-2400/2666",1,"[374-BBTR]","338-BNCI","TS2L3-CPU",700,{"$f":"\"\"","v":""},"Standard Heatsinks, below 180W CPU",2,"[412-AALN]","412-AALJ",{"$f":"\"\"","v":""},{"$f":"\"\"","v":""},{"$f":"\"\"","v":""},"Riser Config 5, 4 x8, 3 x16 slots",1,"[330-BBJD]","330-BBMK 330-BBLS",null,{"$f":"\"\"","v":""}]
["Sistema operativo preinstallato"]
["None",{"$f":"\"\"","v":""},"[619-ABVR]",{"$f":"\"\"","v":""},{"$f":"\"\"","v":""},0,0,{"$f":"\"\"","v":""},{"$f":"\"\"","v":""},{"$f":"\"\"","v":""},{"$f":"\"\"","v":""},{"$f":"\"\"","v":""},{"$f":"\"\"","v":""},0]
["Windows Server 2019 Standard Ed,ROK,16CORE (for Distributor sale only)",1,null,"634-BRMW","TS2L3-WIN1",553,null,"Windows Server 2019 Standard Ed,Additional Lic,ROK,2CORE,NoMedia",8,null,"634-BJQW","TS2L3-WIN2CORE",{"$f":"74*I92","v":592},0]
["Windows Server 2019 Datacenter Ed 16CORE A20",1,null,"634-BRMY","TS2L3-WINDC",null,3345,"Windows Server 2019 Datacenter Ed Add License 16CORE A20",1,null,"634-BKYO","TS2L3-WINDC2",null,3343]
["CentOS 7.0",1,"linux",{"$f":"\"\"","v":""},"TS2L3-LINUX",49,0,{"$f":"\"\"","v":""},{"$f":"\"\"","v":""},{"$f":"\"\"","v":""},{"$f":"\"\"","v":""},{"$f":"\"\"","v":""},0,0]
["1 Windows Server 2019 Device CALs (Standard or Datacenter),CUS",null,null,"623-BBBX","TS2L3-CALDEV",20]
["1 Windows Server 2019 User CALs (Standard or Datacenter),CUS",null,null,"623-BBCC","TS2L3-CALUSER",24]
["Windows Server 2019 Standard Ed,Additional Lic,ROK,2CORE,NoMedia",null,null,"634-BJQW","TS2L3-WIN2CORE",74]
["TS2L3MEM1CPU"]
["64     (DIMM 32GB)","32GB RDIMM, 2666MT/s, Dual Rank",2,"[370-ADNF]","A9781929",{"$f":"\"\"","v":""},0,null,"2666MT/s RDIMMs",1,"[370-ADNU]"]
["128   (DIMM 32GB)","32GB RDIMM, 2666MT/s, Dual Rank",4,"[370-ADNF]","A9781929","TS2L3-RAM32",{"$f":"$F$11*(C100-$C$99)","v":694},null,"2666MT/s RDIMMs",1,"[370-ADNU]"]
["256   (DIMM 32GB)","32GB RDIMM, 2666MT/s, Dual Rank",8,"[370-ADNF]","A9781929","TS2L3-RAM32",{"$f":"$F$11*(C101-$C$99)","v":2082},null,"2666MT/s RDIMMs",1,"[370-ADNU]"]
["384   (DIMM 32GB)","32GB RDIMM, 2666MT/s, Dual Rank",12,"[370-ADNF]","A9781929","TS2L3-RAM32",{"$f":"$F$11*(C102-$C$99)","v":3470},null,"2666MT/s RDIMMs",1,"[370-ADNU]"]
["512   (DIMM 32GB)","32GB RDIMM, 2666MT/s, Dual Rank",16,"[370-ADNF]","A9781929","TS2L3-RAM32",{"$f":"$F$11*(C103-$C$99)","v":4858},null,"2666MT/s RDIMMs",1,"[370-ADNU]"]
["--------------------------","32GB RDIMM, 2666MT/s, Dual Rank",2,"[370-ADNF]","A9781929","",0,null,"2666MT/s RDIMMs",1,"[370-ADNU]"]
["256   (DIMM 64GB)","64GB LRDIMM, 2666MT/s, Quad Rank",4,"[370-AECZ]","A9781930","TS2L3-RAM64",{"$f":"$F$12*C105","v":2788},null,"2666MT/s LRDIMMs",1,"[370-ADNT]"]
["384   (DIMM 64GB)","64GB LRDIMM, 2666MT/s, Quad Rank",6,"[370-AECZ]","A9781930","TS2L3-RAM64",{"$f":"$F$12*C106","v":4182},null,"2666MT/s LRDIMMs",1,"[370-ADNT]"]
["512   (DIMM 64GB)","64GB LRDIMM, 2666MT/s, Quad Rank",8,"[370-AECZ]","A9781930","TS2L3-RAM64",{"$f":"$F$12*C107","v":5576},null,"2666MT/s LRDIMMs",1,"[370-ADNT]"]
["768   (DIMM 64GB)","64GB LRDIMM, 2666MT/s, Quad Rank",12,"[370-AECZ]","A9781930","TS2L3-RAM64",{"$f":"$F$12*C108","v":8364},null,"2666MT/s LRDIMMs",1,"[370-ADNT]"]
["1024 (DIMM 64GB)","64GB LRDIMM, 2666MT/s, Quad Rank",16,"[370-AECZ]","A9781930","TS2L3-RAM64",{"$f":"$F$12*C109","v":11152},null,"2666MT/s LRDIMMs",1,"[370-ADNT]"]
[]
["TS2L3MEM2CPU"]
["64     (DIMM 32GB)","32GB RDIMM, 2666MT/s, Dual Rank",2,"[370-ADNF]","A9781929",{"$f":"\"\"","v":""},0,null,"2666MT/s RDIMMs",1,"[370-ADNU]"]
["128   (DIMM 32GB)","32GB RDIMM, 2666MT/s, Dual Rank",4,"[370-ADNF]","A9781929","TS2L3-RAM32",{"$f":"$F$11*(C113-$C$99)","v":694},null,"2666MT/s RDIMMs",1,"[370-ADNU]"]
["192  (DIMM 32GB)","32GB RDIMM, 2666MT/s, Dual Rank",6,"[370-ADNF]","A9781929","TS2L3-RAM32",1388,null,"2666MT/s RDIMMs",1,"[370-ADNU]"]
["256   (DIMM 32GB)","32GB RDIMM, 2666MT/s, Dual Rank",8,"[370-ADNF]","A9781929","TS2L3-RAM32",2082,null,"2666MT/s RDIMMs",1,"[370-ADNU]"]
["384   (DIMM 32GB)","32GB RDIMM, 2666MT/s, Dual Rank",12,"[370-ADNF]","A9781929","TS2L3-RAM32",{"$f":"$F$11*(C116-$C$99)","v":3470},null,"2666MT/s RDIMMs",1,"[370-ADNU]"]
["512   (DIMM 32GB)","32GB RDIMM, 2666MT/s, Dual Rank",16,"[370-ADNF]","A9781929","TS2L3-RAM32",4858,null,"2666MT/s RDIMMs",1,"[370-ADNU]"]
["768   (DIMM 32GB)","32GB RDIMM, 2666MT/s, Dual Rank",24,"[370-ADNF]","A9781929","TS2L3-RAM32",7634,null,"2666MT/s RDIMMs",1,"[370-ADNU]"]
["1024 (DIMM 32GB)","32GB RDIMM, 2666MT/s, Dual Rank",32,"[370-ADNF]","A9781929","TS2L3-RAM32",10410,null,"2666MT/s RDIMMs",1,"[370-ADNU]"]
["--------------------------","32GB RDIMM, 2666MT/s, Dual Rank",2,"[370-ADNF]","A9781929","",0,null,"2666MT/s RDIMMs",1,"[370-ADNU]"]
["256   (DIMM 64GB)","64GB LRDIMM, 2666MT/s, Quad Rank",4,"[370-AECZ]","A9781930","TS2L3-RAM64",{"$f":"$F$12*C121","v":2788},null,"2666MT/s LRDIMMs",1,"[370-ADNT]"]
["384   (DIMM 64GB)","64GB LRDIMM, 2666MT/s, Quad Rank",6,"[370-AECZ]","A9781930","TS2L3-RAM64",{"$f":"$F$12*C122","v":4182},null,"2666MT/s LRDIMMs",1,"[370-ADNT]"]
["512   (DIMM 64GB)","64GB LRDIMM, 2666MT/s, Quad Rank",8,"[370-AECZ]","A9781930","TS2L3-RAM64",5576,null,"2666MT/s LRDIMMs",1,"[370-ADNT]"]
["768   (DIMM 64GB)","64GB LRDIMM, 2666MT/s, Quad Rank",12,"[370-AECZ]","A9781930","TS2L3-RAM64",8364,null,"2666MT/s LRDIMMs",1,"[370-ADNT]"]
["1024 (DIMM 64GB)","64GB LRDIMM, 2666MT/s, Quad Rank",16,"[370-AECZ]","A9781930","TS2L3-RAM64",11152,null,"2666MT/s LRDIMMs",1,"[370-ADNT]"]
["1536 (DIMM 64GB)","64GB LRDIMM, 2666MT/s, Quad Rank",24,"[370-AECZ]","A9781930","TS2L3-RAM64",16728,null,"2666MT/s LRDIMMs",1,"[370-ADNT]"]
["2048 (DIMM 64GB)","64GB LRDIMM, 2666MT/s, Quad Rank",32,"[370-AECZ]","A9781930","TS2L3-RAM64",22304,null,"2666MT/s LRDIMMs",1,"[370-ADNT]"]
[]
["Controller Dischi"]
["PERC H730P RAID Controller, 2Gb NV Cache, Adapter, Full Height",1,"[405-AAMR]","405-AAMY",null,0]
["PERC HBA330 RAID Controller, 12Gb Adapter, Full Height A20",1,"[405-AAOO]","405-AAMV","TS2L3-HBA330",null,{"$f":"G53","v":999}]
["PERC H740P RAID Controller, 8Gb NV Cache, Adapter, Full Height A20",1,"[405-AANR]","405-AAMX","TS2L3-H740P",null,{"$f":"G54","v":999}]
[]
["Modulo Doppia SD - Internal Dual SD Module (IDSDM)"]
["None",null,null,null,{"$f":"\"\"","v":""}]
["[TS2L3-ISDM32] ISDM and Combo Card Reader, 2x 32GB microSDHC/SDXC Card A20",1,null,"385-BBLF 385-BBKK 385-BBKK","TS2L3-ISDM32",null,134]
["ISDM and Combo Card Reader, with 2 64Gb microSDHC/SDXC Card",1,null,"385-BBLF 385-BBKL 385-BBKL","TS2L3-IDSDM64",null,{"$f":"G78","v":999}]
[]
[]
[]
[]
["7.2 SATA"]
["1TB 7.2K RPM SATA 6Gbps 512n 2.5in Hot-plug Hard Drive",null,"[400-ASHF]","400-ATJG","TS2L3-7K1000",null,null,null,null,null,null,null,null,null," [Option Id: 5103889] [SKU: 400-ASHF]"]
["2TB 7.2K RPM SATA 6Gbps 512n 2.5in Hot-plug Hard Drive",null,"[400-ASHT]","400-ATJZ","TS2L3-7K2000",null,null,null,null,null,null,null,null,null," [Option Id: 5103953] [SKU: 400-ASHT]"]
["7.2K NLSAS"]
["1TB 7.2K RPM NLSAS 12Gbps 512n 2.5in Hot-plug Hard Drive",null,"[400-ASHE]","400-ATJD","TS2L3-NL1000",null,null,null,null,null,null,null,null,null," [Option Id: 5103886] [SKU: 400-ASHE]"]
["2TB 7.2K RPM NLSAS 12Gbps 512n 2.5in Hot-plug Hard Drive",null,"[400-ASHP]","400-ATJU","TS2L3-NL2000",null,null,null,null,null,null,null,null,null," [Option Id: 5103937] [SKU: 400-ASHP]"]
["10K"]
["600GB 10K RPM SAS 12Gbps 512n 2.5in Hot-plug Hard Drive",null,"[400-ASGS]","400-AUNQ","TS2L3-10K600",68,null,null,null,null,null,null,null,null," [Option Id: 5103901] [SKU: 400-ASHI]"]
["1.2TB 10K RPM SAS 12Gbps 512n 2.5in Hot-plug Hard Drive",null,"[400-ASHI]","400-ATJL","TS2L3-10K1200",136,null,null,null,null,null,null,null,null," [Option Id: 5103918] [SKU: 400-ASHK]"]
["1.8TB 10K RPM SAS 12Gbps 512e 2.5in Hot-plug Hard Drive",null,"[400-ARXC]","400-ATJR","TS2L3-10K1800",169,null,null,null,null,null,null,null,null," [Option Id: 5103923] [SKU: 400-ARXC]"]
["2.4TB 10K RPM SAS 12Gbps 512e 2.5in Hot-plug Hard Drive",null,"[400-AVEZ]","401-ABHQ","TS2L3-10K2400",null,null,null,null,null,null,null,null,null," [Option Id: 24TBMD] [SKU: 400-AVEZ]"]
["1.2TB 10K RPM Self-Encrypting SAS 12Gbps 512n 2.5in Hot-plug Hard Drive, FIPS140",null,"[400-ASHK]","400-ATJO",null,null,null,null,null,null,null,null,null,null," [Option Id: 24TASHJ] [SKU: 400-AVHH]"]
["2.4TB 10K RPM Self-Encrypting SAS 12Gbps 512e 2.5in Hot-plug Hard Drive, FIPS140",null,"[400-AVHH]",null,null,null,null,null,null,null,null,null,null,null," [Option Id: 5103818] [SKU: 400-ASGS]"]
["15K"]
["300GB 15K RPM SAS 12Gbps 512n 2.5in Hot-plug Hard Drive",null,"[400-ASGQ]","400-ATII","TS2L3-15K300",null,null,null,null,null,null,null,null,null," [Option Id: 5103806] [SKU: 400-ASGQ]"]
["600GB 15K RPM SAS 12Gbps 512n 2.5in Hot-plug Hard Drive",null,"[400-ARWN]","400-ATIN","TS2L3-15K600",null,null,null,null,null,null,null,null,null," [Option Id: 5102974] [SKU: 400-ARWN]"]
["900GB 15K RPM SAS 12Gbps 512n 2.5in Hot-plug Hard Drive",null,"[400-ASGV]","400-ATIQ","TS2L3-15K900",null,null,null,null,null,null,null,null,null," [Option Id: 5103865] [SKU: 400-ASGV]"]
["SATA RI"]
["480GB SSD SATA Read Intensive 6Gbps 512 2.5in Hot-plug AG Drive, 1 DWPD, 876 TBW",null,"[400-AXTV]",null,"TS2L3-STRI480",null,null,null,null,null,null,null,null,null," [Option Id: G3ZJM0K] [SKU: 400-AXTV]"]
["480GB SSD SATA Read Intensive 6Gbps 512e 2.5in Hot Plug S4510 Drive, 1 DWPD,876 TBW",null,"[400-BDOD]",null,null,null,null,null,null,null,null,null,null,null," [Option Id: GCMLA2O] [SKU: 400-BDOD]"]
["480GB SSD SATA Read Intensive 6Gbps 512e 2.5in Hot-plug Drive, S4500, 1 DWPD,876 TBW",null,"[400-ASXH]",null,null,null,null,null,null,null,null,null,null,null,"[Option Id: 5106652] [SKU: 400-ASXH]"]
["960GB SSD SATA Read Intensive 6Gbps 512 2.5in Hot-plug AG Drive, 1 DWPD, 1752 TBW",null,"[400-AXSW]",null,"TS2L3-STRI960",null,null,null,null,null,null,null,null,null," [Option Id: GA16FX3] [SKU: 400-AXSW]"]
["960GB SSD SATA Read Intensive 6Gbps 512e 2.5in Hot Plug S4510 Drive, 1 DWPD,1752 TBW",null,"[400-BDNJ]",null,null,null,null,null,null,null,null,null,null,null," [Option Id: GK6T7WB] [SKU: 400-BDNJ]"]
["960GB SSD SATA Read Intensive 6Gbps 512n 2.5in Hot-plug Drive, PM863a",null,"[400-ASFM]",null,null,null,null,null,null,null,null,null,null,null," [Option Id: 5103700] [SKU: 400-ASFM]"]
["1.6TB SSD Self-Encrypting SATA Mix Use 6Gbps 512n 2.5in Hot-plug Drive, Hawk-M4E",null,"[400-ASYY]",null,null,null,null,null,null,null,null,null,null,null," [Option Id: 5106694] [SKU: 400-ASYY]"]
["1.6TB SSD Self-Encrypting SATA Mix Use 6Gbps 512n 2.5in Hot-plug Drive, Hawk-M4E",null,"[400-ASYY]",null,null,null,null,null,null,null,null,null,null,null," [Option Id: GLDJ7FE] [SKU: 400-ASYY]"]
["1.92TB SSD SATA Read Intensive 6Gbps 512 2.5in Hot-plug AG Drive, 1 DWPD, 3504 TBW",null,"[400-AXSD]",null,null,null,null,null,null,null,null,null,null,null," [Option Id: GGMU1EX] [SKU: 400-AXSD]"]
["1.92TB SSD SATA Read Intensive 6Gbps 512e 2.5in Hot-plug S4510 Drive, 1 DWPD,3504 TBW",null,"[400-BDOE]",null,"TS2L3-STRI1920",null,null,null,null,null,null,null,null,null," [Option Id: G3UTQH6] [SKU: 400-BDOE]"]
["1.92TB SSD SATA Read Intensive 6Gpbs 512e 2.5in Hot-plug Drive, S4500,1 DWPD,3504 TBW",null,"[400-ASZJ]",null,null,null,null,null,null,null,null,null,null,null," [Option Id: 5106704] [SKU: 400-ASZJ]"]
["3.84TB SSD SATA Read Intensive 6Gbps 512 2.5in Hot-plug AG Drive, 1 DWPD, 7008 TBW",null,"[400-AXSK]",null,null,null,null,null,null,null,null,null,null,null," [Option Id: GS7WBQI] [SKU: 400-AXSK]"]
["3.84TB SSD SATA Read Intensive 6Gbps 512e 2.5in Hot-plug Drive, S4500,1 DWPD,7008 TBW",null,"[400-ASZS]",null,"TS2L3-STSRI3840",null,null,null,null,null,null,null,null,null," [Option Id: 5106713] [SKU: 400-ASZS]"]
["SATA MU"]
["480GB SSD SATA Mix Use 6Gbps 512 2.5in Hot-plug AG Drive, 3 DWPD, 2628 TBW",null,"[400-AZUT]",null,"TS2L3-STMU480",null,null,null,null,null,null,null,null,null," [Option Id: GB6HAM5] [SKU: 400-AZUT]"]
["800GB SSD SATA Mix Use 6Gbps 512n 2.5in Hot-plug Drive, Hawk-M4E,3 DWPD,4380 TBW",null,"[400-ASYC]",null,"TS2L3-STMU800",null,null,null,null,null,null,null,null,null," [Option Id: 5106672] [SKU: 400-ASYC]"]
["960GB SSD SATA Mix Use 6Gbps 512 2.5in Hot-plug AG Drive, 3 DWPD, 5256 TBW",null,"[400-AZVM]",null,"TS2L3-STMU960",null,null,null,null,null,null,null,null,null," [Option Id: GKTZGJ7] [SKU: 400-AZVM]"]
["1.6TB SSD SATA Mix Use 6Gbps 512n 2.5in Hot-plug Drive, Hawk-M4E,3 DWPD,8760 TBW",null,"[400-AVMM]",null,"TS2L3-STMU1600",null,null,null,null,null,null,null,null,null," [Option Id: 1FBT6G] [SKU: 400-AVMM]"]
["1.92TB SSD SATA Mix Use 6Gbps 512 2.5in Hot-plug AG Drive, 3 DWPD, 10512 TBW",null,"[400-AZTN]",null,null,null,null,null,null,null,null,null,null,null," [Option Id: GW19KER] [SKU: 400-AZTN]"]
["1.92TB SSD SATA Mix Use 6Gbps 512e 2.5in Hot-plug Drive, S4600,3 DWPD,10512 TBW",null,"[400-ASZB]",null,"TS2L3-STMU1920",null,null,null,null,null,null,null,null,null," [Option Id: 5106696] [SKU: 400-ASZB]"]
["SAS RI"]
["960GB SSD SAS Read Intensive 12Gbps 512 2.5in Hot-plug AG Drive, 1 DWPD, 1752 TBW",null,"[400-AXQU]",null,null,null,null,null,null,null,null,null,null,null," [Option Id: GD4L6BE] [SKU: 400-AXQU]"]
["960GB SSD SAS Read Intensive 12Gbps 512e 2.5in Hot-plug Drive, PM5-R, 1 DWPD, 1752 TBW",null,"[400-BBPL]","400-ATLL","TS2L3-SSDR960",664,null,null,null,null,null,null,null,null," [Option Id: G4YAXQB] [SKU: 400-BBPL]"]
["960GB SSD SAS Read Intensive 12Gbps 512n 2.5in Hot-plug Drive, PX05SR",null,"[400-ASEZ]",null,null,null,null,null,null,null,null,null,null,null," [Option Id: 5103679] [SKU: 400-ASEZ]"]
["1.92TB SSD SAS Read Intensive 12Gbps 512 2.5in Hot-plug AG Drive, 1 DWPD, 3504 TBW",null,"[400-AXOP]",null,null,null,null,null,null,null,null,null,null,null," [Option Id: GJM2W96] [SKU: 400-AXOP]"]
["1.92TB SSD SAS Read Intensive 12Gbps 512e 2.5in Hot-plug Drive, PM1633a",null,"[400-ASFX]","400-ATND","TS2L3-SSDR1920",1313,null,null,null,null,null,null,null,null," [Option Id: 5103731] [SKU: 400-ASFX]"]
["1.92TB SSD SAS Read Intensive 12Gbps 512e 2.5in PM5-R Hot-plug Drive, 1 DWPD, 3504 TBW",null,"[400-BBQQ]",null,null,null,null,null,null,null,null,null,null,null," [Option Id: GF74XBJ] [SKU: 400-BBQQ]"]
["1.92TB SSD SAS Read Intensive MLC 12Gbps 512n 2.5in Hot-plug Drive, PX05SR",null,"[400-ARWC]",null,null,null,null,null,null,null,null,null,null,null," [Option Id: 5102925] [SKU: 400-ARWC]"]
["3.84TB SSD SAS Read Intensive 12Gb 512e 2.5in Hot-plug Drive, PM1633a,1 DWPD,7008 TBW",null,"[400-ASGI]",null,"TS2L3-SSDRI3840",null,null,null,null,null,null,null,null,null," [Option Id: 5103757] [SKU: 400-ASGI]"]
["3.84TB SSD SAS Read Intensive 12Gbps 512 2.5in Hot-plug AG Drive, 1 DWPD, 7008 TBW",null,"[400-AXPE]",null,null,null,null,null,null,null,null,null,null,null," [Option Id: GUSCJI4] [SKU: 400-AXPE]"]
["3.84TB SSD SAS Read Intensive 12Gbps 512e 2.5in PM5-R Hot-plug Drive, 1 DWPD, 7008 TBW",null,"[400-BBQX]",null,null,null,null,null,null,null,null,null,null,null," [Option Id: GQNDTX4] [SKU: 400-BBQX]"]
["3.84TB SSD SAS Read Intensive 12Gbps 512n 2.5in Hot-plug Drive, PX05SR",null,"[400-ASGG]",null,null,null,null,null,null,null,null,null,null,null," [Option Id: 5103752] [SKU: 400-ASGG]"]
["7.68TB SSD SAS Read Intensive 12Gbps 512e 2.5in Hot-plug Drive, PM1643, 1 DWPD, 14,016 TBW",null,"[400-BBSM]",null,"TS2L3-SSDRI7680",null,null,null,null,null,null,null,null,null," [Option Id: G7YW03Q] [SKU: 400-BBSM]"]
["7.68TB SSD SAS Read Intensive 12Gbps 512e 2.5in PM5-R Hot-plug Drive, 1 DWPD, 14,016 TBW",null,"[400-BDCI]",null,null,null,null,null,null,null,null,null,null,null," [Option Id: GGN2SI6] [SKU: 400-BDCI]"]
["SAS MU"]
["480GB SSD SAS Mix Use 12Gbps 512n 2.5in Hot-plug Drive, PX05SV",null,"[400-ASEO]",null,"TS2L3-SSDMU480",null,null,null,null,null,null,null,null,null," [Option Id: 5103647] [SKU: 400-ASEO]"]
["480GB SSD SAS Mixed use 12Gbps 512e 2.5in Hot-Plug PM5-V Drive, 3 DWPD, 2628 TBW",null,"[400-BCQG]",null,null,null,null,null,null,null,null,null,null,null," [Option Id: GJP8HF2] [SKU: 400-BCQG]"]
["800GB SSD SAS Mix Use 12Gbps 512e 2.5in Hot-plug AG Drive, 3 DWPD, 4380 TBW",null,"[400-AZQO]",null,"TS2L3-SSDMU800",null,null,null,null,null,null,null,null,null," [Option Id: GCAUG9H] [SKU: 400-AZQO]"]
["960GB SSD SAS Mix Use 12Gbps 512n 2.5in Hot-plug Drive, PX05SV",null,"[400-ASFI]",null,"TS2L3-SSDMU960",null,null,null,null,null,null,null,null,null," [Option Id: 5103690] [SKU: 400-ASFI]"]
["960GB SSD SAS Mixed use 12Gbps 512e 2.5in Hot-Plug PM5-V Drive",null,"[400-BCQN]",null,null,null,null,null,null,null,null,null,null,null," [Option Id: G46MPBW] [SKU: 400-BCQN]"]
["1.6TB SSD SAS Mix Use 12Gbps 512e 2.5in Hot-plug AG Drive, 3 DWPD, 8760 TBW",null,"[400-AZOY]",null,null,null,null,null,null,null,null,null,null,null," [Option Id: GN5GTO1] [SKU: 400-AZOY]"]
["1.6TB SSD SAS Mix Use 12Gbps 512e 2.5in Hot-plug Drive, PM1635a",null,"[400-ASFQ]",null,"TS2L3-SSDMU1600",null,null,null,null,null,null,null,null,null," [Option Id: 5103710] [SKU: 400-ASFQ]"]
["1.92TB SSD SAS Mix Use 12Gbps 512n 2.5in Hot-plug Drive, PX05SV",null,"[400-ASFZ]",null,"TS2L3-SSDMU1920",null,null,null,null,null,null,null,null,null," [Option Id: 5103737] [SKU: 400-ASFZ]"]
["1.92TB SSD SAS Mix Use SED 12Gbps 512n 2.5in Hot-plug Drive, FIPS140, PX05SV,3 DWPD,10512 TBW",null,"[400-ATRX]",null,null,null,null,null,null,null,null,null,null,null," [Option Id: 510710] [SKU: 400-ATRX]"]
["1.92TB SSD SAS Mixed use 12Gbps 512e 2.5in Hot-Plug PM5-V Drive, 3 DWPD, 10512 TBW",null,"[400-BCOM]",null,null,null,null,null,null,null,null,null,null,null," [Option Id: G5BLI1F] [SKU: 400-BCOM]"]
["3.84TB SSD SAS Mix Use 12Gbps 512n 2.5in Hot-plug Drive, PX05SV,3 DWPD,21024 TBW",null,"[400-ASVR]",null,"TS2L3-SSDMU3840",null,null,null,null,null,null,null,null,null," [Option Id: 5106756] [SKU: 400-ASVR]"]
["3.8TB SSD SAS Mixed use 12Gbps 512e 2.5in Hot-Plug PM5-V Drive, 3 DWPD, 7008 TBW",null,"[400-BCOV]",null,null,null,null,null,null,null,null,null,null,null," [Option Id: GXNZ83B] [SKU: 400-BCOV]"]
["SAS WI"]
["400GB SSD SAS Write Intensive 12Gbps 512n 2.5in Hot-plug Drive, PX05SM",null,"[400-ASEM]",null,"TS2L3-SSDWI400",null,null,null,null,null,null,null,null,null," [Option Id: 5103644] [SKU: 400-ASEM]"]
["800GB SSD SAS Write Intensive 12Gbps 512n 2.5in Hot-plug Drive, PX05SM",null,"[400-ASEV]",null,"TS2L3-SSDWI800",null,null,null,null,null,null,null,null,null," [Option Id: 5103669] [SKU: 400-ASEV]"]
["1.6TB SSD SAS Write Intensive 12Gbps 512n 2.5in Hot-plug Drive, PX05SM",null,"[400-ASFS]",null,"TS2L3-SSDWI1600",null,null,null,null,null,null,null,null,null," [Option Id: 5103717] [SKU: 400-ASFS]"]
["VMWARE"]
["None",1,{"$f":"\"\"","v":""},{"$f":"\"\"","v":""},{"$f":"\"\"","v":""},null,0]
["VMware vSphere Essentials Plus Kit OEM 6 Processor 3yr A20",1,{"$f":"\"\"","v":""},{"$f":"\"\"","v":""},"TS2L3-VMWKIT6P3Y",null,5230]
["None",1,{"$f":"\"\"","v":""},{"$f":"\"\"","v":""},{"$f":"\"\"","v":""},null,0]
["VMw vCenter Server Standard for vSphere OEM 3yr Software A20",1,{"$f":"\"\"","v":""},{"$f":"\"\"","v":""},"TS2L3-VMWVCSTD3Y",null,8909]
["VMw vCenter Server Standard for vSphere OEM 5yr Software A20",1,{"$f":"\"\"","v":""},{"$f":"\"\"","v":""},"TS2L3-VMWVCSTD5Y",null,10549]
["None",0,{"$f":"\"\"","v":""},{"$f":"\"\"","v":""},{"$f":"\"\"","v":""},null,0]
["VMware vSphere Standard OEM 1 Processor 3yr Software A20",1,{"$f":"\"\"","v":""},{"$f":"\"\"","v":""},"TS2L3-VMWSTD1P3Y",null,1743]
["VMware vSphere Enterprise Plus OEM 1 Processor 3yr Software A20",1,{"$f":"\"\"","v":""},{"$f":"\"\"","v":""},"TS2L3-VMWEP1P3Y",null,4905]
["VMware vSphere Enterprise Plus OEM 1 Processor 5yr Software A20",1,{"$f":"\"\"","v":""},{"$f":"\"\"","v":""},"TS2L3-VMWEP1P5Y",null,6367]
["None",0,{"$f":"\"\"","v":""},{"$f":"\"\"","v":""},{"$f":"\"\"","v":""},null,0]
["VMware vSAN Standard OEM  1 Processor 3yr Software A20",1,{"$f":"\"\"","v":""},{"$f":"\"\"","v":""},"TS2L3-VSANSTD3Y",null,3177]
["VMware vSAN Standard OEM  1 Processor 5yr Software A20",1,{"$f":"\"\"","v":""},{"$f":"\"\"","v":""},"TS2L3-VSANSTD5Y",null,4107]
["VMware vSAN Advanced OEM  1 Processor 3yr Software A20",1,{"$f":"\"\"","v":""},{"$f":"\"\"","v":""},"TS2L3-VSANADV3Y",null,5010]
["VMware vSAN Advanced OEM  1 Processor 5yr Software A20",1,{"$f":"\"\"","v":""},{"$f":"\"\"","v":""},"TS2L3-VSANADV5Y",null,6475]
[]
["TS2L3PCI1","1CPU"]
["PCIe Slot-1"]
["None",{"$f":"\"\"","v":""},{"$f":"\"\"","v":""},{"$f":"\"\"","v":""},{"$f":"\"\"","v":""},0]
["[TS2L3-LAN1] Broadcom 5720 DP 1Gb Network Interface Card, Full Height",1,"[540-BBCX]","540-BBGY","TS2L3-LAN1",22]
["[TS2L3-LAN10] Broadcom 57412 Dual Port 10Gb, SFP+, PCIe Adapter, Full Height",1,"[540-BBUH]","540-BBUN","TS2L3-LAN10",114,null,"Kit - Dell EMC PowerEdge SFP+ SR Optic, 10GbE, 850nm",null,"407-BCBN",2]
["[TS2L3-CNA10] QLogic 41112 Dual Port 10Gb SFP+ Adapter, Full Height",1,"[540-BBYK]","540-BBYH","TS2L3-CNA10",110,null,"Kit - Dell EMC PowerEdge SFP+ SR Optic, 10GbE, 850nm",null,"407-BCBN",2]
["[TS2L3-FC8] QLogic 2562, Dual Port 8Gb Optical Fibre Channel HBA, Full Height",1,"[540-BBEC]","406-BBEK","TS2L3-FC8",245]
["------------------------ 20% -------------------------"]
["[TS2L3-HBASAS12] Dell 12Gbps SAS Host Bus Adapter External Controller - Full Height A20",1,null,"405-AADZ","TS2L3-HBASAS12",null,158]
["[TS2L3-Q41162T] QLogic FastLinQ 41162 Dual Port 10Gb Base-T Adapter, Full Height A20",1,null,"540-BBYG","TS2L3-Q41162T",null,394]
["[TS2L3-Q41164T] QLogic FastLinQ 41164 Quad Port 10G Base-T Adapter, Full Height A20",1,null,null,"TS2L3-Q41164T",null,687]
["[TS2L3-Q41262] QLogic FastLinQ 41262 Dual Port 25 Gb SFP28 Adapter, Full Height A20",1,null,null,"TS2L3-Q41262",null,411]
["[TS2L3-Q41262OT] QLogic FastLinQ 41262 Dual Port 25 Gb SFP28 Adapter, Full Height with 2 x Transceiver, SFP28, 25GbE, SR, MMF Duplex, LC A20",1,null,null,"TS2L3-Q41262OT",null,1075]
["[TS2L3-B57416T] Broadcom 57416 Dual Port 10Gb, Base-T, PCIe Adapter, Full Height A20",1,"[540-BBUI]","540-BBUO","TS2L3-B57416T",null,389]
["[TS2L3-IXXV710M3] Intel XXV710 Dual Port 25GbE SFP28 PCIe Adapter, Full Height, with 2x SFP28 to SFP28, 25GbE, Passive Copper Twinax DAC, 3 Meter A20",1,null,"540-BCDG 470-ACEU 470-ACEU","TS2L3-IXXV710M3",null,761]
["[TS2L3-IXXV710TRV] Intel XXV710 Dual Port 25GbE SFP28 PCIe Adapter, Full Height, with 2 x Transceiver, SFP28, 25GbE, SR, MMF Duplex, LC A20",1,null,"540-BCDG 407-BBWK 407-BBWK","TS2L3-IXXV710TRV",null,1380]
["[TS2L3-MCX416AM3] Mellanox ConnectX-4 Dual Port 40/100GbE, QSFP28, PCIe Adapter, Full Height, with 2 x 100GbE QSFP28 to QSFP28, Passive Copper DAC,3 Meter A20",1,null,"540-BBUU 470-ABQE 470-ABQE","TS2L3-MCX416AM3",null,1331]
["[TS2L3-MCX516AM3] Mellanox ConnectX-5 EX Dual Port 100GbE QSFP28 PCIe Adapter, Full Height, with 2 x 100GbE QSFP28 to QSFP28, Passive Copper DAC,3 Meter A20",1,null,"540-BCIV 470-ABQE 470-ABQE","TS2L3-MCX516AM3",null,1577]
["[TS2L3-MCX4121AM3] Mellanox ConnectX-4 Lx Dual Port 25GbE SFP28 Network Adapter, Full Height with 2x SFP28 to SFP28, 25GbE, Passive Copper Twinax DAC, 3 Meter A20",1,null,"406-BBLF 470-ACEU 470-ACEU","TS2L3-MCX4121AM3",null,748]
["[TS2L3-MCX5SP] Mellanox ConnectX-5 Single Port EDR VPI QSFP28 100Gb PCIe Adapter, Full Height with QSFP passive copper cable, LSZH, 2m A20",1,null,"540-BBQJ - 470-ACBR","TS2L3-MCX5SP",null,718]
["[TS2L3-Q2692] QLogic 2692 Dual Port 16Gb Fibre Channel HBA, Full Height A20",1,null,"403-BBMU","TS2L3-Q2692",null,780]
[]
[]
["TS2L3PCI2","1CPU"]
["PCIe Slot-2"]
["None",{"$f":"\"\"","v":""},{"$f":"\"\"","v":""},{"$f":"\"\"","v":""},{"$f":"\"\"","v":""},0]
["[TS2L3-LAN1] Broadcom 5720 DP 1Gb Network Interface Card, Full Height",1,"[540-BBCX]","540-BBGY","TS2L3-LAN1",22]
["[TS2L3-LAN10] Broadcom 57412 Dual Port 10Gb, SFP+, PCIe Adapter, Full Height",1,"[540-BBUH]","540-BBUN","TS2L3-LAN10",114,null,"Kit - Dell EMC PowerEdge SFP+ SR Optic, 10GbE, 850nm",null,"407-BCBN",2]
["[TS2L3-CNA10] QLogic 41112 Dual Port 10Gb SFP+ Adapter, Full Height",1,"[540-BBYK]","540-BBYH","TS2L3-CNA10",110,null,"Kit - Dell EMC PowerEdge SFP+ SR Optic, 10GbE, 850nm",null,"407-BCBN",2]
["[TS2L3-FC8] QLogic 2562, Dual Port 8Gb Optical Fibre Channel HBA, Full Height",1,"[540-BBEC]","406-BBEK","TS2L3-FC8",245]
["------------------------ 20% -------------------------"]
["[TS2L3-HBASAS12] Dell 12Gbps SAS Host Bus Adapter External Controller - Full Height A20",1,null,"405-AADZ","TS2L3-HBASAS12",null,158]
["[TS2L3-Q41162T] QLogic FastLinQ 41162 Dual Port 10Gb Base-T Adapter, Full Height A20",1,null,"540-BBYG","TS2L3-Q41162T",null,394]
["[TS2L3-Q41164T] QLogic FastLinQ 41164 Quad Port 10G Base-T Adapter, Full Height A20",1,null,null,"TS2L3-Q41164T",null,687]
["[TS2L3-Q41262] QLogic FastLinQ 41262 Dual Port 25 Gb SFP28 Adapter, Full Height A20",1,null,null,"TS2L3-Q41262",null,411]
["[TS2L3-Q41262OT] QLogic FastLinQ 41262 Dual Port 25 Gb SFP28 Adapter, Full Height with 2 x Transceiver, SFP28, 25GbE, SR, MMF Duplex, LC A20",1,null,null,"TS2L3-Q41262OT",null,1075]
["[TS2L3-B57416T] Broadcom 57416 Dual Port 10Gb, Base-T, PCIe Adapter, Full Height A20",1,"[540-BBUI]","540-BBUO","TS2L3-B57416T",null,389]
["[TS2L3-IXXV710M3] Intel XXV710 Dual Port 25GbE SFP28 PCIe Adapter, Full Height, with 2x SFP28 to SFP28, 25GbE, Passive Copper Twinax DAC, 3 Meter A20",1,null,"540-BCDG 470-ACEU 470-ACEU","TS2L3-IXXV710M3",null,761]
["[TS2L3-IXXV710TRV] Intel XXV710 Dual Port 25GbE SFP28 PCIe Adapter, Full Height, with 2 x Transceiver, SFP28, 25GbE, SR, MMF Duplex, LC A20",1,null,"540-BCDG 407-BBWK 407-BBWK","TS2L3-IXXV710TRV",null,1380]
["[TS2L3-MCX416AM3] Mellanox ConnectX-4 Dual Port 40/100GbE, QSFP28, PCIe Adapter, Full Height, with 2 x 100GbE QSFP28 to QSFP28, Passive Copper DAC,3 Meter A20",1,null,"540-BBUU 470-ABQE 470-ABQE","TS2L3-MCX416AM3",null,1331]
["[TS2L3-MCX516AM3] Mellanox ConnectX-5 EX Dual Port 100GbE QSFP28 PCIe Adapter, Full Height, with 2 x 100GbE QSFP28 to QSFP28, Passive Copper DAC,3 Meter A20",1,null,"540-BCIV 470-ABQE 470-ABQE","TS2L3-MCX516AM3",null,1577]
["[TS2L3-MCX4121AM3] Mellanox ConnectX-4 Lx Dual Port 25GbE SFP28 Network Adapter, Full Height with 2x SFP28 to SFP28, 25GbE, Passive Copper Twinax DAC, 3 Meter A20",1,null,"406-BBLF 470-ACEU 470-ACEU","TS2L3-MCX4121AM3",null,748]
["[TS2L3-MCX5SP] Mellanox ConnectX-5 Single Port EDR VPI QSFP28 100Gb PCIe Adapter, Full Height with QSFP passive copper cable, LSZH, 2m A20",1,null,"540-BBQJ - 470-ACBR","TS2L3-MCX5SP",null,718]
["[TS2L3-Q2692] QLogic 2692 Dual Port 16Gb Fibre Channel HBA, Full Height A20",1,null,"403-BBMU","TS2L3-Q2692",null,780]
[]
[]
["TS2L3PCI3","1CPU"]
["PCIe Slot-3"]
["PERC H730P RAID Controller, 2Gb NV Cache, Adapter, Full Height",1,"[405-AAMR]","405-AAMY",{"$f":"\"\"","v":""},0]
["------------------------ 20% -------------------------"]
["[TS2L3-HBA330] PERC HBA330 RAID Controller, 12Gb Adapter A20",1,"[405-AAOO]","405-AAMV","TS2L3-HBA330",null,196]
["[TS2L3-H740P] PERC H740P RAID Controller, 8Gb NV Cache, Adapter  A20",1,"[405-AANR]","405-AAMX","TS2L3-H740P",null,777]
[]
["TS2L3ASP"]
["Aggiungere Secondo Processore"]
[]
["2CPU"]
["TS2L3PCI4","2CPU"]
["PCIe Slot-4"]
["None",{"$f":"\"\"","v":""},{"$f":"\"\"","v":""},{"$f":"\"\"","v":""},{"$f":"\"\"","v":""},0]
["[TS2L3-LAN1] Broadcom 5720 DP 1Gb Network Interface Card, Full Height",1,"[540-BBCX]","540-BBGY","TS2L3-LAN1",22]
["[TS2L3-LAN10] Broadcom 57412 Dual Port 10Gb, SFP+, PCIe Adapter, Full Height",1,"[540-BBUH]","540-BBUN","TS2L3-LAN10",114,null,"Kit - Dell EMC PowerEdge SFP+ SR Optic, 10GbE, 850nm",null,"407-BCBN",2]
["[TS2L3-CNA10] QLogic 41112 Dual Port 10Gb SFP+ Adapter, Full Height",1,"[540-BBYK]","540-BBYH","TS2L3-CNA10",110,null,"Kit - Dell EMC PowerEdge SFP+ SR Optic, 10GbE, 850nm",null,"407-BCBN",2]
["[TS2L3-FC8] QLogic 2562, Dual Port 8Gb Optical Fibre Channel HBA, Full Height",1,"[540-BBEC]","406-BBEK","TS2L3-FC8",245]
["------------------------ 20% -------------------------"]
["[TS2L3-HBASAS12] Dell 12Gbps SAS Host Bus Adapter External Controller - Full Height A20",1,null,"405-AADZ","TS2L3-HBASAS12",null,158]
["[TS2L3-Q41162T] QLogic FastLinQ 41162 Dual Port 10Gb Base-T Adapter, Full Height A20",1,null,"540-BBYG","TS2L3-Q41162T",null,394]
["[TS2L3-Q41164T] QLogic FastLinQ 41164 Quad Port 10G Base-T Adapter, Full Height A20",1,null,null,"TS2L3-Q41164T",null,687]
["[TS2L3-Q41262] QLogic FastLinQ 41262 Dual Port 25 Gb SFP28 Adapter, Full Height A20",1,null,null,"TS2L3-Q41262",null,411]
["[TS2L3-Q41262OT] QLogic FastLinQ 41262 Dual Port 25 Gb SFP28 Adapter, Full Height with 2 x Transceiver, SFP28, 25GbE, SR, MMF Duplex, LC A20",1,null,null,"TS2L3-Q41262OT",null,1075]
["[TS2L3-B57416T] Broadcom 57416 Dual Port 10Gb, Base-T, PCIe Adapter, Full Height A20",1,"[540-BBUI]","540-BBUO","TS2L3-B57416T",null,389]
["[TS2L3-IXXV710M3] Intel XXV710 Dual Port 25GbE SFP28 PCIe Adapter, Full Height, with 2x SFP28 to SFP28, 25GbE, Passive Copper Twinax DAC, 3 Meter A20",1,null,"540-BCDG 470-ACEU 470-ACEU","TS2L3-IXXV710M3",null,761]
["[TS2L3-IXXV710TRV] Intel XXV710 Dual Port 25GbE SFP28 PCIe Adapter, Full Height, with 2 x Transceiver, SFP28, 25GbE, SR, MMF Duplex, LC A20",1,null,"540-BCDG 407-BBWK 407-BBWK","TS2L3-IXXV710TRV",null,1380]
["[TS2L3-MCX416AM3] Mellanox ConnectX-4 Dual Port 40/100GbE, QSFP28, PCIe Adapter, Full Height, with 2 x 100GbE QSFP28 to QSFP28, Passive Copper DAC,3 Meter A20",1,null,"540-BBUU 470-ABQE 470-ABQE","TS2L3-MCX416AM3",null,1331]
["[TS2L3-MCX516AM3] Mellanox ConnectX-5 EX Dual Port 100GbE QSFP28 PCIe Adapter, Full Height, with 2 x 100GbE QSFP28 to QSFP28, Passive Copper DAC,3 Meter A20",1,null,"540-BCIV 470-ABQE 470-ABQE","TS2L3-MCX516AM3",null,1577]
["[TS2L3-MCX4121AM3] Mellanox ConnectX-4 Lx Dual Port 25GbE SFP28 Network Adapter, Full Height with 2x SFP28 to SFP28, 25GbE, Passive Copper Twinax DAC, 3 Meter A20",1,null,"406-BBLF 470-ACEU 470-ACEU","TS2L3-MCX4121AM3",null,748]
["[TS2L3-MCX5SP] Mellanox ConnectX-5 Single Port EDR VPI QSFP28 100Gb PCIe Adapter, Full Height with QSFP passive copper cable, LSZH, 2m A20",1,null,"540-BBQJ - 470-ACBR","TS2L3-MCX5SP",null,718]
["[TS2L3-Q2692] QLogic 2692 Dual Port 16Gb Fibre Channel HBA, Full Height A20",1,null,"403-BBMU","TS2L3-Q2692",null,780]
[]
[]
["TS2L3PCI5","2CPU"]
["PCIe Slot-5"]
["None",{"$f":"\"\"","v":""},{"$f":"\"\"","v":""},{"$f":"\"\"","v":""},{"$f":"\"\"","v":""},0]
["------------------------ 20% -------------------------"]
[]
[]
["TS2L3PCI6","2CPU"]
["PCIe Slot-6"]
["None",{"$f":"\"\"","v":""},{"$f":"\"\"","v":""},{"$f":"\"\"","v":""},{"$f":"\"\"","v":""},0]
["[TS2L3-LAN1-L] Broadcom 5720 DP 1Gb Network Interface Card, Low Profile",1,"[540-BBDE]",null,"TS2L3-LAN1-L",22]
["[TS2L3-LAN10-L] Broadcom 57412 Dual Port 10Gb, SFP+, PCIe Adapter, Low Profile",1,"[540-BBVI]",null,"TS2L3-LAN10-L",114,null,"Kit - Dell EMC PowerEdge SFP+ SR Optic, 10GbE, 850nm",null,"407-BCBN",2]
["[TS2L3-CNA10-L] QLogic FastLinQ 41112 Dual Port 10Gb SFP+ Adapter, Low Profile",1,"[540-BBZI]",null,"TS2L3-CNA10-L",110,null,"Kit - Dell EMC PowerEdge SFP+ SR Optic, 10GbE, 850nm",null,"407-BCBN",2]
["[TS2L3-FC8-L] QLogic 2562, Dual Port 8Gb Optical Fibre Channel HBA, Low Profile",1,"[540-BBEC]",null,"TS2L3-FC8-L",245]
["------------------------ 20% -------------------------"]
["[TS2L3-Q41162T-L] QLogic FastLinQ 41162 Dual Port 10Gb Base-T Adapter, Low Profile A20",1,null,"540-BBZN","TS2L3-Q41162T-L",null,349]
["[TS2L3-Q41164T-L] QLogic FastLinQ 41164 Quad Port 10G Base-T Adapter, Low Profile A20",1,null,"540-BCHF","TS2L3-Q41164T-L",null,687]
["[TS2L3-Q41262-L]QLogic FastLinQ 41262 Dual Port 25 Gb SFP28 Adapter, Low Profile A20",1,null,null,"TS2L3-Q41262-L",null,411]
["[TS2L3-Q41262OT-L] QLogic FastLinQ 41262 Dual Port 25 Gb SFP28 Adapter, Low Profile with 2 x Transceiver, SFP28, 25GbE, SR, MMF Duplex, LC A20",1,null,null,"TS2L3-Q41262OT-L",null,1075]
["[TS2L3-B57416T-L] Broadcom 57416 Dual Port 10Gb, Base-T, PCIe Adapter, Low Profile A20",1,null,"540-BBVM","TS2L3-B57416T-L",null,389]
["[TS2L3-MCX516AM3-L] Mellanox ConnectX-5 EX Dual Port 100GbE QSFP28 PCIe Adapter, Low Profile, with 2 x 100GbE QSFP28 to QSFP28, Passive Copper DAC,3 Meter A20",1,null,null,"TS2L3-MCX516AM3-L",null,1577]
["[TS2L3-MCX4121A3-L] Mellanox ConnectX-4 Lx Dual Port 25GbE SFP28 Network Adapter, Low Profile with 2x SFP28 to SFP28, 25GbE, Passive Copper Twinax DAC, 3 Meter A20",null,null,"406-BBLC 470-ACEU 470-ACEU","TS2L3-MCX4121A3-L",null,748]
["[TS2L3-MCX5SP-L] Mellanox ConnectX-5 Single Port EDR VPI QSFP28 100Gb PCIe Adapter,  Low Profile with QSFP passive copper cable, LSZH, 2m A20",1,null,"540-BBPB - 470-ACBR","TS2L3-MCX4SP-L",null,718]
["[TS2L3-Q2692-L] QLogic 2692 Dual Port 16Gb Fibre Channel HBA, Low Profile A20",1,null,"403-BBMT","TS2L3-Q2692-L",null,780]
[null,1]
[]
[]
["TS2L3PCI7","2CPU"]
["PCIe Slot-7"]
["None",{"$f":"\"\"","v":""},{"$f":"\"\"","v":""},{"$f":"\"\"","v":""},{"$f":"\"\"","v":""},0]
["[TS2L3-LAN1] Broadcom 5720 DP 1Gb Network Interface Card, Full Height",1,"[540-BBCX]","540-BBGY","TS2L3-LAN1",22]
["[TS2L3-LAN10] Broadcom 57412 Dual Port 10Gb, SFP+, PCIe Adapter, Full Height",1,"[540-BBUH]","540-BBUN","TS2L3-LAN10",114,null,"Kit - Dell EMC PowerEdge SFP+ SR Optic, 10GbE, 850nm",null,"407-BCBN",2]
["[TS2L3-CNA10] QLogic 41112 Dual Port 10Gb SFP+ Adapter, Full Height",1,"[540-BBYK]","540-BBYH","TS2L3-CNA10",110,null,"Kit - Dell EMC PowerEdge SFP+ SR Optic, 10GbE, 850nm",null,"407-BCBN",2]
["[TS2L3-FC8] QLogic 2562, Dual Port 8Gb Optical Fibre Channel HBA, Full Height",1,"[540-BBEC]","406-BBEK","TS2L3-FC8",245]
["------------------------ 20% -------------------------"]
["[TS2L3-BOSS240] BOSS controller card, full height, 2 x 240G M.2 Drive A20",1,"[403-BBPT]","403-BBVQ 400-ASDQ 400-ASDQ","TS2L3-BOSS240",null,429]
["[TS2L3-HBASAS12] Dell 12Gbps SAS Host Bus Adapter External Controller - Full Height A20",1,null,"405-AADZ","TS2L3-HBASAS12",null,158]
["[TS2L3-Q41162T] QLogic FastLinQ 41162 Dual Port 10Gb Base-T Adapter, Full Height A20",1,null,"540-BBYG","TS2L3-Q41162T",null,394]
["[TS2L3-Q41164T] QLogic FastLinQ 41164 Quad Port 10G Base-T Adapter, Full Height A20",1,null,null,"TS2L3-Q41164T",null,687]
["[TS2L3-Q41262] QLogic FastLinQ 41262 Dual Port 25 Gb SFP28 Adapter, Full Height A20",1,null,null,"TS2L3-Q41262",null,411]
["[TS2L3-Q41262OT] QLogic FastLinQ 41262 Dual Port 25 Gb SFP28 Adapter, Full Height with 2 x Transceiver, SFP28, 25GbE, SR, MMF Duplex, LC A20",1,null,null,"TS2L3-Q41262OT",null,1075]
["[TS2L3-B57416T] Broadcom 57416 Dual Port 10Gb, Base-T, PCIe Adapter, Full Height A20",1,"[540-BBUI]","540-BBUO","TS2L3-B57416T",null,389]
["[TS2L3-IXXV710M3] Intel XXV710 Dual Port 25GbE SFP28 PCIe Adapter, Full Height, with 2x SFP28 to SFP28, 25GbE, Passive Copper Twinax DAC, 3 Meter A20",1,null,"540-BCDG 470-ACEU 470-ACEU","TS2L3-IXXV710M3",null,761]
["[TS2L3-IXXV710TRV] Intel XXV710 Dual Port 25GbE SFP28 PCIe Adapter, Full Height, with 2 x Transceiver, SFP28, 25GbE, SR, MMF Duplex, LC A20",1,null,"540-BCDG 407-BBWK 407-BBWK","TS2L3-IXXV710TRV",null,1380]
["[TS2L3-MCX416AM3] Mellanox ConnectX-4 Dual Port 40/100GbE, QSFP28, PCIe Adapter, Full Height, with 2 x 100GbE QSFP28 to QSFP28, Passive Copper DAC,3 Meter A20",1,null,"540-BBUU 470-ABQE 470-ABQE","TS2L3-MCX416AM3",null,1331]
["[TS2L3-MCX516AM3] Mellanox ConnectX-5 EX Dual Port 100GbE QSFP28 PCIe Adapter, Full Height, with 2 x 100GbE QSFP28 to QSFP28, Passive Copper DAC,3 Meter A20",1,null,"540-BCIV 470-ABQE 470-ABQE","TS2L3-MCX516AM3",null,1577]
["[TS2L3-MCX4121AM3] Mellanox ConnectX-4 Lx Dual Port 25GbE SFP28 Network Adapter, Full Height with 2x SFP28 to SFP28, 25GbE, Passive Copper Twinax DAC, 3 Meter A20",1,null,"406-BBLF 470-ACEU 470-ACEU","TS2L3-MCX4121AM3",null,748]
["[TS2L3-MCX5SP] Mellanox ConnectX-5 Single Port EDR VPI QSFP28 100Gb PCIe Adapter, Full Height with QSFP passive copper cable, LSZH, 2m A20",1,null,"540-BBQJ - 470-ACBR","TS2L3-MCX5SP",null,718]
["[TS2L3-Q2692] QLogic 2692 Dual Port 16Gb Fibre Channel HBA, Full Height A20",1,null,"403-BBMU","TS2L3-Q2692",null,780]
["[TS2L3-BOSS240] BOSS controller card + with 2 M.2 Sticks 480GB (RAID 1),FH, A20",1,"[403-BBSV]","403-BBVQ 400-AVSS 400-AVSS","TS2L3-BOSS480"]
[]
[]
["TS2L3PCI8","2CPU"]
["PCIe Slot-8"]
["None",{"$f":"\"\"","v":""},{"$f":"\"\"","v":""},{"$f":"\"\"","v":""},{"$f":"\"\"","v":""},0]
["[TS2L3-LAN1] Broadcom 5720 DP 1Gb Network Interface Card, Full Height",1,"[540-BBCX]","540-BBGY","TS2L3-LAN1",22]
["[TS2L3-LAN10] Broadcom 57412 Dual Port 10Gb, SFP+, PCIe Adapter, Full Height",1,"[540-BBUH]","540-BBUN","TS2L3-LAN10",114,null,"Kit - Dell EMC PowerEdge SFP+ SR Optic, 10GbE, 850nm",null,"407-BCBN",2]
["[TS2L3-CNA10] QLogic 41112 Dual Port 10Gb SFP+ Adapter, Full Height",1,"[540-BBYK]","540-BBYH","TS2L3-CNA10",110,null,"Kit - Dell EMC PowerEdge SFP+ SR Optic, 10GbE, 850nm",null,"407-BCBN",2]
["[TS2L3-FC8] QLogic 2562, Dual Port 8Gb Optical Fibre Channel HBA, Full Height",1,"[540-BBEC]","406-BBEK","TS2L3-FC8",245]
["------------------------ 20% -------------------------"]
["[TS2L3-HBASAS12] Dell 12Gbps SAS Host Bus Adapter External Controller - Full Height A20",1,null,"405-AADZ","TS2L3-HBASAS12",null,158]
["[TS2L3-Q41162T] QLogic FastLinQ 41162 Dual Port 10Gb Base-T Adapter, Full Height A20",1,null,"540-BBYG","TS2L3-Q41162T",null,394]
["[TS2L3-Q41164T] QLogic FastLinQ 41164 Quad Port 10G Base-T Adapter, Full Height A20",1,null,null,"TS2L3-Q41164T",null,687]
["[TS2L3-Q41262] QLogic FastLinQ 41262 Dual Port 25 Gb SFP28 Adapter, Full Height A20",1,null,null,"TS2L3-Q41262",null,411]
["[TS2L3-Q41262OT] QLogic FastLinQ 41262 Dual Port 25 Gb SFP28 Adapter, Full Height with 2 x Transceiver, SFP28, 25GbE, SR, MMF Duplex, LC A20",1,null,null,"TS2L3-Q41262OT",null,1075]
["[TS2L3-B57416T] Broadcom 57416 Dual Port 10Gb, Base-T, PCIe Adapter, Full Height A20",1,"[540-BBUI]","540-BBUO","TS2L3-B57416T",null,389]
["[TS2L3-IXXV710M3] Intel XXV710 Dual Port 25GbE SFP28 PCIe Adapter, Full Height, with 2x SFP28 to SFP28, 25GbE, Passive Copper Twinax DAC, 3 Meter A20",1,null,"540-BCDG 470-ACEU 470-ACEU","TS2L3-IXXV710M3",null,761]
["[TS2L3-IXXV710TRV] Intel XXV710 Dual Port 25GbE SFP28 PCIe Adapter, Full Height, with 2 x Transceiver, SFP28, 25GbE, SR, MMF Duplex, LC A20",1,null,"540-BCDG 407-BBWK 407-BBWK","TS2L3-IXXV710TRV",null,1380]
["[TS2L3-MCX416AM3] Mellanox ConnectX-4 Dual Port 40/100GbE, QSFP28, PCIe Adapter, Full Height, with 2 x 100GbE QSFP28 to QSFP28, Passive Copper DAC,3 Meter A20",1,null,"540-BBUU 470-ABQE 470-ABQE","TS2L3-MCX416AM3",null,1331]
["[TS2L3-MCX516AM3] Mellanox ConnectX-5 EX Dual Port 100GbE QSFP28 PCIe Adapter, Full Height, with 2 x 100GbE QSFP28 to QSFP28, Passive Copper DAC,3 Meter A20",1,null,"540-BCIV 470-ABQE 470-ABQE","TS2L3-MCX516AM3",null,1577]
["[TS2L3-MCX4121AM3] Mellanox ConnectX-4 Lx Dual Port 25GbE SFP28 Network Adapter, Full Height with 2x SFP28 to SFP28, 25GbE, Passive Copper Twinax DAC, 3 Meter A20",1,null,"406-BBLF 470-ACEU 470-ACEU","TS2L3-MCX4121AM3",null,748]
["[TS2L3-MCX5SP] Mellanox ConnectX-5 Single Port EDR VPI QSFP28 100Gb PCIe Adapter, Full Height with QSFP passive copper cable, LSZH, 2m A20",1,null,"540-BBQJ - 470-ACBR","TS2L3-MCX5SP",null,718]
["[TS2L3-Q2692] QLogic 2692 Dual Port 16Gb Fibre Channel HBA, Full Height A20",1,null,"403-BBMU","TS2L3-Q2692",null,780]
[]
[]
["TS2L3PCIGPUDW","2CPU"]
["PCIe Slot-GPU"]
["None",{"$f":"\"\"","v":""},{"$f":"\"\"","v":""},{"$f":"\"\"","v":""},{"$f":"\"\"","v":""},0]
["------------------------ 20% GPU -------------------------"]
["[TS2L3-GPUV10032] NVIDIA Tesla V100 32G Passive GPU, A20",1,"[490-BENY]","490-BEOB","TS2L3-GPUV10032",null,9556]
["[TS2L3-GPUV10016] NVIDIA Tesla™ V100 16G Passive GPU, A20",1,"[490-BEDZ]","490-BENS","TS2L3-GPUV10016",null,8727]
["[TS2L3-GPUM10] NVIDIA Tesla M10 GPU, A20",1,"[489-BBCG]","489-BBCJ","TS2L3-GPUM10",null,2426]
["--------------------------------------------------------------"]
["[TS2L3-LAN1] Broadcom 5720 DP 1Gb Network Interface Card, Full Height",1,"[540-BBCX]","540-BBGY","TS2L3-LAN1",22]
["[TS2L3-LAN10] Broadcom 57412 Dual Port 10Gb, SFP+, PCIe Adapter, Full Height",1,"[540-BBUH]","540-BBUN","TS2L3-LAN10",114,null,"Kit - Dell EMC PowerEdge SFP+ SR Optic, 10GbE, 850nm",null,"407-BCBN",2]
["[TS2L3-CNA10] QLogic 41112 Dual Port 10Gb SFP+ Adapter, Full Height",1,"[540-BBYK]","540-BBYH","TS2L3-CNA10",110,null,"Kit - Dell EMC PowerEdge SFP+ SR Optic, 10GbE, 850nm",null,"407-BCBN",2]
["[TS2L3-FC8] QLogic 2562, Dual Port 8Gb Optical Fibre Channel HBA, Full Height",1,"[540-BBEC]","406-BBEK","TS2L3-FC8",245]
["------------------------ 20% -------------------------"]
["[TS2L3-HBASAS12] Dell 12Gbps SAS Host Bus Adapter External Controller - Full Height A20",1,null,"405-AADZ","TS2L3-HBASAS12",null,158]
["[TS2L3-Q41162T] QLogic FastLinQ 41162 Dual Port 10Gb Base-T Adapter, Full Height A20",1,null,"540-BBYG","TS2L3-Q41162T",null,394]
["[TS2L3-Q41164T] QLogic FastLinQ 41164 Quad Port 10G Base-T Adapter, Full Height A20",1,null,null,"TS2L3-Q41164T",null,687]
["[TS2L3-Q41262] QLogic FastLinQ 41262 Dual Port 25 Gb SFP28 Adapter, Full Height A20",1,null,null,"TS2L3-Q41262",null,411]
["[TS2L3-Q41262OT] QLogic FastLinQ 41262 Dual Port 25 Gb SFP28 Adapter, Full Height with 2 x Transceiver, SFP28, 25GbE, SR, MMF Duplex, LC A20",1,null,null,"TS2L3-Q41262OT",null,1075]
["[TS2L3-B57416T] Broadcom 57416 Dual Port 10Gb, Base-T, PCIe Adapter, Full Height A20",1,"[540-BBUI]","540-BBUO","TS2L3-B57416T",null,389]
["[TS2L3-IXXV710M3] Intel XXV710 Dual Port 25GbE SFP28 PCIe Adapter, Full Height, with 2x SFP28 to SFP28, 25GbE, Passive Copper Twinax DAC, 3 Meter A20",1,null,"540-BCDG 470-ACEU 470-ACEU","TS2L3-IXXV710M3",null,761]
["[TS2L3-IXXV710TRV] Intel XXV710 Dual Port 25GbE SFP28 PCIe Adapter, Full Height, with 2 x Transceiver, SFP28, 25GbE, SR, MMF Duplex, LC A20",1,null,"540-BCDG 407-BBWK 407-BBWK","TS2L3-IXXV710TRV",null,1380]
["[TS2L3-MCX416AM3] Mellanox ConnectX-4 Dual Port 40/100GbE, QSFP28, PCIe Adapter, Full Height, with 2 x 100GbE QSFP28 to QSFP28, Passive Copper DAC,3 Meter A20",1,null,"540-BBUU 470-ABQE 470-ABQE","TS2L3-MCX416AM3",null,1331]
["[TS2L3-MCX516AM3] Mellanox ConnectX-5 EX Dual Port 100GbE QSFP28 PCIe Adapter, Full Height, with 2 x 100GbE QSFP28 to QSFP28, Passive Copper DAC,3 Meter A20",1,null,"540-BCIV 470-ABQE 470-ABQE","TS2L3-MCX516AM3",null,1577]
["[TS2L3-MCX4121AM3] Mellanox ConnectX-4 Lx Dual Port 25GbE SFP28 Network Adapter, Full Height with 2x SFP28 to SFP28, 25GbE, Passive Copper Twinax DAC, 3 Meter A20",1,null,"406-BBLF 470-ACEU 470-ACEU","TS2L3-MCX4121AM3",null,748]
["[TS2L3-MCX5SP] Mellanox ConnectX-5 Single Port EDR VPI QSFP28 100Gb PCIe Adapter, Full Height with QSFP passive copper cable, LSZH, 2m A20",1,null,"540-BBQJ - 470-ACBR","TS2L3-MCX5SP",null,718]
["[TS2L3-Q2692] QLogic 2692 Dual Port 16Gb Fibre Channel HBA, Full Height A20",1,null,"403-BBMU","TS2L3-Q2692",null,780]
[]
["TS2L3PCIGPUSW","2CPU"]
["PCIe Slot-GPU"]
["None",{"$f":"\"\"","v":""},{"$f":"\"\"","v":""},{"$f":"\"\"","v":""},{"$f":"\"\"","v":""},0]
["------------------------ 20% GPU -------------------------"]
["[TS2L3-GPUT4] DELL NVIDIA Tesla T4 16G GPU SW A20",1,null,null,"TS2L3-GPUT4",null,2227]
["--------------------------------------------------------------"]
["[TS2L3-LAN1] Broadcom 5720 DP 1Gb Network Interface Card, Full Height",1,"[540-BBCX]","540-BBGY","TS2L3-LAN1",22]
["[TS2L3-LAN10] Broadcom 57412 Dual Port 10Gb, SFP+, PCIe Adapter, Full Height",1,"[540-BBUH]","540-BBUN","TS2L3-LAN10",114,null,"Kit - Dell EMC PowerEdge SFP+ SR Optic, 10GbE, 850nm",null,"407-BCBN",2]
["[TS2L3-CNA10] QLogic 41112 Dual Port 10Gb SFP+ Adapter, Full Height",1,"[540-BBYK]","540-BBYH","TS2L3-CNA10",110,null,"Kit - Dell EMC PowerEdge SFP+ SR Optic, 10GbE, 850nm",null,"407-BCBN",2]
["[TS2L3-FC8] QLogic 2562, Dual Port 8Gb Optical Fibre Channel HBA, Full Height",1,"[540-BBEC]","406-BBEK","TS2L3-FC8",245]
["------------------------ 20% -------------------------"]
["[TS2L3-HBASAS12] Dell 12Gbps SAS Host Bus Adapter External Controller - Full Height A20",1,null,"405-AADZ","TS2L3-HBASAS12",null,158]
["[TS2L3-Q41162T] QLogic FastLinQ 41162 Dual Port 10Gb Base-T Adapter, Full Height A20",1,null,"540-BBYG","TS2L3-Q41162T",null,394]
["[TS2L3-Q41164T] QLogic FastLinQ 41164 Quad Port 10G Base-T Adapter, Full Height A20",1,null,null,"TS2L3-Q41164T",null,687]
["[TS2L3-Q41262] QLogic FastLinQ 41262 Dual Port 25 Gb SFP28 Adapter, Full Height A20",1,null,null,"TS2L3-Q41262",null,411]
["[TS2L3-Q41262OT] QLogic FastLinQ 41262 Dual Port 25 Gb SFP28 Adapter, Full Height with 2 x Transceiver, SFP28, 25GbE, SR, MMF Duplex, LC A20",1,null,null,"TS2L3-Q41262OT",null,1075]
["[TS2L3-B57416T] Broadcom 57416 Dual Port 10Gb, Base-T, PCIe Adapter, Full Height A20",1,"[540-BBUI]","540-BBUO","TS2L3-B57416T",null,389]
["[TS2L3-IXXV710M3] Intel XXV710 Dual Port 25GbE SFP28 PCIe Adapter, Full Height, with 2x SFP28 to SFP28, 25GbE, Passive Copper Twinax DAC, 3 Meter A20",1,null,"540-BCDG 470-ACEU 470-ACEU","TS2L3-IXXV710M3",null,761]
["[TS2L3-IXXV710TRV] Intel XXV710 Dual Port 25GbE SFP28 PCIe Adapter, Full Height, with 2 x Transceiver, SFP28, 25GbE, SR, MMF Duplex, LC A20",1,null,"540-BCDG 407-BBWK 407-BBWK","TS2L3-IXXV710TRV",null,1380]
["[TS2L3-MCX416AM3] Mellanox ConnectX-4 Dual Port 40/100GbE, QSFP28, PCIe Adapter, Full Height, with 2 x 100GbE QSFP28 to QSFP28, Passive Copper DAC,3 Meter A20",1,null,"540-BBUU 470-ABQE 470-ABQE","TS2L3-MCX416AM3",null,1331]
["[TS2L3-MCX516AM3] Mellanox ConnectX-5 EX Dual Port 100GbE QSFP28 PCIe Adapter, Full Height, with 2 x 100GbE QSFP28 to QSFP28, Passive Copper DAC,3 Meter A20",1,null,"540-BCIV 470-ABQE 470-ABQE","TS2L3-MCX516AM3",null,1577]
["[TS2L3-MCX4121AM3] Mellanox ConnectX-4 Lx Dual Port 25GbE SFP28 Network Adapter, Full Height with 2x SFP28 to SFP28, 25GbE, Passive Copper Twinax DAC, 3 Meter A20",1,null,"406-BBLF 470-ACEU 470-ACEU","TS2L3-MCX4121AM3",null,748]
["[TS2L3-MCX5SP] Mellanox ConnectX-5 Single Port EDR VPI QSFP28 100Gb PCIe Adapter, Full Height with QSFP passive copper cable, LSZH, 2m A20",1,null,"540-BBQJ - 470-ACBR","TS2L3-MCX5SP",null,718]
["[TS2L3-Q2692] QLogic 2692 Dual Port 16Gb Fibre Channel HBA, Full Height A20",1,null,"403-BBMU","TS2L3-Q2692",null,780]
[]
["PCIe Slot-GPU"]
["None",{"$f":"\"\"","v":""},{"$f":"\"\"","v":""},{"$f":"\"\"","v":""},{"$f":"\"\"","v":""},0]
["------------------------ 20% GPU -------------------------"]
["[TS2L3-GPUT4] DELL NVIDIA Tesla T4 16G GPU SW A20",1,null,null,"TS2L3-GPUT4",null,2227]
["--------------------------------------------------------------"]
["[TS2L3-LAN1] Broadcom 5720 DP 1Gb Network Interface Card, Full Height",1,"[540-BBCX]","540-BBGY","TS2L3-LAN1",22]
["[TS2L3-LAN10] Broadcom 57412 Dual Port 10Gb, SFP+, PCIe Adapter, Full Height",1,"[540-BBUH]","540-BBUN","TS2L3-LAN10",114,null,"Kit - Dell EMC PowerEdge SFP+ SR Optic, 10GbE, 850nm",null,"407-BCBN",2]
["[TS2L3-CNA10] QLogic 41112 Dual Port 10Gb SFP+ Adapter, Full Height",1,"[540-BBYK]","540-BBYH","TS2L3-CNA10",110,null,"Kit - Dell EMC PowerEdge SFP+ SR Optic, 10GbE, 850nm",null,"407-BCBN",2]
["[TS2L3-FC8] QLogic 2562, Dual Port 8Gb Optical Fibre Channel HBA, Full Height",1,"[540-BBEC]","406-BBEK","TS2L3-FC8",245]
["------------------------ 20% -------------------------"]
["[TS2L3-BOSS240] BOSS controller card, full height, 2 x 240G M.2 Drive A20",1,"[403-BBPT]","403-BBVQ 400-ASDQ 400-ASDQ","TS2L3-BOSS240",null,429]
["[TS2L3-HBASAS12] Dell 12Gbps SAS Host Bus Adapter External Controller - Full Height A20",1,null,"405-AADZ","TS2L3-HBASAS12",null,158]
["[TS2L3-Q41162T] QLogic FastLinQ 41162 Dual Port 10Gb Base-T Adapter, Full Height A20",1,null,"540-BBYG","TS2L3-Q41162T",null,394]
["[TS2L3-Q41164T] QLogic FastLinQ 41164 Quad Port 10G Base-T Adapter, Full Height A20",1,null,null,"TS2L3-Q41164T",null,687]
["[TS2L3-Q41262] QLogic FastLinQ 41262 Dual Port 25 Gb SFP28 Adapter, Full Height A20",1,null,null,"TS2L3-Q41262",null,411]
["[TS2L3-Q41262OT] QLogic FastLinQ 41262 Dual Port 25 Gb SFP28 Adapter, Full Height with 2 x Transceiver, SFP28, 25GbE, SR, MMF Duplex, LC A20",1,null,null,"TS2L3-Q41262OT",null,1075]
["[TS2L3-B57416T] Broadcom 57416 Dual Port 10Gb, Base-T, PCIe Adapter, Full Height A20",1,"[540-BBUI]","540-BBUO","TS2L3-B57416T",null,389]
["[TS2L3-IXXV710M3] Intel XXV710 Dual Port 25GbE SFP28 PCIe Adapter, Full Height, with 2x SFP28 to SFP28, 25GbE, Passive Copper Twinax DAC, 3 Meter A20",1,null,"540-BCDG 470-ACEU 470-ACEU","TS2L3-IXXV710M3",null,761]
["[TS2L3-IXXV710TRV] Intel XXV710 Dual Port 25GbE SFP28 PCIe Adapter, Full Height, with 2 x Transceiver, SFP28, 25GbE, SR, MMF Duplex, LC A20",1,null,"540-BCDG 407-BBWK 407-BBWK","TS2L3-IXXV710TRV",null,1380]
["[TS2L3-MCX416AM3] Mellanox ConnectX-4 Dual Port 40/100GbE, QSFP28, PCIe Adapter, Full Height, with 2 x 100GbE QSFP28 to QSFP28, Passive Copper DAC,3 Meter A20",1,null,"540-BBUU 470-ABQE 470-ABQE","TS2L3-MCX416AM3",null,1331]
["[TS2L3-MCX516AM3] Mellanox ConnectX-5 EX Dual Port 100GbE QSFP28 PCIe Adapter, Full Height, with 2 x 100GbE QSFP28 to QSFP28, Passive Copper DAC,3 Meter A20",1,null,"540-BCIV 470-ABQE 470-ABQE","TS2L3-MCX516AM3",null,1577]
["[TS2L3-MCX4121AM3] Mellanox ConnectX-4 Lx Dual Port 25GbE SFP28 Network Adapter, Full Height with 2x SFP28 to SFP28, 25GbE, Passive Copper Twinax DAC, 3 Meter A20",1,null,"406-BBLF 470-ACEU 470-ACEU","TS2L3-MCX4121AM3",null,748]
["[TS2L3-MCX5SP] Mellanox ConnectX-5 Single Port EDR VPI QSFP28 100Gb PCIe Adapter, Full Height with QSFP passive copper cable, LSZH, 2m A20",1,null,"540-BBQJ - 470-ACBR","TS2L3-MCX5SP",null,718]
["[TS2L3-Q2692] QLogic 2692 Dual Port 16Gb Fibre Channel HBA, Full Height A20",1,null,"403-BBMU","TS2L3-Q2692",null,780]
[]
["DW"]
["GPU","1A+2A+3A"]
["SW"]
["GPU","1E+2D+3B"]
["Low Profile"]
["Intel X520 Dual Port 10Gb, SFP+, Low Profile",null,"[540-BBDG]",null,null,null,null,null,null,null,null,null,null,null," [Option Id: G8P4069] [SKU: 540-BBDG]"]
["Broadcom 57414 Dual Port 25Gb, SFP28, PCIe Adapter, Low Profile",null,"[540-BBVK]",null,null,null,null,null,null,null,null,null,null,null," [Option Id: 5100637] [SKU: 540-BBVK]"]
["Broadcom 57416 Dual Port 10Gb, Base-T, PCIe Adapter, Low Profile",null,"[540-BBVJ]",null,null,null,null,null,null,null,null,null,null,null," [Option Id: 5100636] [SKU: 540-BBVJ]"]
["Broadcom 57412 Dual Port 10Gb, SFP+, PCIe Adapter, Low Profile",null,"[540-BBVI]",null,null,null,null,null,null,null,null,null,null,null," [Option Id: 5100635] [SKU: 540-BBVI]"]
["Broadcom 5719 QP 1Gb Network Interface Card, Low Profile",null,"[540-BBDF]",null,null,null,null,null,null,null,null,null,null,null," [Option Id: 5101877] [SKU: 540-BBDF]"]
["Broadcom 5720 DP 1Gb Network Interface Card, Low Profile",null,"[540-BBDE]",null,null,null,null,null,null,null,null,null,null,null," [Option Id: 5101876] [SKU: 540-BBDE]"]
["Intel X710 Quad Port 10GbE, Base-T, PCIe Adapter, Low Profile",null,"[540-BBVO]",null,null,null,null,null,null,null,null,null,null,null," [Option Id: 5100641] [SKU: 540-BBVO]"]
["Intel X710 Dual Port 10Gb Direct Attach, SFP+, Converged Network Adapter, Low Profile",null,"[555-BCKN]",null,null,null,null,null,null,null,null,null,null,null," [Option Id: X710FP] [SKU: 555-BCKN]"]
["Intel X710 Dual Port 10Gb, SFP+, Converged Network Adapter, Low Profile, With SR Optics",null,"[555-BCKN]",null,null,null,null,"SFP+ SR Optic, 10GbE, for Intel X520 only",2," [407-BBVK]",null,null,null,null," [Option Id: X710LP] [SKU: 407-BBVK, 407-BBVK, 555-BCKN]"]
["Intel X550 Dual Port 10G Base-T Adapter, Low Profile",null,"[540-BBRL]",null,null,null,null,null,null,null,null,null,null,null," [Option Id: 10CNDP] [SKU: 540-BBRL]"]
["Intel Ethernet i350v2 QP 1Gb Server Adapter, Low Profile",null,"[540-BBCZ]",null,null,null,null,null,null,null,null,null,null,null," [Option Id: PD351G] [SKU: 540-BBCZ]"]
["Intel Ethernet i350 DP 1Gb Server Adapter, Low Profile",null,"[540-BBDB]",null,null,null,null,null,null,null,null,null,null,null," [Option Id: SV35LP] [SKU: 540-BBDB]"]
["Mellanox ConnectX-4 Lx Dual Port 25GbE SFP28 Network Adapter, Low Profile",null,"[406-BBLD]",null,null,null,null,null,null,null,null,null,null,null," [Option Id: M25GBL] [SKU: 406-BBLD]"]
["Mellanox ConnectX-3 Pro Dual Port 10 GbE SFP+ PCIE Adapter Low Profile",null,"[540-BBOD]",null,null,null,null,null,null,null,null,null,null,null," [Option Id: MCX331] [SKU: 540-BBOD]"]
["QLogic FastLinQ 41262 Dual Port 25Gb SFP28 Adapter, Low Profile",null,"[540-BBZJ]",null,null,null,null,null,null,null,null,null,null,null," [Option Id: 5106842] [SKU: 540-BBZJ]"]
["QLogic FastLinQ 41162 Dual Port 10Gb Base-T Adapter, Low Profile",null,"[540-BBZK]",null,null,null,null,null,null,null,null,null,null,null," [Option Id: 5106841] [SKU: 540-BBZK]"]
["QLogic FastLinQ 41112 Dual Port 10Gb SFP+ Adapter, Low Profile",null,"[540-BBZI]",null,null,null,null,null,null,null,null,null,null,null," [Option Id: 5106840] [SKU: 540-BBZI]"]
["Intel XXV710 Dual Port 25GbE SFP28 PCIe Adapter, Low Profile",null,"[540-BCCM]",null,null,null,null,null,null,null,null,null,null,null," [Option Id: GBR16FU] [SKU: 540-BCCM]"]
["QLogic FastLinQ 41164 Quad Port 10GBASE-T PCIe Adapter, Low Profile",null,"[540-BCHC]",null,null,null,null,null,null,null,null,null,null,null," [Option Id: GWNLYB0] [SKU: 540-BCHC]"]
["QLogic 2742 Dual Port 32Gb Fibre Channel HBA, Low Profile",null,"[403-BBMM]"]
["QLogic 2692 Dual Port 16Gb Fibre Channel HBA, Low Profile",null,"[403-BBMS]"]
["QLogic 2690 Single Port 16Gb Fibre Channel HBA, Low Profile",null,"[403-BBMW]"]
["QLogic 2562, Dual Port 8Gb Optical Fibre Channel HBA, Low Profile",null,"[540-BBEC]"]
[]
["Full Height"]
["Broadcom 57414 Dual Port 25Gb, SFP28, PCIe Adapter, Full Height",null,"[540-BBUJ]",null,null,null,null,null,null,null,null,null,null,null," [Option Id: 5100004] [SKU: 540-BBUJ]"]
["Broadcom 57416 Dual Port 10Gb, Base-T, PCIe Adapter, Full Height ",null,"[540-BBUI]",null,null,null,null,null,null,null,null,null,null,null,"[Option Id: 5100003] [SKU: 540-BBUI]"]
["Broadcom 57412 Dual Port 10Gb, SFP+, PCIe Adapter, Full Height",null,"[540-BBUH]",null,null,null,null,null,null,null,null,null,null,null," [Option Id: 5100000] [SKU: 540-BBUH]"]
["Broadcom 5720 DP 1Gb Network Interface Card",null,"[540-BBCX]",null,null,null,null,null,null,null,null,null,null,null," [Option Id: 5720DP] [SKU: 540-BBCX]"]
["Intel X710 Quad Port 10GbE, Base-T, PCIe Adapter, Full Height",null,"[540-BBUX]",null,null,null,null,null,null,null,null,null,null,null," [Option Id: 5100585] [SKU: 540-BBUX]"]
["Intel X710 Quad Port 10Gb Direct Attach, SFP+, Converged Network Adapter",null,"[540-BBHQ]",null,null,null,null,null,null,null,null,null,null,null," [Option Id: X710QP] [SKU: 540-BBHQ]"]
["Intel X710 Quad Port 10Gb, SFP+, Converged Network Adapter, with SR Optics",null,"[540-BBHQ]",null,null,null,null,"SFP+ SR Optic, 10GbE, for Intel X520 only",4," [407-BBVK]",null,null,null,null," [Option Id: X710CV] [SKU: 407-BBVK, 407-BBVK, 407-BBVK, 407-BBVK, 540-BBHQ]"]
["Intel X710 Dual Port 10Gb Direct Attach, SFP+, Converged Network Adapter",null,"[540-BBHP]",null,null,null,null,null,null,null,null,null,null,null," [Option Id: X710DA] [SKU: 540-BBHP]"]
["Intel X710 Dual Port 10Gb, SFP+, Converged Network Adapter, with SR Optics",null,"[540-BBHP]",null,null,null,null,"SFP+ SR Optic, 10GbE, for Intel X520 only",2," [407-BBVK]",null,null,null,null," [Option Id: X710SF] [SKU: 407-BBVK, 407-BBVK, 540-BBHP]"]
["Intel X550 Dual Port 10G Base-T Adapter, Full Height",null,"[540-BBRO]",null,null,null,null,null,null,null,null,null,null,null," [Option Id: 10G2NN] [SKU: 540-BBRO]"]
["Intel Ethernet I350 QP 1Gb Server Adapter",null,"[540-BBDD]",null,null,null,null,null,null,null,null,null,null,null," [Option Id: I350QP] [SKU: 540-BBDD]"]
["Intel Ethernet I350 DP 1Gb Server Adapter",null,"[540-BBDH]",null,null,null,null,null,null,null,null,null,null,null," [Option Id: I350DP] [SKU: 540-BBDH]"]
["Mellanox ConnectX-4 Lx Dual Port 25GbE SFP28 Network Adapter",null,"[406-BBLE]",null,null,null,null,null,null,null,null,null,null,null," [Option Id: M25GBP] [SKU: 406-BBLE]"]
["Intel X520 DP 10Gb DA/SFP+ Server Adapter",null,"[540-BBCT]",null,null,null,null,null,null,null,null,null,null,null," [Option Id: X520D] [SKU: 540-BBCT]"]
["Mellanox ConnectX-3 Pro Dual Port 10 GbE SFP+ PCIE Adapter Full Height",null,"[540-BBOW]",null,null,null,null,null,null,null,null,null,null,null," [Option Id: MCX33P] [SKU: 540-BBOW]"]
["QLogic FastLinQ 41162 Dual Port 10Gb Base-T Adapter, Full Height",null,"[540-BBYJ]",null,null,null,null,null,null,null,null,null,null,null," [Option Id: 5103454] [SKU: 540-BBYJ]"]
["QLogic FastLinQ 41112 Dual Port 10Gb SFP+ Adapter, Full Height",null,"[540-BBYK]",null,null,null,null,null,null,null,null,null,null,null," [Option Id: 5103455] [SKU: 540-BBYK]"]
["Intel XXV710 Dual Port 25GbE SFP28 PCIe Adapter, Full Height",null,"[540-BCDH]",null,null,null,null,null,null,null,null,null,null,null," [Option Id: G2WY1IJ] [SKU: 540-BCDH]"]
["QLogic FastLinQ 41164 Quad Port 10GbE SFP+ PCIe Adapter, Full Height",null,"[540-BCHE]",null,null,null,null,null,null,null,null,null,null,null," [Option Id: GOUBFL4] [SKU: 540-BCHE]"]
["QLogic FastLinQ 41164 Quad Port 10GBASE-T PCIe Adapter, Full Height",null,"[540-BCHG]",null,null,null,null,null,null,null,null,null,null,null," [Option Id: GSCHVG2] [SKU: 540-BCHG]"]
["Mellanox ConnectX-5 Single Port EDR VPI QSFP28 PCIe Adapter, Full Height",null,"[540-BCDK]",null,null,null,null,null,null,null,null,null,null,null," [Option Id: GDSNXO7] [SKU: 540-BCDK]"]
["Mellanox ConnectX-4 Dual Port 100GbE QSFP28 PCIe Adapter, Full Height",null,"[540-BBUT]",null,null,null,null,null,null,null,null,null,null,null," [Option Id: GB8GMIC] [SKU: 540-BBUT]"]
["Mellanox ConnectX-5 EX Dual Port 100GbE QSFP28 PCIe Adapter, Full Height",null,"[540-BCIU]",null,null,null,null,null,null,null,null,null,null,null," [Option Id: G90UBJW] [SKU: 540-BCIU]"]
["QLogic 2742 Dual Port 32Gb Fibre Channel HBA",null,"[403-BBML]"]
["QLogic 2692 Dual Port 16Gb Fibre Channel HBA",null,"[403-BBMQ]"]
["QLogic 2690 Single Port 16Gb Fibre Channel HBA",null,"[403-BBMP]"]
["QLogic 2562, Dual Port 8Gb Optical Fibre Channel HBA, Low Profile",null,"[540-BBEC]"]
[]
["Alimentatore"]
["Dual, Hot-plug, Redundant Power Supply (1+1), 1100W",1,"[450-ADWM]"]
["Single, Hot-plug Power Supply (1+0), 1600W, 250 Volt Power Cord Recommended",2,"[450-AFMR]","450-AEPB","TS2L3-PSU1600"]
["Single, Hot-plug, Power Supply, 2000W, C19/C20 Power Cord Required",2,"[450-AGFT]","450-AENT","TS2L3-PSU2000"]
[]
["Network Daughter Card"]
["Intel X520 DP 10Gb DA/SFP+, + I350 DP 1Gb Ethernet, Network Daughter Card",null,"[540-BBBB]"]
["QLogic FastLinQ 41162 Dual Port 10GBASE-T, Dual Port 1GbE, rNDC ",null,"[555-BDYF]"]
["QLogic FastLinQ 41262 Dual Port 25GbE SFP28, rNDC ",null,"[555-BDYC]"]
["QLogic FastLinQ 41164 Quad Port 10GBASE-T, rNDC ",null,"[555-BDYB]"]
["QLogic FastLinQ 41164 Quad Port 10GbE SFP+, rNDC",null,"[555-BDXY]"]
["Broadcom 57414 Dual Port 25Gb, SFP28, rNDC",null,"[540-BBUM]"]
["Broadcom 57416 2 Port 10Gb Base-T + 5720 2 Port 1Gb Base-T, rNDC",null,"[540-BBUK]"]
["Broadcom 57412 2 Port 10Gb SFP+ + 5720 2 Port 1Gb Base-T, rNDC",null,"[540-BBUL]"]
["Broadcom 5720 QP 1Gb Network Daughter Card",null,"[540-BBBW]"]
["Intel X710 Quad Port 10Gb DA/SFP+ Ethernet, Network Daughter Card",null,"[555-BCKP]"]
["Intel X710 Quad Port 10Gb DA/SFP+ Ethernet, Network Daughter Card, with SR Optics",null,"[555-BCKP]",null,null,null,null,"SFP+ SR Optic, 10GbE, for Intel X520 only",4," [407-BBVK]"]
["Intel X710 DP 10Gb DA/SFP+, + I350 DP 1Gb Ethernet, Network Daughter Card",null,"[555-BCKO]"]
["Intel X710 DP 10Gb SR/SFP+, + I350 DP 1Gb Ethernet, Network Daughter Card, with SR Optics",null,"[55-BCKO]",null,null,null,null,"SFP+ SR Optic, 10GbE, for Intel X520 only",2," [407-BBVK]"]
["Intel X550 Quad Port 10GbE, Base-T, rNDC",null,"[540-BBUY]"]
["Intel X550 2 Port 10Gb Base-T + I350 2 Port 1Gb Base-T, rNDC",null,"[540-BBUZ]"]
["Intel Ethernet I350 QP 1Gb Network Daughter Card",null,"[540-BBCB]"]
["Mellanox ConnectX-4 Lx Dual Port 25GbE SFP28 rNDC",null,"[406-BBLG]"]
["QLogic FastLinQ 41264 Dual Port 10GbE SFP+, Dual Port 1GbE, rNDC",null,"[555-BDYH]"]
[]
["Bezel"]
["No Bezel",null,"[350-BBBW]",null,{"$f":"\"\"","v":""},null,null,"ReadyRails™ Sliding Rails Without Cable Management Arm",1,"[770-BBBQ]"]
["Dell PowerEdge 2U, LCD, 14G, 2U Cable Management Arm A20",1,"[325-BCHU]","325-BCHW","TS2L3-LCDBEZEL",null,135,"ReadyRails™ Sliding Rails With Cable Management Arm",1,"[770-BBBR]","770-BBIP"]
["Dell PowerEdge 2U, Standard, 14G,2 2U Cable Management Arm A20",1,"[325-BCHV]","325-BCHX","TS2L3-STDBEZEL",null,101,"ReadyRails™ Sliding Rails With Cable Management Arm",1,"[770-BBBR]","770-BBIP"]
[]
["Rack Rails"]
["ReadyRails™ Sliding Rails Without Cable Management Arm",1,"[770-BBBQ]"]
["ReadyRails™ Sliding Rails With Cable Management Arm",1,"[770-BBBR]"]
[]
["Estenzione di Garanzia"]
["None",{"$f":"\"\"","v":""},{"$f":"\"\"","v":""},{"$f":"\"\"","v":""},{"$f":"\"\"","v":""},0]
["Estensione della manutenzione in garanzia per ulteriori 12 mesi",1,{"$f":"\"\"","v":""},"701-11494 732-79421","TS2L3-4Y",40]
["Estensione della manutenzione in garanzia per ulteriori 24 mesi",1,{"$f":"\"\"","v":""},"701-11494 701-11494 732-79422","TS2L3-5Y",81]
[]
[]
["_SavePDFon"]
["_SavePDFoff"]

{"sheet":"Codici&PrezzixRiepilogo","index":10,"n_rows":227,"n_cols":7,"rows_kept":227,"cut":false,"hidden":true,"merged":[[33,3,34,3],[42,3,43,3],[171,0,172,0],[171,1,172,1],[178,0,179,0],[178,1,179,1],[125,0,126,0],[125,1,126,1],[127,0,128,0],[127,1,128,1],[129,0,132,0],[129,1,132,1],[33,0,34,0],[33,1,34,1],[42,0,43,0],[42,1,43,1],[180,0,181,0],[180,1,181,1],[133,0,136,0],[133,1,136,1],[137,0,140,0],[137,1,140,1],[169,0,170,0],[169,1,170,1],[123,0,124,0],[123,1,124,1],[24,0,25,0],[24,1,25,1],[26,0,27,0],[26,1,27,1],[31,0,32,0],[31,1,32,1],[3,0,6,0],[3,1,6,1],[20,0,21,0],[20,1,21,1],[22,0,23,0],[22,1,23,1],[3,3,6,3],[31,3,32,3],[26,3,27,3],[24,3,25,3],[22,3,23,3],[20,3,21,3]]}
["CODICE CONVERGE","CODICE CONVENZIONE","Description","Prezzo vendita da Converge a CONSIP tot.","CODICE CONVERGE"]
["TS2L3-SRV","TS2L3-SRV","Server DELL EMC PowerEdge R7425, 2U, 1 x AMD EPYC 7301; RAM 64GB, 2 x HDD 600GB 10K 2.5\"",2087,"TS2L3-SRV",{"$f":"LEN(B2)","v":9}]
[]
["TS2L3-CPU","TS2L3-CPU","Processore AMD EPYC 7301 ",700,"TS2L3-CPU",{"$f":"LEN(B4)","v":9}]
[null,null,"Riser Card 2A,R7425",null,null,0]
[null,null,"Riser Card 3A,R7425",null,null,0]
[null,null,"Standard Heatsink, 180W CPU, R7425",null,null,0]
[null,null,null,null,null,0]
["TS2D-RAM16","TS2L3-RAM16","Upgrade KIT RAM 16GB",103,"TS2D-RAM16",11]
["TS2D-RAM32","TS2L3-RAM32","Upgrade KIT RAM 32GB",347,"TS2D-RAM32",11,{"$f":"D10*2","v":694}]
["TS2D-RAM64","TS2L3-RAM64","Upgrade KIT RAM 64GB",697,"TS2D-RAM64",11]
[null,null,null,null,null,0]
["TS2D-10K600","TS2L3-10K600","HDD 600GB 10K SAS 12Gbps  2.5in Hot-plug",68,"TS2D-10K600",12]
["TS2D-10K1200","TS2L3-10K1200","HDD 1200GB 10K SAS 12Gbps  2.5in Hot-plug",136,"TS2D-10K1200",13]
["TS2D-10K1800","TS2L3-10K1800","HDD 1800GB 10K SAS 12Gbps  2.5in Hot-plug",169,"TS2D-10K1800",13]
["TS2D-SSDR960","TS2L3-SSDR960","SSD 960GB SAS RI 12Gbps 2.5in Hot-plug",664,"TS2D-SSDR960",13]
["TS2D-SSDR1920","TS2L3-SSDR1920","SSD 1920GB SAS RI 12Gbps 2.5in Hot-plug",1313,"TS2D-SSDR1920",14]
[null,null,null,null,null,0]
["TS2D-LAN1","TS2L3-LAN1","Scheda LAN 5720 Dual Port 1Gb,Full Height",22,"TS2D-LAN1",10]
["TS2D-LAN1-L","TS2L3-LAN1-L","Scheda LAN 5720 Dual Port 1Gb,Low Profile",22,"TS2D-LAN1-L",12]
["TS2D-LAN10","TS2L3-LAN10","Scheda LAN 57412 Dual Port 10Gb, SFP+, Full Height",114,"TS2D-LAN10",11]
[null,null,"Transceiver SFP+ SR, 10GbE, 850nm",null,null,0]
["TS2D-LAN10-L","TS2L3-LAN10-L","Scheda LAN 57412 Dual Port 10Gb, SFP+, Low Profile",114,"TS2D-LAN10-L",13]
[null,null,"Transceiver SFP+ SR, 10GbE, 850nm",null,null,0]
["TS2D-CNA10","TS2L3-CNA10","Scheda CNA 41112 Dual Port 10Gb SFP+, Full Height",110,"TS2D-CNA10",11]
[null,null,"Transceiver SFP+ SR, 10GbE, 850nm",null,null,0]
["TS2D-CNA10-L","TS2L3-CNA10-L","Scheda CNA 41112 Dual Port 10Gb SFP+, Low Profile",110,"TS2D-CNA10-L",13]
[null,null,"Transceiver SFP+ SR, 10GbE, 850nm",null,null,0]
["TS2D-FC8","TS2L3-FC8","Scheda FC 2562, Dual Port 8Gb HBA, Full Height",245,"TS2D-FC8",9]
["TS2D-FC8-L","TS2L3-FC8-L","Scheda FC 2562, Dual Port 8Gb HBA, Full Height",245,"TS2D-FC8-L",11]
[null,null,null,null,null,0]
["TS2L3-4Y","TS2L3-4Y","Estensione della manutenzione in garanzia per ulteriori 12 mesi",40,"TS2L3-4Y"]
[null,null,"Onsite Labor CRU, 1Year",null,null,0]
["TS2L3-5Y","TS2L3-5Y","Estensione della manutenzione in garanzia per ulteriori 24 mesi",81,"TS2L3-5Y",8]
[null,null,"Onsite Labor CRU, 1Year",null,null,0]
[null,null,null,null,null,0]
["TS2D-WIN1","TS2L3-WIN1","Windows Server 2019 Standard Ed 16CORE",553,"TS2D-WIN1",10]
["TS2D-CALDEV","TS2L3-CALDEV","Device CAL 1-pack Windows Server 2019",20,"TS2D-CALDEV",12]
["TS2D-CALUSER","TS2L3-CALUSER","User CAL 1-pack Windows Server 2019",24,"TS2D-CALUSER",13]
["TS2D-WIN2CORE","TS2L3-WIN2CORE","Windows Server 2019 Standard Ed Add License 2CORE",74,"TS2D-WIN2CORE",14]
["TS2-LINUX","TS2L3-LINUX","CentOS 7.x",49,"TS2-LINUX",11]
[null,null,null,null,null,0]
["TS2-UPS","TS2L3-UPS","UPS MSR 3000VA + staffe",387,"TS2-UPS",9]
[null,null,"Kit 2 Guide universali per UPS",{"$f":"C44*#REF!","v":{"$error":"#VALUE!"}},null,0]
["TS2-GUI","TS2L3-GUI","Console KVM GUI da rack",448,"TS2-GUI",9]
["TS2-RACK","TS2L3-RACK","Armadio Rack 42U",504,"TS2-RACK",10]
["TS2-KVMIP","TS2L3-KVMIP","KVM Switch IP per GUI 16P con cavi",495,"TS2-KVMIP",11]
[null,null,null,null,null,0]
["TS2-3MRJ45","TS2L3-3MRJ45","Cavo Rete UTP cat. 5e 3 metri A20",2,"TS2-3MRJ45",12]
["TS2D-BOSS240","TS2L3-BOSS240","BOSS controller card, full height, 2 x 240G M.2 Drive A20",429,"TS2D-BOSS240"]
["TS2D-ISDM32","TS2L3-ISDM32","ISDM and Combo Card Reader, 2x 32GB microSDHC/SDXC Card A20",134,"TS2D-ISDM32"]
["TS2D-LCDBEZEL","TS2L3-LCDBEZEL","Dell PowerEdge 2U, LCD, 14G, 2U Cable Management Arm A20",135,"TS2D-LCDBEZEL"]
["TS2D-STDBEZEL","TS2L3-STDBEZEL","Dell PowerEdge 2U, Standard, 14G,2 2U Cable Management Arm A20",101,"TS2D-STDBEZEL"]
["TS2D-MCX416AM3","TS2L3-MCX416AM3","Mellanox ConnectX-4 Dual Port 40/100GbE, QSFP28, PCIe Adapter, Full Height, with 2 x 100GbE QSFP28 to QSFP28, Passive Copper DAC,3 Meter A20",1331,"TS2D-MCX416AM3"]
["TS2D-MCX516AM3","TS2L3-MCX516AM3","Mellanox ConnectX-5 EX Dual Port 100GbE QSFP28 PCIe Adapter, Full Height, with 2 x 100GbE QSFP28 to QSFP28, Passive Copper DAC,3 Meter A20",1577,"TS2D-MCX516AM3"]
["TS2D-MCX4121AM3","TS2L3-MCX4121AM3","Mellanox ConnectX-4 Lx Dual Port 25GbE SFP28 Network Adapter, Full Height with 2x SFP28 to SFP28, 25GbE, Passive Copper Twinax DAC, 3 Meter A20",748,"TS2D-MCX4121AM3"]
["TS2D-HBA330","TS2L3-HBA330","PERC HBA330 Adapter, 12Gbps Adapter, A20",196,"TS2D-HBA330"]
["TS2D-HBASAS12","TS2L3-HBASAS12","Dell 12Gbps SAS Host Bus Adapter External Controller - Full Height A20",158,"TS2D-HBASAS12"]
["TS2D-H740P","TS2L3-H740P","Dell PERC H740P RAID Controller Adapter A20",777,"TS2D-H740P"]
["TS2D-Q41162T","TS2L3-Q41162T","QLogic FastLinQ 41162 Dual Port 10Gb Base-T Adapter, Full Height A20",349,"TS2D-Q41162T"]
["TS2D-Q41162T-L","TS2L3-Q41162T-L","QLogic FastLinQ 41162 Dual Port 10Gb Base-T Adapter, Low Profile A20",349,"TS2D-Q41162T-L"]
["TS2D-Q41164T-L","TS2L3-Q41164T-L","QLogic FastLinQ 41164 Quad Port 10G Base-T Adapter, Low Profile A20",687,"TS2D-Q41164T-L"]
["TS2D-Q2692","TS2L3-Q2692","QLogic 2692 Dual Port 16Gb Fibre Channel HBA, Full Height A20",780,"TS2D-Q2692"]
["TS2D-Q2692-L","TS2L3-Q2692-L","QLogic 2692 Dual Port 16Gb Fibre Channel HBA, Low Profile A20",780,"TS2D-Q2692-L"]
["TS2D-B57416T","TS2L3-B57416T","Broadcom 57416 Dual Port 10Gb, Base-T, PCIe Adapter, Full Height A20",389,"TS2D-B57416T"]
["TS2D-B57416T-L","TS2L3-B57416T-L","Broadcom 57416 Dual Port 10Gb, Base-T, PCIe Adapter, Low Profile A20",389,"TS2D-B57416T-L"]
["TS2D-5XDAC100M2","TS2L3-5XDAC100M2","5 x Dell Networking Cable, 100GbE QSFP28 to QSFP28,Passive Copper Direct Attach Cable,2 Meter A20",940,"TS2D-5XDAC100M2"]
["TS2D-5XDAC100M3","TS2L3-5XDAC100M3","5 x Dell Networking Cable,100GbE QSFP28 to QSFP28, Passive Copper Direct Attach Cable,3 Meter A20",1125,"TS2D-5XDAC100M3"]
["TS2D-5XDAC10M3","TS2L3-5XDAC10M3","5 x Dell Networking, Cable, SFP+ to SFP+, 10GbE, Copper Twinax Direct Attach Cable, 3 Meter A20",125,"TS2D-5XDAC10M3"]
["TS2D-SSDW800","TS2L3-SSDW800","800GB SSD SAS Write Intensive 12Gb 512n 2.5in Hot-plug Drive, 10 DWPD A20",1723,"TS2D-SSDW800"]
["TS2D-SSDW400","TS2L3-SSDW400","400GB SSD SAS Write Intensive 12Gbps 512n 2.5in Hot-plug Drive, 10 DWPD A20",1155,"TS2D-SSDW400"]
["TS2D-10K2400","TS2L3-10K2400","2.4TB 10K RPM SAS 12Gbps 512e 2.5in Hot-plug Hard Drive NO VMWARE A20",389,"TS2D-10K2400"]
["TS2D-WINDC","TS2L3-WINDC","Windows Server 2019 Datacenter Ed 16CORE A20",3345,"TS2D-WINDC"]
["TS2D-WINDC2","TS2L3-WINDC2","Windows Server 2019 Datacenter Ed Add License 16CORE A20",3343,"TS2D-WINDC2"]
["TS2D-WINDC2COR","TS2L3-WINDC2COR","Windows Server 2019 Datacenter Ed Add License 2CORE A20",437,"TS2D-WINDC2COR"]
["TS2D-IXXV710M3","TS2L3-IXXV710M3","Intel XXV710 Dual Port 25GbE SFP28 PCIe Adapter, Full Height, with 2x SFP28 to SFP28, 25GbE, Passive Copper Twinax DAC, 3 Meter A20",761,"TS2D-IXXV710M3"]
["TS2D-IXXV710TRV","TS2L3-IXXV710TRV","Intel XXV710 Dual Port 25GbE SFP28 PCIe Adapter, Full Height, with 2 x Transceiver, SFP28, 25GbE, SR, MMF Duplex, LC A20",1380,"TS2D-IXXV710TRV"]
["TS2D-VMWKIT6P3Y","TS2L3-VMWKIT6P3Y","VMware vSphere Essentials Plus Kit OEM 6 Processor 3yr A20",5230,"TS2D-VMWKIT6P3Y"]
["TS2D-VMWSTD1P3Y","TS2L3-VMWSTD1P3Y","VMware vSphere Standard OEM 1 Processor 3yr Software A20",1743,"TS2D-VMWSTD1P3Y"]
["TS2D-VMWVCSTD3Y","TS2L3-VMWVCSTD3Y","VMw vCenter Server Standard for vSphere OEM 3yr Software A20",8909,"TS2D-VMWVCSTD3Y"]
["TS2D-VMWVCSTD5Y","TS2L3-VMWVCSTD5Y","VMw vCenter Server Standard for vSphere OEM 5yr Software A20",10549,"TS2D-VMWVCSTD5Y"]
["TS2D-VMWEP1P3Y","TS2L3-VMWEP1P3Y","VMware vSphere Enterprise Plus OEM 1 Processor 3yr Software A20",4905,"TS2D-VMWEP1P3Y"]
["TS2D-VMWEP1P5Y","TS2L3-VMWEP1P5Y","VMware vSphere Enterprise Plus OEM 1 Processor 5yr Software A20",6367,"TS2D-VMWEP1P5Y"]
["TS2D-VSANSTD3Y","TS2L3-VSANSTD3Y","VMware vSAN Standard OEM  1 Processor 3yr Software A20",3177,"TS2D-VSANSTD3Y"]
["TS2D-VSANSTD5Y","TS2L3-VSANSTD5Y","VMware vSAN Standard OEM  1 Processor 5yr Software A20",4107,"TS2D-VSANSTD5Y"]
["TS2D-VSANADV3Y","TS2L3-VSANADV3Y","VMware vSAN Advanced OEM  1 Processor 3yr Software A20",5010,"TS2D-VSANADV3Y"]
["TS2D-VSANADV5Y","TS2L3-VSANADV5Y","VMware vSAN Advanced OEM  1 Processor 5yr Software A20",6475,"TS2D-VSANADV5Y"]
["TS2D-GPUM10","TS2L3-GPUM10","DELL NVIDIA Tesla M10 GPU A20",2426,"TS2D-GPUM10"]
["TS2D-2000W","TS2L3-2000W","Dual,  Hot-plug Power Supply (1+1), 2000W with power cord C19/20 A20",595,"TS2D-2000W"]
["TS2D-GPUV10016","TS2L3-GPUV10016","DELL NVIDIA Tesla V100 16G Passive GPU DW A20",8727,"TS2D-GPUV10016"]
["TS2D-GPUV10032","TS2L3-GPUV10032","DELL NVIDIA Tesla V100 32G Passive GPU DW A20",9556,"TS2D-GPUV10032"]
["TS2D-GPUKITSW","TS2L3-GPUKITSW","GPU installation kit for SW GPU, R7425 A20",287,"TS2D-GPUKITSW"]
["TS2D-GPUKITDW","TS2L3-GPUKITDW","GPU installation kit for DW GPU, R7425 A20",254,"TS2D-GPUKITDW"]
["TS2D-GPUT4","TS2L3-GPUT4","DELL NVIDIA Tesla T4 16G GPU SW A20",2227,"TS2D-GPUT4"]
["TS2D-Q41164T","TS2L3-Q41164T","QLogic FastLinQ 41164 Quad Port 10G Base-T Adapter, Full Height A20",687,"TS2D-Q41164T"]
["TS2D-Q41262","TS2L3-Q41262","QLogic FastLinQ 41262 Dual Port 25 Gb SFP28 Adapter, Full Height A20",411,"TS2D-Q41262"]
["TS2D-Q41262-L","TS2L3-Q41262-L","QLogic FastLinQ 41262 Dual Port 25 Gb SFP28 Adapter, Low Profile A20",411,"TS2D-Q41262-L"]
["TS2D-SSDW1600","TS2L3-SSDW1600","1600GB SSD SAS Write Intensive 12Gb 512n 2.5in Hot-plug Drive, 10 DWPD A20",1475,"TS2D-SSDW1600"]
["TS2D-Q41262OT-L","TS2L3-Q41262OT-L","QLogic FastLinQ 41262 Dual Port 25 Gb SFP28 Adapter, Low Profile with 2 x Transceiver, SFP28, 25GbE, SR, MMF Duplex, LC A20",1075,"TS2D-Q41262OT-L"]
["TS2D-Q41262OT","TS2L3-Q41262OT","QLogic FastLinQ 41262 Dual Port 25 Gb SFP28 Adapter, Full Height with 2 x Transceiver, SFP28, 25GbE, SR, MMF Duplex, LC A20",1075,"TS2D-Q41262OT"]
["TS2D-MCX516AM3-L","TS2L3-MCX516AM3-L","Mellanox ConnectX-5 EX Dual Port 100GbE QSFP28 PCIe Adapter, Low Profile, with 2 x 100GbE QSFP28 to QSFP28, Passive Copper DAC,3 Meter A20",1577,"TS2D-MCX516AM3-L"]
["TS2D-MCX4121A3-L","TS2L3-MCX4121A3-L","Mellanox ConnectX-4 Lx Dual Port 25GbE SFP28 Network Adapter, Low Profile with 2 x 100GbE QSFP28 to QSFP28, Passive Copper DAC,3 Meter A20",748,"TS2D-MCX4121A3-L"]
["TS2D-SSDM480","TS2L3-SSDM480","SSD 480GB SAS MU 12Gbps 2.5in Hot-Plug A20",399,"TS2D-SSDM480"]
["TS2D-SSDM960","TS2L3-SSDM960","SSD 960GB SAS Mixed Use 12Gbps 2.5in Hot-plug Drive A20",598,"TS2D-SSDM960"]
["TS2D-H840","TS2L3-H840","PERC H840 RAID Adapter for External MD14XX Only, 8GB NV Cache, Full Height A20",346,"TS2D-H840"]
["TS2D-MCX5SP-L","TS2L3-MCX5SP-L","Mellanox ConnectX-5 Single Port EDR VPI QSFP28 100Gb PCIe Adapter,  Low Profile with QSFP passive copper cable, LSZH, 2m A20",718,"TS2D-MCX5SP-L"]
["TS2D-MCX5SP","TS2L3-MCX5SP","Mellanox ConnectX-5 Single Port EDR VPI QSFP28 100Gb PCIe Adapter, Full Height with QSFP passive copper cable, LSZH, 2m A20",718,"TS2D-MCX5SP"]
["TS2D-UPGNTWEAV","TS2L3-UPGNTWEAV","Dell Networking, Upgrade 25GbE SFP28 - 100GbE QSFP28 A20",2136,"TS2D-UPGNTWEAV"]
["TS2D-10GBESR850","TS2L3-10GBESR850","Dell Networking, Transceiver, SFP+, 10GbE, SR, 850nm A20",1825.1,"TS2D-10GBESR850"]
["TS2D-NVMEKIT","TS2L3-NVMEKIT","Upgrade Chassis for NVMe Drivers",433,"TS2D-NVMEKIT"]
["TS2D-NVME1600","TS2L3-NVME1600","Dell 1.6TB, NVMe, Mixed Use Express Flash, 2.5 SFF",644,"TS2D-NVME1600"]
["TS2D-NVME3200","TS2L3-NVME3200","Dell 3.2TB, NVMe, Mixed Use Express Flash, 2.5 SFF",1218,"TS2D-NVME3200"]
["TS2D-NVME6400","TS2L3-NVME6400","Dell 6.4TB, NVMe, Mixed Use Express Flash, 2.5 SFF",2469,"TS2D-NVME6400"]
["TS2D-NVME960","TS2L3-NVME960","Dell 960GB NVMe, Data Center, Read Intensive SFF",241,"TS2D-NVME960"]
["TS2D-NVME1000","TS2L3-NVME1000","Dell 1TB, NVMe, Read Intensive Express Flash, 2.5 SFF",326,"TS2D-NVME1000"]
["TS2D-NVME4000","TS2L3-NVME4000","Dell 4TB, NVMe, Read Intensive Express Flash, 2.5 SFF",1152,"TS2D-NVME4000"]
["TS2D-NVME3840","TS2L3-NVME3840","Dell 3.84TB NVMe, Data Center, Read Intensive SFF",826,"TS2D-NVME3840"]
["TS2D-NVME375","TS2L3-NVME375","Dell 375GB, NVMe, Ultra Performance Express Flash, 2.5 SFF",1379,"TS2D-NVME375"]
["TS2-RACKPDU32","TS2L3-RACKPDU32","Armadio Rack 42U profonità 120cm con coppia di PDU 32A monofase",2200,"TS2-RACKPDU32"]
["TS2-PDU32A","TS2L3-PDU32A","Coppia di PDU Vertical  1Ph-32A - 0U",436,"TS2-PDU32A"]
[null,null,null,null,null,0]
[null,null,"Intel Xeon Gold 6134 3.2G, 8C/16T, 10.4GT/s, 24.75M Cache, Turbo, HT (130W) DDR4-2666,CK",2736,null,0]
[null,null,"Intel Xeon Gold 6150 2.7G, 18C/36T, 10.4GT/s, 25M Cache, Turbo, HT (165W) DDR4-2666,CK",4147,null,0]
["TS2L3-AMD7501-1",{"$f":"LEN(A124)","v":15},"AMD EPYC 7501 2.0GHz/2.6GHz, 32C/64T, 64M Cache (155W/170W) DDR4-2400/2666, CusKit",4117,"TS2L3-AMD7501-1",2]
[null,null,"Standard Heatsink, 180W CPU, R7425",null,null,0]
["TS2L3-AMD7551-1",15,"AMD EPYC 7551 2.00GHz/2.55GHz, 32C/64T, 64M Cache (180W) DDR4-2666",3569,"TS2L3-AMD7551-1",2]
[null,null,"Standard Heatsink, 180W CPU, R7425",null,null,0]
["TS2L3-AMD7601-1",15,"AMD EPYC 7601 2.20GHz/2.7GHz, 32C/64T, 64M Cache (180W) DDR4-2666",4726,"TS2L3-AMD7601-1",{"$f":"LEN(B128)","v":2}]
[null,null,"Standard Heatsink, 180W CPU, R7425",null,null,0]
["TS2L3-AMD7501-2",{"$f":"LEN(A130)","v":15},"AMD EPYC 7501 2.0GHz/2.6GHz, 32C/64T, 64M Cache (155W/170W) DDR4-2400/2666, CusKit",4117,"TS2L3-AMD7501-2",2]
[null,null,"Riser Card 2A,R7425",null,null,0]
[null,null,"Riser Card 3A,R7425",null,null,{"$f":"LEN(B132)","v":0}]
[null,null,"Standard Heatsink, 180W CPU, R7425",null,null,0]
["TS2L3-AMD7551-2",15,"AMD EPYC 7551 2.00GHz/2.55GHz, 32C/64T, 64M Cache (180W) DDR4-2666",3569,"TS2L3-AMD7551-2",{"$f":"LEN(B134)","v":2}]
[null,null,"Riser Card 2A,R7425",null,null,0]
[null,null,"Riser Card 3A,R7425"]
[null,null,"Standard Heatsink, 180W CPU, R7425"]
["TS2L3-AMD7601-2",15,"AMD EPYC 7601 2.20GHz/2.7GHz, 32C/64T, 64M Cache (180W) DDR4-2666",4726,"TS2L3-AMD7601-2"]
[null,null,"Riser Card 2A,R7425"]
[null,null,"Riser Card 3A,R7425"]
[null,null,"Standard Heatsink, 180W CPU, R7425"]
[null,null,"High Performance HS for grater 150W,Customer Kit",18]
[null,null,"600GB 10K RPM SAS 12Gbps 512n 2.5in Hot-plug Hard Drive, CK",121]
[null,null,"1.2TB 10K RPM SAS 12Gbps 512n 2.5in Hot-plug Hard Drive, CK",149]
[null,null,"8TB 7.2K RPM NLSAS 12Gbps 512e 3.5in Hot-plug Hard Drive, CK",254]
[null,null,"4TB 7.2K RPM NLSAS 12Gbps 512n 3.5in Hot-plug Hard Drive, CK",172]
[null,null,"1.92TB SSD SAS Mix Use 12Gbps 512n 2.5in Hot-plug Drive, PX05SV,3 DWPD,10512 TBW,CK",1111]
["TS2L3-SSDMU800",14,"800GB SSD SAS Write Intensive 12Gb 512n 2.5in Hot-plug Drive, PX05SM,10 DWPD,14600 TBWCK",1070,"TS2L3-SSDMU800"]
["TS2L3-SSDMU960",14,"960GB SSD SAS Mix Use 12Gbps 512n 2.5in Hot-plug Drive, PX05SV,3 DWPD,5256 TBW,CK",645,"TS2L3-SSDMU960"]
["TS2L3-SSDMU480",14,"480GB SSD SAS Mix Use 12Gbps 512n 2.5in Hot-plug Drive, PX05SV,3 DWPD,2628 TBW,CK",529,"TS2L3-SSDMU480"]
["TS2L3-SSDMU1920",15,"1.92TB SSD SAS 12Gbps 512 2.5in Cabled PM5 MU, CK",1110,"TS2L3-SSDMU1920"]
["TS2L3-SSDMU1920",15,"1.92TB SSD SAS 12Gbps 512 2.5in Hot-Plug PM5 MU, 1 DWPD, 10512 TBW, CK",1107,"TS2L3-SSDMU1920"]
["TS2L3-SSDMU1920",15,"1.92TB SSD SAS 12Gbps 512e 2.5in Hot-Plug PM5 MU, CK",1106,"TS2L3-SSDMU1920"]
["TS2L3-SATAM1920",15,"1.92TB SSD SATA Mix used 6Gbps 512e 2.5in Hot Plug Drive,S4610,, CK",1012,"TS2L3-SATAM1920"]
["TS2L3-SATAR1920",15,"960GB SSD SATA Read Intensive 6Gbps 512e 2.5in Hot Plug S4510 Drive, 1 DWPD,1752 TBW, CK",436,"TS2L3-SATAR1920"]
["TS2L3-SSDWI480",14,"480GB SSD SAS 12Gbps 512 2.5in Hot-Plug PM5 MU, 3 DWPD, 2628 TBW, CK",528,"TS2L3-SSDWI480"]
["TS2L3-SSDWI400",14,"400GB SSD SAS Write Intensive 12Gbps 512n 2.5in Hot-plug Drive, PX05SM,10 DWPD,7300 TBW, CK",632,"TS2L3-SSDWI400"]
["TS2L3-7K2000",12,"2TB 7.2K RPM NLSAS 12Gbps 512n 2.5in Hot-plug Hard Drive, CK",261,"TS2L3-7K2000"]
["TS2L3-10K2400",13,"CUS,HD,2.4T,102N,IS12,2.5,4SSB",243,"TS2L3-10K2400"]
["TS2L3-10K2401",13,"2.4TB 10K RPM SAS 12Gbps 512e 2.5in Hot-plug Hard Drive,CusKit",241,"TS2L3-10K2401"]
["TS2L3-NVME3T",12,"Dell 3.2TB, NVMe, Mixed Use Express Flash, 2.5 SFF Drive, U.2, PM1725a with Carrier, CK",2662,"TS2L3-NVME3T"]
[null,0,"Dell 3.2TB, NVMe, Mixed Use Express Flash, 2.5 SFF Drive, U.2, PM1725a with Carrier, Tower,CK",2667]
[null,0,"Tower to Rack,Conversion Kit,DELLEMC,T640,Customer Kit",42]
[null,0,"Ready Rails 3U Sliding Rails,CusKit",51]
[null,0,"3U Cable Management Arm, CusKit",43]
[null,0,"BZL,FRT,RACK,DELLEMC,T640,Customer Kit",32]
["TS2L3-LCDBEZEL",14,"CUS,BZL,LCD,2U,14G",43,"TS2L3-LCDBEZEL"]
["TS2L3-STDBEZEL",14,"CUS,BZL,STD,2U,14G",19,"TS2L3-STDBEZEL"]
[null,0,"BOSS controller card, CK",45]
["TS2L3-BOSS240",{"$f":"LEN(A170)","v":13},"BOSS controller card, full height, Customer Kit",55,"TS2L3-BOSS240"]
[null,{"$f":"LEN(A209)","v":11},"240G M.2 Drive, CK",155]
["TS2L3-BOSS480",{"$f":"LEN(A172)","v":13},"BOSS controller card, full height, Customer Kit",55,"TS2L3-BOSS480"]
[null,{"$f":"LEN(A211)","v":13},"480GB, SATA, M.2 solid state drive, CUS",288]
[null,{"$f":"LEN(A174)","v":0},"PERC HBA330 Adapter, 12Gbps Adapter, Low Profile,CK",87]
[null,0,"CUS,CRD,CTL,H740P,ADPT",777]
[null,0,"PERC H730P Controller Card, C6420, Customer Install",510]
[null,0,"PERC H730P RAID Controller Adapter,CK",221]
[null,0,"PERC H730P Integrated RAID Controller,2GB NV Cache,CusKit",252]
["TS2L3-ISDM32",12,"ISDM and Combo Card Reader, CK",24,"TS2L3-ISDM32"]
["TS2L3-ISDM64",12,"32GB microSDHC/SDXC Card, CusKit",45,"TS2L3-ISDM64"]
["TS2L3-ISDM64",12,"ISDM and Combo Card Reader, CK",24,"TS2L3-ISDM64"]
[null,0,"64GB microSDHC/SDXC Card, CusKit",128]
[null,0,"NVIDIA Tesla M10 GPU CusKit",2426]
[null,0,"NVIDIA Tesla P100 16GB Passive GPU, Customer Install",5974]
[null,0,"NVIDIA Tesla V100 16G Passive GPU, Customer Install",8727]
[null,0,"NVIDIA M60 16G GPU, Passive, Requires GRID 2.0 SW for VDI Function, Customer Install",4716]
[null,0,"NVIDIA Tesla P40 24GB GPU, Passive, Customer Install",5903]
[null,0,"NVIDIA Tesla V100 32G Passive GPU Customer Install",9556]
[null,0,"GPU installation kit for SW GPU, R7425",288]
[null,0,"GPU installation kit for DW GPU, R7425",256]
[null,0,"Riser Config 1, 2 x 16 LP, CusKit",64]
[null,0,"Riser 1A, Customer Install",27]
[null,0,"PCIe Riser for C6420, Customer Install",16]
[null,0,"Mellanox ConnectX-4 Lx Dual Port 25GbE SFP28 Network Adapter, Low Profile, Customer Install",299]
["TS2L3-MCX416A-L",15,"Mellanox ConnectX-5 EX Dual Port 100GbE QSFP28 PCIe Adapter, Low Profile, Customer Install",1128,"TS2L3-MCX416A-L"]
["TS2L3-MCX416A",13,"Mellanox ConnectX-5 EX Dual Port 100GbE QSFP28 PCIe Adapter, Full Height, Customer Install",1128,"TS2L3-MCX416A"]
["TS2L3-PSU1600W",14,"Mellanox ConnectX-4 Dual Port 40/100GbE, QSFP28, PCIe Adapter, Full Height, Customer Install",882,"TS2L3-PSU1600W"]
["TS2L3-PSU2000W",14,"Mellanox ConnectX-4 Dual Port 40/100GbE, QSFP28, PCIe Adapter, Low Profile, Customer Install",1062,"TS2L3-PSU2000W"]
["TS2L3-GPUKITSW",14,"Dell Networking Cable 100GbE, QSFP28 to QSFP28, Passive Copper Direct Attach Cable, 1 Meter,Customer Kit",176,"TS2L3-GPUKITSW"]
["TS2L3-GPUKITDW",14,"Dell Networking Cable, 100GbE QSFP28 to QSFP28,Passive Copper Direct Attach Cable,2 Meter,Customer Kit",188,"TS2L3-GPUKITDW"]
["TS2L3-MCX4121AL",15,"Dell Networking Cable,100GbE QSFP28 to QSFP28, Passive Copper Direct Attach Cable,3 Meter,Customer Kit",225,"TS2L3-MCX4121AL"]
["TS2L3-MCXSFP28",14,"Dell Networking Cable, 100GbE QSFP28 to QSFP28, Passive Copper Direct Attach Cable,5 Meter,Customer Kit",352,"TS2L3-MCXSFP28"]
[null,0,"Dell Networking, Transceiver, SFP28 25GbE SR, 85c, MMF Duplex, LC, Customer Kit",207]
[null,0,"Dell Networking, Cable, SFP+ to SFP+, 10GbE, Copper Twinax Direct Attach Cable, 1 Meter,CusKit",12]
[null,0,"Dell Networking, Cable, SFP+ to SFP+, 10GbE, Copper Twinax Direct Attach Cable, 3 Meter,CusKit",12]
["TS2L3-MCX516A",13,"Dell Networking, Cable, SFP+ to SFP+, 10GbE, Copper Twinax Direct Attach Cable, 5 Meter,CusKit",21,"TS2L3-MCX516A"]
["TS2L3-H730P",11,"SFP+ SR 10GbE Optical Transceiver, High Temperature, Dell, Customer Kit",40,"TS2L3-H730P"]
["TS2L3-H730P-I",13,"CUS,CBL,PWR,GFX,FF2.0,NV,T640",6,"TS2L3-H730P-I"]
["TS2L3-H740P",11,"Customer Kit,Card,Network,10G,QLGX,Quad Port,L",324,"TS2L3-H740P"]
["TS2L3-PSU1100W",14,"CUS,CRD,NTWK,BCOM,DP,10G,57416",225,"TS2L3-PSU1100W"]
["TS2L3-RISER1A",13,"Broadcom 57416 Dual Port 10Gb, Base-T, PCIe Adapter, Low Profile, Customer Install",389,"TS2L3-RISER1A"]
["TS2L3-GPUV10032",15,"SAS 12Gbps HBA External Controller, Low Profile, CusKit",134,"TS2L3-GPUV10032"]
["TS2L3-GPUP4024",14,"SAS 12Gbps HBA External Controller, Full Height,CusKit",134,"TS2L3-GPUP4024"]
["TS2L3-DACSFP1M",14,"Qlogic 2692 Dual Port 16Gb Fibre Channel HBA, Customer Install",661,"TS2L3-DACSFP1M"]
["TS2L3-DACSFP3M",14,"Qlogic 2692 Dual Port 16Gb Fibre Channel HBA, Low Profile, Customer Install",661,"TS2L3-DACSFP3M"]
["TS2L3-DACSFP5M",14,"QLogic 41162 Dual Port 10Gb Base-T Adapter, Full Height, Customer Install",247,"TS2L3-DACSFP5M"]
[null,0,"QLogic FastLinQ 41162 Dual Port 10Gb Base-T Adapter, Low Profile, Customer Install",247]
[null,0,"Single, Hot-plug Power Supply (1+0), 1100W,CusKit",146]
["TS2L3-QSFP281M",14,"Single, Hot-plug Power Supply (1+0), 750W,CusKit",110,"TS2L3-QSFP281M"]
["TS2L3-QSFP282M",14,"Single, Hot-plug Power Supply (1+0), 1600W, CusKit",255,"TS2L3-QSFP282M"]
["TS2L3-QSFP283M",14,"Single,Hot-plug Power Supply , 2400W,250 Volt Power Cord Required for Use, Customer Install",486,"TS2L3-QSFP283M"]
["TS2L3-QSFP285M",14,"Single, Hot-plug Power Supply (1+0), 2000W,CusKit",292,"TS2L3-QSFP285M"]
["TS2L3-HBASAS",12,"Italian Power Cord 220V 2m - Kit",2,"TS2L3-HBASAS"]
["TS2L3-SSDWI400",14,"Power Cord C19/20 2.5M (Qty 1) Kit",5,"TS2L3-SSDWI400"]
["TS2L3-10K2400",13,"LTO8 Internal Tape Drive, PE T440/T640, Customer Kit",2608,"TS2L3-10K2400"]
["TS2L3-HBA330",12,"PV LTO-6 Internal Tape Drive PE T430/T630 Cust Kit",1381,"TS2L3-HBA330"]
["TS2L3-KITGPURDY",15,"Kit - Internal SAS TBU Controller Cable",5,"TS2L3-KITGPURDY"]